Workbook

Sheet Setup
B1: video tutorial: https://www.youtube.com/watch?v=o-PyI1n_EMI | K1: 2019-02-27 | T1: =MATCH(B9,T2:T6,0) -> 2 | Z1: =MAX(K:K) -> 43523
T2: Powerlifting (3 lift meet)
B3: Reset for New Contest | I3: IPF Divisions | M3: Teams | Q3: Grp | T3: Bench Press Only
T4: Squat Only
I5: Abbrev | J5: Description | K5: Pl Code | M5: Abrev | N5: Team Name | P5: =CONCATENATE($Q$3," ",Q5) -> Grp A | Q5: A | R5: =IF(ROW(P5)<$S$5,ROW(P5)+$S$5+1,ROW(P5)-$S$5) -> 12 | S5: =IFERROR(MATCH(Lifting!A11,Setup!P5:P20,0)+4,0) -> 6 | T5: Deadlift Only
B6: 全日本ベンチプレス選手権 | I6: F-SJR-U | J6: Raw Women (14-18) | K6: 1 | P6: Grp B | Q6: B | R6: =IF(ROW(P6)<$S$5,ROW(P6)+$S$5+1,ROW(P6)-$S$5) -> 0 | T6: Push Pull (Bench & Deadlift)
I7: F-JR-U | J7: Raw Women (19-23) | K7: 1 | P7: Grp C | Q7: C | R7: 1
I8: F-O-U | J8: Raw Women | K8: 1 | P8: Grp D | Q8: D | R8: 2
B9: Bench Press Only | I9: F-M1-U | J9: Raw Women (40-49) | K9: 1 | P9: Grp E | Q9: E | R9: 3 | T9: Data!M1:M51
I10: F-M2-U | J10: Raw Women (50-59) | K10: 1 | P10: Grp F | Q10: F | R10: 4
I11: F-M3-U | J11: Raw Women (60-69) | K11: 1 | P11: Grp G | Q11: G | R11: 5
B12: 2020-06-01 | I12: F-M4-U | J12: Raw Women (70+)- | K12: 1 | P12: Grp H | Q12: H | R12: 6
I13: M-SJR-U | J13: Raw Men (14-18) | K13: 1 | P13: Grp I | Q13: I | R13: 7
I14: M-JR-U | J14: Raw Men (19-23) | K14: 1 | P14: Grp | R14: 8
B15: Platform Weights | E15: Platform Weight Set | G15: Kg | I15: M-O-U | J15: Raw Men | K15: 1 | P15: Grp | R15: 9
I16: M-M1-U | J16: Raw Men (40-49) | K16: 1 | P16: Grp | R16: 10
C17: =G15 -> Kg | E17: Eleiko | F17: =G15 -> Kg | I17: M-M2-U | J17: Raw Men (50-59) | K17: 1 | P17: Grp | R17: 11
C18: =Lists!B36 -> 270 | D18: =2*(D21*C21+D22*C22+D23*C23+D24*C24+D25*C25+D26*C26+D27*C27+D28*C28+D29*C29+D30*C30+D31*C31)+D32 -> 55 | F18: =C18 -> 270 | G18: =2*(G21*F21+G22*F22+G23*F23+G24*F24+G25*F25+G26*F26+F27*G27+G28*F28+G29*F29+G30*F30+G31*F31)+G32 -> 270 | I18: M-M3-U | J18: Raw Men (60-69) | K18: 1 | P18: Grp | R18: 12
B19: How | C19: Pound | D19: LOAD | E19: How | F19: Kilo | G19: LOAD | I19: M-M4-U | J19: Raw Men (70+)- | K19: 1 | P19: Grp | R19: 13
B20: Many? | C20: Plates | D20: on Bar | E20: Many? | F20: Plates | G20: on Bar | I20: F-SJR | J20: Women (14 -18) | K20: 1 | P20: Grp | R20: 14
B21: 0 | C21: 110 | D21: =IF(OR(C18<D32,C17="Kg"),0,MIN(INT((C18-D32)/(2*C21)),B21/2)) -> 0 | E21: 0 | F21: 50 | G21: =IF(OR(C18<G32,F17="Lb"),0,MIN(INT((F18-G32)/(2*F21)),E21/2)) -> 0 | I21: F-JR | J21: Women (19 -23) | K21: 1
B22: 0 | C22: 100 | D22: =IF(OR(C18<D32,C17="Kg"),0,MIN(INT((C18-D32-2*D21*C21)/(2*C22)),B22/2)) -> 0 | E22: 0 | F22: 45 | G22: =IF(OR(C18<G32,F17="Lb"),0,MIN(INT((F18-G32-2*G21*F21)/(2*F22)),E22/2)) -> 0 | I22: F-O | J22: Women | K22: 1
B23: 0 | C23: 55 | D23: =IF(OR(C18<D32,C17="Kg"),0,MIN(INT((C18-D32-2*D21*C21-2*D22*C22)/(2*C23)),B23/2)) -> 0 | E23: 14 | F23: 25 | G23: =IF(OR(C18<G32,F17="Lb"),0,MIN(INT((F18-G32-2*G21*F21-2*G22*F22)/(2*F23)),E23/2)) -> 4 | I23: F-M1 | J23: Women (40 -49) | K23: 1
B24: 16 | C24: 45 | D24: =IF(OR(C18<D32,C17="Kg"),0,MIN(INT((C18-D32-2*D21*C21-2*D22*C22-2*D23*C23)/(2*C24)),B24/2)) -> 0 | E24: 2 | F24: 20 | G24: =IF(OR(C18<G32,F17="Lb"),0,MIN(INT((F18-G32-2*G21*F21-2*G22*F22-2*G23*F23)/(2*F24)),E24/2)) -> 1 | I24: F-M2 | J24: Women (50 -59) | K24: 1
B25: 2 | C25: 35 | D25: =IF(OR(C18<D32,C17="Kg"),0,MIN(INT((C18-D32-2*D21*C21-2*D22*C22-2*D23*C23-2*D24*C24)/(2*C25)),B25/2)) -> 0 | E25: 2 | F25: 15 | G25: =IF(OR(C18<G32,F17="Lb"),0,MIN(INT((F18-G32-2*G21*F21-2*G22*F22-2*G23*F23-2*G24*F24)/(2*F25)),E25/2)) -> 0 | I25: F-M3 | J25: Women (60 -69) | K25: 1
B26: 2 | C26: 25 | D26: =IF(OR(C18<D32,C17="Kg"),0,MIN(INT((C18-D32-2*D21*C21-2*D22*C22-2*D23*C23-2*D24*C24-2*D25*C25)/(2*C26)),B26/2)) -> 0 | E26: 2 | F26: 10 | G26: =IF(OR(C18<G32,F17="Lb"),0,MIN(INT((F18-G32-2*G21*F21-2*G22*F22-2*G23*F23-2*G24*F24-2*G25*F25)/(2*F26)),E26/2)) -> 0 | I26: F-M4 | J26: Women (70+) - | K26: 1
B27: 4 | C27: 10 | D27: =IF(OR(C18<D32,C17="Kg"),0,MIN(INT((C18-D32-2*D21*C21-2*D22*C22-2*D23*C23-2*D24*C24-2*D25*C25-2*D26*C26)/(2*C27)),B27/2)) -> 0 | E27: 2 | F27: 5 | G27: =IF(OR(C18<G32,F17="Lb"),0,MIN(INT((F18-G32-2*G21*F21-2*G22*F22-2*G23*F23-2*G24*F24-2*G25*F25-2*F26*G26)/(2*F27)),E27/2)) -> 0 | I27: M-SJR | J27: Men (14 -18) | K27: 1
B28: 2 | C28: 5 | D28: =IF(OR(C18<D32,C17="Kg"),0,MIN(INT((C18-D32-2*D21*C21-2*D22*C22-2*D23*C23-2*D24*C24-2*D25*C25-2*D26*C26-2*D27*C27)/(2*C28)),B28/2)) -> 0 | E28: 2 | F28: 2.5 | G28: =IF(OR(C18<G32,F17="Lb"),0,MIN(INT((F18-G32-2*G21*F21-2*G22*F22-2*G23*F23-2*G24*F24-2*G25*F25-2*F26*G26-2*F27*G27)/(2*F28)),E28/2)) -> 1 | I28: M-JR | J28: Men (19 -23) | K28: 1
B29: 2 | C29: 2.5 | D29: =IF(OR(C18<D32,C17="Kg"),0,MIN(INT((C18-D32-2*D21*C21-2*D22*C22-2*D23*C23-2*D24*C24-2*D25*C25-2*D26*C26-2*D27*C27-2*D28*C28)/(2*C29)),B29/2)) -> 0 | E29: 2 | F29: 1.25 | G29: =IF(OR(C18<G32,F17="Lb"),0,MIN(INT((F18-G32-2*G21*F21-2*G22*F22-2*G23*F23-2*G24*F24-2*G25*F25-2*F26*G26-2*F27*G27-2*G28*F28)/(2*F29)),E29/2)) -> 0 | I29: M-O | J29: Men | K29: 1
B30: 4 | C30: 1.25 | D30: =IF(OR(C18<D32,C17="Kg"),0,MIN(INT((C18-D32-2*D21*C21-2*D22*C22-2*D23*C23-2*D24*C24-2*D25*C25-2*D26*C26-2*D27*C27-2*D28*C28-2*D29*C29)/(2*C30)),B30/2)) -> 0 | E30: 2 | F30: 0.5 | G30: =IF(OR(C18<G32,F17="Lb"),0,MIN(INT((F18-G32-2*G21*F21-2*G22*F22-2*G23*F23-2*G24*F24-2*G25*F25-2*F26*G26-2*G27*F27-2*G28*F28-2*G29*F29)/(2*F30)),E30/2)) -> 0 | I30: M-M1 | J30: Men (40 -49) | K30: 1
B31: 2 | C31: 0.5 | D31: =IF(OR(C18<D32,C17="Kg"),0,MIN(INT((C18-D32-2*D21*C21-2*D22*C22-2*D23*C23-2*D24*C24-2*D25*C25-2*D26*C26-2*D27*C27-2*D28*C28-2*D29*C29-2*D30*C30)/(2*C31)),B31/2)) -> 0 | E31: 2 | F31: 0.25 | G31: =IF(OR(C18<G32,F17="Lb"),0,MIN(INT((F18-G32-2*G21*F21-2*G22*F22-2*G23*F23-2*G24*F24-2*G25*F25-2*G26*F26-2*G27*F27-2*G28*F28-2*G29*F29-2*G30*F30)/(2*F31)),E31/2)) -> 0 | I31: M-M2 | J31: Men (50 -59) | K31: 1
B32: bar & collars | D32: 55 | E32: bar & collars | G32: 25 | I32: M-M3 | J32: Men (60 -69) | K32: 1
B33: =B21*C21+B22*C22+B23*C23+B24*C24+B25*C25+B26*C26+B27*C27+B28*C28+B29*C29+B30*C30+B31*C31+D32 -> 956 | C33: Lbs Available on the Platform | E33: =E21*F21+E22*F22+E23*F23+E24*F24+E25*F25+E26*F26+E27*F27+E28*F28+E29*F29+E30*F30+E31*F31+G32 -> 484 | F33: Kilos Available on the Platform | I33: M-M4 | J33: Men (70+) - | K33: 1
I34: F-P-U | J34: Raw Women | K34: 1
I35: F-P | J35: Women | K35: 1
I36: M-P-U | J36: Raw Men | K36: 1
I37: M-P | J37: Men | K37: 1
E95: Eleiko | F95: Ivanko | G95: Titex
D96: 10 | E96: =IF(E17=E95,G26,0) -> 0 | F96: =IF(F95=E17,G26,0) -> 0 | G96: =IF(G95=E17,G26,0) -> 0
D97: 5 | E97: =IF(E95=E17,G27,0) -> 0 | F97: =IF(F95=E17,G27,0) -> 0 | G97: =IF(G95=E17,G27,0) -> 0
D98: 2.5 | E98: =IF(E95=E17,G28,0) -> 1 | F98: =IF(F95=E17,G28,0) -> 0 | G98: =IF(G95=E17,G28,0) -> 0
C101: 2015_Nextlifter_R102 Scoreboard.xlsx

Sheet Lists (hidden)
A1: Attempts | C1: col | E1: =MATCH(Setup!B9,Lists!F1:J1,0) -> 3 | F1: Powerlifting (3 lift meet) | G1: Squat Only | H1: Bench Press Only | I1: Deadlift Only | J1: Push Pull (Bench & Deadlift) | L1: column # | M1: column Ltr | O1: Barload for Next Lifter
A2: Squat 1 | B2: SQ-1 | C2: 11 | E2: =OFFSET(E2,0,$E$1) -> Bench Press 1 | F2: Squat 1 | G2: Squat 1 | H2: Bench Press 1 | I2: Deadlift 1 | J2: Bench Press 1 | L2: 1 | M2: A | P2: =Setup!G15 -> Kg | W2: Y1
A3: Squat 2 | B3: SQ-2 | C3: 12 | E3: Bench Press 2 | F3: Squat 2 | G3: Squat 2 | H3: Bench Press 2 | I3: Deadlift 2 | J3: Bench Press 2 | L3: 2 | M3: B | P3: =ABS(Lists!B41) -> 260 | Q3: =2*(Q6*P6+Q7*P7+Q8*P8+Q9*P9+Q10*P10+Q11*P11+Q12*P12+Q13*P13+Q14*P14+Q15*P15+Q16*P16)+Q35 -> 55 | W3: Y2
A4: Squat 3 | B4: SQ-3 | C4: 13 | E4: Bench Press 3 | F4: Squat 3 | G4: Squat 3 | H4: Bench Press 3 | I4: Deadlift 3 | J4: Bench Press 3 | L4: 3 | M4: C | O4: How | P4: Pound | Q4: LOAD | W4: Y3
A5: Bench Press 1 | B5: BP-1 | C5: 16 | E5: ------------ | F5: Bench Press 1 | G5: ------------ | H5: ------------ | I5: ------------ | J5: Deadlift 1 | L5: 4 | M5: D | O5: Many? | P5: Plates | Q5: on Bar | W5: T1
A6: Bench Press 2 | B6: BP-2 | C6: 17 | E6: New Lifter | F6: Bench Press 2 | G6: New Lifter | H6: New Lifter | I6: New Lifter | J6: Deadlift 2 | L6: 5 | M6: E | O6: =Setup!B21 -> 0 | P6: 110 | Q6: =IF(OR(P3<Q35,P2="Kg"),0,MIN(INT((P3-Q35)/(2*P6)),O6/2)) -> 0 | R6: =IF(Q6=0,"",IF(Q6>1,CONCATENATE(Q6,"/",P6," "),CONCATENATE(P6," "))) ->  | W6: T2
A7: Bench Press 3 | B7: BP-3 | C7: 18 | E7: 0 | F7: Bench Press 3 | J7: Deadlift 3 | L7: 6 | M7: F | O7: =Setup!B22 -> 0 | P7: 100 | Q7: =IF(OR(P3<Q35,P2="Kg"),0,MIN(INT((P3-Q35-2*Q6*P6)/(2*P7)),O7/2)) -> 0 | R7: =IF(Q7=0,"",IF(Q7>1,CONCATENATE(Q7,"/",P7," "),CONCATENATE(P7," "))) ->  | W7: T3
A8: Deadlift 1 | B8: DL-1 | C8: 21 | E8: 0 | F8: Deadlift 1 | J8: ------------ | L8: 7 | M8: G | O8: =Setup!B23 -> 0 | P8: 55 | Q8: =IF(OR(P3<Q35,P2="Kg"),0,MIN(INT((P3-Q35-2*Q6*P6-2*Q7*P7)/(2*P8)),O8/2)) -> 0 | R8: =IF(Q8=0,"",IF(Q8>1,CONCATENATE(Q8,"/",P8," "),CONCATENATE(P8," "))) ->  | W8: JR
A9: Deadlift 2 | B9: DL-2 | C9: 22 | E9: 0 | F9: Deadlift 2 | J9: New Lifter | L9: 8 | M9: H | O9: =Setup!B24 -> 16 | P9: 45 | Q9: =IF(OR(P3<Q35,P2="Kg"),0,MIN(INT((P3-Q35-2*Q6*P6-2*Q7*P7-2*Q8*P8)/(2*P9)),O9/2)) -> 0 | R9: =IF(Q9=0,"",IF(Q9>1,CONCATENATE(Q9,"/",P9," "),CONCATENATE(P9," "))) ->  | W9: O
A10: Deadlift 3 | B10: DL-3 | C10: 23 | E10: 0 | F10: Deadlift 3 | L10: 9 | M10: I | O10: =Setup!B25 -> 2 | P10: 35 | Q10: =IF(OR(P3<Q35,P2="Kg"),0,MIN(INT((P3-Q35-2*Q6*P6-2*Q7*P7-2*Q8*P8-2*Q9*P9)/(2*P10)),O10/2)) -> 0 | R10: =IF(Q10=0,"",IF(Q10>1,CONCATENATE(P10,"/",Q10," "),CONCATENATE(P10," "))) ->  | W10: M1a
A11: ------------ | E11: ------------ | F11: ------------ | L11: 10 | M11: J | O11: =Setup!B26 -> 2 | P11: 25 | Q11: =IF(OR(P3<Q35,P2="Kg"),0,MIN(INT((P3-Q35-2*Q6*P6-2*Q7*P7-2*Q8*P8-2*Q9*P9-2*Q10*P10)/(2*P11)),O11/2)) -> 0 | W11: M1b
A12: New Lifter | E12: =OFFSET(E12,0,$E$1) -> 0 | F12: New Lifter | L12: 11 | M12: K | O12: =Setup!B27 -> 4 | P12: 10 | Q12: =IF(OR(P3<Q35,P2="Kg"),0,MIN(INT((P3-Q35-2*Q6*P6-2*Q7*P7-2*Q8*P8-2*Q9*P9-2*Q10*P10-2*Q11*P11)/(2*P12)),O12/2)) -> 0 | W12: M2a
A13: Deadlift 1 | L13: 12 | M13: L | O13: =Setup!B28 -> 2 | P13: 5 | Q13: =IF(OR(P3<Q35,P2="Kg"),0,MIN(INT((P3-Q35-2*Q6*P6-2*Q7*P7-2*Q8*P8-2*Q9*P9-2*Q10*P10-2*Q11*P11-2*Q12*P12)/(2*P13)),O13/2)) -> 0 | W13: M2b
A14: Weigh-in Macro values | L14: 13 | M14: M | O14: =Setup!B29 -> 2 | P14: 2.5 | Q14: =IF(OR(P3<Q35,P2="Kg"),0,MIN(INT((P3-Q35-2*Q6*P6-2*Q7*P7-2*Q8*P8-2*Q9*P9-2*Q10*P10-2*Q11*P11-2*Q12*P12-2*Q13*P13)/(2*P14)),O14/2)) -> 0 | W14: M3a
A15: Endrow (RowSort, EndSort for SQ1 BP1 DL1) | B15: =COUNTA(INDIRECT("Lifting!B13:B500"))+12 -> 30 | L15: 14 | M15: N | O15: =Setup!B30 -> 4 | P15: 1.25 | Q15: =IF(OR(P3<Q35,P2="Kg"),0,MIN(INT((P3-Q35-2*Q6*P6-2*Q7*P7-2*Q8*P8-2*Q9*P9-2*Q10*P10-2*Q11*P11-2*Q12*P12-2*Q13*P13-2*Q14*P14)/(2*P15)),O15/2)) -> 0 | W15: M3b
A16: CopyRows | B16: =COUNTA(INDIRECT("'Weigh-In'!F1:F500"))+1 -> 3 | L16: 15 | M16: O | O16: =Setup!B31 -> 2 | P16: 0.5 | Q16: =IF(OR(P3<Q35,P2="Kg"),0,MIN(INT((P3-Q35-2*Q6*P6-2*Q7*P7-2*Q8*P8-2*Q9*P9-2*Q10*P10-2*Q11*P11-2*Q12*P12-2*Q13*P13-2*Q14*P14-2*Q15*P15)/(2*P16)),O16/2)) -> 0 | W16: M4a
L17: 16 | M17: P | P17: =Setup!G15 -> Kg | W17: M4b
A18: Lifting Sheet Macro Values | L18: 17 | M18: Q | P18: =P3 -> 260 | Q18: =2*(Q21*P21+Q22*P22+Q23*P23+Q24*P24+Q25*P25+Q26*P26+Q27*P27+Q28*P28+Q29*P29+Q30*P30+Q31*P31)+Q36 -> 260 | W18: M5a
A19: Lifting Sheet Sort | B19: on | L19: 18 | M19: R | O19: How | P19: Kilo | Q19: LOAD | W19: M5b
A20: Lifting sheet row | B20: 39 | L20: 19 | M20: S | O20: Many? | P20: Plates | Q20: on Bar | W20: M6
A21: Lifting sheet column | B21: 3 | L21: 20 | M21: T | O21: =Setup!E21 -> 0 | P21: 50 | Q21: =IF(OR(P3<Q36,P17="Lb"),0,MIN(INT((P18-Q36)/(2*P21)),O21/2)) -> 0 | R21: =IF(Q21=0,"",IF(Q21>1,CONCATENATE(Q21,"/",P21," "),CONCATENATE(P21," "))) ->  | W21: R-T1
A22: Lifting Sheet Cell | B22: =ADDRESS(B20,B21,,1,"Lifting") -> Lifting!$C$39 | L22: 21 | M22: U | O22: =Setup!E22 -> 0 | P22: 45 | Q22: =IF(OR(P3<Q36,P17="Lb"),0,MIN(INT((P18-Q36-2*Q21*P21)/(2*P22)),O22/2)) -> 0 | R22: =IF(Q22=0,"",IF(Q22>1,CONCATENATE(Q22,"/",P22," "),CONCATENATE(P22," "))) ->  | W22: R-T2
A23: Attempt | B23: =VLOOKUP(Lifting!A3,Lists!A2:C10,2,FALSE) -> DL-1 | L23: 22 | M23: V | O23: =Setup!E23 -> 14 | P23: 25 | Q23: =IF(OR(P3<Q36,P17="Lb"),0,MIN(INT((P18-Q36-2*Q21*P21-2*Q22*P22)/(2*P23)),O23/2)) -> 4 | R23: =IF(Q23=0,"",IF(Q23>1,CONCATENATE(Q23,"/",P23," "),CONCATENATE(P23," "))) -> 4/25 | W23: R-T3
A24: Attempt column | B24: =MATCH(B23,INDIRECT("Lifting!A11:AZ11"),0) -> 21 | L24: 23 | M24: W | O24: =Setup!E24 -> 2 | P24: 20 | Q24: =IF(OR(P3<Q36,P17="Lb"),0,MIN(INT((P18-Q36-2*Q21*P21-2*Q22*P22-2*Q23*P23)/(2*P24)),O24/2)) -> 0 | R24: =IF(Q24=0,"",IF(Q24>1,CONCATENATE(P24,"/",Q24," "),CONCATENATE(P24," "))) ->  | W24: R-Y1
A25: Active lifter row | B25: =MATCH(Lifting!A1,INDIRECT("Lifting!B1:B500"),0) -> 13 | L25: 24 | M25: X | O25: =Setup!E25 -> 2 | P25: 15 | Q25: =IF(OR(P3<Q36,P17="Lb"),0,MIN(INT((P18-Q36-2*Q21*P21-2*Q22*P22-2*Q23*P23-2*Q24*P24)/(2*P25)),O25/2)) -> 1 | R25: 15 | W25: R-Y2
A26: Last Row | B26: =COUNTA(INDIRECT("Lifting!B12:B500"))+12 -> 30 | L26: 25 | M26: Y | O26: =Setup!E26 -> 2 | P26: 10 | Q26: =IF(OR(P3<Q36,P17="Lb"),0,MIN(INT((P18-Q36-2*Q21*P21-2*Q22*P22-2*Q23*P23-2*Q24*P24-2*Q25*P25)/(2*P26)),O26/2)) -> 0 | W26: R-Y3
A27: Event Flight | B27: B | C27: =VLOOKUP(Lifting!A11,Setup!P5:Q20,2,FALSE) -> B | L27: 26 | M27: Z | O27: =Setup!E27 -> 2 | P27: 5 | Q27: =IF(OR(P3<Q36,P17="Lb"),0,MIN(INT((P18-Q36-2*Q21*P21-2*Q22*P22-2*Q23*P23-2*Q24*P24-2*Q25*P25-2*Q26*P26)/(2*P27)),O27/2)) -> 0 | W27: R-JR
A28: event flight 1st row (RowSort, StartSort) | B28: =MATCH(B27,INDIRECT("Lifting!A1:A500"),0) -> 13 | O28: =Setup!E28 -> 2 | P28: 2.5 | Q28: =IF(OR(P3<Q36,P17="Lb"),0,MIN(INT((P18-Q36-2*Q21*P21-2*Q22*P22-2*Q23*P23-2*Q24*P24-2*Q25*P25-2*Q26*P26-2*Q27*P27)/(2*P28)),O28/2)) -> 1 | R28: 2.5 | W28: R-O
A29: event flight last row (RowSort, EndSort) | B29: =COUNTIF(INDIRECT("Lifting!A1:A500"),B27)+B28-1 -> 19 | O29: =Setup!E29 -> 2 | P29: 1.25 | Q29: =IF(OR(P3<Q36,P17="Lb"),0,MIN(INT((P18-Q36-2*Q21*P21-2*Q22*P22-2*Q23*P23-2*Q24*P24-2*Q25*P25-2*Q26*P26-2*Q27*P27-2*Q28*P28)/(2*P29)),O29/2)) -> 0 | W29: R-M1A
A30: Sort Column # | B30: 21 | O30: =Setup!E30 -> 2 | P30: 0.5 | Q30: =IF(OR(P3<Q36,P17="Lb"),0,MIN(INT((P18-Q36-2*Q21*P21-2*Q22*P22-2*Q23*P23-2*Q24*P24-2*Q25*P25-2*Q26*P26-2*Q27*P27-2*Q28*P28-2*Q29*P29)/(2*P30)),O30/2)) -> 0 | W30: R-M1B
A31: Sort Column Ltr | B31: =VLOOKUP(B30,L2:M27,2,FALSE) -> U | O31: =Setup!E31 -> 2 | P31: 0.25 | Q31: =IF(OR(P3<Q36,P17="Lb"),0,MIN(INT((P18-Q36-2*Q21*P21-2*Q22*P22-2*Q23*P23-2*Q24*P24-2*Q25*P25-2*Q26*P26-2*Q27*P27-2*Q28*P28-2*Q29*P29-2*Q30*P30)/(2*P31)),O31/2)) -> 0 | W31: R-M2A
A32: Active Flt Last Row | B32: =COUNTIF(INDIRECT("Lifting!A1:A500"),B27)+12 -> 19 | W32: R-M2B
A33: Max index SQ | B33: =MAX(INDIRECT("Lifting!AJ1:AJ500")) -> 26 | W33: R-M3A
A34: Max index BP | B34: =MAX(INDIRECT("Lifting!AK1:AK500")) -> 19 | W34: R-M3B
A35: Max index DL | B35: =MAX(INDIRECT("Lifting!AL1:AL500")) -> 21 | D35: Total? | O35: bar & collars - lbs | Q35: =Setup!D32 -> 55 | W35: R-M4A
A36: Wt on Bar | B36: =ABS(INDIRECT(CONCATENATE("Lifting!",VLOOKUP(B24,L2:M27,2,FALSE),B25))) -> 270 | D36: =INDIRECT(ADDRESS(B25,25,1,1,"Lifting")) -> 0 | O36: bar & collars - kg | Q36: =Setup!G32 -> 25 | W36: R-M4B
A37: Rack Height | B37: =IF(LEFT(B23,1)="D","",CONCATENATE("Rack ",INDIRECT(CONCATENATE("Lifting!",IF(LEFT(B23,1)="S","J",IF(LEFT(B23,1)="B","O","Z")),B25)))) ->  | W37: R-M5A
A38: Placing Code Max | B38: =MAX(INDIRECT("Setup!K6:K500")) -> 1 | N38: on deck barload | O38: =IF(AND(RIGHT(B23,1)="3",B25=B32),"",IF(B36=B41,"On Deck Barload - No Change",CONCATENATE("On Deck Barload ",R6,R7,R8,R9,R10,R11,R12,R13,R14,R15,R16,R21,R22,R23,R24,R25,R26,R27,R28,R29,R30,R31))) -> On Deck Barload 4/25 15 2.5 | W38: R-M5B
A39: Lifter Wt Cls | B39: =Lifting!D2 -> 84+
A40: Lifter Div | B40: =INDIRECT(CONCATENATE("Lifting!D",B25)) -> F-O | E40: Lifter Lot# | F40: Repeats
A41: Next Barload | B41: =INDIRECT(ADDRESS(IF(B25+F41>B29,13,B25+F41),IF(B25+F41>B29,B24+1,B24),1,1,"Lifting")) -> 260 | D41: =AND(B32=B25,RIGHT(B23,1)=3) -> FALSE | E41: =INDIRECT(ADDRESS(Lists!B25,7,1,1,"Lifting")) -> 18 | F41: =COUNTIF(INDIRECT("Lifting!B13:B100"),Lifting!A1) -> 1
A42: QuickPrint PasteCol | B42: =COUNTA(INDIRECT("QuickPrint!A2:A500"))+1 -> 20
A43: QuickPrint RowClear | B43: =COUNTA(INDIRECT("QuickPrint!B1:B500"))+6 -> 26
A44: Entered in Event | B44: =COUNTIF(INDIRECT("Lifting!AM1:AM500"),1) -> 1
A45: PasteRow on QuickPrint | B45: =C45+D45 -> 22 | C45: =COUNTA(INDIRECT("QuickPrint!B1:B200"))+1 -> 21 | D45: =COUNTIF(QuickPrint!B:B,"Name") -> 1
A46: Next Flt Sort Value | B46: =INDIRECT(CONCATENATE("Lifting!",IF(B23="SQ-3","AK","AL"),B32+1)) -> 2 | C46: sorts next flt if = 0
A47: Next Flt sort Col | B47: =IF(B23="SQ-3","P","U") -> U
A48: Next flt Start | B48: =IFERROR(MATCH(1,INDIRECT("Lifting!AH1:AH500"),0),0) -> 0
A49: Next flt end | B49: =COUNTIF(INDIRECT("Lifting!$A$1:$A$100"),INDIRECT(ADDRESS(B32+1,1,1,1,"Lifting")))+B32 -> 30 | E49: Wt Class-Event-Div | F49: BP only | G49: DL only | H49: =IF(IFERROR(SEARCH("PL",INDIRECT(CONCATENATE("Lifting!AE",B25))),0)>0,"PL","") -> PL | I49: div | J49: lookup Event
A50: Concatenated Record Data | E50: =CONCATENATE(Lists!B39,"-",J50) -> 84+-DL | F50: =IFERROR(IF(AND(SEARCH("BP",INDIRECT(CONCATENATE("Lifting!AE",B25))),LEFT(B23,2)="BP"),"BPO",""),"") ->  | G50: =IFERROR(IF(AND(SEARCH("DL",INDIRECT(CONCATENATE("Lifting!AE",B25))),LEFT(B23,2)="DL"),"DLO",""),"") ->  | H50: =LEFT(B23,2) -> DL | I50: =CONCATENATE(IF(MID(B40,2,1)="R","R-",""),VLOOKUP(INDIRECT(CONCATENATE("Lifting!AS",B25)),DATA!E35:F52,2,TRUE)) -> M1b | J50: =IF(IFERROR(SEARCH("PL",INDIRECT(CONCATENATE("Lifting!AE",B25))),0)+IFERROR(SEARCH("PP",INDIRECT(CONCATENATE("Lifting!AE",B25))),0)>0,H50,CONCATENATE(F50,G50)) -> DL
A51: Number of lifter in Event | B51: =SUM(INDIRECT("Lifting!AM1:AM500")) -> 1 | E51: =IFERROR(OFFSET(INDIRECT(B56),MATCH(E50,DATA!AF1:AF150,0)-1,I51-1),"") -> 227.5 | F51: =IFERROR(OFFSET(INDIRECT(B56),MATCH(E50,DATA!AF1:AF150,0)-1,I53-1),"") -> 260.5 | I51: =IFERROR(MATCH(I50,INDIRECT("'KG Records'!1:1"),0),"") -> 11
E52: =CONCATENATE(Lists!B39,"-TL") -> 84+-TL | I52: =CONCATENATE(IF(LEFT(I50,1)="R","R-",""),"O") -> O
E53: =IFERROR(IF(H49="PL",OFFSET(INDIRECT(B56),MATCH(E52,DATA!AF1:AF150,0)-1,I51-1),""),"") -> 612.5 | F53: =IFERROR(IF(H49="PL",OFFSET(INDIRECT(B56),MATCH(E52,DATA!AF1:AF150,0)-1,I53-1),""),"") -> 778 | I53: =IFERROR(MATCH(I52,INDIRECT("'KG Records'!1:1"),0),"") -> 9
A55: Record Lookups LB or Kilos | B55: =Setup!G15 -> Kg
B56: =IF(B55="Kg","'KG Records'!$A$1","'LB Records'!$A$1") -> 'KG Records'!$A$1
B57: =IF(B55="Kg","'KG Records'!$A1:$AO1","'LB Records'!$A1:$AO1") -> 'KG Records'!$A1:$AO1
B58: =IF(B55="Kg","'KG Records'!$A1:$A110","'LB Records'!$A1:$A110") -> 'KG Records'!$A1:$A110
A61: Record Lookups
A62: body weights in | B62: =Setup!B39 -> 0 | I62: =VLOOKUP(INDIRECT(CONCATENATE("Lifting!AS",B25)),DATA!E35:F52,2,TRUE) -> M1b
A63: Weight classes | B63: =Setup!E39 -> 0
A64: bodyweight | B64: =INDIRECT(CONCATENATE("Lifting!E",B25)) -> 150 | D64: =VLOOKUP(B64,INDIRECT(E64),IF(LEFT(B40,1)="M",2,3),TRUE) -> 158 | E64: =IF(AND(B62="Kilograms",B63="High School Wt Classes"),"DATA!X2:Z22",IF(AND(B62="Pounds",B63="High School Wt Classes"),"DATA!R2:T22",IF(AND(B62="Kilograms",B63="IPF Wt Classes"),"DATA!X2:Z22","DATA!R2:T22"))) -> DATA!R2:T22
A67: pasterow on Results sheet | B67: =COUNTA(ContestResults!#REF!)+1 -> 2

Sheet DATA (hidden)
A1: Age | B1: Coeff | E1: wt | F1: IPF Men-kg | G1: IPF women-kg | I1: wt class list | J1: rank | L1: US State: | M1: USAPL | O1: WT | P1: HS Men-lb | Q1: HS Women-lb | R1: WT | S1: IPF Men-lb | T1: IPF women-lb | U1: wt | V1: HS Men-kg | W1: HS women-kg | X1: wt | Y1: IPF Men-kg | Z1: IPF women-kg | AB1: wt class rank kg | AC1: wt class rank lb | AD1: wt class rank kg | AK1: USAPL Dvisions | AO1: IPF Divisions
A2: 14 | B2: 1.23 | C2: Foster | E2: 10 | F2: 53 | G2: 43 | I2: 43 | J2: 1 | L2: Alabama | M2: AL | O2: 88.1862046 | P2: 114 | Q2: 97 | R2: 22.046 | S2: 66 | T2: 66 | U2: 10 | V2: 52 | W2: 44 | X2: 10 | Y2: 30 | Z2: 30 | AB2: 30 | AC2: 66 | AD2: 30 | AF2: 30-SQ | AG2: 30-SQ | AH2: 66-SQ | AK2: FR-Y1 | AL2: Raw Women (8-9) | AM2: 1 | AO2: FR-SJr | AP2: Raw Women (14-18) | AQ2: 1
A3: 15 | B3: 1.18 | E3: 30.001 | F3: 53 | G3: 43 | I3: 44 | J3: 2 | L3: Alaska | M3: AK | O3: 97.0046046 | P3: 114 | Q3: 105 | R3: 66.1402046 | S3: 77 | T3: 77 | U3: 44.001 | V3: 52 | W3: 48 | X3: 30.001 | Y3: 35 | Z3: 35 | AB3: 35 | AC3: 77 | AD3: 35 | AF3: 30-BP | AG3: 30-BP | AH3: 66-BP | AK3: FR-Y2 | AL3: Raw Women (10-11) | AM3: 1 | AO3: FR-Jr | AP3: Raw Women (19-23) | AQ3: 1
A4: 16 | B4: 1.13 | E4: 35.001 | F4: 53 | G4: 43 | I4: 47 | J4: 3 | L4: Arizona | M4: AZ | O4: 105.8230046 | P4: 114 | Q4: 114 | R4: 77.1632046 | S4: 88 | T4: 88 | U4: 48.001 | V4: 52 | W4: 52 | X4: 35.001 | Y4: 40 | Z4: 40 | AB4: 40 | AC4: 88 | AD4: 40 | AF4: 30-DL | AG4: 30-DL | AH4: 66-DL | AK4: FR-Y3 | AL4: Raw Women (12-13) | AM4: 1 | AO4: FR-O | AP4: Raw Women | AQ4: 1
A5: 17 | B5: 1.08 | E5: 40.001 | F5: 53 | G5: 43 | I5: 48 | J5: 4 | L5: Arkansas | M5: AR | O5: 114.6414046 | P5: 123 | Q5: 123 | R5: 88.1862046 | S5: 97 | T5: 94 | U5: 52.001 | V5: 56 | W5: 56 | X5: 40.001 | Y5: 44 | Z5: 43 | AB5: 43 | AC5: 94 | AD5: 43 | AF5: 30-TL | AG5: 30-TL | AH5: 66-TL | AK5: FR-T1 | AL5: Raw Women (14-15) | AM5: 1 | AO5: FR-M1 | AP5: Raw Women (40-49) | AQ5: 1
A6: 18 | B6: 1.06 | E6: 43.001 | F6: 53 | G6: 47 | I6: 52 | J6: 5 | L6: California | M6: CA | O6: 123.4598046 | P6: 132 | Q6: 132 | R6: 94.8000046 | S6: 97 | T6: 103 | U6: 56.001 | V6: 60 | W6: 60 | X6: 43.001 | Y6: 44 | Z6: 47 | AB6: 44 | AC6: 97 | AD6: 44 | AF6: 35-SQ | AG6: 35-SQ | AH6: 77-SQ | AK6: FR-T2 | AL6: Raw Women (16-17) | AM6: 1 | AO6: FR-M2 | AP6: Raw Women (50-59) | AQ6: 1
A7: 19 | B7: 1.04 | E7: 44.001 | F7: 53 | G7: 47 | I7: 53 | J7: 6 | L7: Colorado | M7: CO | O7: 132.2782046 | P7: 148 | Q7: 148 | R7: 97.0046046 | S7: 105 | T7: 103 | U7: 60.001 | V7: 67.5 | W7: 67.5 | X7: 44.001 | Y7: 48 | Z7: 47 | AB7: 47 | AC7: 103 | AD7: 47 | AF7: 35-BP | AG7: 35-BP | AH7: 77-BP | AK7: FR-T3 | AL7: Raw Women (18-19) | AM7: 1 | AO7: FR-M3 | AP7: Raw Women (60-69) | AQ7: 1
A8: 20 | B8: 1.03 | E8: 47.001 | F8: 53 | G8: 52 | I8: 56 | J8: 7 | L8: Connecticut | M8: CT | O8: 148.8127046 | P8: 165 | Q8: 165 | R8: 103.6184046 | S8: 105 | T8: 114 | U8: 67.501 | V8: 75 | W8: 75 | X8: 47.001 | Y8: 48 | Z8: 52 | AB8: 48 | AC8: 105 | AD8: 48 | AF8: 35-DL | AG8: 35-DL | AH8: 77-DL | AK8: FR-JR | AL8: Raw Women (20-23) | AM8: 1 | AO8: FR-M4 | AP8: Raw Women (70+)- | AQ8: 1
A9: 21 | B9: 1.02 | E9: 48.001 | F9: 53 | G9: 52 | I9: 57 | J9: 8 | L9: Delaware | M9: DE | O9: 165.3472046 | P9: 181 | Q9: 181 | R9: 105.8230046 | S9: 116 | T9: 114 | U9: 75.001 | V9: 82.5 | W9: 82.5 | X9: 48.001 | Y9: 53 | Z9: 52 | AB9: 52 | AC9: 114 | AD9: 52 | AF9: 35-TL | AG9: 35-TL | AH9: 77-TL | AK9: FR-O | AL9: Raw Women | AM9: 1 | AO9: MR-SJr | AP9: Raw Men (14-18) | AQ9: 1
A10: 22 | B10: 1.01 | E10: 52.001 | F10: 53 | G10: 57 | I10: 59 | J10: 9 | L10: Florida | M10: FL | O10: 181.8817046 | P10: 198 | Q10: 198 | R10: 114.6414046 | S10: 116 | T10: 125 | U10: 82.501 | V10: 90 | W10: 90 | X10: 52.001 | Y10: 53 | Z10: 57 | AB10: 53 | AC10: 116 | AD10: 53 | AF10: 40-SQ | AG10: 40-SQ | AH10: 88-SQ | AK10: FR-M1a | AL10: Raw Women (40-44) | AM10: 1 | AO10: MR-Jr | AP10: Raw Men (19-23) | AQ10: 1
A11: 23 | B11: 1 | E11: 53.001 | F11: 59 | G11: 57 | I11: 60 | J11: 10 | L11: Georgia | M11: GA | O11: 198.4162046 | P11: 220 | Q11: 198+ | R11: 116.8460046 | S11: 130 | T11: 125 | U11: 90.001 | V11: 100 | W11: 90+ | X11: 53.001 | Y11: 59 | Z11: 57 | AB11: 56 | AC11: 123 | AD11: 56 | AF11: 40-BP | AG11: 40-BP | AH11: 88-BP | AK11: FR-M1b | AL11: Raw Women (45-49) | AM11: 1 | AO11: MR-O | AP11: Raw Men | AQ11: 1
A12: 30 | B12: 1 | E12: 57.001 | F12: 59 | G12: 63 | I12: 63 | J12: 11 | L12: Hawaii | M12: HI | O12: 220.4622046 | P12: 242 | Q12: 198+ | R12: 125.6644046 | S12: 130 | T12: 138 | U12: 100.001 | V12: 110 | W12: 90+ | X12: 57.001 | Y12: 59 | Z12: 63 | AB12: 57 | AC12: 125 | AD12: 57 | AF12: 40-DL | AG12: 40-DL | AH12: 88-DL | AK12: FR-M2a | AL12: Raw Women (50-54) | AM12: 1 | AO12: MR-M1 | AP12: Raw Men (40-49) | AQ12: 1
A13: 40 | B13: 1 | C13: McCulloch | E13: 59.001 | F13: 66 | G13: 63 | I13: 66 | J13: 12 | L13: Idaho | M13: ID | O13: 242.5082046 | P13: 275 | Q13: 198+ | R13: 130.0736046 | S13: 130 | T13: 138 | U13: 110.001 | V13: 125 | W13: 90+ | X13: 59.001 | Y13: 66 | Z13: 63 | AB13: 59 | AC13: 130 | AD13: 59 | AF13: 40-TL | AG13: 40-TL | AH13: 88-TL | AK13: FR-M2b | AL13: Raw Women (55-59) | AM13: 1 | AO13: MR-M2 | AP13: Raw Men (50-59) | AQ13: 1
A14: 41 | B14: 1.01 | E14: 63.001 | F14: 66 | G14: 72 | I14: 67.5 | J14: 13 | L14: Illinois | M14: IL | O14: 275.5772046 | P14: 275+ | Q14: 198+ | R14: 138.8920046 | S14: 145 | T14: 158 | U14: 125.001 | V14: 125+ | W14: 90+ | X14: 63.001 | Y14: 66 | Z14: 72 | AB14: 60 | AC14: 132 | AD14: 60 | AF14: 44-SQ | AG14: 44-SQ | AH14: 97-SQ | AK14: FR-M3a | AL14: Raw Women (60-64) | AM14: 1 | AO14: MR-M3 | AP14: Raw Men (60-69) | AQ14: 1
A15: 42 | B15: 1.02 | E15: 66.001 | F15: 74 | G15: 72 | I15: 72 | J15: 14 | L15: Indiana | M15: IN | R15: 145.5058046 | S15: 163 | T15: 158 | X15: 66.001 | Y15: 74 | Z15: 72 | AB15: 63 | AC15: 138 | AD15: 63 | AF15: 44-BP | AG15: 44-BP | AH15: 97-BP | AK15: FR-M3b | AL15: Raw Women (65-69) | AM15: 1 | AO15: MR-M4 | AP15: Raw Men (70+)- | AQ15: 1
A16: 43 | B16: 1.031 | E16: 72.001 | F16: 74 | G16: 84 | I16: 74 | J16: 15 | L16: Iowa | M16: IA | R16: 158.7334046 | S16: 163 | T16: 185 | X16: 72.001 | Y16: 74 | Z16: 84 | AB16: 66 | AC16: 145 | AD16: 66 | AF16: 44-DL | AG16: 44-DL | AH16: 97-DL | AK16: FR-M4a | AL16: Raw Women (70-74) | AM16: 1 | AO16: F-SJr | AP16: Women (14 -18) | AQ16: 1
A17: 44 | B17: 1.043 | E17: 74.001 | F17: 83 | G17: 84 | I17: 75 | J17: 16 | L17: Kansas | M17: KS | R17: 163.1426046 | S17: 183 | T17: 185 | X17: 74.001 | Y17: 83 | Z17: 84 | AB17: 67.5 | AC17: 148 | AD17: 67.5 | AF17: 44-TL | AG17: 44-TL | AH17: 97-TL | AK17: FR-M4b | AL17: Raw Women (75-79) | AM17: 1 | AO17: F-Jr | AP17: Women (19 -23) | AQ17: 1
A18: 45 | B18: 1.055 | E18: 83.001 | F18: 93 | G18: 84 | I18: 82.5 | J18: 17 | L18: Kentucky | M18: KY | R18: 183.003846 | S18: 183 | T18: 185 | X18: 83.01 | Y18: 93 | Z18: 84 | AB18: 72 | AC18: 158 | AD18: 72 | AF18: 48-SQ | AG18: 48-SQ | AH18: 105-SQ | AK18: FR-M5a | AL18: Raw Women (80-84) | AM18: 1 | AO18: F-O | AP18: Women | AQ18: 1
A19: 46 | B19: 1.068 | E19: 84.001 | F19: 93 | G19: 84+ | I19: 83 | J19: 18 | L19: Louisiana | M19: LA | R19: 185.1886046 | S19: 205 | T19: 185+ | X19: 84.001 | Y19: 93 | Z19: 84+ | AB19: 74 | AC19: 163 | AD19: 74 | AF19: 48-BP | AG19: 48-BP | AH19: 105-BP | AK19: FR-M5b | AL19: Raw Women (85-89) | AM19: 1 | AO19: F-M1 | AP19: Women (40 -49) | AQ19: 1
A20: 47 | B20: 1.082 | E20: 93.001 | F20: 105 | G20: 84+ | I20: 84 | J20: 19 | L20: Maine | M20: ME | R20: 205.0300046 | S20: 231 | T20: 185+ | X20: 93.001 | Y20: 105 | Z20: 84+ | AB20: 75 | AC20: 165 | AD20: 75 | AF20: 48-DL | AG20: 48-DL | AH20: 105-DL | AK20: FR-M6 | AL20: Raw Women (90+)- | AM20: 1 | AO20: F-M2 | AP20: Women (50 -59) | AQ20: 1
A21: 48 | B21: 1.097 | E21: 105.001 | F21: 120 | G21: 84+ | I21: 84+ | J21: 20 | L21: Maryland | M21: MD | R21: 231.4852046 | S21: 264 | T21: 185+ | X21: 105.001 | Y21: 120 | Z21: 84+ | AB21: 82.5 | AC21: 181 | AD21: 82.5 | AF21: 48-TL | AG21: 48-TL | AH21: 105-TL | AK21: MR-Y1 | AL21: Raw Men (8-9) | AM21: 1 | AO21: F-M3 | AP21: Women (60 -69) | AQ21: 1
A22: 49 | B22: 1.113 | E22: 120.001 | F22: 120+ | G22: 84+ | I22: 90 | J22: 21 | L22: Massachusetts | M22: MA | R22: 264.5542046 | S22: 264+ | T22: 185+ | X22: 120.001 | Y22: 120+ | Z22: 84+ | AB22: 83 | AC22: 183 | AD22: 83 | AF22: 53-SQ | AG22: 53-SQ | AH22: 116-SQ | AK22: MR-Y2 | AL22: Raw Men (10-11) | AM22: 1 | AO22: F-M4 | AP22: Women (70+) - | AQ22: 1
A23: 50 | B23: 1.13 | I23: 90+ | J23: 22 | L23: Michigan | M23: MI | AB23: 84 | AC23: 185 | AD23: 84 | AF23: 53-BP | AG23: 53-BP | AH23: 116-BP | AK23: MR-Y3 | AL23: Raw Men (12-13) | AM23: 1 | AO23: M-SJr | AP23: Men (14 -18) | AQ23: 1
A24: 51 | B24: 1.147 | I24: 93 | J24: 23 | L24: Minnesota | M24: MN | AB24: 84+ | AC24: 185+ | AD24: 84+ | AF24: 53-DL | AG24: 53-DL | AH24: 116-DL | AK24: MR-T1 | AL24: Raw Men (14-15) | AM24: 1 | AO24: M-Jr | AP24: Men (19 -23) | AQ24: 1
A25: 52 | B25: 1.165 | I25: 100 | J25: 24 | L25: Mississippi | M25: MS | AB25: 90 | AC25: 198 | AD25: 90 | AF25: 53-TL | AG25: 53-TL | AH25: 116-TL | AK25: MR-T2 | AL25: Raw Men (16-17) | AM25: 1 | AO25: M-O | AP25: Men | AQ25: 1
A26: 53 | B26: 1.184 | I26: 105 | J26: 25 | L26: Missouri | M26: MO | AB26: 90+ | AC26: 198+ | AD26: 90+ | AF26: 59-SQ | AG26: 59-SQ | AH26: 130-SQ | AK26: MR-T3 | AL26: Raw Men (18-19) | AM26: 1 | AO26: M-M1 | AP26: Men (40 -49) | AQ26: 1
A27: 54 | B27: 1.204 | I27: 110 | J27: 26 | L27: Montana | M27: MT | AB27: 93 | AC27: 205 | AD27: 93 | AF27: 59-BP | AG27: 59-BP | AH27: 130-BP | AK27: MR-JR | AL27: Raw Men (20-23) | AM27: 1 | AO27: M-M2 | AP27: Men (50 -59) | AQ27: 1
A28: 55 | B28: 1.225 | I28: 120 | J28: 27 | L28: Nebraska | M28: NE | AB28: 100 | AC28: 220 | AD28: 100 | AF28: 59-DL | AG28: 59-DL | AH28: 130-DL | AK28: MR-O | AL28: Raw Men | AM28: 1 | AO28: M-M3 | AP28: Men (60 -69) | AQ28: 1
A29: 56 | B29: 1.246 | I29: 120+ | J29: 28 | L29: Nevada | M29: NV | AB29: 105 | AC29: 231 | AD29: 105 | AF29: 59-TL | AG29: 59-TL | AH29: 130-TL | AK29: MR-M1a | AL29: Raw Men (40-44) | AM29: 1 | AO29: M-M4 | AP29: Men (70+) - | AQ29: 1
A30: 57 | B30: 1.258 | I30: 125 | J30: 29 | L30: New Hampshire | M30: NH | AB30: 110 | AC30: 242 | AD30: 110 | AF30: 66-SQ | AG30: 66-SQ | AH30: 145-SQ | AK30: MR-M1b | AL30: Raw Men (45-49) | AM30: 1
A31: 58 | B31: 1.292 | I31: 125+ | J31: 30 | L31: New Jersey | M31: NJ | AB31: 120 | AC31: 264 | AD31: 120 | AF31: 66-BP | AG31: 66-BP | AH31: 145-BP | AK31: MR-M2a | AL31: Raw Men (50-54) | AM31: 1
A32: 59 | B32: 1.315 | I32: 94 | J32: 31 | L32: New Mexico | M32: NM | AB32: 125 | AC32: 275 | AD32: 125 | AF32: 66-DL | AG32: 66-DL | AH32: 145-DL | AK32: MR-M2b | AL32: Raw Men (55-59) | AM32: 1
A33: 60 | B33: 1.34 | I33: 97 | J33: 32 | L33: New York | M33: NY | AB33: 120+ | AC33: 264+ | AD33: 120+ | AF33: 66-TL | AG33: 66-TL | AH33: 145-TL | AK33: MR-M3a | AL33: Raw Men (60-64) | AM33: 1
A34: 61 | B34: 1.366 | E34: Age | F34: USAPL Age Div | I34: 103 | J34: 33 | L34: North Carolina | M34: NC | AB34: 125+ | AC34: 275+ | AD34: 125+ | AF34: 74-SQ | AG34: 74-SQ | AH34: 163-SQ | AK34: MR-M3b | AL34: Raw Men (65-69) | AM34: 1
A35: 62 | B35: 1.393 | E35: 8 | F35: Y1 | I35: 105 | J35: 34 | L35: North Dakota | M35: ND | AF35: 74-BP | AG35: 74-BP | AH35: 163-BP | AK35: MR-M4a | AL35: Raw Men (70-74) | AM35: 1
A36: 63 | B36: 1.421 | E36: 10 | F36: Y2 | I36: 114 | J36: 35 | L36: Ohio | M36: OH | AF36: 74-DL | AG36: 74-DL | AH36: 163-DL | AK36: MR-M4b | AL36: Raw Men (75-79) | AM36: 1
A37: 64 | B37: 1.45 | E37: 12 | F37: Y3 | I37: 116 | J37: 36 | L37: Oklahoma | M37: OK | AF37: 74-TL | AG37: 74-TL | AH37: 163-TL | AK37: MR-M5a | AL37: Raw Men (80-84) | AM37: 1
A38: 65 | B38: 1.48 | E38: 14 | F38: T1 | I38: 123 | J38: 37 | L38: Oregon | M38: OR | AF38: 83-SQ | AG38: 83-SQ | AH38: 183-SQ | AK38: MR-M5b | AL38: Raw Men (85-89) | AM38: 1
A39: 66 | B39: 1.511 | E39: 16 | F39: T2 | I39: 125 | J39: 38 | L39: Pennsylvania | M39: PA | AF39: 83-BP | AG39: 83-BP | AH39: 183-BP | AK39: MR-M6 | AL39: Raw Men (90+)- | AM39: 1
A40: 67 | B40: 1.543 | E40: 18 | F40: T3 | I40: 130 | J40: 39 | L40: Rhode Island | M40: RI | AF40: 83-DL | AG40: 83-DL | AH40: 183-DL | AK40: F-T1 | AL40: Women (14-15) | AM40: 1
A41: 68 | B41: 1.578 | E41: 20 | F41: Jr | I41: 132 | J41: 40 | L41: South Carolina | M41: SC | AF41: 83-TL | AG41: 83-TL | AH41: 183-TL | AK41: F-T2 | AL41: Women (16-17) | AM41: 1
A42: 69 | B42: 1.61 | E42: 24 | F42: O | I42: 138 | J42: 41 | L42: South Dakota | M42: SD | AF42: 93-SQ | AG42: 93-SQ | AH42: 205-SQ | AK42: F-T3 | AL42: Women (18-19) | AM42: 1
A43: 70 | B43: 1.645 | E43: 40 | F43: M1a | I43: 145 | J43: 42 | L43: Tennessee | M43: TN | AF43: 93-BP | AG43: 93-BP | AH43: 205-BP | AK43: F-JR | AL43: Women (20-23) | AM43: 1
A44: 71 | B44: 1.681 | E44: 45 | F44: M1b | I44: 148 | J44: 43 | L44: Texas | M44: TX | AF44: 93-DL | AG44: 93-DL | AH44: 205-DL | AK44: F-O | AL44: Women | AM44: 1
A45: 72 | B45: 1.718 | E45: 50 | F45: M2a | I45: 158 | J45: 44 | L45: Utah | M45: UT | AF45: 93-TL | AG45: 93-TL | AH45: 205-TL | AK45: F-M1a | AL45: Women (40-44) | AM45: 1
A46: 73 | B46: 1.756 | E46: 55 | F46: M2b | I46: 163 | J46: 45 | L46: Vermont | M46: VT | AF46: 105-SQ | AG46: 105-SQ | AH46: 231-SQ | AK46: F-M1b | AL46: Women (45-49) | AM46: 1
A47: 74 | B47: 1.795 | E47: 60 | F47: M3a | I47: 165 | J47: 46 | L47: Virginia | M47: VA | AF47: 105-BP | AG47: 105-BP | AH47: 231-BP | AK47: F-M2a | AL47: Women (50-54) | AM47: 1
A48: 75 | B48: 1.835 | E48: 65 | F48: M3b | I48: 181 | J48: 47 | L48: Washington | M48: WA | AF48: 105-DL | AG48: 105-DL | AH48: 231-DL | AK48: F-M2b | AL48: Women (55-59) | AM48: 1
A49: 76 | B49: 1.876 | E49: 70 | F49: M4a | I49: 182 | J49: 48 | L49: West Virginia | M49: WV | AF49: 105-TL | AG49: 105-TL | AH49: 231-TL | AK49: F-M3a | AL49: Women (60-64) | AM49: 1
A50: 77 | B50: 1.918 | E50: 75 | F50: M4b | I50: 185 | J50: 49 | L50: Wisconsin | M50: WI | AF50: 120-SQ | AG50: 120-SQ | AH50: 264-SQ | AK50: F-M3b | AL50: Women (65-69) | AM50: 1
A51: 78 | B51: 1.961 | E51: 80 | F51: M5a | I51: 185+ | J51: 50 | L51: Wyoming | M51: WY | AF51: 120-BP | AG51: 120-BP | AH51: 264-BP | AK51: F-M4a | AL51: Women (70-74) | AM51: 1
A52: 79 | B52: 2.005 | E52: 85 | F52: M5b | I52: 198 | J52: 51 | L52: American Samoa | M52: AS | AF52: 120-DL | AG52: 120-DL | AH52: 264-DL | AK52: F-M4b | AL52: Women (75-79) | AM52: 1
A53: 80 | B53: 2.05 | E53: 90 | F53: M6 | I53: 198+ | J53: 52 | L53: District of Columbia | M53: DC | AF53: 120-TL | AG53: 120-TL | AH53: 264-TL | AK53: F-M5a | AL53: Women (80-84) | AM53: 1
A54: 81 | B54: 2.096 | I54: 205 | J54: 53 | L54: Federated States of Micronesia | M54: FM | AF54: 120+-SQ | AG54: 120+-SQ | AH54: 264+-SQ | AK54: F-M5b | AL54: Women (85-89) | AM54: 1
A55: 82 | B55: 2.143 | I55: 220 | J55: 54 | L55: Guam | M55: GU | AF55: 120+-BP | AG55: 120+-BP | AH55: 264+-BP | AK55: F-M6 | AL55: Women (90+)- | AM55: 1
A56: 83 | B56: 2.19 | I56: 231 | J56: 55 | L56: Marshall Islands | M56: MH | AF56: 120+-DL | AG56: 120+-DL | AH56: 264+-DL | AK56: M-T1 | AL56: Men (14-15) | AM56: 1
A57: 84 | B57: 2.238 | I57: 242 | J57: 56 | L57: Northern Mariana Islands | M57: MP | AF57: 120+-TL | AG57: 120+-TL | AH57: 264+-TL | AK57: M-T2 | AL57: Men (16-17) | AM57: 1
A58: 85 | B58: 2.287 | I58: 264 | J58: 57 | L58: Palau | M58: PW | AF58: 30-BPO | AG58: 30-BPO | AH58: 66-BPO | AK58: M-T3 | AL58: Men (18-19) | AM58: 1
A59: 86 | B59: 2.337 | I59: 264+ | J59: 58 | L59: Puerto Rico | M59: PR | AF59: 35-BPO | AG59: 35-BPO | AH59: 77-BPO | AK59: M-JR | AL59: Men (20-23) | AM59: 1
A60: 87 | B60: 2.388 | I60: 275 | J60: 59 | L60: Virgin Islands | M60: VI | AF60: 40-BPO | AG60: 40-BPO | AH60: 88-BPO | AK60: M-O | AL60: Men | AM60: 1
A61: 88 | B61: 2.44 | I61: 275+ | J61: 60 | M61: OOS | AF61: 44-BPO | AG61: 44-BPO | AH61: 97-BPO | AK61: M-M1a | AL61: Men (40-44) | AM61: 1
A62: 89 | B62: 2.494 | AF62: 48-BPO | AG62: 48-BPO | AH62: 105-BPO | AK62: M-M1b | AL62: Men (45-49) | AM62: 1
A63: 90 | B63: 2.549 | AF63: 53-BPO | AG63: 53-BPO | AH63: 116-BPO | AK63: M-M2a | AL63: Men (50-54) | AM63: 1
AF64: 59-BPO | AG64: 59-BPO | AH64: 130-BPO | AK64: M-M2b | AL64: Men (55-59) | AM64: 1
AF65: 66-BPO | AG65: 66-BPO | AH65: 145-BPO | AK65: M-M3a | AL65: Men (60-64) | AM65: 1
AF66: 74-BPO | AG66: 74-BPO | AH66: 163-BPO | AK66: M-M3b | AL66: Men (65-69) | AM66: 1
AF67: 83-BPO | AG67: 83-BPO | AH67: 183-BPO | AK67: M-M4a | AL67: Men (70-74) | AM67: 1
AF68: 93-BPO | AG68: 93-BPO | AH68: 205-BPO | AK68: M-M4b | AL68: Men (75-79) | AM68: 1
AF69: 105-BPO | AG69: 105-BPO | AH69: 231-BPO | AK69: M-M5a | AL69: Men (80-84) | AM69: 1
AF70: 120-BPO | AG70: 120-BPO | AH70: 264-BPO | AK70: M-M5b | AL70: Men (85-89) | AM70: 1
AF71: 120+-BPO | AG71: 120+-BPO | AH71: 264+-BPO | AK71: M-M6 | AL71: Men (90+)- | AM71: 1
AF72: 30-DLO | AG72: 30-DLO | AH72: 66-DLO
AF73: 35-DLO | AG73: 35-DLO | AH73: 77-DLO
AF74: 40-DLO | AG74: 40-DLO | AH74: 88-DLO
AF75: 44-DLO | AG75: 44-DLO | AH75: 97-DLO
AF76: 48-DLO | AG76: 48-DLO | AH76: 105-DLO
AF77: 53-DLO | AG77: 53-DLO | AH77: 116-DLO
AF78: 59-DLO | AG78: 59-DLO | AH78: 130-DLO
AF79: 66-DLO | AG79: 66-DLO | AH79: 145-DLO
AF80: 74-DLO | AG80: 74-DLO | AH80: 163-DLO
AF81: 83-DLO | AG81: 83-DLO | AH81: 183-DLO
AF82: 93-DLO | AG82: 93-DLO | AH82: 205-DLO
AF83: 105-DLO | AG83: 105-DLO | AH83: 231-DLO
AF84: 120-DLO | AG84: 120-DLO | AH84: 264-DLO
AF85: 120+-DLO | AG85: 120+-DLO | AH85: 264+-DLO
AF86: 30-SQ | AG86: 30-SQ | AH86: 66-SQ
AF87: 30-BP | AG87: 30-BP | AH87: 66-BP
AF88: 30-DL | AG88: 30-DL | AH88: 66-DL
AF89: 30-TL | AG89: 30-TL | AH89: 66-TL
AF90: 35-SQ | AG90: 35-SQ | AH90: 77-SQ
AF91: 35-BP | AG91: 35-BP | AH91: 77-BP
AF92: 35-DL | AG92: 35-DL | AH92: 77-DL
AF93: 35-TL | AG93: 35-TL | AH93: 77-TL
AF94: 40-SQ | AG94: 40-SQ | AH94: 88-SQ
AF95: 40-BP | AG95: 40-BP | AH95: 88-BP
AF96: 40-DL | AG96: 40-DL | AH96: 88-DL
AF97: 40-TL | AG97: 40-TL | AH97: 88-TL
AF98: 43-SQ | AG98: 43-SQ | AH98: 94-SQ
AF99: 43-BP | AG99: 43-BP | AH99: 94-BP
AF100: 43-DL | AG100: 43-DL | AH100: 94-DL
AF101: 43-TL | AG101: 43-TL | AH101: 94-TL
AF102: 47-SQ | AG102: 47-SQ | AH102: 103-SQ
AF103: 47-BP | AG103: 47-BP | AH103: 103-BP
AF104: 47-DL | AG104: 47-DL | AH104: 103-DL
AF105: 47-TL | AG105: 47-TL | AH105: 103-TL
AF106: 52-SQ | AG106: 52-SQ | AH106: 114-SQ
AF107: 52-BP | AG107: 52-BP | AH107: 114-BP
AF108: 52-DL | AG108: 52-DL | AH108: 114-DL
AF109: 52-TL | AG109: 52-TL | AH109: 114-TL
AF110: 57-SQ | AG110: 57-SQ | AH110: 125-SQ
AF111: 57-BP | AG111: 57-BP | AH111: 125-BP
AF112: 57-DL | AG112: 57-DL | AH112: 125-DL
AF113: 57-TL | AG113: 57-TL | AH113: 125-TL
AF114: 63-SQ | AG114: 63-SQ | AH114: 138-SQ
AF115: 63-BP | AG115: 63-BP | AH115: 138-BP
AF116: 63-DL | AG116: 63-DL | AH116: 138-DL
AF117: 63-TL | AG117: 63-TL | AH117: 138-TL
AF118: 72-SQ | AG118: 72-SQ | AH118: 158-SQ
AF119: 72-BP | AG119: 72-BP | AH119: 158-BP
AF120: 72-DL | AG120: 72-DL | AH120: 158-DL
AF121: 72-TL | AG121: 72-TL | AH121: 158-TL
AF122: 84-SQ | AG122: 84-SQ | AH122: 185-SQ
AF123: 84-BP | AG123: 84-BP | AH123: 185-BP
AF124: 84-DL | AG124: 84-DL | AH124: 185-DL
AF125: 84-TL | AG125: 84-TL | AH125: 185-TL
AF126: 84+-SQ | AG126: 84+-SQ | AH126: 185+-SQ
AF127: 84+-BP | AG127: 84+-BP | AH127: 185+-BP
AF128: 84+-DL | AG128: 84+-DL | AH128: 185+-DL
AF129: 84+-TL | AG129: 84+-TL | AH129: 185+-TL
AF130: 30-BPO | AG130: 30-BPO | AH130: 66-BPO
AF131: 35-BPO | AG131: 35-BPO | AH131: 77-BPO
AF132: 40-BPO | AG132: 40-BPO | AH132: 88-BPO
AF133: 43-BPO | AG133: 43-BPO | AH133: 94-BPO
AF134: 47-BPO | AG134: 47-BPO | AH134: 103-BPO
AF135: 52-BPO | AG135: 52-BPO | AH135: 114-BPO
AF136: 57-BPO | AG136: 57-BPO | AH136: 125-BPO
AF137: 63-BPO | AG137: 63-BPO | AH137: 138-BPO
AF138: 72-BPO | AG138: 72-BPO | AH138: 158-BPO
AF139: 84-BPO | AG139: 84-BPO | AH139: 185-BPO
AF140: 84+-BPO | AG140: 84+-BPO | AH140: 185+-BPO
AF141: 30-DLO | AG141: 30-DLO | AH141: 66-DLO
AF142: 35-DLO | AG142: 35-DLO | AH142: 77-DLO
AF143: 40-DLO | AG143: 40-DLO | AH143: 88-DLO
AF144: 43-DLO | AG144: 43-DLO | AH144: 94-DLO
AF145: 47-DLO | AG145: 47-DLO | AH145: 103-DLO
AF146: 52-DLO | AG146: 52-DLO | AH146: 114-DLO
AF147: 57-DLO | AG147: 57-DLO | AH147: 125-DLO
AF148: 63-DLO | AG148: 63-DLO | AH148: 138-DLO
AF149: 72-DLO | AG149: 72-DLO | AH149: 158-DLO
AF150: 84-DLO | AG150: 84-DLO | AH150: 185-DLO
AF151: 84+-DLO | AG151: 84+-DLO | AH151: 185+-DLO

Sheet Weigh-In
D1: 都道府県と団体名の間に、半角スペース | E1: Fが女子 Ｍが男子 -Uがクラシック | F1: Oが一般 Ｐがオープン | N1: PLを必ず入れる | Z1: 10
A2: グループ | B2: 選手名 | D2: 都道府県 団体名 | E2: M/F-Div | F2: 検量体重 | G2: lot# | H2: 生年 | I2: SQ ラック | J2: =CONCATENATE("SQ-1 (",T2,")") -> SQ-1 (Kg) | K2: BP ラック | L2: =CONCATENATE("BP-1 (",T2,")") -> BP-1 (Kg) | M2: =CONCATENATE("DL-1 (",T2,")") -> DL-1 (Kg) | N2: 選択して ＰＬ | O2: State | P2: Print Card | Q2: Nominated Wt Class | T2: =Setup!G15 -> Kg | U2: =COUNTA(F:F)+1 -> 3 | V2: =CONCATENATE("Setup!I6:I",COUNTA(Setup!I:I)+3) -> Setup!I6:I37 | W2: =CONCATENATE("Setup!M6:M",COUNTA(Setup!M:M)+3) -> Setup!M6:M5 | X2: =CONCATENATE("Setup!Q5:Q",COUNTA(Setup!Q:Q)+4) -> Setup!Q5:Q14 | Y2: =CONCATENATE("DATA!$M$2:$M$61") -> DATA!$M$2:$M$61 | Z2: 5 | AA2: =COUNTA(F:F)+1 -> 3 | AN2: flight sort data | AO2: att sort data | AY2: SQ-1 | AZ2: SQ-2 | BA2: SQ-3 | BB2: Best SQ Att | BC2: BP rack | BD2: BP-1 | BE2: BP-2 | BF2: BP-3 | BG2: Best BP Att | BH2: Sub Total | BI2: DL-1 | BJ2: DL-2 | BK2: DL-3 | BL2: Best DL Att
E3: -
E4: -
E5: -
E6: -
E7: -
E8: -
E9: -
E10: -
E11: -
E12: -
E13: -
E14: -
E15: -
E16: -
E17: -
E18: -
E19: -
E20: -
E21: -
E22: -
E23: -
E24: -
E25: -
E26: -
E27: -
E28: -
E29: -
E30: -
E31: -
E32: -
E33: -
E34: -
E35: -
E36: -
E37: -
E38: -
E39: -
E40: -
E41: -
E42: -
E43: -
E44: -
E45: -
E46: -
E47: -
E48: -
E49: -
E50: -
E51: -
E52: -
E53: -
E54: -
E55: -
E56: -
E57: -
E58: -
E59: -
E60: -
E61: -
E62: -
E63: -
E64: -
E65: -
E66: -
E67: -
E68: -
E69: -
E70: -
E71: -
E72: -
E73: -
E74: -
E75: -
E76: -
E77: -
E78: -
E79: -
E80: -
E81: -
E82: -
E83: -
E84: -
E85: -
E86: -
E87: -
E88: -
E89: -
E90: -
E91: -
E92: -
E93: -
E94: -
E95: -
E96: -
E97: -
E98: -
E99: -
E100: -
E101: -
E102: -
E103: -
E104: -
E105: -
E106: -
E107: -
E108: -
E109: -
E110: -
E111: -
E112: -
E113: -
E114: -
E115: -
E116: -
E117: -
E118: -
E119: -
E120: -
E121: -
E122: -
E123: -
E124: -
E125: -
E126: -
E127: -
E128: -
E129: -
E130: -
E131: -
E132: -
E133: -
E134: -
E135: -
E136: -
E137: -
E138: -
E139: -
E140: -
E141: -
E142: -
E143: -
E144: -
E145: -
E146: -
E147: -
E148: -
E149: -
E150: -
E151: -
E152: -
E153: -
E154: -
E155: -
E156: -
E157: -
E158: -
E159: -
E160: -
E161: -
E162: -
E163: -
E164: -
E165: -
E166: -
E167: -
E168: -
E169: -
E170: -
E171: -
E172: -
E173: -
E174: -
E175: -
E176: -
E177: -
E178: -
E179: -
E180: -
E181: -
E182: -
E183: -
E184: -
E185: -
E186: -
E187: -
E188: -
E189: -
E190: -
E191: -
E192: -
E193: -
E194: -
E195: -
E196: -
E197: -
E198: -
E199: -
E200: -
... 229 more rows

Sheet Lifting
A1: 堀 滋 | AB1: 次の選手 | AJ1: F- | AK1: WE | AM1: Best BP | AN1: BP | AO1: B
A2: =IFERROR(VLOOKUP(INDIRECT(ADDRESS(MATCH(A1,INDIRECT(CONCATENATE("B12:B50")),0)+11,4)),Setup!I1:J199,2,FALSE),"-") -> Women | D2: =INDIRECT(CONCATENATE("F",MATCH(A1,B:B,0))) -> 84+ | F2: =CONCATENATE(RIGHT(E11,2)," Cls") -> 体重 Cls | AB2: 氏名 | AC2: 芳村 晃 | AE2: Rack | AJ2: FR | AK2: WC | AM2: Best DL | AN2: DL | AO2: D
A3: Deadlift 1 | C3: =Lists!B36 -> 270 | E3: =Setup!G15 -> Kg | F3: =IF(E3="Kg",C3*2.2046,C3/2.2046) -> 595.242 | G3: =IF(E3="Kg","Lb","Kg") -> Lb | AB3: 重量 | AJ3: M- | AK3: ME | AM3: Best SQ | AN3: SQ | AO3: S
A4: =VLOOKUP(INDIRECT(ADDRESS(MATCH(A1,INDIRECT(CONCATENATE("B12:B50")),0)+11,4)),Setup!I5:J92,2,FALSE) -> Women | C4: Event | E4: =IF(Setup!B9="Powerlifting (3 lift meet)","PL Total","") ->  | AJ4: MR | AK4: MC | AM4: PL Total | AN4: PL | AO4: P
A5: Open | C5: =IFERROR(Lists!F51,10000) -> 260.5 | E5: =IF(OR(E4="",LEFT(A3,1)="S",LEFT(A3,1)="B"),10000,IFERROR(Lists!F53,10000)) -> 10000 | AM5: PP Total | AN5: PP
A6: =IFERROR(IF(INDIRECT(ADDRESS(MATCH(A1,INDIRECT(CONCATENATE("B12:B40")),0)+11,9))="","O",VLOOKUP(INDIRECT(ADDRESS(MATCH(A1,INDIRECT(CONCATENATE("B12:B40")),0)+11,45)),DATA!E35:F53,2)),"") -> M1b | C6: =IFERROR(IF(A6="O",10000,Lists!E51),10000) -> 227.5 | E6: =IF(OR(E4="",LEFT(A3,1)="S",LEFT(A3,1)="B"),10000,IFERROR(IF(A6="O",10000,Lists!E53),10000)) -> 10000 | AM6: DQ | AN6: DQ
B7: Current Status | C7: Good | D7: NoLift | E7: Next | F7: Auto | G7: 1 | AM7: Drug Test | AN7: DT | AR7: 2020-04-23 | BO7: div | BP7: cls
C8: =CONCATENATE("Setup!Q5:Q",COUNTA(Setup!Q:Q)+4) -> Setup!Q5:Q14 | F8: Min Increment | G8: =IF(Setup!G15="Kg",0.5,1) -> 0.5 | H8: 01:00:00
C9: =CONCATENATE("Lists!E2:E",COUNTIF(Lists!E1:E12,"<>""")) -> Lists!E2:E12 | F9: Forecast total | G9: =INDIRECT(ADDRESS(Lists!B25,51,,,"Lifting")) -> 0 | AI9: sort | BH9: =NOW()-TODAY() -> 16:52:19.880
A10: =CONCATENATE("Setup!P5:P",COUNTA(Setup!Q:Q)+3) -> Setup!P5:P13 | B10: =CONCATENATE("B13:B",12+COUNTIF(A:A,RIGHT(A11,LEN(A11)-FIND(" ",A11)))) -> B13:B19 | C10: =CONCATENATE("Setup!M6:M",COUNTA(Setup!M:M)+3) -> Setup!M6:M5 | D10: =CONCATENATE("Setup!I6:I",COUNTA(Setup!I:I)+3) -> Setup!I6:I37 | G10: =INDIRECT(ADDRESS(Lists!B25,26,,,"Lifting")) ->  | AI10: on | AJ10: Assigned Macro values | AV10: Forecasts
A11: Grp B | B11: Name | C11: Team | D11: Div | E11: ='Weigh-In'!F2 -> 検量体重 | F11: IPF Wt Cls | G11: lot# | H11: Birth Year | I11: IPF Pts Code | J11: SQ rack | K11: SQ-1 | L11: SQ-2 | M11: SQ-3 | N11: Best SQ | O11: BP rack | P11: BP-1 | Q11: BP-2 | R11: BP-3 | S11: Best BP | T11: Sub Total | U11: DL-1 | V11: DL-2 | W11: DL-3 | X11: Best DL | Y11: Best BP | Z11: Pl/Div/Cls/Event | AA11: Forecast Score | AB11: F'cast Place | AC11: IPF Points | AD11: Age & Points | AE11: Events Entered | AF11: MemberID | AG11: State | AH11: Flight Sorting | AI11: =Lists!B31 -> U | AJ11: SQ time rank | AK11: BP time rank | AL11: DL/TL rank | AM11: =VLOOKUP(Y11,AM1:AN7,2,FALSE) -> BP | AN11: Pl Code | AO11: tl or coef score | AQ11: Div Order | AR11: DB Div | AT11: Wt Cls order | AV11: SQ | AW11: BP | AX11: DL | AY11: tl or event | AZ11: wilks score | BA11: wilks & age | BB11: score value | BJ11: Active Lifter Row | BK11: =Lists!B25 -> 13 | BL11: Active Lifter Col | BM11: =Lists!B24 -> 21 | BN11: =Lists!B23 -> DL-1 | BO11: =Lists!B40 -> F-O | BP11: =Lists!B39 -> 84+ | BZ11: Drug tested | CB11: Div-Cls | CC11: event time | CD11: Place | CE11: Forecast Place
F12: =一般判定(IFERROR(VLOOKUP(E12,DATA!$E$2:$G$22,IF(LEFT(D12,1)="M",2,3)),""),D12) ->  | I12: =CONCATENATE(LEFT(D12,1),IF(RIGHT(D12,1)="U","C","E"),VLOOKUP($Y$11,$AM$1:$AO$4,3,FALSE)) -> EB | N12: =IF(MAX(K12:M12)<=0,0,MAX(CELL("color",K12)*K12,CELL("color",L12)*L12,CELL("color",M12)*M12)) -> 0 | S12: =IF(MAX(P12:R12)<=0,0,MAX(CELL("color",P12)*P12,CELL("color",Q12)*Q12,CELL("color",R12)*R12)) -> 0 | T12: =IF(OR(N12=0,S12=0),0,N12+S12) -> 0 | X12: =IF(MAX(U12:W12)<=0,0,MAX(CELL("color",U12)*U12,CELL("color",V12)*V12,CELL("color",W12)*W12)) -> 0 | Y12: =AM12*IF($AM$11="SQ",N12,IF($AM$11="BP",S12,IF($AM$11="DL",X12,IF($AM$11="PP",IF(OR(S12=0,X12=0),0,S12+X12),IF(OR(T12=0,X12=0),0,T12+X12))))) -> 0 | Z12: =IF(Y12=0,"",CONCATENATE(CD12,"/",IF(AN12=4,"Wilks",D12),"/",IF(AN12>1,"",F12),"/",$AM$11)) ->  | AA12: =BB12 -> 0 | AB12: =IF(AA12=0,"",CE12) ->  | AC12: =IFERROR(IPF_Formula(E12,I12,Y12),0) -> 0 | AD12: =IFERROR(VLOOKUP(AS12,DATA!$A$2:$B$63,2,TRUE),0)*AC12 -> 0 | AE12: BP | AH12: =IFERROR(VLOOKUP(A12,Setup!$Q$5:$R$20,2,FALSE),"") ->  | AI12: =IF(VALUE(INDIRECT(CONCATENATE($AI$11,ROW())))=0,"",ABS(INDIRECT(CONCATENATE($AI$11,ROW())))+0.000001*G12) ->  | AJ12: 0 | AK12: 0 | AL12: 0 | AM12: =IF(ISERROR(SEARCH($AM$11,AE12)),0,1) -> 1 | AN12: =VLOOKUP(D12,Setup!$I$6:$K$92,3,FALSE) ->  | AO12: =ROUND(IFERROR(IF(AN12=1,Y12,IF(AN12=2,AC12,IF(AN12=3,AD12,AC12))),0),5) -> 0 | AQ12: =IFERROR(MATCH(D12,Setup!$I$6:$I$92,0),"") ->  | AR12: =IFERROR(CONCATENATE(LEFT(D12,FIND("-",D12)),IF(AS12="","O",VLOOKUP(AS12,DATA!$E$35:$F$53,2,TRUE))),"") ->  | AS12: =YEAR(TODAY())-H12 -> 2020 | AT12: =IF(AN12=1,MATCH(F12,DATA!$AB$2:$AB$34,0),0) ->  | AV12: =IF(MAX(K12:M12)>0,MAX(K12:M12),0) -> 0 | AW12: =IF(MAX(P12:R12)>0,MAX(P12:R12),0) -> 0 | AX12: =IF(MAX(U12:W12)>0,MAX(U12:W12),0) -> 0 | AY12: =AM12*IF($AM$11="PL",IF(MIN(AV12:AX12)=0,0,AV12+AW12+AX12),IF($AM$11="PP",IF(MIN(AW12:AX12)=0,0,AW12+AX12),IF($AM$11="BP",AW12,IF($AM$11="DL",AX12,AV12)))) -> 0 | AZ12: =IFERROR(IPF_Formula(E12,I12,AY12),0) -> 0 | BA12: =ROUND(IFERROR(VLOOKUP(AS12,DATA!$A$2:$B$63,2,FALSE),1)*AZ12,5) -> 0 | BB12: =IFERROR(IF(AN12=1,AY12,IF(AN12=2,AZ12,IF(AN12=3,BA12,AZ12))),0) -> 0 | BZ12: =IFERROR(IF(FIND("DT",AE12),"Y",""),"") ->  | CB12: =CONCATENATE(IF(AN12=4,"",D12),IF(AN12=1,F12,"")) ->  | CC12: =IF($AM$11="SQ",AJ12,IF($AM$11="BP",AK12,AL12)) -> 0 | CD12: =1+COUNTIFS(INDIRECT("AN12:AN500"),AN12,INDIRECT("CB12:CB500"),CB12,INDIRECT("AO12:AO500"),">"&AO12) +COUNTIFS(INDIRECT("AO12:AO500"),AO12,INDIRECT("AN12:AN500"),1,INDIRECT("CB12:CB500"),CB12,INDIRECT("E12:E500"),"<"&E12) +COUNTIFS(INDIRECT("AO12:AO500"),AO12,INDIRECT("AN12:AN500"),1,INDIRECT("CB12:CB500"),CB12,INDIRECT("E12:E500"),E12,INDIRECT("CC12:CC500"),"<"&CC12) -> 1 | CE12: =1+COUNTIFS(INDIRECT("AN12:AN500"),AN12,INDIRECT("CB12:CB500"),CB12,INDIRECT("BB12:BB500"),">"&BB12) +COUNTIFS(INDIRECT("BB12:BB500"),BB12,INDIRECT("AN12:AN500"),1,INDIRECT("CB12:CB500"),CB12,INDIRECT("E12:E500"),"<"&E12) -> 1
A13: B | B13: 堀 滋 | C13: 8suki gym | D13: F-O | E13: 150 | F13: =一般判定(IFERROR(VLOOKUP(E13,DATA!$E$2:$G$22,IF(LEFT(D13,1)="M",2,3)),""),D13) -> 84+ | G13: 18 | H13: 1975 | I13: =CONCATENATE(LEFT(D13,1),IF(RIGHT(D13,1)="U","C","E"),VLOOKUP($Y$11,$AM$1:$AO$4,3,FALSE)) -> FEB | J13: 270 | K13: 270 | N13: =IF(MAX(K13:M13)<=0,0,MAX(CELL("color",K13)*K13,CELL("color",L13)*L13,CELL("color",M13)*M13)) -> 270 | O13: 270 | P13: 270 | S13: =IF(MAX(P13:R13)<=0,0,MAX(CELL("color",P13)*P13,CELL("color",Q13)*Q13,CELL("color",R13)*R13)) -> 270 | T13: =IF(OR(N13=0,S13=0),0,N13+S13) -> 540 | U13: 270 | X13: =IF(MAX(U13:W13)<=0,0,MAX(CELL("color",U13)*U13,CELL("color",V13)*V13,CELL("color",W13)*W13)) -> 270 | Y13: =AM13*IF($AM$11="SQ",N13,IF($AM$11="BP",S13,IF($AM$11="DL",X13,IF($AM$11="PP",IF(OR(S13=0,X13=0),0,S13+X13),IF(OR(T13=0,X13=0),0,T13+X13))))) -> 0 | Z13: =IF(Y13=0,"",CONCATENATE(CD13,"/",IF(AN13=4,"Wilks",D13),"/",IF(AN13>1,"",F13),"/",$AM$11)) ->  | AA13: =BB13 -> 0 | AB13: =IF(AA13=0,"",CE13) ->  | AC13: =IFERROR(IPF_Formula(E13,I13,Y13),0) -> 0 | AD13: =IFERROR(VLOOKUP(AS13,DATA!$A$2:$B$63,2,TRUE),0)*AC13 -> 0 | AE13: PL | AH13: =IFERROR(VLOOKUP(A13,Setup!$Q$5:$R$20,2,FALSE),"") -> 0 | AI13: =IF(VALUE(INDIRECT(CONCATENATE($AI$11,ROW())))=0,"",ABS(INDIRECT(CONCATENATE($AI$11,ROW())))+0.000001*G13) -> 270.000018 | AJ13: 26 | AK13: 8 | AL13: 21 | AM13: =IF(ISERROR(SEARCH($AM$11,AE13)),0,1) -> 0 | AN13: =VLOOKUP(D13,Setup!$I$6:$K$92,3,FALSE) -> 1 | AO13: =ROUND(IFERROR(IF(AN13=1,Y13,IF(AN13=2,AC13,IF(AN13=3,AD13,AC13))),0),5) -> 0 | AQ13: =IFERROR(MATCH(D13,Setup!$I$6:$I$92,0),"") -> 17 | AR13: =IFERROR(CONCATENATE(LEFT(D13,FIND("-",D13)),IF(AS13="","O",VLOOKUP(AS13,DATA!$E$35:$F$53,2,TRUE))),"") -> F-M1b | AS13: =YEAR(TODAY())-H13 -> 45 | AT13: =IF(AN13=1,MATCH(F13,DATA!$AB$2:$AB$34,0),0) -> 23 | AV13: =IF(MAX(K13:M13)>0,MAX(K13:M13),0) -> 270 | AW13: =IF(MAX(P13:R13)>0,MAX(P13:R13),0) -> 270 | AX13: =IF(MAX(U13:W13)>0,MAX(U13:W13),0) -> 270 | AY13: =AM13*IF($AM$11="PL",IF(MIN(AV13:AX13)=0,0,AV13+AW13+AX13),IF($AM$11="PP",IF(MIN(AW13:AX13)=0,0,AW13+AX13),IF($AM$11="BP",AW13,IF($AM$11="DL",AX13,AV13)))) -> 0 | AZ13: =IFERROR(IPF_Formula(E13,I13,AY13),0) -> 0 | BA13: =ROUND(IFERROR(VLOOKUP(AS13,DATA!$A$2:$B$63,2,FALSE),1)*AZ13,5) -> 0 | BB13: =IFERROR(IF(AN13=1,AY13,IF(AN13=2,AZ13,IF(AN13=3,BA13,AZ13))),0) -> 0 | BG13: 16:50:13 | BZ13: =IFERROR(IF(FIND("DT",AE13),"Y",""),"") ->  | CB13: =CONCATENATE(IF(AN13=4,"",D13),IF(AN13=1,F13,"")) -> F-O84+ | CC13: =IF($AM$11="SQ",AJ13,IF($AM$11="BP",AK13,AL13)) -> 8 | CD13: =1+COUNTIFS(INDIRECT("AN12:AN500"),AN13,INDIRECT("CB12:CB500"),CB13,INDIRECT("AO12:AO500"),">"&AO13) +COUNTIFS(INDIRECT("AO12:AO500"),AO13,INDIRECT("AN12:AN500"),1,INDIRECT("CB12:CB500"),CB13,INDIRECT("E12:E500"),"<"&E13) +COUNTIFS(INDIRECT("AO12:AO500"),AO13,INDIRECT("AN12:AN500"),1,INDIRECT("CB12:CB500"),CB13,INDIRECT("E12:E500"),E13,INDIRECT("CC12:CC500"),"<"&CC13) -> 6 | CE13: =1+COUNTIFS(INDIRECT("AN12:AN500"),AN13,INDIRECT("CB12:CB500"),CB13,INDIRECT("BB12:BB500"),">"&BB13) +COUNTIFS(INDIRECT("BB12:BB500"),BB13,INDIRECT("AN12:AN500"),1,INDIRECT("CB12:CB500"),CB13,INDIRECT("E12:E500"),"<"&E13) -> 6
A14: B | B14: 石田 浩士 | C14: 8suki gym | D14: F-O | E14: 140 | F14: =一般判定(IFERROR(VLOOKUP(E14,DATA!$E$2:$G$22,IF(LEFT(D14,1)="M",2,3)),""),D14) -> 84+ | G14: 17 | H14: 1970 | I14: =CONCATENATE(LEFT(D14,1),IF(RIGHT(D14,1)="U","C","E"),VLOOKUP($Y$11,$AM$1:$AO$4,3,FALSE)) -> FEB | J14: 260 | K14: 260 | N14: =IF(MAX(K14:M14)<=0,0,MAX(CELL("color",K14)*K14,CELL("color",L14)*L14,CELL("color",M14)*M14)) -> 260 | O14: 260 | P14: 260 | S14: =IF(MAX(P14:R14)<=0,0,MAX(CELL("color",P14)*P14,CELL("color",Q14)*Q14,CELL("color",R14)*R14)) -> 260 | T14: =IF(OR(N14=0,S14=0),0,N14+S14) -> 520 | U14: 260 | X14: =IF(MAX(U14:W14)<=0,0,MAX(CELL("color",U14)*U14,CELL("color",V14)*V14,CELL("color",W14)*W14)) -> 260 | Y14: =AM14*IF($AM$11="SQ",N14,IF($AM$11="BP",S14,IF($AM$11="DL",X14,IF($AM$11="PP",IF(OR(S14=0,X14=0),0,S14+X14),IF(OR(T14=0,X14=0),0,T14+X14))))) -> 0 | Z14: =IF(Y14=0,"",CONCATENATE(CD14,"/",IF(AN14=4,"Wilks",D14),"/",IF(AN14>1,"",F14),"/",$AM$11)) ->  | AA14: =BB14 -> 0 | AB14: =IF(AA14=0,"",CE14) ->  | AC14: =IFERROR(IPF_Formula(E14,I14,Y14),0) -> 0 | AD14: =IFERROR(VLOOKUP(AS14,DATA!$A$2:$B$63,2,TRUE),0)*AC14 -> 0 | AE14: PL | AH14: =IFERROR(VLOOKUP(A14,Setup!$Q$5:$R$20,2,FALSE),"") -> 0 | AI14: =IF(VALUE(INDIRECT(CONCATENATE($AI$11,ROW())))=0,"",ABS(INDIRECT(CONCATENATE($AI$11,ROW())))+0.000001*G14) -> 260.000017 | AJ14: 25 | AK14: 6 | AL14: 19 | AM14: =IF(ISERROR(SEARCH($AM$11,AE14)),0,1) -> 0 | AN14: =VLOOKUP(D14,Setup!$I$6:$K$92,3,FALSE) -> 1 | AO14: =ROUND(IFERROR(IF(AN14=1,Y14,IF(AN14=2,AC14,IF(AN14=3,AD14,AC14))),0),5) -> 0 | AQ14: =IFERROR(MATCH(D14,Setup!$I$6:$I$92,0),"") -> 17 | AR14: =IFERROR(CONCATENATE(LEFT(D14,FIND("-",D14)),IF(AS14="","O",VLOOKUP(AS14,DATA!$E$35:$F$53,2,TRUE))),"") -> F-M2a | AS14: =YEAR(TODAY())-H14 -> 50 | AT14: =IF(AN14=1,MATCH(F14,DATA!$AB$2:$AB$34,0),0) -> 23 | AV14: =IF(MAX(K14:M14)>0,MAX(K14:M14),0) -> 260 | AW14: =IF(MAX(P14:R14)>0,MAX(P14:R14),0) -> 260 | AX14: =IF(MAX(U14:W14)>0,MAX(U14:W14),0) -> 260 | AY14: =AM14*IF($AM$11="PL",IF(MIN(AV14:AX14)=0,0,AV14+AW14+AX14),IF($AM$11="PP",IF(MIN(AW14:AX14)=0,0,AW14+AX14),IF($AM$11="BP",AW14,IF($AM$11="DL",AX14,AV14)))) -> 0 | AZ14: =IFERROR(IPF_Formula(E14,I14,AY14),0) -> 0 | BA14: =ROUND(IFERROR(VLOOKUP(AS14,DATA!$A$2:$B$63,2,FALSE),1)*AZ14,5) -> 0 | BB14: =IFERROR(IF(AN14=1,AY14,IF(AN14=2,AZ14,IF(AN14=3,BA14,AZ14))),0) -> 0 | BG14: 16:50:10 | BZ14: =IFERROR(IF(FIND("DT",AE14),"Y",""),"") ->  | CB14: =CONCATENATE(IF(AN14=4,"",D14),IF(AN14=1,F14,"")) -> F-O84+ | CC14: =IF($AM$11="SQ",AJ14,IF($AM$11="BP",AK14,AL14)) -> 6 | CD14: =1+COUNTIFS(INDIRECT("AN12:AN500"),AN14,INDIRECT("CB12:CB500"),CB14,INDIRECT("AO12:AO500"),">"&AO14) +COUNTIFS(INDIRECT("AO12:AO500"),AO14,INDIRECT("AN12:AN500"),1,INDIRECT("CB12:CB500"),CB14,INDIRECT("E12:E500"),"<"&E14) +COUNTIFS(INDIRECT("AO12:AO500"),AO14,INDIRECT("AN12:AN500"),1,INDIRECT("CB12:CB500"),CB14,INDIRECT("E12:E500"),E14,INDIRECT("CC12:CC500"),"<"&CC14) -> 5 | CE14: =1+COUNTIFS(INDIRECT("AN12:AN500"),AN14,INDIRECT("CB12:CB500"),CB14,INDIRECT("BB12:BB500"),">"&BB14) +COUNTIFS(INDIRECT("BB12:BB500"),BB14,INDIRECT("AN12:AN500"),1,INDIRECT("CB12:CB500"),CB14,INDIRECT("E12:E500"),"<"&E14) -> 5
A15: B | B15: 光安 隆史 | C15: 8suki gym | D15: F-O | E15: 85 | F15: =一般判定(IFERROR(VLOOKUP(E15,DATA!$E$2:$G$22,IF(LEFT(D15,1)="M",2,3)),""),D15) -> 84+ | G15: 16 | H15: 1976 | I15: =CONCATENATE(LEFT(D15,1),IF(RIGHT(D15,1)="U","C","E"),VLOOKUP($Y$11,$AM$1:$AO$4,3,FALSE)) -> FEB | J15: 250 | K15: 250 | N15: =IF(MAX(K15:M15)<=0,0,MAX(CELL("color",K15)*K15,CELL("color",L15)*L15,CELL("color",M15)*M15)) -> 250 | O15: 250 | P15: 250 | S15: =IF(MAX(P15:R15)<=0,0,MAX(CELL("color",P15)*P15,CELL("color",Q15)*Q15,CELL("color",R15)*R15)) -> 250 | T15: =IF(OR(N15=0,S15=0),0,N15+S15) -> 500 | U15: 250 | X15: =IF(MAX(U15:W15)<=0,0,MAX(CELL("color",U15)*U15,CELL("color",V15)*V15,CELL("color",W15)*W15)) -> 250 | Y15: =AM15*IF($AM$11="SQ",N15,IF($AM$11="BP",S15,IF($AM$11="DL",X15,IF($AM$11="PP",IF(OR(S15=0,X15=0),0,S15+X15),IF(OR(T15=0,X15=0),0,T15+X15))))) -> 0 | Z15: =IF(Y15=0,"",CONCATENATE(CD15,"/",IF(AN15=4,"Wilks",D15),"/",IF(AN15>1,"",F15),"/",$AM$11)) ->  | AA15: =BB15 -> 0 | AB15: =IF(AA15=0,"",CE15) ->  | AC15: =IFERROR(IPF_Formula(E15,I15,Y15),0) -> 0 | AD15: =IFERROR(VLOOKUP(AS15,DATA!$A$2:$B$63,2,TRUE),0)*AC15 -> 0 | AE15: PL | AH15: =IFERROR(VLOOKUP(A15,Setup!$Q$5:$R$20,2,FALSE),"") -> 0 | AI15: =IF(VALUE(INDIRECT(CONCATENATE($AI$11,ROW())))=0,"",ABS(INDIRECT(CONCATENATE($AI$11,ROW())))+0.000001*G15) -> 250.000016 | AJ15: 24 | AK15: 5 | AL15: 18 | AM15: =IF(ISERROR(SEARCH($AM$11,AE15)),0,1) -> 0 | AN15: =VLOOKUP(D15,Setup!$I$6:$K$92,3,FALSE) -> 1 | AO15: =ROUND(IFERROR(IF(AN15=1,Y15,IF(AN15=2,AC15,IF(AN15=3,AD15,AC15))),0),5) -> 0 | AQ15: =IFERROR(MATCH(D15,Setup!$I$6:$I$92,0),"") -> 17 | AR15: =IFERROR(CONCATENATE(LEFT(D15,FIND("-",D15)),IF(AS15="","O",VLOOKUP(AS15,DATA!$E$35:$F$53,2,TRUE))),"") -> F-M1a | AS15: =YEAR(TODAY())-H15 -> 44 | AT15: =IF(AN15=1,MATCH(F15,DATA!$AB$2:$AB$34,0),0) -> 23 | AV15: =IF(MAX(K15:M15)>0,MAX(K15:M15),0) -> 250 | AW15: =IF(MAX(P15:R15)>0,MAX(P15:R15),0) -> 250 | AX15: =IF(MAX(U15:W15)>0,MAX(U15:W15),0) -> 250 | AY15: =AM15*IF($AM$11="PL",IF(MIN(AV15:AX15)=0,0,AV15+AW15+AX15),IF($AM$11="PP",IF(MIN(AW15:AX15)=0,0,AW15+AX15),IF($AM$11="BP",AW15,IF($AM$11="DL",AX15,AV15)))) -> 0 | AZ15: =IFERROR(IPF_Formula(E15,I15,AY15),0) -> 0 | BA15: =ROUND(IFERROR(VLOOKUP(AS15,DATA!$A$2:$B$63,2,FALSE),1)*AZ15,5) -> 0 | BB15: =IFERROR(IF(AN15=1,AY15,IF(AN15=2,AZ15,IF(AN15=3,BA15,AZ15))),0) -> 0 | BG15: 16:50:09 | BZ15: =IFERROR(IF(FIND("DT",AE15),"Y",""),"") ->  | CB15: =CONCATENATE(IF(AN15=4,"",D15),IF(AN15=1,F15,"")) -> F-O84+ | CC15: =IF($AM$11="SQ",AJ15,IF($AM$11="BP",AK15,AL15)) -> 5 | CD15: =1+COUNTIFS(INDIRECT("AN12:AN500"),AN15,INDIRECT("CB12:CB500"),CB15,INDIRECT("AO12:AO500"),">"&AO15) +COUNTIFS(INDIRECT("AO12:AO500"),AO15,INDIRECT("AN12:AN500"),1,INDIRECT("CB12:CB500"),CB15,INDIRECT("E12:E500"),"<"&E15) +COUNTIFS(INDIRECT("AO12:AO500"),AO15,INDIRECT("AN12:AN500"),1,INDIRECT("CB12:CB500"),CB15,INDIRECT("E12:E500"),E15,INDIRECT("CC12:CC500"),"<"&CC15) -> 1 | CE15: =1+COUNTIFS(INDIRECT("AN12:AN500"),AN15,INDIRECT("CB12:CB500"),CB15,INDIRECT("BB12:BB500"),">"&BB15) +COUNTIFS(INDIRECT("BB12:BB500"),BB15,INDIRECT("AN12:AN500"),1,INDIRECT("CB12:CB500"),CB15,INDIRECT("E12:E500"),"<"&E15) -> 1
A16: B | B16: 田口 航大 | C16: 8sukigym | D16: F-O | E16: 120 | F16: =一般判定(IFERROR(VLOOKUP(E16,DATA!$E$2:$G$22,IF(LEFT(D16,1)="M",2,3)),""),D16) -> 84+ | G16: 15 | H16: 2002 | I16: =CONCATENATE(LEFT(D16,1),IF(RIGHT(D16,1)="U","C","E"),VLOOKUP($Y$11,$AM$1:$AO$4,3,FALSE)) -> FEB | J16: 240 | K16: 240 | N16: =IF(MAX(K16:M16)<=0,0,MAX(CELL("color",K16)*K16,CELL("color",L16)*L16,CELL("color",M16)*M16)) -> 240 | O16: 240 | P16: 240 | S16: =IF(MAX(P16:R16)<=0,0,MAX(CELL("color",P16)*P16,CELL("color",Q16)*Q16,CELL("color",R16)*R16)) -> 240 | T16: =IF(OR(N16=0,S16=0),0,N16+S16) -> 480 | U16: 240 | X16: =IF(MAX(U16:W16)<=0,0,MAX(CELL("color",U16)*U16,CELL("color",V16)*V16,CELL("color",W16)*W16)) -> 240 | Y16: =AM16*IF($AM$11="SQ",N16,IF($AM$11="BP",S16,IF($AM$11="DL",X16,IF($AM$11="PP",IF(OR(S16=0,X16=0),0,S16+X16),IF(OR(T16=0,X16=0),0,T16+X16))))) -> 0 | Z16: =IF(Y16=0,"",CONCATENATE(CD16,"/",IF(AN16=4,"Wilks",D16),"/",IF(AN16>1,"",F16),"/",$AM$11)) ->  | AA16: =BB16 -> 0 | AB16: =IF(AA16=0,"",CE16) ->  | AC16: =IFERROR(IPF_Formula(E16,I16,Y16),0) -> 0 | AD16: =IFERROR(VLOOKUP(AS16,DATA!$A$2:$B$63,2,TRUE),0)*AC16 -> 0 | AE16: PL | AH16: =IFERROR(VLOOKUP(A16,Setup!$Q$5:$R$20,2,FALSE),"") -> 0 | AI16: =IF(VALUE(INDIRECT(CONCATENATE($AI$11,ROW())))=0,"",ABS(INDIRECT(CONCATENATE($AI$11,ROW())))+0.000001*G16) -> 240.000015 | AJ16: 23 | AK16: 4 | AL16: 17 | AM16: =IF(ISERROR(SEARCH($AM$11,AE16)),0,1) -> 0 | AN16: =VLOOKUP(D16,Setup!$I$6:$K$92,3,FALSE) -> 1 | AO16: =ROUND(IFERROR(IF(AN16=1,Y16,IF(AN16=2,AC16,IF(AN16=3,AD16,AC16))),0),5) -> 0 | AQ16: =IFERROR(MATCH(D16,Setup!$I$6:$I$92,0),"") -> 17 | AR16: =IFERROR(CONCATENATE(LEFT(D16,FIND("-",D16)),IF(AS16="","O",VLOOKUP(AS16,DATA!$E$35:$F$53,2,TRUE))),"") -> F-T3 | AS16: =YEAR(TODAY())-H16 -> 18 | AT16: =IF(AN16=1,MATCH(F16,DATA!$AB$2:$AB$34,0),0) -> 23 | AV16: =IF(MAX(K16:M16)>0,MAX(K16:M16),0) -> 240 | AW16: =IF(MAX(P16:R16)>0,MAX(P16:R16),0) -> 240 | AX16: =IF(MAX(U16:W16)>0,MAX(U16:W16),0) -> 240 | AY16: =AM16*IF($AM$11="PL",IF(MIN(AV16:AX16)=0,0,AV16+AW16+AX16),IF($AM$11="PP",IF(MIN(AW16:AX16)=0,0,AW16+AX16),IF($AM$11="BP",AW16,IF($AM$11="DL",AX16,AV16)))) -> 0 | AZ16: =IFERROR(IPF_Formula(E16,I16,AY16),0) -> 0 | BA16: =ROUND(IFERROR(VLOOKUP(AS16,DATA!$A$2:$B$63,2,FALSE),1)*AZ16,5) -> 0 | BB16: =IFERROR(IF(AN16=1,AY16,IF(AN16=2,AZ16,IF(AN16=3,BA16,AZ16))),0) -> 0 | BG16: 16:50:08 | BZ16: =IFERROR(IF(FIND("DT",AE16),"Y",""),"") ->  | CB16: =CONCATENATE(IF(AN16=4,"",D16),IF(AN16=1,F16,"")) -> F-O84+ | CC16: =IF($AM$11="SQ",AJ16,IF($AM$11="BP",AK16,AL16)) -> 4 | CD16: =1+COUNTIFS(INDIRECT("AN12:AN500"),AN16,INDIRECT("CB12:CB500"),CB16,INDIRECT("AO12:AO500"),">"&AO16) +COUNTIFS(INDIRECT("AO12:AO500"),AO16,INDIRECT("AN12:AN500"),1,INDIRECT("CB12:CB500"),CB16,INDIRECT("E12:E500"),"<"&E16) +COUNTIFS(INDIRECT("AO12:AO500"),AO16,INDIRECT("AN12:AN500"),1,INDIRECT("CB12:CB500"),CB16,INDIRECT("E12:E500"),E16,INDIRECT("CC12:CC500"),"<"&CC16) -> 3 | CE16: =1+COUNTIFS(INDIRECT("AN12:AN500"),AN16,INDIRECT("CB12:CB500"),CB16,INDIRECT("BB12:BB500"),">"&BB16) +COUNTIFS(INDIRECT("BB12:BB500"),BB16,INDIRECT("AN12:AN500"),1,INDIRECT("CB12:CB500"),CB16,INDIRECT("E12:E500"),"<"&E16) -> 2
A17: B | B17: 瀧井 章男 | C17: Ks GYM | D17: F-O | E17: 130 | F17: =一般判定(IFERROR(VLOOKUP(E17,DATA!$E$2:$G$22,IF(LEFT(D17,1)="M",2,3)),""),D17) -> 84+ | G17: 13 | H17: 1984 | I17: =CONCATENATE(LEFT(D17,1),IF(RIGHT(D17,1)="U","C","E"),VLOOKUP($Y$11,$AM$1:$AO$4,3,FALSE)) -> FEB | J17: 220 | K17: 220 | N17: =IF(MAX(K17:M17)<=0,0,MAX(CELL("color",K17)*K17,CELL("color",L17)*L17,CELL("color",M17)*M17)) -> 220 | O17: 220 | P17: 220 | S17: =IF(MAX(P17:R17)<=0,0,MAX(CELL("color",P17)*P17,CELL("color",Q17)*Q17,CELL("color",R17)*R17)) -> 220 | T17: =IF(OR(N17=0,S17=0),0,N17+S17) -> 440 | U17: 220 | X17: =IF(MAX(U17:W17)<=0,0,MAX(CELL("color",U17)*U17,CELL("color",V17)*V17,CELL("color",W17)*W17)) -> 220 | Y17: =AM17*IF($AM$11="SQ",N17,IF($AM$11="BP",S17,IF($AM$11="DL",X17,IF($AM$11="PP",IF(OR(S17=0,X17=0),0,S17+X17),IF(OR(T17=0,X17=0),0,T17+X17))))) -> 0 | Z17: =IF(Y17=0,"",CONCATENATE(CD17,"/",IF(AN17=4,"Wilks",D17),"/",IF(AN17>1,"",F17),"/",$AM$11)) ->  | AA17: =BB17 -> 0 | AB17: =IF(AA17=0,"",CE17) ->  | AC17: =IFERROR(IPF_Formula(E17,I17,Y17),0) -> 0 | AD17: =IFERROR(VLOOKUP(AS17,DATA!$A$2:$B$63,2,TRUE),0)*AC17 -> 0 | AE17: PL | AH17: =IFERROR(VLOOKUP(A17,Setup!$Q$5:$R$20,2,FALSE),"") -> 0 | AI17: =IF(VALUE(INDIRECT(CONCATENATE($AI$11,ROW())))=0,"",ABS(INDIRECT(CONCATENATE($AI$11,ROW())))+0.000001*G17) -> 220.000013 | AJ17: 21 | AK17: 2 | AL17: 15 | AM17: =IF(ISERROR(SEARCH($AM$11,AE17)),0,1) -> 0 | AN17: =VLOOKUP(D17,Setup!$I$6:$K$92,3,FALSE) -> 1 | AO17: =ROUND(IFERROR(IF(AN17=1,Y17,IF(AN17=2,AC17,IF(AN17=3,AD17,AC17))),0),5) -> 0 | AQ17: =IFERROR(MATCH(D17,Setup!$I$6:$I$92,0),"") -> 17 | AR17: =IFERROR(CONCATENATE(LEFT(D17,FIND("-",D17)),IF(AS17="","O",VLOOKUP(AS17,DATA!$E$35:$F$53,2,TRUE))),"") -> F-O | AS17: =YEAR(TODAY())-H17 -> 36 | AT17: =IF(AN17=1,MATCH(F17,DATA!$AB$2:$AB$34,0),0) -> 23 | AV17: =IF(MAX(K17:M17)>0,MAX(K17:M17),0) -> 220 | AW17: =IF(MAX(P17:R17)>0,MAX(P17:R17),0) -> 220 | AX17: =IF(MAX(U17:W17)>0,MAX(U17:W17),0) -> 220 | AY17: =AM17*IF($AM$11="PL",IF(MIN(AV17:AX17)=0,0,AV17+AW17+AX17),IF($AM$11="PP",IF(MIN(AW17:AX17)=0,0,AW17+AX17),IF($AM$11="BP",AW17,IF($AM$11="DL",AX17,AV17)))) -> 0 | AZ17: =IFERROR(IPF_Formula(E17,I17,AY17),0) -> 0 | BA17: =ROUND(IFERROR(VLOOKUP(AS17,DATA!$A$2:$B$63,2,FALSE),1)*AZ17,5) -> 0 | BB17: =IFERROR(IF(AN17=1,AY17,IF(AN17=2,AZ17,IF(AN17=3,BA17,AZ17))),0) -> 0 | BG17: 16:50:06 | BZ17: =IFERROR(IF(FIND("DT",AE17),"Y",""),"") ->  | CB17: =CONCATENATE(IF(AN17=4,"",D17),IF(AN17=1,F17,"")) -> F-O84+ | CC17: =IF($AM$11="SQ",AJ17,IF($AM$11="BP",AK17,AL17)) -> 2 | CD17: =1+COUNTIFS(INDIRECT("AN12:AN500"),AN17,INDIRECT("CB12:CB500"),CB17,INDIRECT("AO12:AO500"),">"&AO17) +COUNTIFS(INDIRECT("AO12:AO500"),AO17,INDIRECT("AN12:AN500"),1,INDIRECT("CB12:CB500"),CB17,INDIRECT("E12:E500"),"<"&E17) +COUNTIFS(INDIRECT("AO12:AO500"),AO17,INDIRECT("AN12:AN500"),1,INDIRECT("CB12:CB500"),CB17,INDIRECT("E12:E500"),E17,INDIRECT("CC12:CC500"),"<"&CC17) -> 4 | CE17: =1+COUNTIFS(INDIRECT("AN12:AN500"),AN17,INDIRECT("CB12:CB500"),CB17,INDIRECT("BB12:BB500"),">"&BB17) +COUNTIFS(INDIRECT("BB12:BB500"),BB17,INDIRECT("AN12:AN500"),1,INDIRECT("CB12:CB500"),CB17,INDIRECT("E12:E500"),"<"&E17) -> 4
A18: B | B18: 芳村 晃 | C18: 8sukigym | D18: F-O | E18: 120 | F18: =一般判定(IFERROR(VLOOKUP(E18,DATA!$E$2:$G$22,IF(LEFT(D18,1)="M",2,3)),""),D18) -> 84+ | G18: 12 | H18: 1975 | I18: =CONCATENATE(LEFT(D18,1),IF(RIGHT(D18,1)="U","C","E"),VLOOKUP($Y$11,$AM$1:$AO$4,3,FALSE)) -> FEB | J18: 210 | K18: 210 | N18: =IF(MAX(K18:M18)<=0,0,MAX(CELL("color",K18)*K18,CELL("color",L18)*L18,CELL("color",M18)*M18)) -> 210 | O18: 210 | P18: 210 | S18: =IF(MAX(P18:R18)<=0,0,MAX(CELL("color",P18)*P18,CELL("color",Q18)*Q18,CELL("color",R18)*R18)) -> 210 | T18: =IF(OR(N18=0,S18=0),0,N18+S18) -> 420 | U18: 210 | X18: =IF(MAX(U18:W18)<=0,0,MAX(CELL("color",U18)*U18,CELL("color",V18)*V18,CELL("color",W18)*W18)) -> 210 | Y18: =AM18*IF($AM$11="SQ",N18,IF($AM$11="BP",S18,IF($AM$11="DL",X18,IF($AM$11="PP",IF(OR(S18=0,X18=0),0,S18+X18),IF(OR(T18=0,X18=0),0,T18+X18))))) -> 0 | Z18: =IF(Y18=0,"",CONCATENATE(CD18,"/",IF(AN18=4,"Wilks",D18),"/",IF(AN18>1,"",F18),"/",$AM$11)) ->  | AA18: =BB18 -> 0 | AB18: =IF(AA18=0,"",CE18) ->  | AC18: =IFERROR(IPF_Formula(E18,I18,Y18),0) -> 0 | AD18: =IFERROR(VLOOKUP(AS18,DATA!$A$2:$B$63,2,TRUE),0)*AC18 -> 0 | AE18: PL | AH18: =IFERROR(VLOOKUP(A18,Setup!$Q$5:$R$20,2,FALSE),"") -> 0 | AI18: =IF(VALUE(INDIRECT(CONCATENATE($AI$11,ROW())))=0,"",ABS(INDIRECT(CONCATENATE($AI$11,ROW())))+0.000001*G18) -> 210.000012 | AJ18: 20 | AK18: 1 | AL18: 14 | AM18: =IF(ISERROR(SEARCH($AM$11,AE18)),0,1) -> 0 | AN18: =VLOOKUP(D18,Setup!$I$6:$K$92,3,FALSE) -> 1 | AO18: =ROUND(IFERROR(IF(AN18=1,Y18,IF(AN18=2,AC18,IF(AN18=3,AD18,AC18))),0),5) -> 0 | AQ18: =IFERROR(MATCH(D18,Setup!$I$6:$I$92,0),"") -> 17 | AR18: =IFERROR(CONCATENATE(LEFT(D18,FIND("-",D18)),IF(AS18="","O",VLOOKUP(AS18,DATA!$E$35:$F$53,2,TRUE))),"") -> F-M1b | AS18: =YEAR(TODAY())-H18 -> 45 | AT18: =IF(AN18=1,MATCH(F18,DATA!$AB$2:$AB$34,0),0) -> 23 | AV18: =IF(MAX(K18:M18)>0,MAX(K18:M18),0) -> 210 | AW18: =IF(MAX(P18:R18)>0,MAX(P18:R18),0) -> 210 | AX18: =IF(MAX(U18:W18)>0,MAX(U18:W18),0) -> 210 | AY18: =AM18*IF($AM$11="PL",IF(MIN(AV18:AX18)=0,0,AV18+AW18+AX18),IF($AM$11="PP",IF(MIN(AW18:AX18)=0,0,AW18+AX18),IF($AM$11="BP",AW18,IF($AM$11="DL",AX18,AV18)))) -> 0 | AZ18: =IFERROR(IPF_Formula(E18,I18,AY18),0) -> 0 | BA18: =ROUND(IFERROR(VLOOKUP(AS18,DATA!$A$2:$B$63,2,FALSE),1)*AZ18,5) -> 0 | BB18: =IFERROR(IF(AN18=1,AY18,IF(AN18=2,AZ18,IF(AN18=3,BA18,AZ18))),0) -> 0 | BG18: 16:50:05 | BZ18: =IFERROR(IF(FIND("DT",AE18),"Y",""),"") ->  | CB18: =CONCATENATE(IF(AN18=4,"",D18),IF(AN18=1,F18,"")) -> F-O84+ | CC18: =IF($AM$11="SQ",AJ18,IF($AM$11="BP",AK18,AL18)) -> 1 | CD18: =1+COUNTIFS(INDIRECT("AN12:AN500"),AN18,INDIRECT("CB12:CB500"),CB18,INDIRECT("AO12:AO500"),">"&AO18) +COUNTIFS(INDIRECT("AO12:AO500"),AO18,INDIRECT("AN12:AN500"),1,INDIRECT("CB12:CB500"),CB18,INDIRECT("E12:E500"),"<"&E18) +COUNTIFS(INDIRECT("AO12:AO500"),AO18,INDIRECT("AN12:AN500"),1,INDIRECT("CB12:CB500"),CB18,INDIRECT("E12:E500"),E18,INDIRECT("CC12:CC500"),"<"&CC18) -> 2 | CE18: =1+COUNTIFS(INDIRECT("AN12:AN500"),AN18,INDIRECT("CB12:CB500"),CB18,INDIRECT("BB12:BB500"),">"&BB18) +COUNTIFS(INDIRECT("BB12:BB500"),BB18,INDIRECT("AN12:AN500"),1,INDIRECT("CB12:CB500"),CB18,INDIRECT("E12:E500"),"<"&E18) -> 2
A19: B | B19: 吉岡 弘和 | C19: 8suki gym | D19: F-O | E19: 52 | F19: =一般判定(IFERROR(VLOOKUP(E19,DATA!$E$2:$G$22,IF(LEFT(D19,1)="M",2,3)),""),D19) -> 52 | G19: 14 | H19: 1963 | I19: =CONCATENATE(LEFT(D19,1),IF(RIGHT(D19,1)="U","C","E"),VLOOKUP($Y$11,$AM$1:$AO$4,3,FALSE)) -> FEB | J19: 230 | K19: 230 | N19: =IF(MAX(K19:M19)<=0,0,MAX(CELL("color",K19)*K19,CELL("color",L19)*L19,CELL("color",M19)*M19)) -> 230 | O19: 230 | P19: 230 | S19: =IF(MAX(P19:R19)<=0,0,MAX(CELL("color",P19)*P19,CELL("color",Q19)*Q19,CELL("color",R19)*R19)) -> 230 | T19: =IF(OR(N19=0,S19=0),0,N19+S19) -> 460 | U19: 230 | X19: =IF(MAX(U19:W19)<=0,0,MAX(CELL("color",U19)*U19,CELL("color",V19)*V19,CELL("color",W19)*W19)) -> 230 | Y19: =AM19*IF($AM$11="SQ",N19,IF($AM$11="BP",S19,IF($AM$11="DL",X19,IF($AM$11="PP",IF(OR(S19=0,X19=0),0,S19+X19),IF(OR(T19=0,X19=0),0,T19+X19))))) -> 0 | Z19: =IF(Y19=0,"",CONCATENATE(CD19,"/",IF(AN19=4,"Wilks",D19),"/",IF(AN19>1,"",F19),"/",$AM$11)) ->  | AA19: =BB19 -> 0 | AB19: =IF(AA19=0,"",CE19) ->  | AC19: =IFERROR(IPF_Formula(E19,I19,Y19),0) -> 0 | AD19: =IFERROR(VLOOKUP(AS19,DATA!$A$2:$B$63,2,TRUE),0)*AC19 -> 0 | AE19: PL | AH19: =IFERROR(VLOOKUP(A19,Setup!$Q$5:$R$20,2,FALSE),"") -> 0 | AI19: =IF(VALUE(INDIRECT(CONCATENATE($AI$11,ROW())))=0,"",ABS(INDIRECT(CONCATENATE($AI$11,ROW())))+0.000001*G19) -> 230.000014 | AJ19: 22 | AK19: 3 | AL19: 16 | AM19: =IF(ISERROR(SEARCH($AM$11,AE19)),0,1) -> 0 | AN19: =VLOOKUP(D19,Setup!$I$6:$K$92,3,FALSE) -> 1 | AO19: =ROUND(IFERROR(IF(AN19=1,Y19,IF(AN19=2,AC19,IF(AN19=3,AD19,AC19))),0),5) -> 0 | AQ19: =IFERROR(MATCH(D19,Setup!$I$6:$I$92,0),"") -> 17 | AR19: =IFERROR(CONCATENATE(LEFT(D19,FIND("-",D19)),IF(AS19="","O",VLOOKUP(AS19,DATA!$E$35:$F$53,2,TRUE))),"") -> F-M2b | AS19: =YEAR(TODAY())-H19 -> 57 | AT19: =IF(AN19=1,MATCH(F19,DATA!$AB$2:$AB$34,0),0) ->  | AV19: =IF(MAX(K19:M19)>0,MAX(K19:M19),0) -> 230 | AW19: =IF(MAX(P19:R19)>0,MAX(P19:R19),0) -> 230 | AX19: =IF(MAX(U19:W19)>0,MAX(U19:W19),0) -> 230 | AY19: =AM19*IF($AM$11="PL",IF(MIN(AV19:AX19)=0,0,AV19+AW19+AX19),IF($AM$11="PP",IF(MIN(AW19:AX19)=0,0,AW19+AX19),IF($AM$11="BP",AW19,IF($AM$11="DL",AX19,AV19)))) -> 0 | AZ19: =IFERROR(IPF_Formula(E19,I19,AY19),0) -> 0 | BA19: =ROUND(IFERROR(VLOOKUP(AS19,DATA!$A$2:$B$63,2,FALSE),1)*AZ19,5) -> 0 | BB19: =IFERROR(IF(AN19=1,AY19,IF(AN19=2,AZ19,IF(AN19=3,BA19,AZ19))),0) -> 0 | BG19: 16:50:07 | BZ19: =IFERROR(IF(FIND("DT",AE19),"Y",""),"") ->  | CB19: =CONCATENATE(IF(AN19=4,"",D19),IF(AN19=1,F19,"")) -> F-O52 | CC19: =IF($AM$11="SQ",AJ19,IF($AM$11="BP",AK19,AL19)) -> 3 | CD19: =1+COUNTIFS(INDIRECT("AN12:AN500"),AN19,INDIRECT("CB12:CB500"),CB19,INDIRECT("AO12:AO500"),">"&AO19) +COUNTIFS(INDIRECT("AO12:AO500"),AO19,INDIRECT("AN12:AN500"),1,INDIRECT("CB12:CB500"),CB19,INDIRECT("E12:E500"),"<"&E19) +COUNTIFS(INDIRECT("AO12:AO500"),AO19,INDIRECT("AN12:AN500"),1,INDIRECT("CB12:CB500"),CB19,INDIRECT("E12:E500"),E19,INDIRECT("CC12:CC500"),"<"&CC19) -> 2 | CE19: =1+COUNTIFS(INDIRECT("AN12:AN500"),AN19,INDIRECT("CB12:CB500"),CB19,INDIRECT("BB12:BB500"),">"&BB19) +COUNTIFS(INDIRECT("BB12:BB500"),BB19,INDIRECT("AN12:AN500"),1,INDIRECT("CB12:CB500"),CB19,INDIRECT("E12:E500"),"<"&E19) -> 2
A20: A | B20: 伊藤 由実子 | C20: 8suki gym | D20: F-O | E20: 46 | F20: =一般判定(IFERROR(VLOOKUP(E20,DATA!$E$2:$G$22,IF(LEFT(D20,1)="M",2,3)),""),D20) -> 47 | G20: 2 | H20: 1976 | I20: =CONCATENATE(LEFT(D20,1),IF(RIGHT(D20,1)="U","C","E"),VLOOKUP($Y$11,$AM$1:$AO$4,3,FALSE)) -> FEB | J20: 110 | K20: 110 | N20: =IF(MAX(K20:M20)<=0,0,MAX(CELL("color",K20)*K20,CELL("color",L20)*L20,CELL("color",M20)*M20)) -> 110 | O20: 110 | P20: 110 | S20: =IF(MAX(P20:R20)<=0,0,MAX(CELL("color",P20)*P20,CELL("color",Q20)*Q20,CELL("color",R20)*R20)) -> 110 | T20: =IF(OR(N20=0,S20=0),0,N20+S20) -> 220 | U20: 110 | X20: =IF(MAX(U20:W20)<=0,0,MAX(CELL("color",U20)*U20,CELL("color",V20)*V20,CELL("color",W20)*W20)) -> 110 | Y20: =AM20*IF($AM$11="SQ",N20,IF($AM$11="BP",S20,IF($AM$11="DL",X20,IF($AM$11="PP",IF(OR(S20=0,X20=0),0,S20+X20),IF(OR(T20=0,X20=0),0,T20+X20))))) -> 0 | Z20: =IF(Y20=0,"",CONCATENATE(CD20,"/",IF(AN20=4,"Wilks",D20),"/",IF(AN20>1,"",F20),"/",$AM$11)) ->  | AA20: =BB20 -> 0 | AB20: =IF(AA20=0,"",CE20) ->  | AC20: =IFERROR(IPF_Formula(E20,I20,Y20),0) -> 0 | AD20: =IFERROR(VLOOKUP(AS20,DATA!$A$2:$B$63,2,TRUE),0)*AC20 -> 0 | AE20: PL | AH20: =IFERROR(VLOOKUP(A20,Setup!$Q$5:$R$20,2,FALSE),"") -> 12 | AI20: =IF(VALUE(INDIRECT(CONCATENATE($AI$11,ROW())))=0,"",ABS(INDIRECT(CONCATENATE($AI$11,ROW())))+0.000001*G20) -> 110.000002 | AJ20: 10 | AK20: 10 | AL20: 2 | AM20: =IF(ISERROR(SEARCH($AM$11,AE20)),0,1) -> 0 | AN20: =VLOOKUP(D20,Setup!$I$6:$K$92,3,FALSE) -> 1 | AO20: =ROUND(IFERROR(IF(AN20=1,Y20,IF(AN20=2,AC20,IF(AN20=3,AD20,AC20))),0),5) -> 0 | AQ20: =IFERROR(MATCH(D20,Setup!$I$6:$I$92,0),"") -> 17 | AR20: =IFERROR(CONCATENATE(LEFT(D20,FIND("-",D20)),IF(AS20="","O",VLOOKUP(AS20,DATA!$E$35:$F$53,2,TRUE))),"") -> F-M1a | AS20: =YEAR(TODAY())-H20 -> 44 | AT20: =IF(AN20=1,MATCH(F20,DATA!$AB$2:$AB$34,0),0) ->  | AV20: =IF(MAX(K20:M20)>0,MAX(K20:M20),0) -> 110 | AW20: =IF(MAX(P20:R20)>0,MAX(P20:R20),0) -> 110 | AX20: =IF(MAX(U20:W20)>0,MAX(U20:W20),0) -> 110 | AY20: =AM20*IF($AM$11="PL",IF(MIN(AV20:AX20)=0,0,AV20+AW20+AX20),IF($AM$11="PP",IF(MIN(AW20:AX20)=0,0,AW20+AX20),IF($AM$11="BP",AW20,IF($AM$11="DL",AX20,AV20)))) -> 0 | AZ20: =IFERROR(IPF_Formula(E20,I20,AY20),0) -> 0 | BA20: =ROUND(IFERROR(VLOOKUP(AS20,DATA!$A$2:$B$63,2,FALSE),1)*AZ20,5) -> 0 | BB20: =IFERROR(IF(AN20=1,AY20,IF(AN20=2,AZ20,IF(AN20=3,BA20,AZ20))),0) -> 0 | BZ20: =IFERROR(IF(FIND("DT",AE20),"Y",""),"") ->  | CB20: =CONCATENATE(IF(AN20=4,"",D20),IF(AN20=1,F20,"")) -> F-O47 | CC20: =IF($AM$11="SQ",AJ20,IF($AM$11="BP",AK20,AL20)) -> 10 | CD20: =1+COUNTIFS(INDIRECT("AN12:AN500"),AN20,INDIRECT("CB12:CB500"),CB20,INDIRECT("AO12:AO500"),">"&AO20) +COUNTIFS(INDIRECT("AO12:AO500"),AO20,INDIRECT("AN12:AN500"),1,INDIRECT("CB12:CB500"),CB20,INDIRECT("E12:E500"),"<"&E20) +COUNTIFS(INDIRECT("AO12:AO500"),AO20,INDIRECT("AN12:AN500"),1,INDIRECT("CB12:CB500"),CB20,INDIRECT("E12:E500"),E20,INDIRECT("CC12:CC500"),"<"&CC20) -> 2 | CE20: =1+COUNTIFS(INDIRECT("AN12:AN500"),AN20,INDIRECT("CB12:CB500"),CB20,INDIRECT("BB12:BB500"),">"&BB20) +COUNTIFS(INDIRECT("BB12:BB500"),BB20,INDIRECT("AN12:AN500"),1,INDIRECT("CB12:CB500"),CB20,INDIRECT("E12:E500"),"<"&E20) -> 2
A21: A | B21: 松尾 直樹 | C21: 8sukigym | D21: F-O | E21: 60 | F21: =一般判定(IFERROR(VLOOKUP(E21,DATA!$E$2:$G$22,IF(LEFT(D21,1)="M",2,3)),""),D21) -> 63 | G21: 6 | H21: 1963 | I21: =CONCATENATE(LEFT(D21,1),IF(RIGHT(D21,1)="U","C","E"),VLOOKUP($Y$11,$AM$1:$AO$4,3,FALSE)) -> FEB | J21: 150 | K21: 150 | N21: =IF(MAX(K21:M21)<=0,0,MAX(CELL("color",K21)*K21,CELL("color",L21)*L21,CELL("color",M21)*M21)) -> 150 | O21: 150 | P21: 150 | S21: =IF(MAX(P21:R21)<=0,0,MAX(CELL("color",P21)*P21,CELL("color",Q21)*Q21,CELL("color",R21)*R21)) -> 150 | T21: =IF(OR(N21=0,S21=0),0,N21+S21) -> 300 | U21: 150 | X21: =IF(MAX(U21:W21)<=0,0,MAX(CELL("color",U21)*U21,CELL("color",V21)*V21,CELL("color",W21)*W21)) -> 150 | Y21: =AM21*IF($AM$11="SQ",N21,IF($AM$11="BP",S21,IF($AM$11="DL",X21,IF($AM$11="PP",IF(OR(S21=0,X21=0),0,S21+X21),IF(OR(T21=0,X21=0),0,T21+X21))))) -> 0 | Z21: =IF(Y21=0,"",CONCATENATE(CD21,"/",IF(AN21=4,"Wilks",D21),"/",IF(AN21>1,"",F21),"/",$AM$11)) ->  | AA21: =BB21 -> 0 | AB21: =IF(AA21=0,"",CE21) ->  | AC21: =IFERROR(IPF_Formula(E21,I21,Y21),0) -> 0 | AD21: =IFERROR(VLOOKUP(AS21,DATA!$A$2:$B$63,2,TRUE),0)*AC21 -> 0 | AE21: PL | AH21: =IFERROR(VLOOKUP(A21,Setup!$Q$5:$R$20,2,FALSE),"") -> 12 | AI21: =IF(VALUE(INDIRECT(CONCATENATE($AI$11,ROW())))=0,"",ABS(INDIRECT(CONCATENATE($AI$11,ROW())))+0.000001*G21) -> 150.000006 | AJ21: 14 | AK21: 14 | AL21: 6 | AM21: =IF(ISERROR(SEARCH($AM$11,AE21)),0,1) -> 0 | AN21: =VLOOKUP(D21,Setup!$I$6:$K$92,3,FALSE) -> 1 | AO21: =ROUND(IFERROR(IF(AN21=1,Y21,IF(AN21=2,AC21,IF(AN21=3,AD21,AC21))),0),5) -> 0 | AQ21: =IFERROR(MATCH(D21,Setup!$I$6:$I$92,0),"") -> 17 | AR21: =IFERROR(CONCATENATE(LEFT(D21,FIND("-",D21)),IF(AS21="","O",VLOOKUP(AS21,DATA!$E$35:$F$53,2,TRUE))),"") -> F-M2b | AS21: =YEAR(TODAY())-H21 -> 57 | AT21: =IF(AN21=1,MATCH(F21,DATA!$AB$2:$AB$34,0),0) ->  | AV21: =IF(MAX(K21:M21)>0,MAX(K21:M21),0) -> 150 | AW21: =IF(MAX(P21:R21)>0,MAX(P21:R21),0) -> 150 | AX21: =IF(MAX(U21:W21)>0,MAX(U21:W21),0) -> 150 | AY21: =AM21*IF($AM$11="PL",IF(MIN(AV21:AX21)=0,0,AV21+AW21+AX21),IF($AM$11="PP",IF(MIN(AW21:AX21)=0,0,AW21+AX21),IF($AM$11="BP",AW21,IF($AM$11="DL",AX21,AV21)))) -> 0 | AZ21: =IFERROR(IPF_Formula(E21,I21,AY21),0) -> 0 | BA21: =ROUND(IFERROR(VLOOKUP(AS21,DATA!$A$2:$B$63,2,FALSE),1)*AZ21,5) -> 0 | BB21: =IFERROR(IF(AN21=1,AY21,IF(AN21=2,AZ21,IF(AN21=3,BA21,AZ21))),0) -> 0 | BZ21: =IFERROR(IF(FIND("DT",AE21),"Y",""),"") ->  | CB21: =CONCATENATE(IF(AN21=4,"",D21),IF(AN21=1,F21,"")) -> F-O63 | CC21: =IF($AM$11="SQ",AJ21,IF($AM$11="BP",AK21,AL21)) -> 14 | CD21: =1+COUNTIFS(INDIRECT("AN12:AN500"),AN21,INDIRECT("CB12:CB500"),CB21,INDIRECT("AO12:AO500"),">"&AO21) +COUNTIFS(INDIRECT("AO12:AO500"),AO21,INDIRECT("AN12:AN500"),1,INDIRECT("CB12:CB500"),CB21,INDIRECT("E12:E500"),"<"&E21) +COUNTIFS(INDIRECT("AO12:AO500"),AO21,INDIRECT("AN12:AN500"),1,INDIRECT("CB12:CB500"),CB21,INDIRECT("E12:E500"),E21,INDIRECT("CC12:CC500"),"<"&CC21) -> 1 | CE21: =1+COUNTIFS(INDIRECT("AN12:AN500"),AN21,INDIRECT("CB12:CB500"),CB21,INDIRECT("BB12:BB500"),">"&BB21) +COUNTIFS(INDIRECT("BB12:BB500"),BB21,INDIRECT("AN12:AN500"),1,INDIRECT("CB12:CB500"),CB21,INDIRECT("E12:E500"),"<"&E21) -> 1
A22: A | B22: 三木 聖也 | C22: 8sukiGYM | D22: F-O | E22: 54 | F22: =一般判定(IFERROR(VLOOKUP(E22,DATA!$E$2:$G$22,IF(LEFT(D22,1)="M",2,3)),""),D22) -> 57 | G22: 7 | H22: 1996 | I22: =CONCATENATE(LEFT(D22,1),IF(RIGHT(D22,1)="U","C","E"),VLOOKUP($Y$11,$AM$1:$AO$4,3,FALSE)) -> FEB | J22: 160 | K22: 160 | N22: =IF(MAX(K22:M22)<=0,0,MAX(CELL("color",K22)*K22,CELL("color",L22)*L22,CELL("color",M22)*M22)) -> 160 | O22: 160 | P22: 160 | S22: =IF(MAX(P22:R22)<=0,0,MAX(CELL("color",P22)*P22,CELL("color",Q22)*Q22,CELL("color",R22)*R22)) -> 160 | T22: =IF(OR(N22=0,S22=0),0,N22+S22) -> 320 | U22: 160 | X22: =IF(MAX(U22:W22)<=0,0,MAX(CELL("color",U22)*U22,CELL("color",V22)*V22,CELL("color",W22)*W22)) -> 160 | Y22: =AM22*IF($AM$11="SQ",N22,IF($AM$11="BP",S22,IF($AM$11="DL",X22,IF($AM$11="PP",IF(OR(S22=0,X22=0),0,S22+X22),IF(OR(T22=0,X22=0),0,T22+X22))))) -> 0 | Z22: =IF(Y22=0,"",CONCATENATE(CD22,"/",IF(AN22=4,"Wilks",D22),"/",IF(AN22>1,"",F22),"/",$AM$11)) ->  | AA22: =BB22 -> 0 | AB22: =IF(AA22=0,"",CE22) ->  | AC22: =IFERROR(IPF_Formula(E22,I22,Y22),0) -> 0 | AD22: =IFERROR(VLOOKUP(AS22,DATA!$A$2:$B$63,2,TRUE),0)*AC22 -> 0 | AE22: PL | AH22: =IFERROR(VLOOKUP(A22,Setup!$Q$5:$R$20,2,FALSE),"") -> 12 | AI22: =IF(VALUE(INDIRECT(CONCATENATE($AI$11,ROW())))=0,"",ABS(INDIRECT(CONCATENATE($AI$11,ROW())))+0.000001*G22) -> 160.000007 | AJ22: 15 | AK22: 15 | AL22: 7 | AM22: =IF(ISERROR(SEARCH($AM$11,AE22)),0,1) -> 0 | AN22: =VLOOKUP(D22,Setup!$I$6:$K$92,3,FALSE) -> 1 | AO22: =ROUND(IFERROR(IF(AN22=1,Y22,IF(AN22=2,AC22,IF(AN22=3,AD22,AC22))),0),5) -> 0 | AQ22: =IFERROR(MATCH(D22,Setup!$I$6:$I$92,0),"") -> 17 | AR22: =IFERROR(CONCATENATE(LEFT(D22,FIND("-",D22)),IF(AS22="","O",VLOOKUP(AS22,DATA!$E$35:$F$53,2,TRUE))),"") -> F-O | AS22: =YEAR(TODAY())-H22 -> 24 | AT22: =IF(AN22=1,MATCH(F22,DATA!$AB$2:$AB$34,0),0) ->  | AV22: =IF(MAX(K22:M22)>0,MAX(K22:M22),0) -> 160 | AW22: =IF(MAX(P22:R22)>0,MAX(P22:R22),0) -> 160 | AX22: =IF(MAX(U22:W22)>0,MAX(U22:W22),0) -> 160 | AY22: =AM22*IF($AM$11="PL",IF(MIN(AV22:AX22)=0,0,AV22+AW22+AX22),IF($AM$11="PP",IF(MIN(AW22:AX22)=0,0,AW22+AX22),IF($AM$11="BP",AW22,IF($AM$11="DL",AX22,AV22)))) -> 0 | AZ22: =IFERROR(IPF_Formula(E22,I22,AY22),0) -> 0 | BA22: =ROUND(IFERROR(VLOOKUP(AS22,DATA!$A$2:$B$63,2,FALSE),1)*AZ22,5) -> 0 | BB22: =IFERROR(IF(AN22=1,AY22,IF(AN22=2,AZ22,IF(AN22=3,BA22,AZ22))),0) -> 0 | BZ22: =IFERROR(IF(FIND("DT",AE22),"Y",""),"") ->  | CB22: =CONCATENATE(IF(AN22=4,"",D22),IF(AN22=1,F22,"")) -> F-O57 | CC22: =IF($AM$11="SQ",AJ22,IF($AM$11="BP",AK22,AL22)) -> 15 | CD22: =1+COUNTIFS(INDIRECT("AN12:AN500"),AN22,INDIRECT("CB12:CB500"),CB22,INDIRECT("AO12:AO500"),">"&AO22) +COUNTIFS(INDIRECT("AO12:AO500"),AO22,INDIRECT("AN12:AN500"),1,INDIRECT("CB12:CB500"),CB22,INDIRECT("E12:E500"),"<"&E22) +COUNTIFS(INDIRECT("AO12:AO500"),AO22,INDIRECT("AN12:AN500"),1,INDIRECT("CB12:CB500"),CB22,INDIRECT("E12:E500"),E22,INDIRECT("CC12:CC500"),"<"&CC22) -> 1 | CE22: =1+COUNTIFS(INDIRECT("AN12:AN500"),AN22,INDIRECT("CB12:CB500"),CB22,INDIRECT("BB12:BB500"),">"&BB22) +COUNTIFS(INDIRECT("BB12:BB500"),BB22,INDIRECT("AN12:AN500"),1,INDIRECT("CB12:CB500"),CB22,INDIRECT("E12:E500"),"<"&E22) -> 1
A23: A | B23: 山本 泰資 | C23: 8sukigym | D23: F-O | E23: 70 | F23: =一般判定(IFERROR(VLOOKUP(E23,DATA!$E$2:$G$22,IF(LEFT(D23,1)="M",2,3)),""),D23) -> 72 | G23: 8 | H23: 1993 | I23: =CONCATENATE(LEFT(D23,1),IF(RIGHT(D23,1)="U","C","E"),VLOOKUP($Y$11,$AM$1:$AO$4,3,FALSE)) -> FEB | J23: 170 | K23: 170 | N23: =IF(MAX(K23:M23)<=0,0,MAX(CELL("color",K23)*K23,CELL("color",L23)*L23,CELL("color",M23)*M23)) -> 170 | O23: 170 | P23: 170 | S23: =IF(MAX(P23:R23)<=0,0,MAX(CELL("color",P23)*P23,CELL("color",Q23)*Q23,CELL("color",R23)*R23)) -> 170 | T23: =IF(OR(N23=0,S23=0),0,N23+S23) -> 340 | U23: 170 | X23: =IF(MAX(U23:W23)<=0,0,MAX(CELL("color",U23)*U23,CELL("color",V23)*V23,CELL("color",W23)*W23)) -> 170 | Y23: =AM23*IF($AM$11="SQ",N23,IF($AM$11="BP",S23,IF($AM$11="DL",X23,IF($AM$11="PP",IF(OR(S23=0,X23=0),0,S23+X23),IF(OR(T23=0,X23=0),0,T23+X23))))) -> 0 | Z23: =IF(Y23=0,"",CONCATENATE(CD23,"/",IF(AN23=4,"Wilks",D23),"/",IF(AN23>1,"",F23),"/",$AM$11)) ->  | AA23: =BB23 -> 0 | AB23: =IF(AA23=0,"",CE23) ->  | AC23: =IFERROR(IPF_Formula(E23,I23,Y23),0) -> 0 | AD23: =IFERROR(VLOOKUP(AS23,DATA!$A$2:$B$63,2,TRUE),0)*AC23 -> 0 | AE23: PL | AH23: =IFERROR(VLOOKUP(A23,Setup!$Q$5:$R$20,2,FALSE),"") -> 12 | AI23: =IF(VALUE(INDIRECT(CONCATENATE($AI$11,ROW())))=0,"",ABS(INDIRECT(CONCATENATE($AI$11,ROW())))+0.000001*G23) -> 170.000008 | AJ23: 16 | AK23: 16 | AL23: 8 | AM23: =IF(ISERROR(SEARCH($AM$11,AE23)),0,1) -> 0 | AN23: =VLOOKUP(D23,Setup!$I$6:$K$92,3,FALSE) -> 1 | AO23: =ROUND(IFERROR(IF(AN23=1,Y23,IF(AN23=2,AC23,IF(AN23=3,AD23,AC23))),0),5) -> 0 | AQ23: =IFERROR(MATCH(D23,Setup!$I$6:$I$92,0),"") -> 17 | AR23: =IFERROR(CONCATENATE(LEFT(D23,FIND("-",D23)),IF(AS23="","O",VLOOKUP(AS23,DATA!$E$35:$F$53,2,TRUE))),"") -> F-O | AS23: =YEAR(TODAY())-H23 -> 27 | AT23: =IF(AN23=1,MATCH(F23,DATA!$AB$2:$AB$34,0),0) ->  | AV23: =IF(MAX(K23:M23)>0,MAX(K23:M23),0) -> 170 | AW23: =IF(MAX(P23:R23)>0,MAX(P23:R23),0) -> 170 | AX23: =IF(MAX(U23:W23)>0,MAX(U23:W23),0) -> 170 | AY23: =AM23*IF($AM$11="PL",IF(MIN(AV23:AX23)=0,0,AV23+AW23+AX23),IF($AM$11="PP",IF(MIN(AW23:AX23)=0,0,AW23+AX23),IF($AM$11="BP",AW23,IF($AM$11="DL",AX23,AV23)))) -> 0 | AZ23: =IFERROR(IPF_Formula(E23,I23,AY23),0) -> 0 | BA23: =ROUND(IFERROR(VLOOKUP(AS23,DATA!$A$2:$B$63,2,FALSE),1)*AZ23,5) -> 0 | BB23: =IFERROR(IF(AN23=1,AY23,IF(AN23=2,AZ23,IF(AN23=3,BA23,AZ23))),0) -> 0 | BZ23: =IFERROR(IF(FIND("DT",AE23),"Y",""),"") ->  | CB23: =CONCATENATE(IF(AN23=4,"",D23),IF(AN23=1,F23,"")) -> F-O72 | CC23: =IF($AM$11="SQ",AJ23,IF($AM$11="BP",AK23,AL23)) -> 16 | CD23: =1+COUNTIFS(INDIRECT("AN12:AN500"),AN23,INDIRECT("CB12:CB500"),CB23,INDIRECT("AO12:AO500"),">"&AO23) +COUNTIFS(INDIRECT("AO12:AO500"),AO23,INDIRECT("AN12:AN500"),1,INDIRECT("CB12:CB500"),CB23,INDIRECT("E12:E500"),"<"&E23) +COUNTIFS(INDIRECT("AO12:AO500"),AO23,INDIRECT("AN12:AN500"),1,INDIRECT("CB12:CB500"),CB23,INDIRECT("E12:E500"),E23,INDIRECT("CC12:CC500"),"<"&CC23) -> 2 | CE23: =1+COUNTIFS(INDIRECT("AN12:AN500"),AN23,INDIRECT("CB12:CB500"),CB23,INDIRECT("BB12:BB500"),">"&BB23) +COUNTIFS(INDIRECT("BB12:BB500"),BB23,INDIRECT("AN12:AN500"),1,INDIRECT("CB12:CB500"),CB23,INDIRECT("E12:E500"),"<"&E23) -> 2
A24: A | B24: 大寺 康平 | C24: 8suki gym | D24: F-O | E24: 75 | F24: =一般判定(IFERROR(VLOOKUP(E24,DATA!$E$2:$G$22,IF(LEFT(D24,1)="M",2,3)),""),D24) -> 84 | G24: 11 | H24: 1987 | I24: =CONCATENATE(LEFT(D24,1),IF(RIGHT(D24,1)="U","C","E"),VLOOKUP($Y$11,$AM$1:$AO$4,3,FALSE)) -> FEB | J24: 200 | K24: 200 | N24: =IF(MAX(K24:M24)<=0,0,MAX(CELL("color",K24)*K24,CELL("color",L24)*L24,CELL("color",M24)*M24)) -> 200 | O24: 200 | P24: 200 | S24: =IF(MAX(P24:R24)<=0,0,MAX(CELL("color",P24)*P24,CELL("color",Q24)*Q24,CELL("color",R24)*R24)) -> 200 | T24: =IF(OR(N24=0,S24=0),0,N24+S24) -> 400 | U24: 200 | X24: =IF(MAX(U24:W24)<=0,0,MAX(CELL("color",U24)*U24,CELL("color",V24)*V24,CELL("color",W24)*W24)) -> 200 | Y24: =AM24*IF($AM$11="SQ",N24,IF($AM$11="BP",S24,IF($AM$11="DL",X24,IF($AM$11="PP",IF(OR(S24=0,X24=0),0,S24+X24),IF(OR(T24=0,X24=0),0,T24+X24))))) -> 0 | Z24: =IF(Y24=0,"",CONCATENATE(CD24,"/",IF(AN24=4,"Wilks",D24),"/",IF(AN24>1,"",F24),"/",$AM$11)) ->  | AA24: =BB24 -> 0 | AB24: =IF(AA24=0,"",CE24) ->  | AC24: =IFERROR(IPF_Formula(E24,I24,Y24),0) -> 0 | AD24: =IFERROR(VLOOKUP(AS24,DATA!$A$2:$B$63,2,TRUE),0)*AC24 -> 0 | AE24: PL | AH24: =IFERROR(VLOOKUP(A24,Setup!$Q$5:$R$20,2,FALSE),"") -> 12 | AI24: =IF(VALUE(INDIRECT(CONCATENATE($AI$11,ROW())))=0,"",ABS(INDIRECT(CONCATENATE($AI$11,ROW())))+0.000001*G24) -> 200.000011 | AJ24: 19 | AK24: 19 | AL24: 13 | AM24: =IF(ISERROR(SEARCH($AM$11,AE24)),0,1) -> 0 | AN24: =VLOOKUP(D24,Setup!$I$6:$K$92,3,FALSE) -> 1 | AO24: =ROUND(IFERROR(IF(AN24=1,Y24,IF(AN24=2,AC24,IF(AN24=3,AD24,AC24))),0),5) -> 0 | AQ24: =IFERROR(MATCH(D24,Setup!$I$6:$I$92,0),"") -> 17 | AR24: =IFERROR(CONCATENATE(LEFT(D24,FIND("-",D24)),IF(AS24="","O",VLOOKUP(AS24,DATA!$E$35:$F$53,2,TRUE))),"") -> F-O | AS24: =YEAR(TODAY())-H24 -> 33 | AT24: =IF(AN24=1,MATCH(F24,DATA!$AB$2:$AB$34,0),0) ->  | AV24: =IF(MAX(K24:M24)>0,MAX(K24:M24),0) -> 200 | AW24: =IF(MAX(P24:R24)>0,MAX(P24:R24),0) -> 200 | AX24: =IF(MAX(U24:W24)>0,MAX(U24:W24),0) -> 200 | AY24: =AM24*IF($AM$11="PL",IF(MIN(AV24:AX24)=0,0,AV24+AW24+AX24),IF($AM$11="PP",IF(MIN(AW24:AX24)=0,0,AW24+AX24),IF($AM$11="BP",AW24,IF($AM$11="DL",AX24,AV24)))) -> 0 | AZ24: =IFERROR(IPF_Formula(E24,I24,AY24),0) -> 0 | BA24: =ROUND(IFERROR(VLOOKUP(AS24,DATA!$A$2:$B$63,2,FALSE),1)*AZ24,5) -> 0 | BB24: =IFERROR(IF(AN24=1,AY24,IF(AN24=2,AZ24,IF(AN24=3,BA24,AZ24))),0) -> 0 | BZ24: =IFERROR(IF(FIND("DT",AE24),"Y",""),"") ->  | CB24: =CONCATENATE(IF(AN24=4,"",D24),IF(AN24=1,F24,"")) -> F-O84 | CC24: =IF($AM$11="SQ",AJ24,IF($AM$11="BP",AK24,AL24)) -> 19 | CD24: =1+COUNTIFS(INDIRECT("AN12:AN500"),AN24,INDIRECT("CB12:CB500"),CB24,INDIRECT("AO12:AO500"),">"&AO24) +COUNTIFS(INDIRECT("AO12:AO500"),AO24,INDIRECT("AN12:AN500"),1,INDIRECT("CB12:CB500"),CB24,INDIRECT("E12:E500"),"<"&E24) +COUNTIFS(INDIRECT("AO12:AO500"),AO24,INDIRECT("AN12:AN500"),1,INDIRECT("CB12:CB500"),CB24,INDIRECT("E12:E500"),E24,INDIRECT("CC12:CC500"),"<"&CC24) -> 2 | CE24: =1+COUNTIFS(INDIRECT("AN12:AN500"),AN24,INDIRECT("CB12:CB500"),CB24,INDIRECT("BB12:BB500"),">"&BB24) +COUNTIFS(INDIRECT("BB12:BB500"),BB24,INDIRECT("AN12:AN500"),1,INDIRECT("CB12:CB500"),CB24,INDIRECT("E12:E500"),"<"&E24) -> 1
A25: A | B25: 中川 貴美子 | C25: 8suki gym | D25: F-O | E25: 42 | F25: =一般判定(IFERROR(VLOOKUP(E25,DATA!$E$2:$G$22,IF(LEFT(D25,1)="M",2,3)),""),D25) -> 47 | G25: 1 | H25: 1982 | I25: =CONCATENATE(LEFT(D25,1),IF(RIGHT(D25,1)="U","C","E"),VLOOKUP($Y$11,$AM$1:$AO$4,3,FALSE)) -> FEB | J25: 100 | K25: 100 | N25: =IF(MAX(K25:M25)<=0,0,MAX(CELL("color",K25)*K25,CELL("color",L25)*L25,CELL("color",M25)*M25)) -> 100 | O25: 100 | P25: 100 | S25: =IF(MAX(P25:R25)<=0,0,MAX(CELL("color",P25)*P25,CELL("color",Q25)*Q25,CELL("color",R25)*R25)) -> 100 | T25: =IF(OR(N25=0,S25=0),0,N25+S25) -> 200 | U25: 100 | X25: =IF(MAX(U25:W25)<=0,0,MAX(CELL("color",U25)*U25,CELL("color",V25)*V25,CELL("color",W25)*W25)) -> 100 | Y25: =AM25*IF($AM$11="SQ",N25,IF($AM$11="BP",S25,IF($AM$11="DL",X25,IF($AM$11="PP",IF(OR(S25=0,X25=0),0,S25+X25),IF(OR(T25=0,X25=0),0,T25+X25))))) -> 0 | Z25: =IF(Y25=0,"",CONCATENATE(CD25,"/",IF(AN25=4,"Wilks",D25),"/",IF(AN25>1,"",F25),"/",$AM$11)) ->  | AA25: =BB25 -> 0 | AB25: =IF(AA25=0,"",CE25) ->  | AC25: =IFERROR(IPF_Formula(E25,I25,Y25),0) -> 0 | AD25: =IFERROR(VLOOKUP(AS25,DATA!$A$2:$B$63,2,TRUE),0)*AC25 -> 0 | AE25: PL | AH25: =IFERROR(VLOOKUP(A25,Setup!$Q$5:$R$20,2,FALSE),"") -> 12 | AI25: =IF(VALUE(INDIRECT(CONCATENATE($AI$11,ROW())))=0,"",ABS(INDIRECT(CONCATENATE($AI$11,ROW())))+0.000001*G25) -> 100.000001 | AJ25: 9 | AK25: 9 | AL25: 1 | AM25: =IF(ISERROR(SEARCH($AM$11,AE25)),0,1) -> 0 | AN25: =VLOOKUP(D25,Setup!$I$6:$K$92,3,FALSE) -> 1 | AO25: =ROUND(IFERROR(IF(AN25=1,Y25,IF(AN25=2,AC25,IF(AN25=3,AD25,AC25))),0),5) -> 0 | AQ25: =IFERROR(MATCH(D25,Setup!$I$6:$I$92,0),"") -> 17 | AR25: =IFERROR(CONCATENATE(LEFT(D25,FIND("-",D25)),IF(AS25="","O",VLOOKUP(AS25,DATA!$E$35:$F$53,2,TRUE))),"") -> F-O | AS25: =YEAR(TODAY())-H25 -> 38 | AT25: =IF(AN25=1,MATCH(F25,DATA!$AB$2:$AB$34,0),0) ->  | AV25: =IF(MAX(K25:M25)>0,MAX(K25:M25),0) -> 100 | AW25: =IF(MAX(P25:R25)>0,MAX(P25:R25),0) -> 100 | AX25: =IF(MAX(U25:W25)>0,MAX(U25:W25),0) -> 100 | AY25: =AM25*IF($AM$11="PL",IF(MIN(AV25:AX25)=0,0,AV25+AW25+AX25),IF($AM$11="PP",IF(MIN(AW25:AX25)=0,0,AW25+AX25),IF($AM$11="BP",AW25,IF($AM$11="DL",AX25,AV25)))) -> 0 | AZ25: =IFERROR(IPF_Formula(E25,I25,AY25),0) -> 0 | BA25: =ROUND(IFERROR(VLOOKUP(AS25,DATA!$A$2:$B$63,2,FALSE),1)*AZ25,5) -> 0 | BB25: =IFERROR(IF(AN25=1,AY25,IF(AN25=2,AZ25,IF(AN25=3,BA25,AZ25))),0) -> 0 | BZ25: =IFERROR(IF(FIND("DT",AE25),"Y",""),"") ->  | CB25: =CONCATENATE(IF(AN25=4,"",D25),IF(AN25=1,F25,"")) -> F-O47 | CC25: =IF($AM$11="SQ",AJ25,IF($AM$11="BP",AK25,AL25)) -> 9 | CD25: =1+COUNTIFS(INDIRECT("AN12:AN500"),AN25,INDIRECT("CB12:CB500"),CB25,INDIRECT("AO12:AO500"),">"&AO25) +COUNTIFS(INDIRECT("AO12:AO500"),AO25,INDIRECT("AN12:AN500"),1,INDIRECT("CB12:CB500"),CB25,INDIRECT("E12:E500"),"<"&E25) +COUNTIFS(INDIRECT("AO12:AO500"),AO25,INDIRECT("AN12:AN500"),1,INDIRECT("CB12:CB500"),CB25,INDIRECT("E12:E500"),E25,INDIRECT("CC12:CC500"),"<"&CC25) -> 1 | CE25: =1+COUNTIFS(INDIRECT("AN12:AN500"),AN25,INDIRECT("CB12:CB500"),CB25,INDIRECT("BB12:BB500"),">"&BB25) +COUNTIFS(INDIRECT("BB12:BB500"),BB25,INDIRECT("AN12:AN500"),1,INDIRECT("CB12:CB500"),CB25,INDIRECT("E12:E500"),"<"&E25) -> 1
A26: A | B26: 丸山 武 | C26: 8suki gym | D26: F-O | E26: 50 | F26: =一般判定(IFERROR(VLOOKUP(E26,DATA!$E$2:$G$22,IF(LEFT(D26,1)="M",2,3)),""),D26) -> 52 | G26: 3 | H26: 1981 | I26: =CONCATENATE(LEFT(D26,1),IF(RIGHT(D26,1)="U","C","E"),VLOOKUP($Y$11,$AM$1:$AO$4,3,FALSE)) -> FEB | J26: 120 | K26: 120 | N26: =IF(MAX(K26:M26)<=0,0,MAX(CELL("color",K26)*K26,CELL("color",L26)*L26,CELL("color",M26)*M26)) -> 120 | O26: 120 | P26: 120 | S26: =IF(MAX(P26:R26)<=0,0,MAX(CELL("color",P26)*P26,CELL("color",Q26)*Q26,CELL("color",R26)*R26)) -> 120 | T26: =IF(OR(N26=0,S26=0),0,N26+S26) -> 240 | U26: 120 | X26: =IF(MAX(U26:W26)<=0,0,MAX(CELL("color",U26)*U26,CELL("color",V26)*V26,CELL("color",W26)*W26)) -> 120 | Y26: =AM26*IF($AM$11="SQ",N26,IF($AM$11="BP",S26,IF($AM$11="DL",X26,IF($AM$11="PP",IF(OR(S26=0,X26=0),0,S26+X26),IF(OR(T26=0,X26=0),0,T26+X26))))) -> 0 | Z26: =IF(Y26=0,"",CONCATENATE(CD26,"/",IF(AN26=4,"Wilks",D26),"/",IF(AN26>1,"",F26),"/",$AM$11)) ->  | AA26: =BB26 -> 0 | AB26: =IF(AA26=0,"",CE26) ->  | AC26: =IFERROR(IPF_Formula(E26,I26,Y26),0) -> 0 | AD26: =IFERROR(VLOOKUP(AS26,DATA!$A$2:$B$63,2,TRUE),0)*AC26 -> 0 | AE26: PL | AH26: =IFERROR(VLOOKUP(A26,Setup!$Q$5:$R$20,2,FALSE),"") -> 12 | AI26: =IF(VALUE(INDIRECT(CONCATENATE($AI$11,ROW())))=0,"",ABS(INDIRECT(CONCATENATE($AI$11,ROW())))+0.000001*G26) -> 120.000003 | AJ26: 11 | AK26: 11 | AL26: 3 | AM26: =IF(ISERROR(SEARCH($AM$11,AE26)),0,1) -> 0 | AN26: =VLOOKUP(D26,Setup!$I$6:$K$92,3,FALSE) -> 1 | AO26: =ROUND(IFERROR(IF(AN26=1,Y26,IF(AN26=2,AC26,IF(AN26=3,AD26,AC26))),0),5) -> 0 | AQ26: =IFERROR(MATCH(D26,Setup!$I$6:$I$92,0),"") -> 17 | AR26: =IFERROR(CONCATENATE(LEFT(D26,FIND("-",D26)),IF(AS26="","O",VLOOKUP(AS26,DATA!$E$35:$F$53,2,TRUE))),"") -> F-O | AS26: =YEAR(TODAY())-H26 -> 39 | AT26: =IF(AN26=1,MATCH(F26,DATA!$AB$2:$AB$34,0),0) ->  | AV26: =IF(MAX(K26:M26)>0,MAX(K26:M26),0) -> 120 | AW26: =IF(MAX(P26:R26)>0,MAX(P26:R26),0) -> 120 | AX26: =IF(MAX(U26:W26)>0,MAX(U26:W26),0) -> 120 | AY26: =AM26*IF($AM$11="PL",IF(MIN(AV26:AX26)=0,0,AV26+AW26+AX26),IF($AM$11="PP",IF(MIN(AW26:AX26)=0,0,AW26+AX26),IF($AM$11="BP",AW26,IF($AM$11="DL",AX26,AV26)))) -> 0 | AZ26: =IFERROR(IPF_Formula(E26,I26,AY26),0) -> 0 | BA26: =ROUND(IFERROR(VLOOKUP(AS26,DATA!$A$2:$B$63,2,FALSE),1)*AZ26,5) -> 0 | BB26: =IFERROR(IF(AN26=1,AY26,IF(AN26=2,AZ26,IF(AN26=3,BA26,AZ26))),0) -> 0 | BZ26: =IFERROR(IF(FIND("DT",AE26),"Y",""),"") ->  | CB26: =CONCATENATE(IF(AN26=4,"",D26),IF(AN26=1,F26,"")) -> F-O52 | CC26: =IF($AM$11="SQ",AJ26,IF($AM$11="BP",AK26,AL26)) -> 11 | CD26: =1+COUNTIFS(INDIRECT("AN12:AN500"),AN26,INDIRECT("CB12:CB500"),CB26,INDIRECT("AO12:AO500"),">"&AO26) +COUNTIFS(INDIRECT("AO12:AO500"),AO26,INDIRECT("AN12:AN500"),1,INDIRECT("CB12:CB500"),CB26,INDIRECT("E12:E500"),"<"&E26) +COUNTIFS(INDIRECT("AO12:AO500"),AO26,INDIRECT("AN12:AN500"),1,INDIRECT("CB12:CB500"),CB26,INDIRECT("E12:E500"),E26,INDIRECT("CC12:CC500"),"<"&CC26) -> 1 | CE26: =1+COUNTIFS(INDIRECT("AN12:AN500"),AN26,INDIRECT("CB12:CB500"),CB26,INDIRECT("BB12:BB500"),">"&BB26) +COUNTIFS(INDIRECT("BB12:BB500"),BB26,INDIRECT("AN12:AN500"),1,INDIRECT("CB12:CB500"),CB26,INDIRECT("E12:E500"),"<"&E26) -> 1
A27: A | B27: 立脇 和弥 | C27: 8suki gym | D27: F-O | E27: 55 | F27: =一般判定(IFERROR(VLOOKUP(E27,DATA!$E$2:$G$22,IF(LEFT(D27,1)="M",2,3)),""),D27) -> 57 | G27: 4 | H27: 1986 | I27: =CONCATENATE(LEFT(D27,1),IF(RIGHT(D27,1)="U","C","E"),VLOOKUP($Y$11,$AM$1:$AO$4,3,FALSE)) -> FEB | J27: 130 | K27: 130 | N27: =IF(MAX(K27:M27)<=0,0,MAX(CELL("color",K27)*K27,CELL("color",L27)*L27,CELL("color",M27)*M27)) -> 130 | O27: 130 | P27: 130 | S27: =IF(MAX(P27:R27)<=0,0,MAX(CELL("color",P27)*P27,CELL("color",Q27)*Q27,CELL("color",R27)*R27)) -> 130 | T27: =IF(OR(N27=0,S27=0),0,N27+S27) -> 260 | U27: 130 | X27: =IF(MAX(U27:W27)<=0,0,MAX(CELL("color",U27)*U27,CELL("color",V27)*V27,CELL("color",W27)*W27)) -> 130 | Y27: =AM27*IF($AM$11="SQ",N27,IF($AM$11="BP",S27,IF($AM$11="DL",X27,IF($AM$11="PP",IF(OR(S27=0,X27=0),0,S27+X27),IF(OR(T27=0,X27=0),0,T27+X27))))) -> 0 | Z27: =IF(Y27=0,"",CONCATENATE(CD27,"/",IF(AN27=4,"Wilks",D27),"/",IF(AN27>1,"",F27),"/",$AM$11)) ->  | AA27: =BB27 -> 0 | AB27: =IF(AA27=0,"",CE27) ->  | AC27: =IFERROR(IPF_Formula(E27,I27,Y27),0) -> 0 | AD27: =IFERROR(VLOOKUP(AS27,DATA!$A$2:$B$63,2,TRUE),0)*AC27 -> 0 | AE27: PL | AH27: =IFERROR(VLOOKUP(A27,Setup!$Q$5:$R$20,2,FALSE),"") -> 12 | AI27: =IF(VALUE(INDIRECT(CONCATENATE($AI$11,ROW())))=0,"",ABS(INDIRECT(CONCATENATE($AI$11,ROW())))+0.000001*G27) -> 130.000004 | AJ27: 12 | AK27: 12 | AL27: 4 | AM27: =IF(ISERROR(SEARCH($AM$11,AE27)),0,1) -> 0 | AN27: =VLOOKUP(D27,Setup!$I$6:$K$92,3,FALSE) -> 1 | AO27: =ROUND(IFERROR(IF(AN27=1,Y27,IF(AN27=2,AC27,IF(AN27=3,AD27,AC27))),0),5) -> 0 | AQ27: =IFERROR(MATCH(D27,Setup!$I$6:$I$92,0),"") -> 17 | AR27: =IFERROR(CONCATENATE(LEFT(D27,FIND("-",D27)),IF(AS27="","O",VLOOKUP(AS27,DATA!$E$35:$F$53,2,TRUE))),"") -> F-O | AS27: =YEAR(TODAY())-H27 -> 34 | AT27: =IF(AN27=1,MATCH(F27,DATA!$AB$2:$AB$34,0),0) ->  | AV27: =IF(MAX(K27:M27)>0,MAX(K27:M27),0) -> 130 | AW27: =IF(MAX(P27:R27)>0,MAX(P27:R27),0) -> 130 | AX27: =IF(MAX(U27:W27)>0,MAX(U27:W27),0) -> 130 | AY27: =AM27*IF($AM$11="PL",IF(MIN(AV27:AX27)=0,0,AV27+AW27+AX27),IF($AM$11="PP",IF(MIN(AW27:AX27)=0,0,AW27+AX27),IF($AM$11="BP",AW27,IF($AM$11="DL",AX27,AV27)))) -> 0 | AZ27: =IFERROR(IPF_Formula(E27,I27,AY27),0) -> 0 | BA27: =ROUND(IFERROR(VLOOKUP(AS27,DATA!$A$2:$B$63,2,FALSE),1)*AZ27,5) -> 0 | BB27: =IFERROR(IF(AN27=1,AY27,IF(AN27=2,AZ27,IF(AN27=3,BA27,AZ27))),0) -> 0 | BZ27: =IFERROR(IF(FIND("DT",AE27),"Y",""),"") ->  | CB27: =CONCATENATE(IF(AN27=4,"",D27),IF(AN27=1,F27,"")) -> F-O57 | CC27: =IF($AM$11="SQ",AJ27,IF($AM$11="BP",AK27,AL27)) -> 12 | CD27: =1+COUNTIFS(INDIRECT("AN12:AN500"),AN27,INDIRECT("CB12:CB500"),CB27,INDIRECT("AO12:AO500"),">"&AO27) +COUNTIFS(INDIRECT("AO12:AO500"),AO27,INDIRECT("AN12:AN500"),1,INDIRECT("CB12:CB500"),CB27,INDIRECT("E12:E500"),"<"&E27) +COUNTIFS(INDIRECT("AO12:AO500"),AO27,INDIRECT("AN12:AN500"),1,INDIRECT("CB12:CB500"),CB27,INDIRECT("E12:E500"),E27,INDIRECT("CC12:CC500"),"<"&CC27) -> 2 | CE27: =1+COUNTIFS(INDIRECT("AN12:AN500"),AN27,INDIRECT("CB12:CB500"),CB27,INDIRECT("BB12:BB500"),">"&BB27) +COUNTIFS(INDIRECT("BB12:BB500"),BB27,INDIRECT("AN12:AN500"),1,INDIRECT("CB12:CB500"),CB27,INDIRECT("E12:E500"),"<"&E27) -> 2
A28: A | B28: 小脇 剛 | C28: 烈剛河内 | D28: F-O | E28: 65 | F28: =一般判定(IFERROR(VLOOKUP(E28,DATA!$E$2:$G$22,IF(LEFT(D28,1)="M",2,3)),""),D28) -> 72 | G28: 5 | H28: 1979 | I28: =CONCATENATE(LEFT(D28,1),IF(RIGHT(D28,1)="U","C","E"),VLOOKUP($Y$11,$AM$1:$AO$4,3,FALSE)) -> FEB | J28: 140 | K28: 140 | N28: =IF(MAX(K28:M28)<=0,0,MAX(CELL("color",K28)*K28,CELL("color",L28)*L28,CELL("color",M28)*M28)) -> 140 | O28: 140 | P28: 140 | S28: =IF(MAX(P28:R28)<=0,0,MAX(CELL("color",P28)*P28,CELL("color",Q28)*Q28,CELL("color",R28)*R28)) -> 140 | T28: =IF(OR(N28=0,S28=0),0,N28+S28) -> 280 | U28: 140 | X28: =IF(MAX(U28:W28)<=0,0,MAX(CELL("color",U28)*U28,CELL("color",V28)*V28,CELL("color",W28)*W28)) -> 140 | Y28: =AM28*IF($AM$11="SQ",N28,IF($AM$11="BP",S28,IF($AM$11="DL",X28,IF($AM$11="PP",IF(OR(S28=0,X28=0),0,S28+X28),IF(OR(T28=0,X28=0),0,T28+X28))))) -> 0 | Z28: =IF(Y28=0,"",CONCATENATE(CD28,"/",IF(AN28=4,"Wilks",D28),"/",IF(AN28>1,"",F28),"/",$AM$11)) ->  | AA28: =BB28 -> 0 | AB28: =IF(AA28=0,"",CE28) ->  | AC28: =IFERROR(IPF_Formula(E28,I28,Y28),0) -> 0 | AD28: =IFERROR(VLOOKUP(AS28,DATA!$A$2:$B$63,2,TRUE),0)*AC28 -> 0 | AE28: PL | AH28: =IFERROR(VLOOKUP(A28,Setup!$Q$5:$R$20,2,FALSE),"") -> 12 | AI28: =IF(VALUE(INDIRECT(CONCATENATE($AI$11,ROW())))=0,"",ABS(INDIRECT(CONCATENATE($AI$11,ROW())))+0.000001*G28) -> 140.000005 | AJ28: 13 | AK28: 13 | AL28: 5 | AM28: =IF(ISERROR(SEARCH($AM$11,AE28)),0,1) -> 0 | AN28: =VLOOKUP(D28,Setup!$I$6:$K$92,3,FALSE) -> 1 | AO28: =ROUND(IFERROR(IF(AN28=1,Y28,IF(AN28=2,AC28,IF(AN28=3,AD28,AC28))),0),5) -> 0 | AQ28: =IFERROR(MATCH(D28,Setup!$I$6:$I$92,0),"") -> 17 | AR28: =IFERROR(CONCATENATE(LEFT(D28,FIND("-",D28)),IF(AS28="","O",VLOOKUP(AS28,DATA!$E$35:$F$53,2,TRUE))),"") -> F-M1a | AS28: =YEAR(TODAY())-H28 -> 41 | AT28: =IF(AN28=1,MATCH(F28,DATA!$AB$2:$AB$34,0),0) ->  | AV28: =IF(MAX(K28:M28)>0,MAX(K28:M28),0) -> 140 | AW28: =IF(MAX(P28:R28)>0,MAX(P28:R28),0) -> 140 | AX28: =IF(MAX(U28:W28)>0,MAX(U28:W28),0) -> 140 | AY28: =AM28*IF($AM$11="PL",IF(MIN(AV28:AX28)=0,0,AV28+AW28+AX28),IF($AM$11="PP",IF(MIN(AW28:AX28)=0,0,AW28+AX28),IF($AM$11="BP",AW28,IF($AM$11="DL",AX28,AV28)))) -> 0 | AZ28: =IFERROR(IPF_Formula(E28,I28,AY28),0) -> 0 | BA28: =ROUND(IFERROR(VLOOKUP(AS28,DATA!$A$2:$B$63,2,FALSE),1)*AZ28,5) -> 0 | BB28: =IFERROR(IF(AN28=1,AY28,IF(AN28=2,AZ28,IF(AN28=3,BA28,AZ28))),0) -> 0 | BZ28: =IFERROR(IF(FIND("DT",AE28),"Y",""),"") ->  | CB28: =CONCATENATE(IF(AN28=4,"",D28),IF(AN28=1,F28,"")) -> F-O72 | CC28: =IF($AM$11="SQ",AJ28,IF($AM$11="BP",AK28,AL28)) -> 13 | CD28: =1+COUNTIFS(INDIRECT("AN12:AN500"),AN28,INDIRECT("CB12:CB500"),CB28,INDIRECT("AO12:AO500"),">"&AO28) +COUNTIFS(INDIRECT("AO12:AO500"),AO28,INDIRECT("AN12:AN500"),1,INDIRECT("CB12:CB500"),CB28,INDIRECT("E12:E500"),"<"&E28) +COUNTIFS(INDIRECT("AO12:AO500"),AO28,INDIRECT("AN12:AN500"),1,INDIRECT("CB12:CB500"),CB28,INDIRECT("E12:E500"),E28,INDIRECT("CC12:CC500"),"<"&CC28) -> 1 | CE28: =1+COUNTIFS(INDIRECT("AN12:AN500"),AN28,INDIRECT("CB12:CB500"),CB28,INDIRECT("BB12:BB500"),">"&BB28) +COUNTIFS(INDIRECT("BB12:BB500"),BB28,INDIRECT("AN12:AN500"),1,INDIRECT("CB12:CB500"),CB28,INDIRECT("E12:E500"),"<"&E28) -> 1
A29: A | B29: 佐藤 啓 | C29: 8sukigym | D29: F-O | E29: 75 | F29: =一般判定(IFERROR(VLOOKUP(E29,DATA!$E$2:$G$22,IF(LEFT(D29,1)="M",2,3)),""),D29) -> 84 | G29: 10 | H29: 1971 | I29: =CONCATENATE(LEFT(D29,1),IF(RIGHT(D29,1)="U","C","E"),VLOOKUP($Y$11,$AM$1:$AO$4,3,FALSE)) -> FEB | J29: 190 | K29: 190 | N29: =IF(MAX(K29:M29)<=0,0,MAX(CELL("color",K29)*K29,CELL("color",L29)*L29,CELL("color",M29)*M29)) -> 190 | O29: 190 | P29: 190 | S29: =IF(MAX(P29:R29)<=0,0,MAX(CELL("color",P29)*P29,CELL("color",Q29)*Q29,CELL("color",R29)*R29)) -> 190 | T29: =IF(OR(N29=0,S29=0),0,N29+S29) -> 380 | U29: 190 | X29: =IF(MAX(U29:W29)<=0,0,MAX(CELL("color",U29)*U29,CELL("color",V29)*V29,CELL("color",W29)*W29)) -> 190 | Y29: =AM29*IF($AM$11="SQ",N29,IF($AM$11="BP",S29,IF($AM$11="DL",X29,IF($AM$11="PP",IF(OR(S29=0,X29=0),0,S29+X29),IF(OR(T29=0,X29=0),0,T29+X29))))) -> 0 | Z29: =IF(Y29=0,"",CONCATENATE(CD29,"/",IF(AN29=4,"Wilks",D29),"/",IF(AN29>1,"",F29),"/",$AM$11)) ->  | AA29: =BB29 -> 0 | AB29: =IF(AA29=0,"",CE29) ->  | AC29: =IFERROR(IPF_Formula(E29,I29,Y29),0) -> 0 | AD29: =IFERROR(VLOOKUP(AS29,DATA!$A$2:$B$63,2,TRUE),0)*AC29 -> 0 | AE29: PL | AH29: =IFERROR(VLOOKUP(A29,Setup!$Q$5:$R$20,2,FALSE),"") -> 12 | AI29: =IF(VALUE(INDIRECT(CONCATENATE($AI$11,ROW())))=0,"",ABS(INDIRECT(CONCATENATE($AI$11,ROW())))+0.000001*G29) -> 190.00001 | AJ29: 18 | AK29: 18 | AL29: 10 | AM29: =IF(ISERROR(SEARCH($AM$11,AE29)),0,1) -> 0 | AN29: =VLOOKUP(D29,Setup!$I$6:$K$92,3,FALSE) -> 1 | AO29: =ROUND(IFERROR(IF(AN29=1,Y29,IF(AN29=2,AC29,IF(AN29=3,AD29,AC29))),0),5) -> 0 | AQ29: =IFERROR(MATCH(D29,Setup!$I$6:$I$92,0),"") -> 17 | AR29: =IFERROR(CONCATENATE(LEFT(D29,FIND("-",D29)),IF(AS29="","O",VLOOKUP(AS29,DATA!$E$35:$F$53,2,TRUE))),"") -> F-M1b | AS29: =YEAR(TODAY())-H29 -> 49 | AT29: =IF(AN29=1,MATCH(F29,DATA!$AB$2:$AB$34,0),0) ->  | AV29: =IF(MAX(K29:M29)>0,MAX(K29:M29),0) -> 190 | AW29: =IF(MAX(P29:R29)>0,MAX(P29:R29),0) -> 190 | AX29: =IF(MAX(U29:W29)>0,MAX(U29:W29),0) -> 190 | AY29: =AM29*IF($AM$11="PL",IF(MIN(AV29:AX29)=0,0,AV29+AW29+AX29),IF($AM$11="PP",IF(MIN(AW29:AX29)=0,0,AW29+AX29),IF($AM$11="BP",AW29,IF($AM$11="DL",AX29,AV29)))) -> 0 | AZ29: =IFERROR(IPF_Formula(E29,I29,AY29),0) -> 0 | BA29: =ROUND(IFERROR(VLOOKUP(AS29,DATA!$A$2:$B$63,2,FALSE),1)*AZ29,5) -> 0 | BB29: =IFERROR(IF(AN29=1,AY29,IF(AN29=2,AZ29,IF(AN29=3,BA29,AZ29))),0) -> 0 | BZ29: =IFERROR(IF(FIND("DT",AE29),"Y",""),"") ->  | CB29: =CONCATENATE(IF(AN29=4,"",D29),IF(AN29=1,F29,"")) -> F-O84 | CC29: =IF($AM$11="SQ",AJ29,IF($AM$11="BP",AK29,AL29)) -> 18 | CD29: =1+COUNTIFS(INDIRECT("AN12:AN500"),AN29,INDIRECT("CB12:CB500"),CB29,INDIRECT("AO12:AO500"),">"&AO29) +COUNTIFS(INDIRECT("AO12:AO500"),AO29,INDIRECT("AN12:AN500"),1,INDIRECT("CB12:CB500"),CB29,INDIRECT("E12:E500"),"<"&E29) +COUNTIFS(INDIRECT("AO12:AO500"),AO29,INDIRECT("AN12:AN500"),1,INDIRECT("CB12:CB500"),CB29,INDIRECT("E12:E500"),E29,INDIRECT("CC12:CC500"),"<"&CC29) -> 1 | CE29: =1+COUNTIFS(INDIRECT("AN12:AN500"),AN29,INDIRECT("CB12:CB500"),CB29,INDIRECT("BB12:BB500"),">"&BB29) +COUNTIFS(INDIRECT("BB12:BB500"),BB29,INDIRECT("AN12:AN500"),1,INDIRECT("CB12:CB500"),CB29,INDIRECT("E12:E500"),"<"&E29) -> 1
A30: A | B30: 大西 康平 | C30: 8suki gym | D30: F-O | E30: 80 | F30: =一般判定(IFERROR(VLOOKUP(E30,DATA!$E$2:$G$22,IF(LEFT(D30,1)="M",2,3)),""),D30) -> 84 | G30: 9 | H30: 1994 | I30: =CONCATENATE(LEFT(D30,1),IF(RIGHT(D30,1)="U","C","E"),VLOOKUP($Y$11,$AM$1:$AO$4,3,FALSE)) -> FEB | J30: 180 | K30: 180 | N30: =IF(MAX(K30:M30)<=0,0,MAX(CELL("color",K30)*K30,CELL("color",L30)*L30,CELL("color",M30)*M30)) -> 180 | O30: 180 | P30: 180 | S30: =IF(MAX(P30:R30)<=0,0,MAX(CELL("color",P30)*P30,CELL("color",Q30)*Q30,CELL("color",R30)*R30)) -> 180 | T30: =IF(OR(N30=0,S30=0),0,N30+S30) -> 360 | U30: 180 | X30: =IF(MAX(U30:W30)<=0,0,MAX(CELL("color",U30)*U30,CELL("color",V30)*V30,CELL("color",W30)*W30)) -> 180 | Y30: =AM30*IF($AM$11="SQ",N30,IF($AM$11="BP",S30,IF($AM$11="DL",X30,IF($AM$11="PP",IF(OR(S30=0,X30=0),0,S30+X30),IF(OR(T30=0,X30=0),0,T30+X30))))) -> 0 | Z30: =IF(Y30=0,"",CONCATENATE(CD30,"/",IF(AN30=4,"Wilks",D30),"/",IF(AN30>1,"",F30),"/",$AM$11)) ->  | AA30: =BB30 -> 0 | AB30: =IF(AA30=0,"",CE30) ->  | AC30: =IFERROR(IPF_Formula(E30,I30,Y30),0) -> 0 | AD30: =IFERROR(VLOOKUP(AS30,DATA!$A$2:$B$63,2,TRUE),0)*AC30 -> 0 | AE30: PL | AH30: =IFERROR(VLOOKUP(A30,Setup!$Q$5:$R$20,2,FALSE),"") -> 12 | AI30: =IF(VALUE(INDIRECT(CONCATENATE($AI$11,ROW())))=0,"",ABS(INDIRECT(CONCATENATE($AI$11,ROW())))+0.000001*G30) -> 180.000009 | AJ30: 17 | AK30: 17 | AL30: 9 | AM30: =IF(ISERROR(SEARCH($AM$11,AE30)),0,1) -> 0 | AN30: =VLOOKUP(D30,Setup!$I$6:$K$92,3,FALSE) -> 1 | AO30: =ROUND(IFERROR(IF(AN30=1,Y30,IF(AN30=2,AC30,IF(AN30=3,AD30,AC30))),0),5) -> 0 | AQ30: =IFERROR(MATCH(D30,Setup!$I$6:$I$92,0),"") -> 17 | AR30: =IFERROR(CONCATENATE(LEFT(D30,FIND("-",D30)),IF(AS30="","O",VLOOKUP(AS30,DATA!$E$35:$F$53,2,TRUE))),"") -> F-O | AS30: =YEAR(TODAY())-H30 -> 26 | AT30: =IF(AN30=1,MATCH(F30,DATA!$AB$2:$AB$34,0),0) ->  | AV30: =IF(MAX(K30:M30)>0,MAX(K30:M30),0) -> 180 | AW30: =IF(MAX(P30:R30)>0,MAX(P30:R30),0) -> 180 | AX30: =IF(MAX(U30:W30)>0,MAX(U30:W30),0) -> 180 | AY30: =AM30*IF($AM$11="PL",IF(MIN(AV30:AX30)=0,0,AV30+AW30+AX30),IF($AM$11="PP",IF(MIN(AW30:AX30)=0,0,AW30+AX30),IF($AM$11="BP",AW30,IF($AM$11="DL",AX30,AV30)))) -> 0 | AZ30: =IFERROR(IPF_Formula(E30,I30,AY30),0) -> 0 | BA30: =ROUND(IFERROR(VLOOKUP(AS30,DATA!$A$2:$B$63,2,FALSE),1)*AZ30,5) -> 0 | BB30: =IFERROR(IF(AN30=1,AY30,IF(AN30=2,AZ30,IF(AN30=3,BA30,AZ30))),0) -> 0 | BZ30: =IFERROR(IF(FIND("DT",AE30),"Y",""),"") ->  | CB30: =CONCATENATE(IF(AN30=4,"",D30),IF(AN30=1,F30,"")) -> F-O84 | CC30: =IF($AM$11="SQ",AJ30,IF($AM$11="BP",AK30,AL30)) -> 17 | CD30: =1+COUNTIFS(INDIRECT("AN12:AN500"),AN30,INDIRECT("CB12:CB500"),CB30,INDIRECT("AO12:AO500"),">"&AO30) +COUNTIFS(INDIRECT("AO12:AO500"),AO30,INDIRECT("AN12:AN500"),1,INDIRECT("CB12:CB500"),CB30,INDIRECT("E12:E500"),"<"&E30) +COUNTIFS(INDIRECT("AO12:AO500"),AO30,INDIRECT("AN12:AN500"),1,INDIRECT("CB12:CB500"),CB30,INDIRECT("E12:E500"),E30,INDIRECT("CC12:CC500"),"<"&CC30) -> 3 | CE30: =1+COUNTIFS(INDIRECT("AN12:AN500"),AN30,INDIRECT("CB12:CB500"),CB30,INDIRECT("BB12:BB500"),">"&BB30) +COUNTIFS(INDIRECT("BB12:BB500"),BB30,INDIRECT("AN12:AN500"),1,INDIRECT("CB12:CB500"),CB30,INDIRECT("E12:E500"),"<"&E30) -> 3
D31: - | F31: =一般判定(IFERROR(VLOOKUP(E31,DATA!$E$2:$G$22,IF(LEFT(D31,1)="M",2,3)),""),D31) ->  | I31: =CONCATENATE(LEFT(D31,1),IF(RIGHT(D31,1)="U","C","E"),VLOOKUP($Y$11,$AM$1:$AO$4,3,FALSE)) -> -EB | N31: =IF(MAX(K31:M31)<=0,0,MAX(CELL("color",K31)*K31,CELL("color",L31)*L31,CELL("color",M31)*M31)) -> 0 | S31: =IF(MAX(P31:R31)<=0,0,MAX(CELL("color",P31)*P31,CELL("color",Q31)*Q31,CELL("color",R31)*R31)) -> 0 | T31: =IF(OR(N31=0,S31=0),0,N31+S31) -> 0 | X31: =IF(MAX(U31:W31)<=0,0,MAX(CELL("color",U31)*U31,CELL("color",V31)*V31,CELL("color",W31)*W31)) -> 0 | Y31: =AM31*IF($AM$11="SQ",N31,IF($AM$11="BP",S31,IF($AM$11="DL",X31,IF($AM$11="PP",IF(OR(S31=0,X31=0),0,S31+X31),IF(OR(T31=0,X31=0),0,T31+X31))))) -> 0 | Z31: =IF(Y31=0,"",CONCATENATE(CD31,"/",IF(AN31=4,"Wilks",D31),"/",IF(AN31>1,"",F31),"/",$AM$11)) ->  | AA31: =BB31 -> 0 | AB31: =IF(AA31=0,"",CE31) ->  | AC31: =IFERROR(IPF_Formula(E31,I31,Y31),0) -> 0 | AD31: =IFERROR(VLOOKUP(AS31,DATA!$A$2:$B$63,2,TRUE),0)*AC31 -> 0 | AH31: =IFERROR(VLOOKUP(A31,Setup!$Q$5:$R$20,2,FALSE),"") ->  | AI31: =IF(VALUE(INDIRECT(CONCATENATE($AI$11,ROW())))=0,"",ABS(INDIRECT(CONCATENATE($AI$11,ROW())))+0.000001*G31) ->  | AJ31: 0 | AK31: 0 | AL31: 0 | AM31: =IF(ISERROR(SEARCH($AM$11,AE31)),0,1) -> 0 | AN31: =VLOOKUP(D31,Setup!$I$6:$K$92,3,FALSE) ->  | AO31: =ROUND(IFERROR(IF(AN31=1,Y31,IF(AN31=2,AC31,IF(AN31=3,AD31,AC31))),0),5) -> 0 | AQ31: =IFERROR(MATCH(D31,Setup!$I$6:$I$92,0),"") ->  | AR31: =IFERROR(CONCATENATE(LEFT(D31,FIND("-",D31)),IF(AS31="","O",VLOOKUP(AS31,DATA!$E$35:$F$53,2,TRUE))),"") -> -M6 | AS31: =YEAR(TODAY())-H31 -> 2020 | AT31: =IF(AN31=1,MATCH(F31,DATA!$AB$2:$AB$34,0),0) ->  | AV31: =IF(MAX(K31:M31)>0,MAX(K31:M31),0) -> 0 | AW31: =IF(MAX(P31:R31)>0,MAX(P31:R31),0) -> 0 | AX31: =IF(MAX(U31:W31)>0,MAX(U31:W31),0) -> 0 | AY31: =AM31*IF($AM$11="PL",IF(MIN(AV31:AX31)=0,0,AV31+AW31+AX31),IF($AM$11="PP",IF(MIN(AW31:AX31)=0,0,AW31+AX31),IF($AM$11="BP",AW31,IF($AM$11="DL",AX31,AV31)))) -> 0 | AZ31: =IFERROR(IPF_Formula(E31,I31,AY31),0) -> 0 | BA31: =ROUND(IFERROR(VLOOKUP(AS31,DATA!$A$2:$B$63,2,FALSE),1)*AZ31,5) -> 0 | BB31: =IFERROR(IF(AN31=1,AY31,IF(AN31=2,AZ31,IF(AN31=3,BA31,AZ31))),0) -> 0 | BZ31: =IFERROR(IF(FIND("DT",AE31),"Y",""),"") ->  | CB31: =CONCATENATE(IF(AN31=4,"",D31),IF(AN31=1,F31,"")) ->  | CC31: =IF($AM$11="SQ",AJ31,IF($AM$11="BP",AK31,AL31)) -> 0 | CD31: =1+COUNTIFS(INDIRECT("AN12:AN500"),AN31,INDIRECT("CB12:CB500"),CB31,INDIRECT("AO12:AO500"),">"&AO31) +COUNTIFS(INDIRECT("AO12:AO500"),AO31,INDIRECT("AN12:AN500"),1,INDIRECT("CB12:CB500"),CB31,INDIRECT("E12:E500"),"<"&E31) +COUNTIFS(INDIRECT("AO12:AO500"),AO31,INDIRECT("AN12:AN500"),1,INDIRECT("CB12:CB500"),CB31,INDIRECT("E12:E500"),E31,INDIRECT("CC12:CC500"),"<"&CC31) -> 1 | CE31: =1+COUNTIFS(INDIRECT("AN12:AN500"),AN31,INDIRECT("CB12:CB500"),CB31,INDIRECT("BB12:BB500"),">"&BB31) +COUNTIFS(INDIRECT("BB12:BB500"),BB31,INDIRECT("AN12:AN500"),1,INDIRECT("CB12:CB500"),CB31,INDIRECT("E12:E500"),"<"&E31) -> 1

Sheet QuickPrint
B1: 2020-06-01 | C1: 全日本パワーリフティング選手権 | R1: ３行目からB-AEまでコピーして、グッドリフト集計用、B3に値のみ貼り付け（オレンジ）の行の部分
A2: Grp B | B2: Name | C2: Team | D2: Div | E2: 検量体重 | F2: IPF Wt Cls | G2: lot# | H2: Birth Year | I2: IPF Pts Code | J2: SQ rack | K2: SQ-1 | L2: SQ-2 | M2: SQ-3 | N2: Best SQ | O2: BP rack | P2: BP-1 | Q2: BP-2 | R2: BP-3 | S2: Best BP | T2: Sub Total | U2: DL-1 | V2: DL-2 | W2: DL-3 | X2: Best DL | Y2: PL Total | Z2: Pl/Div/Cls/Event | AA2: Forecast Score | AB2: F'cast Place | AC2: IPF Points | AD2: Age & Points | AE2: Events Entered | AF2: MemberID | AG2: State | AH2: 団体A | AI2: 団体B
A3: B | B3: 堀 滋 | C3: 8suki gym | D3: F-O | E3: 150 | F3: 84+ | G3: 18 | H3: 1975 | I3: FEP | J3: 270 | K3: 270 | N3: 270 | O3: 270 | P3: 270 | S3: 270 | T3: 540 | U3: 270 | X3: 270 | Y3: 810 | Z3: 1/F-O/84+/PL | AA3: 810 | AB3: 1 | AC3: 724.8493534 | AD3: 764.7160678 | AE3: PL
A4: B | B4: 石田 浩士 | C4: 8suki gym | D4: F-O | E4: 140 | F4: 84+ | G4: 17 | H4: 1970 | I4: FEP | J4: 260 | K4: 260 | N4: 260 | O4: 260 | P4: 260 | S4: 260 | T4: 520 | U4: 260 | X4: 260 | Y4: 780 | Z4: 2/F-O/84+/PL | AA4: 780 | AB4: 2 | AC4: 716.8908159 | AD4: 810.086622 | AE4: PL
A5: B | B5: 光安 隆史 | C5: 8suki gym | D5: F-O | E5: 85 | F5: 84+ | G5: 16 | H5: 1976 | I5: FEP | J5: 250 | K5: 250 | N5: 250 | O5: 250 | P5: 250 | S5: 250 | T5: 500 | U5: 250 | X5: 250 | Y5: 750 | Z5: 3/F-O/84+/PL | AA5: 750 | AB5: 3 | AC5: 821.9264513 | AD5: 857.2692887 | AE5: PL
A6: B | B6: 田口 航大 | C6: 8sukigym | D6: F-O | E6: 120 | F6: 84+ | G6: 15 | H6: 2002 | I6: FEP | J6: 240 | K6: 240 | N6: 240 | O6: 240 | P6: 240 | S6: 240 | T6: 480 | U6: 240 | X6: 240 | Y6: 720 | Z6: 4/F-O/84+/PL | AA6: 720 | AB6: 4 | AC6: 703.2960026 | AD6: 745.4937628 | AE6: PL
A7: B | B7: 瀧井 章男 | C7: Ks GYM | D7: F-O | E7: 130 | F7: 84+ | G7: 13 | H7: 1984 | I7: FEP | J7: 220 | K7: 220 | N7: 220 | O7: 220 | P7: 220 | S7: 220 | T7: 440 | U7: 220 | X7: 220 | Y7: 660 | Z7: 5/F-O/84+/PL | AA7: 660 | AB7: 5 | AC7: 638.1183434 | AD7: 638.1183434 | AE7: PL
A8: B | B8: 芳村 晃 | C8: 8sukigym | D8: F-O | E8: 120 | F8: 84+ | G8: 12 | H8: 1975 | I8: FEP | J8: 210 | K8: 210 | N8: 210 | O8: 210 | P8: 210 | S8: 210 | T8: 420 | U8: 210 | X8: 210 | Y8: 630 | Z8: 6/F-O/84+/PL | AA8: 630 | AB8: 6 | AC8: 629.5012871 | AD8: 664.1238578 | AE8: PL
A9: B | B9: 吉岡 弘和 | C9: 8suki gym | D9: F-O | E9: 52 | F9: 52 | G9: 14 | H9: 1963 | I9: FEP | J9: 230 | K9: 230 | N9: 230 | O9: 230 | P9: 230 | S9: 230 | T9: 460 | U9: 230 | X9: 230 | Y9: 690 | Z9: 1/F-O/52/PL | AA9: 690 | AB9: 1 | AC9: 948.9199141 | AD9: 1193.741252 | AE9: PL
A10: A | B10: 伊藤 由実子 | C10: 8suki gym | D10: F-O | E10: 46 | F10: 47 | G10: 2 | H10: 1976 | I10: FEP | J10: 110 | K10: 110 | N10: 110 | O10: 110 | P10: 110 | S10: 110 | T10: 220 | U10: 110 | X10: 110 | Y10: 330 | Z10: 1/F-O/47/PL | AA10: 330 | AB10: 1 | AC10: 536.097166 | AD10: 559.1493441 | AE10: PL
A11: A | B11: 松尾 直樹 | C11: 8sukigym | D11: F-O | E11: 60 | F11: 63 | G11: 6 | H11: 1963 | I11: FEP | J11: 150 | K11: 150 | N11: 150 | O11: 150 | P11: 150 | S11: 150 | T11: 300 | U11: 150 | X11: 150 | Y11: 450 | Z11: 1/F-O/63/PL | AA11: 450 | AB11: 1 | AC11: 613.5344549 | AD11: 771.8263443 | AE11: PL
A12: A | B12: 三木 聖也 | C12: 8sukiGYM | D12: F-O | E12: 54 | F12: 57 | G12: 7 | H12: 1996 | I12: FEP | J12: 160 | K12: 160 | N12: 160 | O12: 160 | P12: 160 | S12: 160 | T12: 320 | U12: 160 | X12: 160 | Y12: 480 | Z12: 1/F-O/57/PL | AA12: 480 | AB12: 1 | AC12: 678.8651622 | AD12: 678.8651622 | AE12: PL
A13: A | B13: 山本 泰資 | C13: 8sukigym | D13: F-O | E13: 70 | F13: 72 | G13: 8 | H13: 1993 | I13: FEP | J13: 170 | K13: 170 | N13: 170 | O13: 170 | P13: 170 | S13: 170 | T13: 340 | U13: 170 | X13: 170 | Y13: 510 | Z13: 1/F-O/72/PL | AA13: 510 | AB13: 1 | AC13: 638.8882686 | AD13: 638.8882686 | AE13: PL
A14: A | B14: 大寺 康平 | C14: 8suki gym | D14: F-O | E14: 75 | F14: 84 | G14: 11 | H14: 1987 | I14: FEP | J14: 200 | K14: 200 | N14: 200 | O14: 200 | P14: 200 | S14: 200 | T14: 400 | U14: 200 | X14: 200 | Y14: 600 | Z14: 1/F-O/84/PL | AA14: 600 | AB14: 1 | AC14: 712.6625793 | AD14: 712.6625793 | AE14: PL
A15: A | B15: 中川 貴美子 | C15: 8suki gym | D15: F-O | E15: 42 | F15: 47 | G15: 1 | H15: 1982 | I15: FEP | J15: 100 | K15: 100 | N15: 100 | O15: 100 | P15: 100 | S15: 100 | T15: 200 | U15: 100 | X15: 100 | Y15: 300 | Z15: 2/F-O/47/PL | AA15: 300 | AB15: 2 | AC15: 518.7323538 | AD15: 518.7323538 | AE15: PL
A16: A | B16: 丸山 武 | C16: 8suki gym | D16: F-O | E16: 50 | F16: 52 | G16: 3 | H16: 1981 | I16: FEP | J16: 120 | K16: 120 | N16: 120 | O16: 120 | P16: 120 | S16: 120 | T16: 240 | U16: 120 | X16: 120 | Y16: 360 | Z16: 2/F-O/52/PL | AA16: 360 | AB16: 2 | AC16: 553.4695777 | AD16: 553.4695777 | AE16: PL
A17: A | B17: 立脇 和弥 | C17: 8suki gym | D17: F-O | E17: 55 | F17: 57 | G17: 4 | H17: 1986 | I17: FEP | J17: 130 | K17: 130 | N17: 130 | O17: 130 | P17: 130 | S17: 130 | T17: 260 | U17: 130 | X17: 130 | Y17: 390 | Z17: 2/F-O/57/PL | AA17: 390 | AB17: 2 | AC17: 566.1846732 | AD17: 566.1846732 | AE17: PL
A18: A | B18: 小脇 剛 | C18: 烈剛河内 | D18: F-O | E18: 65 | F18: 72 | G18: 5 | H18: 1979 | I18: FEP | J18: 140 | K18: 140 | N18: 140 | O18: 140 | P18: 140 | S18: 140 | T18: 280 | U18: 140 | X18: 140 | Y18: 420 | Z18: 2/F-O/72/PL | AA18: 420 | AB18: 2 | AC18: 560.9212954 | AD18: 566.5305083 | AE18: PL
A19: A | B19: 佐藤 啓 | C19: 8sukigym | D19: F-O | E19: 75 | F19: 84 | G19: 10 | H19: 1971 | I19: FEP | J19: 190 | K19: 190 | N19: 190 | O19: 190 | P19: 190 | S19: 190 | T19: 380 | U19: 190 | X19: 190 | Y19: 570 | Z19: 2/F-O/84/PL | AA19: 570 | AB19: 2 | AC19: 682.4165821 | AD19: 759.5296559 | AE19: PL
A20: A | B20: 大西 康平 | C20: 8suki gym | D20: F-O | E20: 80 | F20: 84 | G20: 9 | H20: 1994 | I20: FEP | J20: 180 | K20: 180 | N20: 180 | O20: 180 | P20: 180 | S20: 180 | T20: 360 | U20: 180 | X20: 180 | Y20: 540 | Z20: 3/F-O/84/PL | AA20: 540 | AB20: 3 | AC20: 636.381164 | AD20: 636.381164 | AE20: PL

Sheet 表彰状
M8: start行番号 | N8: 3
M9: end行番号 | N9: 8
M11: 行番号 | N11: 12
B17: =日本語数式(INDEX(QuickPrint!Z$1:Z$430,$N$11),0) -> フルギア | F17: 記 録
B19: =日本語数式(INDEX(QuickPrint!$Z$1:$Z$430,$N$11),1) -> 女子 | C19: =日本語数式(INDEX(QuickPrint!$F$1:$F$430,$N$11),2) -> 57 Kg級 | D19: =日本語数式(INDEX(QuickPrint!$Z$1:$Z$430,$N$11),3) -> 一般 | E19: =日本語数式(INDEX(QuickPrint!$Z$1:$Z$430,$N$11),4) -> 第1位 | F19: =日本語数式(INDEX(QuickPrint!$Y$1:$Y$430,$N$11),5) -> 480Kg | G19: =日本語数式(INDEX(QuickPrint!J$1:J$2,$N$11),2) -> 
B22: =日本語数式(INDEX(QuickPrint!$B$1:$B$430,$N$11),6) -> 三木 聖也 | G22: 殿

Sheet Awards
L1: FillRows | M1: =COUNTA(P:P)+1 -> 9
A2: Men (40 -49) 3-Lift 59-kg cls | J2: =OFFSET($V$1,MATCH(A2,$U:$U,0)-1,0) ->  | L2: =CONCATENATE("U3:U",M1) -> U3:U9 | P2: Div | Q2: Cls | R2: Event
A3: PLACE | B3: NAME | C3: =Lifting!E3 -> Kg | D3: IPF Pts. | E3: Team | I3: row | L3: PL | M3: 3-Lift | P3: F-O | Q3: 84+ | R3: PL | S3: =IF($P3="Wilks",$P3,VLOOKUP($P3,Setup!$I:$J,2,FALSE)) -> Women | T3: =VLOOKUP(R3,$L$3:$M$7,2,FALSE) -> 3-Lift | U3: =CONCATENATE($S3," ",$T3," ",IF($Q3="","",CONCATENATE($Q3,"-",$M$10))) -> Women 3-Lift 84+-kg cls | V3: =CONCATENATE(P3,"/",Q3,"/",R3) -> F-O/84+/PL
A4: 1 | B4: =IFERROR(INDIRECT(CONCATENATE("QuickPrint!B",I4)),"") ->  | C4: =IFERROR(INDIRECT(CONCATENATE("QuickPrint!Y",I4)),"") ->  | D4: =IFERROR(INDIRECT(CONCATENATE("QuickPrint!",IF($J$10=3,"AD","AC"),I4)),"") ->  | E4: =IFERROR(VLOOKUP(INDIRECT(CONCATENATE("QuickPrint!c",I4)),Setup!$M$6:$N$93,2,FALSE),"") ->  | I4: =MATCH(J4,INDIRECT(CONCATENATE("QuickPrint!$Z:$Z")),0) ->  | J4: =CONCATENATE("1/",$J$2) ->  | L4: BP | M4: Bench Press | P4: F-O | Q4: 52 | R4: PL | S4: =IF($P4="Wilks",$P4,VLOOKUP($P4,Setup!$I:$J,2,FALSE)) -> Women | T4: =VLOOKUP(R4,$L$3:$M$7,2,FALSE) -> 3-Lift | U4: =CONCATENATE($S4," ",$T4," ",IF($Q4="","",CONCATENATE($Q4,"-",$M$10))) -> Women 3-Lift 52-kg cls | V4: =CONCATENATE(P4,"/",Q4,"/",R4) -> F-O/52/PL
A5: 2 | E5: =IFERROR(VLOOKUP(INDIRECT(CONCATENATE("QuickPrint!c",I5)),Setup!$M$6:$N$93,2,FALSE),"") ->  | I5: =MATCH(J5,INDIRECT(CONCATENATE("QuickPrint!$Z:$Z")),0) ->  | J5: =CONCATENATE("2/",$J$2) ->  | L5: SQ | M5: Squat | P5: F-O | Q5: 47 | R5: PL | S5: =IF($P5="Wilks",$P5,VLOOKUP($P5,Setup!$I:$J,2,FALSE)) -> Women | T5: 3-Lift | U5: Women 3-Lift 47-kg cls | V5: F-O/47/PL
A6: 3 | E6: =IFERROR(VLOOKUP(INDIRECT(CONCATENATE("QuickPrint!c",I6)),Setup!$M$6:$N$93,2,FALSE),"") ->  | I6: =MATCH(J6,INDIRECT(CONCATENATE("QuickPrint!$Z:$Z")),0) ->  | J6: =CONCATENATE("3/",$J$2) ->  | L6: DL | M6: Deadlift | P6: F-O | Q6: 63 | R6: PL | S6: =IF($P6="Wilks",$P6,VLOOKUP($P6,Setup!$I:$J,2,FALSE)) -> Women | T6: 3-Lift | U6: Women 3-Lift 63-kg cls | V6: F-O/63/PL
A7: 4 | E7: =IFERROR(VLOOKUP(INDIRECT(CONCATENATE("QuickPrint!c",I7)),Setup!$M$6:$N$93,2,FALSE),"") ->  | I7: =MATCH(J7,INDIRECT(CONCATENATE("QuickPrint!$Z:$Z")),0) ->  | J7: =CONCATENATE("4/",$J$2) ->  | L7: PP | M7: Push Pull | P7: F-O | Q7: 57 | R7: PL | S7: =IF($P7="Wilks",$P7,VLOOKUP($P7,Setup!$I:$J,2,FALSE)) -> Women | T7: 3-Lift | U7: Women 3-Lift 57-kg cls | V7: F-O/57/PL
A8: 5 | E8: =IFERROR(VLOOKUP(INDIRECT(CONCATENATE("QuickPrint!c",I8)),Setup!$M$6:$N$93,2,FALSE),"") ->  | I8: =MATCH(J8,INDIRECT(CONCATENATE("QuickPrint!$Z:$Z")),0) ->  | J8: =CONCATENATE("5/",$J$2) ->  | P8: F-O | Q8: 72 | R8: PL | S8: =IF($P8="Wilks",$P8,VLOOKUP($P8,Setup!$I:$J,2,FALSE)) -> Women | T8: 3-Lift | U8: Women 3-Lift 72-kg cls | V8: F-O/72/PL
A9: 6 | P9: F-O | Q9: 84 | R9: PL | S9: =IF($P9="Wilks",$P9,VLOOKUP($P9,Setup!$I:$J,2,FALSE)) -> Women | T9: 3-Lift | U9: Women 3-Lift 84-kg cls | V9: F-O/84/PL
I10: score code | J10: =IF(P3="Wilks",4,VLOOKUP(OFFSET($P$1,MATCH(A2,$U:$U,0)-1,0),Setup!I5:K200,3,FALSE)) ->  | L10: =Setup!B39 -> 0 | M10: =IF(L10="Pounds","lb cls","kg cls") -> kg cls

Sheet SpeakersCard (hidden)
A2: =Setup!$B$6 -> 全日本ベンチプレス選手権 | F2: Group: | G2: A | I2: =Setup!$B$6 -> 全日本ベンチプレス選手権 | N2: Group: | O2: A
A3: Name & Mbr #: | B3: lifter5-5 | F3: Lot number: | G3: 5 | I3: Name & Mbr #: | J3: lifter2-2 | N3: Lot number: | O3: 2
A4: Birth Year: | B4: 1990-01-05 | C4: Team: | D4: Abrev | F4: Weight Class: | G4: 72 | I4: Birth Year: | J4: 1990-01-02 | K4: Team: | L4: Abrev | N4: Weight Class: | O4: 72
A5: Body Weight: | B5: 80 | D5: Events Entered: | F5: Division(s) | I5: Body Weight: | J5: 65 | L5: Events Entered: | N5: Division(s)
A6: Lifter/Coach Initials: | D6: pl | F6: FR-O | I6: Lifter/Coach Initials: | L6: pl | N6: FR-O
A7: Event | B7: Rack Hts | C7: 1st Attempt | D7: 2nd Attempt | E7: 3rd Attempt | F7: Best Attempt | G7: Place | I7: Event | J7: Rack Hts | K7: 1st Attempt | L7: 2nd Attempt | M7: 3rd Attempt | N7: Best Attempt | O7: Place
A8: Squat | B8: 14 | I8: Squat | J8: 11
A9: Bench Press | B9: 10-11 | I9: Bench Press | J9: 10-8
E10: Subtotal | M10: Subtotal
A11: Deadlift | I11: Deadlift
A12: IPF Points: | E12: Total | I12: IPF Points: | M12: Total
A15: =Setup!$B$6 -> 全日本ベンチプレス選手権 | F15: Group: | G15: A | I15: =Setup!$B$6 -> 全日本ベンチプレス選手権 | N15: Group: | O15: A
A16: Name & Mbr #: | B16: lifter3-3 | F16: Lot number: | G16: 3 | I16: Name & Mbr #: | J16: lifter4-4 | N16: Lot number: | O16: 4
A17: Birth Year: | B17: 1990-01-03 | C17: Team: | D17: Abrev | F17: Weight Class: | G17: 72 | I17: Birth Year: | J17: 1990-01-04 | K17: Team: | L17: Abrev | N17: Weight Class: | O17: 72
A18: Body Weight: | B18: 70 | D18: Events Entered: | F18: Division(s) | I18: Body Weight: | J18: 75 | L18: Events Entered: | N18: Division(s)
A19: Lifter/Coach Initials: | D19: pl | F19: FR-O | I19: Lifter/Coach Initials: | L19: pl | N19: FR-O
A20: Event | B20: Rack Hts | C20: 1st Attempt | D20: 2nd Attempt | E20: 3rd Attempt | F20: Best Attempt | G20: Place | I20: Event | J20: Rack Hts | K20: 1st Attempt | L20: 2nd Attempt | M20: 3rd Attempt | N20: Best Attempt | O20: Place
A21: Squat | B21: 12 | I21: Squat | J21: 13
A22: Bench Press | B22: 10-9 | I22: Bench Press | J22: 10-10
E23: Subtotal | M23: Subtotal
A24: Deadlift | I24: Deadlift
A25: IPF Points: | E25: Total | I25: IPF Points: | M25: Total

Sheet ContestResults (hidden)
AG1: =3*COUNTA(C:C) -> 0

Sheet ContestLog (hidden)
A1: Time | B1: Name | C1: ="Weight Cls "&IF(Setup!B39="Kilograms","(Kg)","(Lb)") -> Weight Cls (Lb) | D1: Lift | E1: ="Weight ("&Setup!G15&")" -> Weight (Kg) | F1: ="Total ("&Setup!G15&")" -> Total (Kg) | G1: Record? | J1: =COUNTA(B:B)+1 -> 1233
A2: 16:16:29 | B2: 山下 彩 | C2: 43 | D2: Squat 1 | E2: 100
A3: 16:16:31 | B3: 高岡 美穂 | C3: 47 | D3: Squat 1 | E3: 110
A4: 16:16:32 | B4: 酒井 維吹 | C4: 53 | D4: Squat 1 | E4: 120
A5: 16:16:33 | B5: 野口 貴史 | C5: 59 | D5: Squat 1 | E5: 130
A6: 16:16:35 | B6: 安倉 明徳 | C6: 66 | D6: Squat 1 | E6: 140
A7: 16:16:36 | B7: 吉村 雄一 | C7: 66 | D7: Squat 1 | E7: 150
A8: 16:16:37 | B8: 菅原 大輔 | C8: 59 | D8: Squat 1 | E8: 150
A9: 16:16:39 | B9: 久保田 甲斐 | C9: 74 | D9: Squat 1 | E9: 160
A10: 16:16:40 | B10: 阪本 賢一 | C10: 83 | D10: Squat 1 | E10: 160
A11: 16:16:41 | B11: 松尾 静葵 | C11: 83 | D11: Squat 1 | E11: 180
A12: 16:16:44 | B12: 後藤 隆 | C12: 83 | D12: Squat 1 | E12: 200
A13: 16:16:54 | B13: 山下 彩 | C13: 43 | D13: Bench Press 1 | E13: 100
A14: 16:16:55 | B14: 高岡 美穂 | C14: 47 | D14: Bench Press 1 | E14: 110
A15: 16:16:57 | B15: 酒井 維吹 | C15: 53 | D15: Bench Press 1 | E15: 120
A16: 16:16:59 | B16: 野口 貴史 | C16: 59 | D16: Bench Press 1 | E16: 130
A17: 16:17:00 | B17: 安倉 明徳 | C17: 66 | D17: Bench Press 1 | E17: 140
A18: 16:17:01 | B18: 吉村 雄一 | C18: 66 | D18: Bench Press 1 | E18: 150
A19: 16:17:02 | B19: 菅原 大輔 | C19: 59 | D19: Bench Press 1 | E19: 150
A20: 16:17:03 | B20: 久保田 甲斐 | C20: 74 | D20: Bench Press 1 | E20: 160
A21: 16:17:05 | B21: 阪本 賢一 | C21: 83 | D21: Bench Press 1 | E21: 160
A22: 16:17:06 | B22: 松尾 静葵 | C22: 83 | D22: Bench Press 1 | E22: 180
A23: 16:17:07 | B23: 後藤 隆 | C23: 83 | D23: Bench Press 1 | E23: 200
A24: 16:17:13 | B24: 山下 彩 | C24: 43 | D24: Deadlift 1 | E24: -100
A25: 16:17:14 | B25: 高岡 美穂 | C25: 47 | D25: Deadlift 1 | E25: -110
A26: 16:17:15 | B26: 酒井 維吹 | C26: 53 | D26: Deadlift 1 | E26: -120
A27: 16:17:17 | B27: 野口 貴史 | C27: 59 | D27: Deadlift 1 | E27: -130
A28: 16:17:18 | B28: 安倉 明徳 | C28: 66 | D28: Deadlift 1 | E28: 140 | F28: 420
A29: 16:17:19 | B29: 吉村 雄一 | C29: 66 | D29: Deadlift 1 | E29: -150
A30: 16:17:20 | B30: 菅原 大輔 | C30: 59 | D30: Deadlift 1 | E30: -150
A31: 16:17:21 | B31: 久保田 甲斐 | C31: 74 | D31: Deadlift 1 | E31: 160 | F31: 480
A32: 16:17:22 | B32: 阪本 賢一 | C32: 83 | D32: Deadlift 1 | E32: -160
A33: 16:17:23 | B33: 松尾 静葵 | C33: 83 | D33: Deadlift 1 | E33: 180 | F33: 540
A34: 16:17:25 | B34: 後藤 隆 | C34: 83 | D34: Deadlift 1 | E34: -200
A35: 16:17:26 | B35: 後藤 隆 | C35: 83 | D35: Deadlift 1 | E35: 200 | F35: 600
A36: 16:18:10 | B36: 山下 彩 | C36: 43 | D36: Deadlift 2 | E36: 100 | F36: 300
A37: 16:18:11 | B37: 高岡 美穂 | C37: 47 | D37: Deadlift 2 | E37: 110 | F37: 330
A38: 16:18:12 | B38: 酒井 維吹 | C38: 53 | D38: Deadlift 2 | E38: 120 | F38: 360
A39: 16:18:14 | B39: 野口 貴史 | C39: 59 | D39: Deadlift 2 | E39: 130 | F39: 390
A40: 16:18:15 | B40: 安倉 明徳 | C40: 66 | D40: Deadlift 2 | E40: 142.5 | F40: 422.5
A41: 16:18:16 | B41: 吉村 雄一 | C41: 66 | D41: Deadlift 2 | E41: 150 | F41: 450
A42: 16:18:18 | B42: 菅原 大輔 | C42: 59 | D42: Deadlift 2 | E42: 150 | F42: 450
A43: 16:18:19 | B43: 阪本 賢一 | C43: 83 | D43: Deadlift 2 | E43: 160 | F43: 480
A44: 16:18:20 | B44: 久保田 甲斐 | C44: 74 | D44: Deadlift 2 | E44: 170 | F44: 490
A45: 16:18:22 | B45: 松尾 静葵 | C45: 83 | D45: Deadlift 2 | E45: 185 | F45: 545
A46: 16:18:23 | B46: 後藤 隆 | C46: 83 | D46: Deadlift 2 | E46: 205 | F46: 605
A47: 16:20:56 | B47: 山本 僚介 | C47: 120 | D47: Deadlift 1 | E47: 120
A48: 16:20:57 | B48: 上田 真司 | C48: 120+ | D48: Deadlift 1 | E48: 120
A49: 16:20:59 | B49: 塚村 英夫 | C49: 53 | D49: Deadlift 1 | E49: 130
A50: 16:21:00 | B50: 西田 貴胤 | C50: 120 | D50: Deadlift 1 | E50: 130
A51: 16:21:02 | B51: 植野 哲 | C51: 93 | D51: Deadlift 1 | E51: -140
A52: 16:21:03 | B52: 山下 保樹 | C52: 120+ | D52: Deadlift 1 | E52: 140
A53: 16:21:05 | B53: 岩本 隆全 | C53: 120+ | D53: Deadlift 1 | E53: 150
A54: 16:21:28 | B54: 山本 僚介 | C54: 120 | D54: Deadlift 2 | E54: 130
A55: 16:21:30 | B55: 上田 真司 | C55: 120+ | D55: Deadlift 2 | E55: 130
A56: 16:21:32 | B56: 植野 哲 | C56: 93 | D56: Deadlift 2 | E56: 140
A57: 16:21:33 | B57: 塚村 英夫 | C57: 53 | D57: Deadlift 2 | E57: 140
A58: 16:21:36 | B58: 西田 貴胤 | C58: 120 | D58: Deadlift 2 | E58: 140
A59: 16:21:38 | B59: 山下 保樹 | C59: 120+ | D59: Deadlift 2 | E59: 145
A60: 16:21:57 | B60: 山本 僚介 | C60: 120 | D60: Squat 1 | E60: 120
A61: 16:21:59 | B61: 上田 真司 | C61: 120+ | D61: Squat 1 | E61: 120
A62: 16:22:03 | B62: 塚村 英夫 | C62: 53 | D62: Squat 1 | E62: 130
A63: 16:22:07 | B63: 西田 貴胤 | C63: 120 | D63: Squat 1 | E63: 130
A64: 16:22:09 | B64: 植野 哲 | C64: 93 | D64: Squat 1 | E64: 140
A65: 16:22:11 | B65: 山下 保樹 | C65: 120+ | D65: Squat 1 | E65: 140
A66: 16:22:12 | B66: 岩本 隆全 | C66: 120+ | D66: Squat 1 | E66: 150
A67: 16:23:01 | B67: 山本 僚介 | C67: 120 | D67: Bench Press 1 | E67: 120 | F67: 370
A68: 16:23:03 | B68: 上田 真司 | C68: 120+ | D68: Bench Press 1 | E68: 120 | F68: 370
A69: 16:23:04 | B69: 塚村 英夫 | C69: 53 | D69: Bench Press 1 | E69: 130 | F69: 400
A70: 16:23:06 | B70: 西田 貴胤 | C70: 120 | D70: Bench Press 1 | E70: 130 | F70: 400
A71: 16:23:08 | B71: 植野 哲 | C71: 93 | D71: Bench Press 1 | E71: 140 | F71: 420
A72: 16:23:10 | B72: 山下 保樹 | C72: 120+ | D72: Bench Press 1 | E72: 140 | F72: 425
A73: 16:23:12 | B73: 岩本 隆全 | C73: 120+ | D73: Bench Press 1 | E73: 150 | F73: 450
A74: 00:51:32 | B74: 山下 彩 | C74: 43 | D74: Squat 1 | E74: -100
A75: 00:51:35 | B75: 高岡 美穂 | C75: 47 | D75: Squat 1 | E75: -110
A76: 00:51:38 | B76: 酒井 維吹 | C76: 59 | D76: Squat 1 | E76: -120
A77: 00:51:55 | B77: 久保田 甲斐 | C77: 74 | D77: Squat 1 | E77: -160
A78: 00:52:01 | B78: 久保田 甲斐 | C78: 74 | D78: Squat 1 | E78: 160 | F78: 490
A79: 00:52:05 | B79: 久保田 甲斐 | C79: 74 | D79: Squat 1 | E79: -160
A80: 00:52:07 | B80: 久保田 甲斐 | C80: 74 | D80: Squat 1 | E80: 160 | F80: 490
A81: 00:52:14 | B81: 久保田 甲斐 | C81: 74 | D81: Squat 1 | E81: -160
A82: 00:52:16 | B82: 久保田 甲斐 | C82: 74 | D82: Squat 1 | E82: -160
A83: 00:52:20 | B83: 久保田 甲斐 | C83: 74 | D83: Squat 1 | E83: -160
A84: 00:53:00 | B84: 山下 彩 | C84: 43 | D84: Squat 1 | E84: 100 | F84: 300
A85: 00:53:02 | B85: 高岡 美穂 | C85: 47 | D85: Squat 1 | E85: 110 | F85: 330
A86: 00:53:03 | B86: 酒井 維吹 | C86: 59 | D86: Squat 1 | E86: 120 | F86: 360
A87: 00:53:05 | B87: 野口 貴史 | C87: 59 | D87: Squat 1 | E87: 130 | F87: 390
A88: 00:53:27 | B88: 山下 彩 | C88: 43 | D88: Squat 1 | E88: 100 | F88: 300
A89: 00:53:29 | B89: 高岡 美穂 | C89: 47 | D89: Squat 1 | E89: 110 | F89: 330
A90: 00:53:31 | B90: 酒井 維吹 | C90: 59 | D90: Squat 1 | E90: 120 | F90: 360
A91: 00:53:33 | B91: 野口 貴史 | C91: 59 | D91: Squat 1 | E91: 130 | F91: 390
A92: 00:53:34 | B92: 安倉 明徳 | C92: 66 | D92: Squat 1 | E92: 140 | F92: 422.5
A93: 00:53:37 | B93: 吉村 雄一 | C93: 59 | D93: Squat 1 | E93: 150 | F93: 450
A94: 00:53:39 | B94: 菅原 大輔 | C94: 53 | D94: Squat 1 | E94: 150 | F94: 450
A95: 00:53:40 | B95: 久保田 甲斐 | C95: 74 | D95: Squat 1 | E95: 160 | F95: 490
A96: 00:53:42 | B96: 阪本 賢一 | C96: 83 | D96: Squat 1 | E96: 160 | F96: 480
A97: 00:53:43 | B97: 松尾 静葵 | C97: 59 | D97: Squat 1 | E97: 180 | F97: 545
A98: 14:25:25 | B98: 山下 彩 | C98: 43 | D98: Bench Press 1 | E98: 100
A99: 14:25:27 | B99: 高岡 美穂 | C99: 47 | D99: Bench Press 1 | E99: 110
A100: 14:25:29 | B100: 酒井 維吹 | C100: 59 | D100: Bench Press 1 | E100: -120
A101: 14:25:30 | B101: 野口 貴史 | C101: 59 | D101: Bench Press 1 | E101: 130
A102: 14:25:32 | B102: 安倉 明徳 | C102: 66 | D102: Bench Press 1 | E102: 140
A103: 14:25:33 | B103: 吉村 雄一 | C103: 59 | D103: Bench Press 1 | E103: 150
A104: 14:25:34 | B104: 菅原 大輔 | C104: 53 | D104: Bench Press 1 | E104: 150
A105: 14:25:37 | B105: 久保田 甲斐 | C105: 74 | D105: Bench Press 1 | E105: 160
A106: 14:25:38 | B106: 阪本 賢一 | C106: 83 | D106: Bench Press 1 | E106: 160
A107: 14:25:39 | B107: 松尾 静葵 | C107: 59 | D107: Bench Press 1 | E107: 180
A108: 14:35:49 | B108: 後藤 隆 | C108: 83 | D108: Bench Press 1 | E108: 200 | F108: 605
A109: 14:35:59 | B109: 山下 彩 | C109: 43 | D109: Squat 2 | E109: 120 | F109: 320
A110: 14:36:00 | B110: 高岡 美穂 | C110: 47 | D110: Squat 2 | E110: 130 | F110: 350
A111: 14:36:02 | B111: 酒井 維吹 | C111: 59 | D111: Squat 2 | E111: 140
A112: 14:36:04 | B112: 野口 貴史 | C112: 59 | D112: Squat 2 | E112: 150 | F112: 410
A113: 14:36:05 | B113: 安倉 明徳 | C113: 66 | D113: Squat 2 | E113: 160 | F113: 442.5
A114: 14:36:07 | B114: 吉村 雄一 | C114: 59 | D114: Squat 2 | E114: 170 | F114: 470
A115: 14:36:08 | B115: 菅原 大輔 | C115: 53 | D115: Squat 2 | E115: 180 | F115: 480
A116: 14:36:09 | B116: 久保田 甲斐 | C116: 74 | D116: Squat 2 | E116: 190 | F116: 520
A117: 14:36:11 | B117: 松尾 静葵 | C117: 59 | D117: Squat 2 | E117: 190 | F117: 555
A118: 14:36:12 | B118: 阪本 賢一 | C118: 83 | D118: Squat 2 | E118: 200 | F118: 520
A119: 14:36:24 | B119: 後藤 隆 | C119: 83 | D119: Squat 2 | E119: 220 | F119: 625
A120: 14:36:26 | B120: 後藤 隆 | C120: 83 | D120: Squat 2 | E120: -220 | F120: 605
A121: 23:20:57 | B121: 山下 彩 | C121: 43 | D121: Squat 1 | E121: -100
A122: 23:21:07 | B122: 酒井 維吹 | C122: 52 | D122: Squat 1 | E122: -120
A123: 23:21:12 | B123: 野口 貴史 | C123: 57 | D123: Squat 1 | E123: 130
A124: 23:21:22 | B124: 吉村 雄一 | C124: 63 | D124: Squat 1 | E124: -150
A125: 23:21:28 | B125: 菅原 大輔 | C125: 57 | D125: Squat 1 | E125: 160
A126: 23:31:20 | B126: 山下 彩 | C126: 43 | D126: Squat 1 | E126: 100
A127: 23:31:22 | B127: 高岡 美穂 | C127: 47 | D127: Squat 1 | E127: -110
A128: 23:31:23 | B128: 酒井 維吹 | C128: 52 | D128: Squat 1 | E128: 120
A129: 23:31:25 | B129: 野口 貴史 | C129: 57 | D129: Squat 1 | E129: 130
A130: 23:31:27 | B130: 安倉 明徳 | C130: 72 | D130: Squat 1 | E130: 140
A131: 23:31:28 | B131: 吉村 雄一 | C131: 63 | D131: Squat 1 | E131: -150
A132: 23:31:29 | B132: 菅原 大輔 | C132: 57 | D132: Squat 1 | E132: 160
A133: 23:31:31 | B133: 久保田 甲斐 | C133: 72 | D133: Squat 1 | E133: -170
A134: 23:31:32 | B134: 阪本 賢一 | C134: 84 | D134: Squat 1 | E134: -180
A135: 23:31:34 | B135: 松尾 静葵 | C135: 84 | D135: Squat 1 | E135: 190
A136: 23:31:36 | B136: 後藤 隆 | C136: 84 | D136: Squat 1 | E136: 200
A137: 23:32:00 | B137: 山下 彩 | C137: 43 | D137: Squat 2 | E137: 120
A138: 23:32:02 | B138: 高岡 美穂 | C138: 47 | D138: Squat 2 | E138: 130
A139: 23:32:04 | B139: 酒井 維吹 | C139: 52 | D139: Squat 2 | E139: -140 | F139: 360
A140: 23:32:05 | B140: 野口 貴史 | C140: 57 | D140: Squat 2 | E140: 150
A141: 23:32:06 | B141: 安倉 明徳 | C141: 72 | D141: Squat 2 | E141: -160 | F141: 420
A142: 23:32:07 | B142: 吉村 雄一 | C142: 63 | D142: Squat 2 | E142: 170
A143: 23:32:09 | B143: 菅原 大輔 | C143: 57 | D143: Squat 2 | E143: -180 | F143: 480
A144: 23:32:11 | B144: 久保田 甲斐 | C144: 72 | D144: Squat 2 | E144: 190
A145: 23:32:12 | B145: 阪本 賢一 | C145: 84 | D145: Squat 2 | E145: -200
A146: 23:32:14 | B146: 松尾 静葵 | C146: 84 | D146: Squat 2 | E146: 210
A147: 23:32:15 | B147: 後藤 隆 | C147: 84 | D147: Squat 2 | E147: -220 | F147: 600
A148: 23:32:16 | B148: 後藤 隆 | C148: 84 | D148: Squat 2 | E148: 220
A149: 23:32:43 | B149: 後藤 隆 | C149: 84 | D149: Squat 2 | E149: -220 | F149: 625
A150: 23:32:44 | B150: 後藤 隆 | C150: 84 | D150: Squat 2 | E150: -220 | F150: 625
A151: 23:32:50 | B151: 山下 彩 | C151: 43 | D151: Squat 3 | E151: -140 | F151: 320
A152: 23:32:51 | B152: 高岡 美穂 | C152: 47 | D152: Squat 3 | E152: -150 | F152: 350
A153: 23:32:52 | B153: 酒井 維吹 | C153: 52 | D153: Squat 3 | E153: -160 | F153: 360
A154: 23:32:53 | B154: 野口 貴史 | C154: 57 | D154: Squat 3 | E154: -170 | F154: 410
A155: 23:32:54 | B155: 吉村 雄一 | C155: 63 | D155: Squat 3 | E155: -175 | F155: 470
A156: 23:32:55 | B156: 安倉 明徳 | C156: 72 | D156: Squat 3 | E156: -180 | F156: 420
A157: 23:32:57 | B157: 菅原 大輔 | C157: 57 | D157: Squat 3 | E157: -180 | F157: 480
A158: 23:32:58 | B158: 久保田 甲斐 | C158: 72 | D158: Squat 3 | E158: -195 | F158: 530
A159: 23:32:59 | B159: 阪本 賢一 | C159: 84 | D159: Squat 3 | E159: -200
A160: 23:33:00 | B160: 松尾 静葵 | C160: 84 | D160: Squat 3 | E160: 215
A161: 23:33:01 | B161: 後藤 隆 | C161: 84 | D161: Squat 3 | E161: -225 | F161: 600
A162: 23:33:02 | B162: 後藤 隆 | C162: 84 | D162: Squat 3 | E162: 225
A163: 23:33:11 | B163: 山下 彩 | C163: 43 | D163: Bench Press 1 | E163: 100
A164: 23:33:12 | B164: 高岡 美穂 | C164: 47 | D164: Bench Press 1 | E164: -110
A165: 23:33:14 | B165: 酒井 維吹 | C165: 52 | D165: Bench Press 1 | E165: 120
A166: 23:33:15 | B166: 野口 貴史 | C166: 57 | D166: Bench Press 1 | E166: -130
A167: 23:33:16 | B167: 安倉 明徳 | C167: 72 | D167: Bench Press 1 | E167: 140
A168: 23:33:18 | B168: 吉村 雄一 | C168: 63 | D168: Bench Press 1 | E168: -150
A169: 23:33:19 | B169: 菅原 大輔 | C169: 57 | D169: Bench Press 1 | E169: 160
A170: 23:33:20 | B170: 久保田 甲斐 | C170: 72 | D170: Bench Press 1 | E170: -170
A171: 23:33:22 | B171: 阪本 賢一 | C171: 84 | D171: Bench Press 1 | E171: 180
A172: 23:33:26 | B172: 松尾 静葵 | C172: 84 | D172: Bench Press 1 | E172: -190
A173: 23:33:27 | B173: 後藤 隆 | C173: 84 | D173: Bench Press 1 | E173: 200
A174: 23:33:55 | B174: 山下 彩 | C174: 43 | D174: Bench Press 2 | E174: 120
A175: 23:33:56 | B175: 酒井 維吹 | C175: 52 | D175: Bench Press 2 | E175: 120
A176: 23:33:58 | B176: 高岡 美穂 | C176: 47 | D176: Bench Press 2 | E176: 130
A177: 23:33:59 | B177: 安倉 明徳 | C177: 72 | D177: Bench Press 2 | E177: 140
A178: 23:34:00 | B178: 野口 貴史 | C178: 57 | D178: Bench Press 2 | E178: 150
A179: 23:34:01 | B179: 菅原 大輔 | C179: 57 | D179: Bench Press 2 | E179: 160
A180: 23:34:02 | B180: 吉村 雄一 | C180: 63 | D180: Bench Press 2 | E180: 170
A181: 23:34:03 | B181: 久保田 甲斐 | C181: 72 | D181: Bench Press 2 | E181: 190
A182: 23:34:04 | B182: 松尾 静葵 | C182: 84 | D182: Bench Press 2 | E182: 215
A183: 23:34:05 | B183: 阪本 賢一 | C183: 84 | D183: Bench Press 2 | E183: 220
A184: 23:34:12 | B184: 後藤 隆 | C184: 84 | D184: Bench Press 2 | E184: -220 | F184: 625
A185: 23:34:18 | B185: 山下 彩 | C185: 43 | D185: Bench Press 2 | E185: -120 | F185: 320
A186: 23:34:25 | B186: 山下 彩 | C186: 43 | D186: Bench Press 2 | E186: 120
A187: 23:34:55 | B187: 山下 彩 | C187: 43 | D187: Bench Press 3 | E187: 150
A188: 23:34:57 | B188: 酒井 維吹 | C188: 52 | D188: Bench Press 3 | E188: -160 | F188: 360
A189: 23:34:58 | B189: 野口 貴史 | C189: 57 | D189: Bench Press 3 | E189: -160 | F189: 430
A190: 23:34:59 | B190: 高岡 美穂 | C190: 47 | D190: Bench Press 3 | E190: -170 | F190: 370
A191: 23:35:00 | B191: 菅原 大輔 | C191: 57 | D191: Bench Press 3 | E191: -170 | F191: 480
A192: 23:35:02 | B192: 安倉 明徳 | C192: 72 | D192: Bench Press 3 | E192: -180 | F192: 420
A193: 23:35:03 | B193: 吉村 雄一 | C193: 63 | D193: Bench Press 3 | E193: -180 | F193: 490
A194: 23:35:04 | B194: 久保田 甲斐 | C194: 72 | D194: Bench Press 3 | E194: -200 | F194: 550
A195: 23:35:05 | B195: 松尾 静葵 | C195: 84 | D195: Bench Press 3 | E195: -220 | F195: 620
A196: 23:35:06 | B196: 阪本 賢一 | C196: 84 | D196: Bench Press 3 | E196: -225
A197: 23:35:07 | B197: 後藤 隆 | C197: 84 | D197: Bench Press 3 | E197: -225 | F197: 625
A198: 23:35:08 | B198: 後藤 隆 | C198: 84 | D198: Bench Press 3 | E198: -225 | F198: 625
A199: 23:35:21 | B199: 山下 彩 | C199: 43 | D199: Deadlift 1 | E199: 100 | F199: 370
A200: 23:35:23 | B200: 高岡 美穂 | C200: 47 | D200: Deadlift 1 | E200: 110 | F200: 370
... 1032 more rows

Sheet KG Records (hidden)
B1: Y1 | C1: Y2 | D1: Y3 | E1: T1 | F1: T2 | G1: T3 | H1: JR | I1: O | J1: M1a | K1: M1b | L1: M2a | M1: M2b | N1: M3a | O1: M3b | P1: M4a | Q1: M4b | R1: M5a | S1: M5b | T1: M6 | U1: R-T1 | V1: R-T2 | W1: R-T3 | X1: R-Y1 | Y1: R-Y2 | Z1: R-Y3 | AA1: R-JR | AB1: R-O | AC1: R-M1A | AD1: R-M1B | AE1: R-M2A | AF1: R-M2B | AG1: R-M3A | AH1: R-M3B | AI1: R-M4A | AJ1: R-M4B | AK1: R-M5A | AL1: R-M5B
A2: 30-SQ | B2: 0 | C2: 0 | D2: 0 | E2: 0 | F2: 0 | G2: 0 | H2: 0 | I2: 0 | J2: 0 | K2: 0 | L2: 0 | M2: 0 | N2: 0 | O2: 0 | P2: 0 | Q2: 0 | R2: 0 | S2: 0 | T2: 0 | U2: 0 | V2: 0 | W2: 0 | X2: 45 | Y2: 45 | Z2: 45 | AA2: 0 | AB2: 0 | AC2: 0 | AD2: 0 | AE2: 0 | AF2: 0 | AG2: 0 | AH2: 0 | AI2: 0 | AJ2: 0 | AK2: 0 | AL2: 0
A3: 30-BP | B3: 0 | C3: 0 | D3: 0 | E3: 0 | F3: 0 | G3: 0 | H3: 0 | I3: 0 | J3: 0 | K3: 0 | L3: 0 | M3: 0 | N3: 0 | O3: 0 | P3: 0 | Q3: 0 | R3: 0 | S3: 0 | T3: 0 | U3: 0 | V3: 0 | W3: 0 | X3: 26 | Y3: 26 | Z3: 26 | AA3: 0 | AB3: 0 | AC3: 0 | AD3: 0 | AE3: 0 | AF3: 0 | AG3: 0 | AH3: 0 | AI3: 0 | AJ3: 0 | AK3: 0 | AL3: 0
A4: 30-DL | B4: 0 | C4: 0 | D4: 0 | E4: 0 | F4: 0 | G4: 0 | H4: 0 | I4: 0 | J4: 0 | K4: 0 | L4: 0 | M4: 0 | N4: 0 | O4: 0 | P4: 0 | Q4: 0 | R4: 0 | S4: 0 | T4: 0 | U4: 0 | V4: 0 | W4: 0 | X4: 70 | Y4: 70 | Z4: 70 | AA4: 0 | AB4: 0 | AC4: 0 | AD4: 0 | AE4: 0 | AF4: 0 | AG4: 0 | AH4: 0 | AI4: 0 | AJ4: 0 | AK4: 0 | AL4: 0
A5: 30-TL | B5: 0 | C5: 0 | D5: 0 | E5: 0 | F5: 0 | G5: 0 | H5: 0 | I5: 0 | J5: 0 | K5: 0 | L5: 0 | M5: 0 | N5: 0 | O5: 0 | P5: 0 | Q5: 0 | R5: 0 | S5: 0 | T5: 0 | U5: 0 | V5: 0 | W5: 0 | X5: 141 | Y5: 141 | Z5: 141 | AA5: 0 | AB5: 0 | AC5: 0 | AD5: 0 | AE5: 0 | AF5: 0 | AG5: 0 | AH5: 0 | AI5: 0 | AJ5: 0 | AK5: 0 | AL5: 0
A6: 35-SQ | B6: 0 | C6: 0 | D6: 0 | E6: 0 | F6: 0 | G6: 0 | H6: 0 | I6: 0 | J6: 0 | K6: 0 | L6: 0 | M6: 0 | N6: 0 | O6: 0 | P6: 0 | Q6: 0 | R6: 0 | S6: 0 | T6: 0 | U6: 0 | V6: 0 | W6: 0 | X6: 55 | Y6: 55 | Z6: 55 | AA6: 0 | AB6: 0 | AC6: 0 | AD6: 0 | AE6: 0 | AF6: 0 | AG6: 0 | AH6: 0 | AI6: 0 | AJ6: 0 | AK6: 0 | AL6: 0
A7: 35-BP | B7: 0 | C7: 0 | D7: 0 | E7: 0 | F7: 0 | G7: 0 | H7: 0 | I7: 0 | J7: 0 | K7: 0 | L7: 0 | M7: 0 | N7: 0 | O7: 0 | P7: 0 | Q7: 0 | R7: 0 | S7: 0 | T7: 0 | U7: 0 | V7: 0 | W7: 0 | X7: 30 | Y7: 30 | Z7: 30 | AA7: 0 | AB7: 0 | AC7: 0 | AD7: 0 | AE7: 0 | AF7: 0 | AG7: 0 | AH7: 0 | AI7: 0 | AJ7: 0 | AK7: 0 | AL7: 0
A8: 35-DL | B8: 0 | C8: 0 | D8: 0 | E8: 0 | F8: 0 | G8: 0 | H8: 0 | I8: 0 | J8: 0 | K8: 0 | L8: 0 | M8: 0 | N8: 0 | O8: 0 | P8: 0 | Q8: 0 | R8: 0 | S8: 0 | T8: 0 | U8: 0 | V8: 0 | W8: 0 | X8: 75 | Y8: 75 | Z8: 75 | AA8: 0 | AB8: 0 | AC8: 0 | AD8: 0 | AE8: 0 | AF8: 0 | AG8: 0 | AH8: 0 | AI8: 0 | AJ8: 0 | AK8: 0 | AL8: 0
A9: 35-TL | B9: 0 | C9: 0 | D9: 0 | E9: 0 | F9: 0 | G9: 0 | H9: 0 | I9: 0 | J9: 0 | K9: 0 | L9: 0 | M9: 0 | N9: 0 | O9: 0 | P9: 0 | Q9: 0 | R9: 0 | S9: 0 | T9: 0 | U9: 0 | V9: 0 | W9: 0 | X9: 160 | Y9: 160 | Z9: 160 | AA9: 0 | AB9: 0 | AC9: 0 | AD9: 0 | AE9: 0 | AF9: 0 | AG9: 0 | AH9: 0 | AI9: 0 | AJ9: 0 | AK9: 0 | AL9: 0
A10: 40-SQ | B10: 0 | C10: 0 | D10: 0 | E10: 0 | F10: 0 | G10: 0 | H10: 0 | I10: 0 | J10: 0 | K10: 0 | L10: 0 | M10: 0 | N10: 0 | O10: 0 | P10: 0 | Q10: 0 | R10: 0 | S10: 0 | T10: 0 | U10: 0 | V10: 0 | W10: 0 | X10: 0 | Y10: 62.5 | Z10: 81.5 | AA10: 0 | AB10: 0 | AC10: 0 | AD10: 0 | AE10: 0 | AF10: 0 | AG10: 0 | AH10: 0 | AI10: 0 | AJ10: 0 | AK10: 0 | AL10: 0
A11: 40-BP | B11: 0 | C11: 0 | D11: 0 | E11: 0 | F11: 0 | G11: 0 | H11: 0 | I11: 0 | J11: 0 | K11: 0 | L11: 0 | M11: 0 | N11: 0 | O11: 0 | P11: 0 | Q11: 0 | R11: 0 | S11: 0 | T11: 0 | U11: 0 | V11: 0 | W11: 0 | X11: 0 | Y11: 36 | Z11: 50 | AA11: 0 | AB11: 0 | AC11: 0 | AD11: 0 | AE11: 0 | AF11: 0 | AG11: 0 | AH11: 0 | AI11: 0 | AJ11: 0 | AK11: 0 | AL11: 0
A12: 40-DL | B12: 0 | C12: 0 | D12: 0 | E12: 0 | F12: 0 | G12: 0 | H12: 0 | I12: 0 | J12: 0 | K12: 0 | L12: 0 | M12: 0 | N12: 0 | O12: 0 | P12: 0 | Q12: 0 | R12: 0 | S12: 0 | T12: 0 | U12: 0 | V12: 0 | W12: 0 | X12: 0 | Y12: 93 | Z12: 100.5 | AA12: 0 | AB12: 0 | AC12: 0 | AD12: 0 | AE12: 0 | AF12: 0 | AG12: 0 | AH12: 0 | AI12: 0 | AJ12: 0 | AK12: 0 | AL12: 0
A13: 40-TL | B13: 0 | C13: 0 | D13: 0 | E13: 0 | F13: 0 | G13: 0 | H13: 0 | I13: 0 | J13: 0 | K13: 0 | L13: 0 | M13: 0 | N13: 0 | O13: 0 | P13: 0 | Q13: 0 | R13: 0 | S13: 0 | T13: 0 | U13: 0 | V13: 0 | W13: 0 | X13: 0 | Y13: 188 | Z13: 232 | AA13: 0 | AB13: 0 | AC13: 0 | AD13: 0 | AE13: 0 | AF13: 0 | AG13: 0 | AH13: 0 | AI13: 0 | AJ13: 0 | AK13: 0 | AL13: 0
A14: 44-SQ | B14: 0 | C14: 0 | D14: 0 | E14: 0 | F14: 0 | G14: 0 | H14: 0 | I14: 0 | J14: 0 | K14: 0 | L14: 0 | M14: 0 | N14: 0 | O14: 0 | P14: 0 | Q14: 0 | R14: 0 | S14: 0 | T14: 0 | U14: 0 | V14: 0 | W14: 0 | X14: 45 | Y14: 75 | Z14: 96 | AA14: 0 | AB14: 0 | AC14: 0 | AD14: 0 | AE14: 0 | AF14: 0 | AG14: 0 | AH14: 0 | AI14: 0 | AJ14: 0 | AK14: 0 | AL14: 0
A15: 44-BP | B15: 0 | C15: 0 | D15: 0 | E15: 0 | F15: 0 | G15: 0 | H15: 0 | I15: 0 | J15: 0 | K15: 0 | L15: 0 | M15: 0 | N15: 0 | O15: 0 | P15: 0 | Q15: 0 | R15: 0 | S15: 0 | T15: 0 | U15: 0 | V15: 0 | W15: 0 | X15: 32.5 | Y15: 40 | Z15: 57.5 | AA15: 0 | AB15: 0 | AC15: 0 | AD15: 0 | AE15: 0 | AF15: 0 | AG15: 0 | AH15: 0 | AI15: 0 | AJ15: 0 | AK15: 0 | AL15: 0
A16: 44-DL | B16: 0 | C16: 0 | D16: 0 | E16: 0 | F16: 142.5 | G16: 142.5 | H16: 142.5 | I16: 0 | J16: 0 | K16: 0 | L16: 0 | M16: 0 | N16: 0 | O16: 0 | P16: 0 | Q16: 0 | R16: 0 | S16: 0 | T16: 0 | U16: 0 | V16: 0 | W16: 0 | X16: 75 | Y16: 105 | Z16: 130 | AA16: 0 | AB16: 0 | AC16: 0 | AD16: 0 | AE16: 0 | AF16: 0 | AG16: 0 | AH16: 0 | AI16: 0 | AJ16: 0 | AK16: 0 | AL16: 0
A17: 44-TL | B17: 0 | C17: 0 | D17: 0 | E17: 0 | F17: 317.5 | G17: 317.5 | H17: 317.5 | I17: 0 | J17: 0 | K17: 0 | L17: 0 | M17: 0 | N17: 0 | O17: 0 | P17: 0 | Q17: 0 | R17: 0 | S17: 0 | T17: 0 | U17: 0 | V17: 0 | W17: 0 | X17: 152.5 | Y17: 220 | Z17: 280 | AA17: 0 | AB17: 0 | AC17: 0 | AD17: 0 | AE17: 0 | AF17: 0 | AG17: 0 | AH17: 0 | AI17: 0 | AJ17: 0 | AK17: 0 | AL17: 0
A18: 48-SQ | B18: 0 | C18: 0 | D18: 0 | E18: 0 | F18: 0 | G18: 0 | H18: 0 | I18: 0 | J18: 0 | K18: 0 | L18: 0 | M18: 0 | N18: 0 | O18: 0 | P18: 0 | Q18: 0 | R18: 0 | S18: 0 | T18: 0 | U18: 70 | V18: 70 | W18: 70 | X18: 42.5 | Y18: 55 | Z18: 105 | AA18: 70 | AB18: 70 | AC18: 0 | AD18: 0 | AE18: 0 | AF18: 0 | AG18: 0 | AH18: 0 | AI18: 0 | AJ18: 0 | AK18: 0 | AL18: 0
A19: 48-BP | B19: 0 | C19: 0 | D19: 0 | E19: 0 | F19: 0 | G19: 0 | H19: 0 | I19: 0 | J19: 0 | K19: 0 | L19: 0 | M19: 0 | N19: 0 | O19: 0 | P19: 0 | Q19: 0 | R19: 0 | S19: 0 | T19: 0 | U19: 57.5 | V19: 57.5 | W19: 57.5 | X19: 22.5 | Y19: 42.5 | Z19: 62.5 | AA19: 57.5 | AB19: 57.5 | AC19: 0 | AD19: 0 | AE19: 0 | AF19: 0 | AG19: 0 | AH19: 0 | AI19: 0 | AJ19: 0 | AK19: 0 | AL19: 0
A20: 48-DL | B20: 0 | C20: 0 | D20: 0 | E20: 0 | F20: 0 | G20: 0 | H20: 0 | I20: 0 | J20: 0 | K20: 0 | L20: 0 | M20: 0 | N20: 0 | O20: 0 | P20: 0 | Q20: 0 | R20: 0 | S20: 0 | T20: 0 | U20: 97.5 | V20: 97.5 | W20: 97.5 | X20: 55 | Y20: 87.5 | Z20: 137.5 | AA20: 97.5 | AB20: 97.5 | AC20: 0 | AD20: 0 | AE20: 0 | AF20: 0 | AG20: 0 | AH20: 0 | AI20: 0 | AJ20: 0 | AK20: 0 | AL20: 0
A21: 48-TL | B21: 0 | C21: 0 | D21: 0 | E21: 0 | F21: 0 | G21: 0 | H21: 0 | I21: 0 | J21: 0 | K21: 0 | L21: 0 | M21: 0 | N21: 0 | O21: 0 | P21: 0 | Q21: 0 | R21: 0 | S21: 0 | T21: 0 | U21: 225 | V21: 225 | W21: 225 | X21: 120 | Y21: 180 | Z21: 305 | AA21: 225 | AB21: 225 | AC21: 0 | AD21: 0 | AE21: 0 | AF21: 0 | AG21: 0 | AH21: 0 | AI21: 0 | AJ21: 0 | AK21: 0 | AL21: 0
A22: 53-SQ | B22: 0 | C22: 55 | D22: 82.5 | E22: 162.5 | F22: 210 | G22: 217.5 | H22: 217.5 | I22: 217.5 | J22: 0 | K22: 0 | L22: 0 | M22: 0 | N22: 0 | O22: 0 | P22: 0 | Q22: 0 | R22: 0 | S22: 0 | T22: 0 | U22: 142.5 | V22: 145 | W22: 165 | X22: 15 | Y22: 77.5 | Z22: 105 | AA22: 170 | AB22: 165 | AC22: 0 | AD22: 0 | AE22: 0 | AF22: 0 | AG22: 0 | AH22: 0 | AI22: 0 | AJ22: 0 | AK22: 0 | AL22: 0
A23: 53-BP | B23: 0 | C23: 35.5 | D23: 62.5 | E23: 97.5 | F23: 157.5 | G23: 157.5 | H23: 157.5 | I23: 145 | J23: 0 | K23: 0 | L23: 0 | M23: 0 | N23: 0 | O23: 0 | P23: 0 | Q23: 0 | R23: 0 | S23: 0 | T23: 0 | U23: 82.5 | V23: 95 | W23: 115 | X23: 20 | Y23: 45 | Z23: 72.5 | AA23: 117.5 | AB23: 115 | AC23: 0 | AD23: 0 | AE23: 0 | AF23: 0 | AG23: 0 | AH23: 0 | AI23: 0 | AJ23: 0 | AK23: 0 | AL23: 0
A24: 53-DL | B24: 0 | C24: 97.5 | D24: 120 | E24: 195 | F24: 207.5 | G24: 230 | H24: 250 | I24: 237.5 | J24: 0 | K24: 0 | L24: 0 | M24: 0 | N24: 0 | O24: 0 | P24: 0 | Q24: 0 | R24: 0 | S24: 0 | T24: 0 | U24: 201 | V24: 201 | W24: 230 | X24: 52.5 | Y24: 112.5 | Z24: 140 | AA24: 271.5 | AB24: 232.5 | AC24: 0 | AD24: 0 | AE24: 0 | AF24: 0 | AG24: 0 | AH24: 0 | AI24: 0 | AJ24: 0 | AK24: 0 | AL24: 0
A25: 53-TL | B25: 0 | C25: 188 | D25: 265 | E25: 450 | F25: 530 | G25: 547.5 | H25: 642.5 | I25: 642.5 | J25: 0 | K25: 550 | L25: 502.5 | M25: 502.5 | N25: 500 | O25: 0 | P25: 0 | Q25: 0 | R25: 0 | S25: 0 | T25: 0 | U25: 421 | V25: 421 | W25: 502.5 | X25: 157.5 | Y25: 257.5 | Z25: 317.5 | AA25: 559 | AB25: 740 | AC25: 0 | AD25: 0 | AE25: 0 | AF25: 0 | AG25: 0 | AH25: 0 | AI25: 0 | AJ25: 0 | AK25: 0 | AL25: 0
A26: 59-SQ | B26: 0 | C26: 0 | D26: 105 | E26: 197.5 | F26: 215.5 | G26: 242.5 | H26: 250 | I26: 255.5 | J26: 253 | K26: 253 | L26: 253 | M26: 152.5 | N26: 152.5 | O26: 152.5 | P26: 142.5 | Q26: 0 | R26: 0 | S26: 0 | T26: 0 | U26: 165 | V26: 195 | W26: 212.5 | X26: 35 | Y26: 72.5 | Z26: 112.5 | AA26: 212.5 | AB26: 242.5 | AC26: 192.5 | AD26: 192.5 | AE26: 192.5 | AF26: 171 | AG26: 171 | AH26: 117.5 | AI26: 105 | AJ26: 77.5 | AK26: 77.5 | AL26: 0
A27: 59-BP | B27: 0 | C27: 0 | D27: 52.5 | E27: 125 | F27: 149.7 | G27: 150 | H27: 167.5 | I27: 167.5 | J27: 142.5 | K27: 132.5 | L27: 117.5 | M27: 117.5 | N27: 97.5 | O27: 97.5 | P27: 97.5 | Q27: 0 | R27: 0 | S27: 0 | T27: 0 | U27: 115.5 | V27: 115.5 | W27: 127.5 | X27: 40 | Y27: 40 | Z27: 72.5 | AA27: 150 | AB27: 150 | AC27: 110 | AD27: 102.5 | AE27: 95 | AF27: 95 | AG27: 95 | AH27: 80 | AI27: 80 | AJ27: 42.5 | AK27: 42.5 | AL27: 0
A28: 59-DL | B28: 0 | C28: 0 | D28: 115 | E28: 205 | F28: 217.5 | G28: 227.5 | H28: 258.5 | I28: 262.5 | J28: 255 | K28: 255 | L28: 252.5 | M28: 177.5 | N28: 177.5 | O28: 177.5 | P28: 177.5 | Q28: 0 | R28: 0 | S28: 0 | T28: 0 | U28: 201 | V28: 217.5 | W28: 242.5 | X28: 60 | Y28: 100 | Z28: 137.5 | AA28: 250 | AB28: 252.5 | AC28: 252.5 | AD28: 252.5 | AE28: 252.5 | AF28: 201 | AG28: 201 | AH28: 137.5 | AI28: 160 | AJ28: 102.5 | AK28: 102.5 | AL28: 0
A29: 59-TL | B29: 0 | C29: 240 | D29: 272.5 | E29: 527.5 | F29: 537.5 | G29: 590 | H29: 605.5 | I29: 648 | J29: 612.5 | K29: 612.5 | L29: 610.5 | M29: 430 | N29: 412.5 | O29: 412.5 | P29: 412.5 | Q29: 0 | R29: 0 | S29: 0 | T29: 0 | U29: 462.5 | V29: 525 | W29: 557.5 | X29: 240 | Y29: 240 | Z29: 315 | AA29: 577.5 | AB29: 577.5 | AC29: 545 | AD29: 545 | AE29: 535 | AF29: 396 | AG29: 396 | AH29: 340 | AI29: 340 | AJ29: 222.5 | AK29: 222.5 | AL29: 0
A30: 66-SQ | B30: 0 | C30: 0 | D30: 82.5 | E30: 205 | F30: 245 | G30: 272.5 | H30: 317.5 | I30: 317.5 | J30: 250 | K30: 225 | L30: 225 | M30: 200 | N30: 200 | O30: 200 | P30: 165 | Q30: 112.5 | R30: 0 | S30: 0 | T30: 0 | U30: 170 | V30: 193 | W30: 207.5 | X30: 0 | Y30: 150 | Z30: 150 | AA30: 253 | AB30: 255 | AC30: 197.5 | AD30: 191 | AE30: 191 | AF30: 190 | AG30: 185.5 | AH30: 122.5 | AI30: 122.5 | AJ30: 82.5 | AK30: 82.5 | AL30: 82.5
A31: 66-BP | B31: 0 | C31: 0 | D31: 57.5 | E31: 132.5 | F31: 152.5 | G31: 205 | H31: 230 | I31: 230 | J31: 142.5 | K31: 147.5 | L31: 147.5 | M31: 137.5 | N31: 137.5 | O31: 137.5 | P31: 132.5 | Q31: 75 | R31: 0 | S31: 0 | T31: 0 | U31: 132.5 | V31: 137.5 | W31: 142.5 | X31: 0 | Y31: 57.5 | Z31: 78 | AA31: 167.5 | AB31: 167.5 | AC31: 147.5 | AD31: 147.5 | AE31: 142.5 | AF31: 142.5 | AG31: 110 | AH31: 92.5 | AI31: 92.5 | AJ31: 77.5 | AK31: 62.5 | AL31: 62.5
A32: 66-DL | B32: 0 | C32: 0 | D32: 100 | E32: 220 | F32: 240 | G32: 260 | H32: 275 | I32: 277.5 | J32: 272.2 | K32: 272.2 | L32: 272.2 | M32: 225 | N32: 210 | O32: 210 | P32: 157.5 | Q32: 120 | R32: 0 | S32: 0 | T32: 0 | U32: 205 | V32: 212.5 | W32: 228 | X32: 0 | Y32: 75 | Z32: 155 | AA32: 270 | AB32: 277.5 | AC32: 262.5 | AD32: 235 | AE32: 230 | AF32: 205 | AG32: 190 | AH32: 150.5 | AI32: 150.5 | AJ32: 122.5 | AK32: 100 | AL32: 100
A33: 66-TL | B33: 0 | C33: 0 | D33: 240 | E33: 507.5 | F33: 605 | G33: 700 | H33: 770 | I33: 770 | J33: 625 | K33: 587.5 | L33: 577.5 | M33: 537.5 | N33: 515 | O33: 515 | P33: 430 | Q33: 282.5 | R33: 0 | S33: 0 | T33: 0 | U33: 507.5 | V33: 507.5 | W33: 575 | X33: 0 | Y33: 272.5 | Z33: 352.5 | AA33: 688 | AB33: 688 | AC33: 567.5 | AD33: 536 | AE33: 536 | AF33: 517.5 | AG33: 465.5 | AH33: 350 | AI33: 350 | AJ33: 245 | AK33: 245 | AL33: 245
A34: 74-SQ | B34: 0 | C34: 0 | D34: 0 | E34: 232.5 | F34: 255 | G34: 305 | H34: 327.5 | I34: 327.5 | J34: 280 | K34: 267.5 | L34: 267.5 | M34: 242.5 | N34: 235 | O34: 200 | P34: 175 | Q34: 152.5 | R34: 67.5 | S34: 0 | T34: 0 | U34: 200 | V34: 215 | W34: 255.5 | X34: 0 | Y34: 0 | Z34: 200 | AA34: 263.5 | AB34: 265.5 | AC34: 247.5 | AD34: 220 | AE34: 197.5 | AF34: 183 | AG34: 175.5 | AH34: 160 | AI34: 160 | AJ34: 130 | AK34: 125 | AL34: 0
A35: 74-BP | B35: 0 | C35: 0 | D35: 0 | E35: 145 | F35: 160 | G35: 200.5 | H35: 235 | I35: 235 | J35: 187.5 | K35: 170 | L35: 170 | M35: 145 | N35: 145 | O35: 140 | P35: 140 | Q35: 110 | R35: 62.5 | S35: 0 | T35: 0 | U35: 142.5 | V35: 142.5 | W35: 165 | X35: 0 | Y35: 0 | Z35: 97.5 | AA35: 177.5 | AB35: 192.5 | AC35: 179 | AD35: 179 | AE35: 179 | AF35: 117.5 | AG35: 117.5 | AH35: 117.5 | AI35: 117.5 | AJ35: 92.5 | AK35: 90 | AL35: 0
A36: 74-DL | B36: 0 | C36: 0 | D36: 0 | E36: 227.5 | F36: 292.6 | G36: 297.5 | H36: 330 | I36: 330 | J36: 302.5 | K36: 272.5 | L36: 272.5 | M36: 255 | N36: 230 | O36: 225 | P36: 220 | Q36: 197.5 | R36: 125 | S36: 0 | T36: 0 | U36: 192.5 | V36: 252.5 | W36: 280.5 | X36: 0 | Y36: 0 | Z36: 182.5 | AA36: 305 | AB36: 307.5 | AC36: 307.5 | AD36: 240 | AE36: 240 | AF36: 240 | AG36: 202.5 | AH36: 195 | AI36: 195 | AJ36: 167.5 | AK36: 155 | AL36: 0
A37: 74-TL | B37: 0 | C37: 0 | D37: 0 | E37: 572.5 | F37: 662.5 | G37: 757.5 | H37: 820 | I37: 820 | J37: 760 | K37: 697.5 | L37: 697.5 | M37: 600 | N37: 572.5 | O37: 534.9 | P37: 510 | Q37: 457.5 | R37: 255 | S37: 0 | T37: 0 | U37: 480 | V37: 605 | W37: 670.5 | X37: 0 | Y37: 0 | Z37: 480 | AA37: 735 | AB37: 750 | AC37: 717.5 | AD37: 582.5 | AE37: 566.5 | AF37: 533 | AG37: 467.5 | AH37: 452.5 | AI37: 452.5 | AJ37: 395 | AK37: 370 | AL37: 0
A38: 83-SQ | B38: 0 | C38: 0 | D38: 0 | E38: 290.5 | F38: 325 | G38: 325 | H38: 352.5 | I38: 370 | J38: 337.5 | K38: 337.5 | L38: 317.5 | M38: 305 | N38: 222.5 | O38: 220 | P38: 197.5 | Q38: 160 | R38: 160 | S38: 160 | T38: 0 | U38: 207.5 | V38: 240 | W38: 260 | X38: 0 | Y38: 0 | Z38: 177.5 | AA38: 300.5 | AB38: 300.5 | AC38: 270 | AD38: 260 | AE38: 237.5 | AF38: 205.5 | AG38: 192.5 | AH38: 192.5 | AI38: 162.5 | AJ38: 147.5 | AK38: 147.5 | AL38: 65
A39: 83-BP | B39: 0 | C39: 0 | D39: 0 | E39: 160 | F39: 200 | G39: 215 | H39: 300 | I39: 300 | J39: 250 | K39: 242.5 | L39: 212.5 | M39: 197.5 | N39: 173.5 | O39: 152.5 | P39: 147.5 | Q39: 125 | R39: 107.5 | S39: 90 | T39: 0 | U39: 137.5 | V39: 175 | W39: 177.5 | X39: 0 | Y39: 0 | Z39: 97.5 | AA39: 195 | AB39: 201.5 | AC39: 187.5 | AD39: 180 | AE39: 180 | AF39: 155 | AG39: 140.5 | AH39: 133 | AI39: 115 | AJ39: 91 | AK39: 82.5 | AL39: 80
A40: 83-DL | B40: 0 | C40: 0 | D40: 0 | E40: 277.5 | F40: 310 | G40: 312.5 | H40: 327.5 | I40: 337.5 | J40: 332.5 | K40: 320 | L40: 319.9 | M40: 307.5 | N40: 255 | O40: 244.9 | P40: 230 | Q40: 192.5 | R40: 190 | S40: 175 | T40: 0 | U40: 227.5 | V40: 282.5 | W40: 317.5 | X40: 0 | Y40: 0 | Z40: 180 | AA40: 320.5 | AB40: 340 | AC40: 290 | AD40: 287.5 | AE40: 285 | AF40: 277.5 | AG40: 240 | AH40: 240 | AI40: 213.5 | AJ40: 185 | AK40: 182.5 | AL40: 117.5
A41: 83-TL | B41: 0 | C41: 0 | D41: 0 | E41: 728 | F41: 817.5 | G41: 817.5 | H41: 877.5 | I41: 907.5 | J41: 862.5 | K41: 862.5 | L41: 772.5 | M41: 760 | N41: 600 | O41: 557.5 | P41: 560 | Q41: 457.5 | R41: 440 | S41: 420 | T41: 0 | U41: 535 | V41: 645 | W41: 740 | X41: 0 | Y41: 0 | Z41: 455 | AA41: 810 | AB41: 813 | AC41: 707.5 | AD41: 685 | AE41: 677.5 | AF41: 602.5 | AG41: 532.5 | AH41: 532.5 | AI41: 491 | AJ41: 410 | AK41: 410 | AL41: 242.5
A42: 93-SQ | B42: 0 | C42: 40 | D42: 0 | E42: 250 | F42: 317.5 | G42: 342.5 | H42: 375 | I42: 375 | J42: 347.5 | K42: 347.5 | L42: 347.5 | M42: 325 | N42: 280 | O42: 222.5 | P42: 200 | Q42: 170 | R42: 150 | S42: 65 | T42: 0 | U42: 220 | V42: 263.5 | W42: 290 | X42: 0 | Y42: 30 | Z42: 170 | AA42: 327.5 | AB42: 327.5 | AC42: 325.5 | AD42: 325.5 | AE42: 325.5 | AF42: 325.5 | AG42: 208 | AH42: 208 | AI42: 180 | AJ42: 145 | AK42: 145 | AL42: 0
A43: 93-BP | B43: 0 | C43: 42.5 | D43: 0 | E43: 170 | F43: 207.5 | G43: 232.5 | H43: 260 | I43: 267.5 | J43: 262.5 | K43: 260 | L43: 230 | M43: 217.5 | N43: 182.5 | O43: 148 | P43: 137.4 | Q43: 115 | R43: 102.1 | S43: 85 | T43: 0 | U43: 147.5 | V43: 182.5 | W43: 182.5 | X43: 0 | Y43: 32.5 | Z43: 120 | AA43: 200 | AB43: 230 | AC43: 230 | AD43: 230 | AE43: 215 | AF43: 210 | AG43: 167.5 | AH43: 125 | AI43: 115.5 | AJ43: 115 | AK43: 87.5 | AL43: 0
A44: 93-DL | B44: 0 | C44: 92.5 | D44: 0 | E44: 257.5 | F44: 322.5 | G44: 350 | H44: 377.5 | I44: 377.5 | J44: 343 | K44: 332.5 | L44: 328 | M44: 325 | N44: 265 | O44: 260 | P44: 245 | Q44: 199.9 | R44: 172.5 | S44: 125 | T44: 0 | U44: 237.5 | V44: 317.5 | W44: 327.5 | X44: 0 | Y44: 77.5 | Z44: 170 | AA44: 352.5 | AB44: 352.5 | AC44: 320 | AD44: 310 | AE44: 310 | AF44: 310 | AG44: 263.1 | AH44: 263.1 | AI44: 220 | AJ44: 180.5 | AK44: 180.5 | AL44: 0
A45: 93-TL | B45: 0 | C45: 175 | D45: 0 | E45: 617.5 | F45: 800 | G45: 900 | H45: 972.5 | I45: 972.5 | J45: 900 | K45: 900 | L45: 900 | M45: 830 | N45: 677.5 | O45: 607.5 | P45: 547.5 | Q45: 460 | R45: 417.5 | S45: 275 | T45: 0 | U45: 567.5 | V45: 735 | W45: 792.5 | X45: 0 | Y45: 140 | Z45: 460 | AA45: 840 | AB45: 840 | AC45: 830 | AD45: 830 | AE45: 830 | AF45: 830 | AG45: 612.5 | AH45: 555.5 | AI45: 510 | AJ45: 417.5 | AK45: 405 | AL45: 0
A46: 105-SQ | B46: 0 | C46: 0 | D46: 0 | E46: 277.5 | F46: 330 | G46: 337.5 | H46: 355 | I46: 382.5 | J46: 355 | K46: 355 | L46: 345 | M46: 320 | N46: 295 | O46: 250 | P46: 217.5 | Q46: 170 | R46: 115 | S46: 0 | T46: 0 | U46: 240 | V46: 280 | W46: 285 | X46: 0 | Y46: 0 | Z46: 140 | AA46: 312.5 | AB46: 331.5 | AC46: 292.5 | AD46: 275 | AE46: 275 | AF46: 275 | AG46: 235 | AH46: 195 | AI46: 180 | AJ46: 127.5 | AK46: 105 | AL46: 0
A47: 105-BP | B47: 0 | C47: 0 | D47: 0 | E47: 182.5 | F47: 207.5 | G47: 242.5 | H47: 285 | I47: 323.5 | J47: 243 | K47: 243 | L47: 242.5 | M47: 242.5 | N47: 227.5 | O47: 188.2 | P47: 175 | Q47: 147.5 | R47: 100 | S47: 0 | T47: 0 | U47: 147.5 | V47: 172.5 | W47: 187.5 | X47: 0 | Y47: 0 | Z47: 110 | AA47: 215 | AB47: 238.5 | AC47: 232.5 | AD47: 232.5 | AE47: 185 | AF47: 170 | AG47: 158 | AH47: 153 | AI47: 120 | AJ47: 107.5 | AK47: 102.5 | AL47: 0
A48: 105-DL | B48: 0 | C48: 0 | D48: 0 | E48: 262.5 | F48: 300 | G48: 322.1 | H48: 342.5 | I48: 377.5 | J48: 335 | K48: 332.5 | L48: 315 | M48: 315 | N48: 315 | O48: 260 | P48: 253 | Q48: 220 | R48: 147.5 | S48: 0 | T48: 0 | U48: 245 | V48: 287.5 | W48: 325 | X48: 0 | Y48: 0 | Z48: 157.5 | AA48: 347.5 | AB48: 367.5 | AC48: 315 | AD48: 295 | AE48: 295 | AF48: 295 | AG48: 277.5 | AH48: 230.5 | AI48: 210 | AJ48: 200 | AK48: 152.5 | AL48: 0
A49: 105-TL | B49: 0 | C49: 0 | D49: 0 | E49: 682.5 | F49: 765 | G49: 862.5 | H49: 907.5 | I49: 986 | J49: 915 | K49: 915 | L49: 836 | M49: 822.5 | N49: 770 | O49: 630.5 | P49: 612.5 | Q49: 502.5 | R49: 362.5 | S49: 0 | T49: 0 | U49: 632.5 | V49: 735 | W49: 795 | X49: 0 | Y49: 0 | Z49: 407.5 | AA49: 842.5 | AB49: 890 | AC49: 773 | AD49: 745 | AE49: 715 | AF49: 712.5 | AG49: 600 | AH49: 578.5 | AI49: 505 | AJ49: 435 | AK49: 360 | AL49: 0
A50: 120-SQ | B50: 0 | C50: 0 | D50: 0 | E50: 282.5 | F50: 360 | G50: 365.5 | H50: 405 | I50: 413 | J50: 413 | K50: 412.5 | L50: 350 | M50: 317.5 | N50: 267.5 | O50: 247.5 | P50: 205 | Q50: 0 | R50: 0 | S50: 0 | T50: 0 | U50: 230 | V50: 280 | W50: 317.5 | X50: 0 | Y50: 0 | Z50: 150 | AA50: 372.5 | AB50: 386 | AC50: 378.5 | AD50: 378.5 | AE50: 378.5 | AF50: 275 | AG50: 232.5 | AH50: 232.5 | AI50: 187.5 | AJ50: 92.5 | AK50: 0 | AL50: 0
A51: 120-BP | B51: 0 | C51: 0 | D51: 0 | E51: 162.5 | F51: 245 | G51: 282.5 | H51: 295 | I51: 320 | J51: 312.5 | K51: 262.5 | L51: 262.5 | M51: 242.5 | N51: 195 | O51: 187.5 | P51: 165 | Q51: 0 | R51: 0 | S51: 0 | T51: 0 | U51: 145 | V51: 182.5 | W51: 205 | X51: 0 | Y51: 0 | Z51: 75 | AA51: 242.5 | AB51: 253 | AC51: 220 | AD51: 205 | AE51: 197.5 | AF51: 185 | AG51: 175 | AH51: 160 | AI51: 147.5 | AJ51: 110 | AK51: 0 | AL51: 0
A52: 120-DL | B52: 0 | C52: 0 | D52: 0 | E52: 260 | F52: 307.5 | G52: 330 | H52: 365 | I52: 372.5 | J52: 355.5 | K52: 332.5 | L52: 325 | M52: 320 | N52: 320 | O52: 281.5 | P52: 260 | Q52: 0 | R52: 0 | S52: 0 | T52: 0 | U52: 255 | V52: 282.5 | W52: 306.2 | X52: 0 | Y52: 0 | Z52: 155 | AA52: 365 | AB52: 372 | AC52: 372 | AD52: 372 | AE52: 342.5 | AF52: 292.5 | AG52: 280 | AH52: 280 | AI52: 230 | AJ52: 147.5 | AK52: 0 | AL52: 0
A53: 120-TL | B53: 0 | C53: 0 | D53: 0 | E53: 690 | F53: 872.5 | G53: 950.5 | H53: 1035 | I53: 1042.5 | J53: 1015.5 | K53: 957.5 | L53: 945 | M53: 822.5 | N53: 717.5 | O53: 706 | P53: 622.5 | Q53: 0 | R53: 0 | S53: 0 | T53: 0 | U53: 585.5 | V53: 732.5 | W53: 805 | X53: 0 | Y53: 0 | Z53: 380 | AA53: 890 | AB53: 978.5 | AC53: 944.5 | AD53: 944.5 | AE53: 895 | AF53: 720 | AG53: 640 | AH53: 640 | AI53: 525 | AJ53: 335 | AK53: 0 | AL53: 0
A54: 120+-SQ | B54: 0 | C54: 0 | D54: 0 | E54: 290 | F54: 365 | G54: 424.8 | H54: 424.8 | I54: 505 | J54: 430.9 | K54: 430.9 | L54: 402.5 | M54: 320 | N54: 310 | O54: 272.5 | P54: 210 | Q54: 92.5 | R54: 0 | S54: 0 | T54: 0 | U54: 330 | V54: 365.5 | W54: 425.5 | X54: 0 | Y54: 197.5 | Z54: 197.5 | AA54: 425.5 | AB54: 485 | AC54: 340 | AD54: 337.5 | AE54: 330 | AF54: 257.5 | AG54: 228 | AH54: 190 | AI54: 182.5 | AJ54: 92.5 | AK54: 82.5 | AL54: 0
A55: 120+-BP | B55: 0 | C55: 0 | D55: 0 | E55: 175 | F55: 260 | G55: 272.5 | H55: 350 | I55: 410 | J55: 350 | K55: 297.5 | L55: 292.5 | M55: 292.5 | N55: 235 | O55: 195 | P55: 155 | Q55: 100 | R55: 0 | S55: 0 | T55: 0 | U55: 175 | V55: 190 | W55: 207.5 | X55: 0 | Y55: 135 | Z55: 135 | AA55: 235 | AB55: 265.5 | AC55: 260 | AD55: 245 | AE55: 232.5 | AF55: 190 | AG55: 183.7 | AH55: 145 | AI55: 145 | AJ55: 100 | AK55: 77.5 | AL55: 0
A56: 120+-DL | B56: 0 | C56: 0 | D56: 0 | E56: 257.5 | F56: 319.8 | G56: 317.5 | H56: 365 | I56: 410 | J56: 400 | K56: 342.5 | L56: 320 | M56: 319.9 | N56: 290 | O56: 257.5 | P56: 190 | Q56: 142.5 | R56: 0 | S56: 0 | T56: 0 | U56: 267.5 | V56: 287.5 | W56: 306 | X56: 0 | Y56: 220 | Z56: 220 | AA56: 335.5 | AB56: 392.5 | AC56: 380 | AD56: 380 | AE56: 325 | AF56: 277.5 | AG56: 250 | AH56: 245 | AI56: 182.5 | AJ56: 142.5 | AK56: 115 | AL56: 0
A57: 120+-TL | B57: 0 | C57: 0 | D57: 0 | E57: 722.5 | F57: 907.5 | G57: 950 | H57: 1057.5 | I57: 1272.5 | J57: 1057.5 | K57: 1052.5 | L57: 945 | M57: 862.5 | N57: 785 | O57: 705 | P57: 520 | Q57: 335 | R57: 0 | S57: 0 | T57: 0 | U57: 722.5 | V57: 790.5 | W57: 920.5 | X57: 0 | Y57: 552.5 | Z57: 552.5 | AA57: 932.5 | AB57: 1105 | AC57: 937.5 | AD57: 937.5 | AE57: 868 | AF57: 707.5 | AG57: 622.5 | AH57: 577.5 | AI57: 510 | AJ57: 335 | AK57: 267.5 | AL57: 0
A58: 30-BPO | B58: 0 | C58: 0 | D58: 0 | E58: 0 | F58: 0 | G58: 0 | H58: 0 | I58: 0 | J58: 0 | K58: 0 | L58: 0 | M58: 0 | N58: 0 | O58: 0 | P58: 0 | Q58: 0 | R58: 0 | S58: 0 | T58: 0 | U58: 0 | V58: 0 | W58: 0 | X58: 26 | Y58: 26 | Z58: 26 | AA58: 0 | AB58: 0 | AC58: 0 | AD58: 0 | AE58: 0 | AF58: 0 | AG58: 0 | AH58: 0 | AI58: 0 | AJ58: 0 | AK58: 0 | AL58: 0
A59: 35-BPO | B59: 0 | C59: 0 | D59: 0 | E59: 0 | F59: 0 | G59: 0 | H59: 0 | I59: 0 | J59: 0 | K59: 0 | L59: 0 | M59: 0 | N59: 0 | O59: 0 | P59: 0 | Q59: 0 | R59: 0 | S59: 0 | T59: 0 | U59: 0 | V59: 0 | W59: 0 | X59: 30 | Y59: 30 | Z59: 30 | AA59: 0 | AB59: 0 | AC59: 0 | AD59: 0 | AE59: 0 | AF59: 0 | AG59: 0 | AH59: 0 | AI59: 0 | AJ59: 0 | AK59: 0 | AL59: 0
A60: 40-BPO | B60: 0 | C60: 0 | D60: 0 | E60: 0 | F60: 0 | G60: 0 | H60: 0 | I60: 0 | J60: 0 | K60: 0 | L60: 0 | M60: 0 | N60: 0 | O60: 0 | P60: 0 | Q60: 0 | R60: 0 | S60: 0 | T60: 0 | U60: 45 | V60: 45 | W60: 45 | X60: 0 | Y60: 45 | Z60: 50 | AA60: 45 | AB60: 45 | AC60: 0 | AD60: 0 | AE60: 0 | AF60: 0 | AG60: 0 | AH60: 0 | AI60: 0 | AJ60: 0 | AK60: 0 | AL60: 0
A61: 44-BPO | B61: 0 | C61: 0 | D61: 0 | E61: 0 | F61: 0 | G61: 0 | H61: 0 | I61: 0 | J61: 0 | K61: 0 | L61: 0 | M61: 0 | N61: 0 | O61: 0 | P61: 0 | Q61: 0 | R61: 0 | S61: 0 | T61: 0 | U61: 0 | V61: 0 | W61: 0 | X61: 32.5 | Y61: 40 | Z61: 57.5 | AA61: 0 | AB61: 0 | AC61: 0 | AD61: 0 | AE61: 0 | AF61: 0 | AG61: 0 | AH61: 0 | AI61: 0 | AJ61: 0 | AK61: 0 | AL61: 0
A62: 48-BPO | B62: 0 | C62: 0 | D62: 0 | E62: 0 | F62: 0 | G62: 0 | H62: 0 | I62: 0 | J62: 0 | K62: 0 | L62: 0 | M62: 0 | N62: 0 | O62: 0 | P62: 0 | Q62: 0 | R62: 0 | S62: 0 | T62: 0 | U62: 57.5 | V62: 57.5 | W62: 57.5 | X62: 22.5 | Y62: 42.5 | Z62: 62.5 | AA62: 57.5 | AB62: 57.5 | AC62: 0 | AD62: 0 | AE62: 0 | AF62: 0 | AG62: 0 | AH62: 0 | AI62: 0 | AJ62: 0 | AK62: 0 | AL62: 0
A63: 53-BPO | B63: 0 | C63: 35.5 | D63: 62.5 | E63: 97.5 | F63: 157.5 | G63: 157.5 | H63: 157.5 | I63: 145 | J63: 0 | K63: 0 | L63: 0 | M63: 0 | N63: 0 | O63: 0 | P63: 0 | Q63: 0 | R63: 0 | S63: 0 | T63: 0 | U63: 82.5 | V63: 95 | W63: 115 | X63: 20 | Y63: 45 | Z63: 72.5 | AA63: 117.5 | AB63: 115 | AC63: 0 | AD63: 0 | AE63: 0 | AF63: 0 | AG63: 0 | AH63: 0 | AI63: 0 | AJ63: 0 | AK63: 0 | AL63: 0
A64: 59-BPO | B64: 0 | C64: 0 | D64: 52.5 | E64: 125 | F64: 150.5 | G64: 150.5 | H64: 167.5 | I64: 142.5 | J64: 142.5 | K64: 150 | L64: 135 | M64: 135 | N64: 135 | O64: 120 | P64: 97.5 | Q64: 82.5 | R64: 57.5 | S64: 0 | T64: 0 | U64: 115.5 | V64: 115.5 | W64: 142.5 | X64: 40 | Y64: 40 | Z64: 72.5 | AA64: 150 | AB64: 155 | AC64: 115 | AD64: 107.5 | AE64: 105.5 | AF64: 105.5 | AG64: 105.5 | AH64: 102.5 | AI64: 85 | AJ64: 85 | AK64: 42.5 | AL64: 0
A65: 66-BPO | B65: 0 | C65: 0 | D65: 0 | E65: 132.5 | F65: 160 | G65: 213.5 | H65: 240 | I65: 240 | J65: 170 | K65: 170 | L65: 147.5 | M65: 132.5 | N65: 132.5 | O65: 137.5 | P65: 132.5 | Q65: 0 | R65: 40 | S65: 0 | T65: 0 | U65: 132.5 | V65: 137.5 | W65: 142.5 | X65: 0 | Y65: 57.5 | Z65: 78 | AA65: 167.5 | AB65: 170 | AC65: 147.5 | AD65: 147.5 | AE65: 142.5 | AF65: 142.5 | AG65: 128 | AH65: 127.5 | AI65: 97.5 | AJ65: 97.5 | AK65: 92.5 | AL65: 62.5
A66: 74-BPO | B66: 0 | C66: 0 | D66: 0 | E66: 145 | F66: 160 | G66: 212.5 | H66: 235 | I66: 235 | J66: 195 | K66: 195 | L66: 190 | M66: 175.5 | N66: 175.5 | O66: 145 | P66: 140 | Q66: 113.5 | R66: 105 | S66: 0 | T66: 0 | U66: 142.5 | V66: 142.5 | W66: 165 | X66: 0 | Y66: 50 | Z66: 97.5 | AA66: 193 | AB66: 195 | AC66: 182.5 | AD66: 182.5 | AE66: 180 | AF66: 148.5 | AG66: 148.5 | AH66: 128 | AI66: 128 | AJ66: 105 | AK66: 105 | AL66: 0
A67: 83-BPO | B67: 0 | C67: 0 | D67: 0 | E67: 165.6 | F67: 200 | G67: 220 | H67: 300 | I67: 300 | J67: 263 | K67: 255 | L67: 225 | M67: 215 | N67: 180 | O67: 170 | P67: 160.5 | Q67: 125 | R67: 107.5 | S67: 90 | T67: 37.5 | U67: 137.5 | V67: 175 | W67: 185 | X67: 0 | Y67: 0 | Z67: 97.5 | AA67: 195 | AB67: 202.5 | AC67: 217.5 | AD67: 197.5 | AE67: 197.5 | AF67: 160 | AG67: 147.5 | AH67: 137.5 | AI67: 137.5 | AJ67: 108 | AK67: 83 | AL67: 83
A68: 93-BPO | B68: 0 | C68: 42.5 | D68: 0 | E68: 170 | F68: 207.5 | G68: 260 | H68: 265 | I68: 320 | J68: 319 | K68: 275 | L68: 230 | M68: 218.5 | N68: 192.5 | O68: 192.5 | P68: 182.5 | Q68: 115 | R68: 110 | S68: 85 | T68: 0 | U68: 147.5 | V68: 200 | W68: 200 | X68: 0 | Y68: 32.5 | Z68: 120 | AA68: 200 | AB68: 233.5 | AC68: 233.5 | AD68: 233.5 | AE68: 222.5 | AF68: 210 | AG68: 167.5 | AH68: 145 | AI68: 142.5 | AJ68: 116 | AK68: 77.5 | AL68: 0
A69: 105-BPO | B69: 0 | C69: 0 | D69: 0 | E69: 182.5 | F69: 207.5 | G69: 288.5 | H69: 288.5 | I69: 337 | J69: 337 | K69: 337 | L69: 337 | M69: 252.5 | N69: 227.5 | O69: 170 | P69: 200 | Q69: 147.5 | R69: 125 | S69: 0 | T69: 0 | U69: 147.5 | V69: 172.5 | W69: 187.5 | X69: 0 | Y69: 0 | Z69: 110 | AA69: 215 | AB69: 242.5 | AC69: 232.5 | AD69: 232.5 | AE69: 195 | AF69: 187.5 | AG69: 170 | AH69: 160 | AI69: 145 | AJ69: 145 | AK69: 122.5 | AL69: 0
A70: 120-BPO | B70: 0 | C70: 0 | D70: 0 | E70: 170 | F70: 245 | G70: 283 | H70: 295 | I70: 356.5 | J70: 315.5 | K70: 302.5 | L70: 302.5 | M70: 242.5 | N70: 217.5 | O70: 200 | P70: 197.5 | Q70: 155 | R70: 0 | S70: 0 | T70: 0 | U70: 145 | V70: 162.4 | W70: 205 | X70: 0 | Y70: 0 | Z70: 75 | AA70: 242.5 | AB70: 253 | AC70: 240 | AD70: 240 | AE70: 240 | AF70: 207.5 | AG70: 190 | AH70: 160 | AI70: 147.5 | AJ70: 127.5 | AK70: 0 | AL70: 0
A71: 120+-BPO | B71: 0 | C71: 0 | D71: 0 | E71: 175 | F71: 260 | G71: 272.5 | H71: 350 | I71: 410 | J71: 385 | K71: 362.5 | L71: 320 | M71: 320 | N71: 287.5 | O71: 232.5 | P71: 180 | Q71: 100 | R71: 0 | S71: 0 | T71: 0 | U71: 175 | V71: 190 | W71: 207.5 | X71: 0 | Y71: 135 | Z71: 135 | AA71: 272.5 | AB71: 290 | AC71: 260 | AD71: 247.5 | AE71: 237.5 | AF71: 228 | AG71: 228 | AH71: 160 | AI71: 145 | AJ71: 130 | AK71: 77.5 | AL71: 0
A72: 30-DLO | B72: 0 | C72: 0 | D72: 0 | E72: 0 | F72: 0 | G72: 0 | H72: 0 | I72: 0 | J72: 0 | K72: 0 | L72: 0 | M72: 0 | N72: 0 | O72: 0 | P72: 0 | Q72: 0 | R72: 0 | S72: 0 | T72: 0 | U72: 0 | V72: 0 | W72: 0 | X72: 70 | Y72: 70 | Z72: 70 | AA72: 0 | AB72: 0 | AC72: 0 | AD72: 0 | AE72: 0 | AF72: 0 | AG72: 0 | AH72: 0 | AI72: 0 | AJ72: 0 | AK72: 0 | AL72: 0
A73: 35-DLO | B73: 0 | C73: 0 | D73: 0 | E73: 0 | F73: 0 | G73: 0 | H73: 0 | I73: 0 | J73: 0 | K73: 0 | L73: 0 | M73: 0 | N73: 0 | O73: 0 | P73: 0 | Q73: 0 | R73: 0 | S73: 0 | T73: 0 | U73: 0 | V73: 0 | W73: 0 | X73: 75 | Y73: 75 | Z73: 75 | AA73: 0 | AB73: 0 | AC73: 0 | AD73: 0 | AE73: 0 | AF73: 0 | AG73: 0 | AH73: 0 | AI73: 0 | AJ73: 0 | AK73: 0 | AL73: 0
A74: 40-DLO | B74: 0 | C74: 0 | D74: 0 | E74: 0 | F74: 0 | G74: 0 | H74: 0 | I74: 0 | J74: 0 | K74: 0 | L74: 0 | M74: 0 | N74: 0 | O74: 0 | P74: 0 | Q74: 0 | R74: 0 | S74: 0 | T74: 0 | U74: 90 | V74: 90 | W74: 90 | X74: 0 | Y74: 93 | Z74: 100.5 | AA74: 90 | AB74: 90 | AC74: 0 | AD74: 0 | AE74: 0 | AF74: 0 | AG74: 0 | AH74: 0 | AI74: 0 | AJ74: 0 | AK74: 0 | AL74: 0
A75: 44-DLO | B75: 0 | C75: 0 | D75: 0 | E75: 0 | F75: 142.5 | G75: 142.5 | H75: 142.5 | I75: 0 | J75: 0 | K75: 0 | L75: 0 | M75: 0 | N75: 0 | O75: 0 | P75: 0 | Q75: 0 | R75: 0 | S75: 0 | T75: 0 | U75: 0 | V75: 0 | W75: 0 | X75: 75 | Y75: 105 | Z75: 130 | AA75: 0 | AB75: 0 | AC75: 0 | AD75: 0 | AE75: 0 | AF75: 0 | AG75: 0 | AH75: 0 | AI75: 0 | AJ75: 0 | AK75: 0 | AL75: 0
A76: 48-DLO | B76: 0 | C76: 0 | D76: 0 | E76: 0 | F76: 0 | G76: 0 | H76: 0 | I76: 0 | J76: 0 | K76: 0 | L76: 0 | M76: 0 | N76: 0 | O76: 0 | P76: 0 | Q76: 0 | R76: 0 | S76: 0 | T76: 0 | U76: 97.5 | V76: 97.5 | W76: 97.5 | X76: 55 | Y76: 87.5 | Z76: 137.5 | AA76: 97.5 | AB76: 97.5 | AC76: 0 | AD76: 0 | AE76: 0 | AF76: 0 | AG76: 0 | AH76: 0 | AI76: 0 | AJ76: 0 | AK76: 0 | AL76: 0
A77: 53-DLO | B77: 0 | C77: 97.5 | D77: 120 | E77: 195 | F77: 207.5 | G77: 230 | H77: 257.5 | I77: 237.5 | J77: 0 | K77: 0 | L77: 0 | M77: 0 | N77: 0 | O77: 0 | P77: 0 | Q77: 0 | R77: 0 | S77: 0 | T77: 0 | U77: 201 | V77: 201 | W77: 230 | X77: 52.5 | Y77: 112.5 | Z77: 140 | AA77: 271.5 | AB77: 232.5 | AC77: 0 | AD77: 0 | AE77: 0 | AF77: 0 | AG77: 0 | AH77: 0 | AI77: 0 | AJ77: 0 | AK77: 0 | AL77: 0
A78: 59-DLO | B78: 0 | C78: 0 | D78: 115 | E78: 205 | F78: 217.5 | G78: 227.5 | H78: 258.5 | I78: 262.5 | J78: 255 | K78: 255 | L78: 252.5 | M78: 177.5 | N78: 177.5 | O78: 177.5 | P78: 177.5 | Q78: 0 | R78: 0 | S78: 0 | T78: 0 | U78: 201 | V78: 217.5 | W78: 242.5 | X78: 60 | Y78: 100 | Z78: 137.5 | AA78: 250 | AB78: 252.5 | AC78: 252.5 | AD78: 252.5 | AE78: 252.5 | AF78: 201 | AG78: 201 | AH78: 137.5 | AI78: 160 | AJ78: 102.5 | AK78: 102.5 | AL78: 0
A79: 66-DLO | B79: 0 | C79: 0 | D79: 0 | E79: 220 | F79: 240 | G79: 260 | H79: 275 | I79: 277.5 | J79: 272.2 | K79: 272.2 | L79: 272.2 | M79: 225 | N79: 210 | O79: 210 | P79: 157.5 | Q79: 0 | R79: 0 | S79: 0 | T79: 0 | U79: 205 | V79: 212.5 | W79: 228 | X79: 0 | Y79: 75 | Z79: 155 | AA79: 270 | AB79: 277.5 | AC79: 262.5 | AD79: 235 | AE79: 230 | AF79: 205 | AG79: 190 | AH79: 150.5 | AI79: 150.5 | AJ79: 122.5 | AK79: 100 | AL79: 100
A80: 74-DLO | B80: 0 | C80: 0 | D80: 0 | E80: 227.5 | F80: 292.6 | G80: 297.5 | H80: 330 | I80: 330 | J80: 302.5 | K80: 265 | L80: 272.5 | M80: 255 | N80: 230 | O80: 225 | P80: 220 | Q80: 197.5 | R80: 125 | S80: 0 | T80: 0 | U80: 192.5 | V80: 252.5 | W80: 280.5 | X80: 0 | Y80: 0 | Z80: 182.5 | AA80: 305 | AB80: 307.5 | AC80: 307.5 | AD80: 240 | AE80: 240 | AF80: 240 | AG80: 202.5 | AH80: 195 | AI80: 195 | AJ80: 167.5 | AK80: 155 | AL80: 0
A81: 83-DLO | B81: 0 | C81: 0 | D81: 0 | E81: 277.5 | F81: 310 | G81: 312.5 | H81: 327.5 | I81: 340 | J81: 332.5 | K81: 320 | L81: 320 | M81: 307.5 | N81: 255 | O81: 245 | P81: 230 | Q81: 192.5 | R81: 190 | S81: 175 | T81: 0 | U81: 227.5 | V81: 282.5 | W81: 317.5 | X81: 0 | Y81: 0 | Z81: 180 | AA81: 320.5 | AB81: 340 | AC81: 290 | AD81: 287.5 | AE81: 285 | AF81: 277.5 | AG81: 240 | AH81: 240 | AI81: 213.5 | AJ81: 185 | AK81: 182.5 | AL81: 117.5
A82: 93-DLO | B82: 0 | C82: 92.5 | D82: 0 | E82: 257.5 | F82: 322.5 | G82: 367.5 | H82: 377.5 | I82: 377.5 | J82: 349.3 | K82: 332.5 | L82: 328 | M82: 325 | N82: 265 | O82: 260 | P82: 245 | Q82: 200 | R82: 172.5 | S82: 125 | T82: 0 | U82: 237.5 | V82: 317.5 | W82: 327.5 | X82: 0 | Y82: 77.5 | Z82: 170 | AA82: 352.5 | AB82: 352.5 | AC82: 320 | AD82: 312.5 | AE82: 312.5 | AF82: 312.5 | AG82: 277 | AH82: 263.1 | AI82: 220 | AJ82: 180.5 | AK82: 180.5 | AL82: 0
A83: 105-DLO | B83: 0 | C83: 0 | D83: 0 | E83: 262.5 | F83: 300 | G83: 322.1 | H83: 382.5 | I83: 387.5 | J83: 335 | K83: 307.5 | L83: 307.5 | M83: 305 | N83: 315 | O83: 260 | P83: 253 | Q83: 220 | R83: 0 | S83: 0 | T83: 0 | U83: 245 | V83: 287.5 | W83: 325 | X83: 0 | Y83: 0 | Z83: 157.5 | AA83: 347.5 | AB83: 367.5 | AC83: 315 | AD83: 295 | AE83: 295 | AF83: 295 | AG83: 277.5 | AH83: 230.5 | AI83: 210 | AJ83: 200 | AK83: 0 | AL83: 0
A84: 120-DLO | B84: 0 | C84: 0 | D84: 0 | E84: 690 | F84: 690 | G84: 690 | H84: 690 | I84: 372.5 | J84: 355.5 | K84: 355.5 | L84: 347.5 | M84: 301.6 | N84: 320 | O84: 281.5 | P84: 260 | Q84: 0 | R84: 0 | S84: 0 | T84: 0 | U84: 255 | V84: 282.5 | W84: 306.2 | X84: 0 | Y84: 0 | Z84: 155 | AA84: 365 | AB84: 372 | AC84: 372 | AD84: 372 | AE84: 342.5 | AF84: 292.5 | AG84: 280 | AH84: 280 | AI84: 230 | AJ84: 177.5 | AK84: 0 | AL84: 0
A85: 120+-DLO | B85: 0 | C85: 0 | D85: 0 | E85: 272.5 | F85: 319.8 | G85: 320 | H85: 385.6 | I85: 410 | J85: 400 | K85: 362.9 | L85: 320 | M85: 320 | N85: 290 | O85: 257.5 | P85: 190 | Q85: 142.5 | R85: 0 | S85: 0 | T85: 0 | U85: 267.5 | V85: 287.5 | W85: 306 | X85: 0 | Y85: 220 | Z85: 220 | AA85: 335.5 | AB85: 392.5 | AC85: 380 | AD85: 380 | AE85: 325 | AF85: 280 | AG85: 251.8 | AH85: 245 | AI85: 182.5 | AJ85: 142.5 | AK85: 0 | AL85: 0
A86: 30-SQ | B86: 0 | C86: 0 | D86: 0 | E86: 0 | F86: 0 | G86: 0 | H86: 0 | I86: 0 | J86: 0 | K86: 0 | L86: 0 | M86: 0 | N86: 0 | O86: 0 | P86: 0 | Q86: 0 | R86: 0 | S86: 0 | T86: 0 | U86: 0 | V86: 0 | W86: 0 | X86: 47.5 | Y86: 47.5 | Z86: 47.5 | AA86: 0 | AB86: 0 | AC86: 0 | AD86: 0 | AE86: 0 | AF86: 0 | AG86: 0 | AH86: 0 | AI86: 0 | AJ86: 0 | AK86: 0 | AL86: 0
A87: 30-BP | B87: 0 | C87: 0 | D87: 0 | E87: 0 | F87: 0 | G87: 0 | H87: 0 | I87: 0 | J87: 0 | K87: 0 | L87: 0 | M87: 0 | N87: 0 | O87: 0 | P87: 0 | Q87: 0 | R87: 0 | S87: 0 | T87: 0 | U87: 0 | V87: 0 | W87: 0 | X87: 25 | Y87: 25.5 | Z87: 25.5 | AA87: 0 | AB87: 0 | AC87: 0 | AD87: 0 | AE87: 0 | AF87: 0 | AG87: 0 | AH87: 0 | AI87: 0 | AJ87: 0 | AK87: 0 | AL87: 0
A88: 30-DL | B88: 0 | C88: 0 | D88: 0 | E88: 0 | F88: 0 | G88: 0 | H88: 0 | I88: 0 | J88: 0 | K88: 0 | L88: 0 | M88: 0 | N88: 0 | O88: 0 | P88: 0 | Q88: 0 | R88: 0 | S88: 0 | T88: 0 | U88: 0 | V88: 0 | W88: 0 | X88: 60 | Y88: 65 | Z88: 65 | AA88: 0 | AB88: 0 | AC88: 0 | AD88: 0 | AE88: 0 | AF88: 0 | AG88: 0 | AH88: 0 | AI88: 0 | AJ88: 0 | AK88: 0 | AL88: 0
A89: 30-TL | B89: 0 | C89: 0 | D89: 0 | E89: 0 | F89: 0 | G89: 0 | H89: 0 | I89: 0 | J89: 0 | K89: 0 | L89: 0 | M89: 0 | N89: 0 | O89: 0 | P89: 0 | Q89: 0 | R89: 0 | S89: 0 | T89: 0 | U89: 0 | V89: 0 | W89: 0 | X89: 122.5 | Y89: 135.5 | Z89: 135.5 | AA89: 0 | AB89: 0 | AC89: 0 | AD89: 0 | AE89: 0 | AF89: 0 | AG89: 0 | AH89: 0 | AI89: 0 | AJ89: 0 | AK89: 0 | AL89: 0
A90: 35-SQ | B90: 45 | C90: 0 | D90: 0 | E90: 0 | F90: 0 | G90: 0 | H90: 0 | I90: 0 | J90: 0 | K90: 0 | L90: 0 | M90: 0 | N90: 0 | O90: 0 | P90: 0 | Q90: 0 | R90: 0 | S90: 0 | T90: 0 | U90: 0 | V90: 0 | W90: 0 | X90: 60.5 | Y90: 60.5 | Z90: 60.5 | AA90: 0 | AB90: 0 | AC90: 0 | AD90: 0 | AE90: 0 | AF90: 0 | AG90: 0 | AH90: 0 | AI90: 0 | AJ90: 0 | AK90: 0 | AL90: 0
A91: 35-BP | B91: 25 | C91: 0 | D91: 0 | E91: 0 | F91: 0 | G91: 0 | H91: 0 | I91: 0 | J91: 0 | K91: 0 | L91: 0 | M91: 0 | N91: 0 | O91: 0 | P91: 0 | Q91: 0 | R91: 0 | S91: 0 | T91: 0 | U91: 0 | V91: 0 | W91: 0 | X91: 31 | Y91: 31 | Z91: 31 | AA91: 0 | AB91: 0 | AC91: 0 | AD91: 0 | AE91: 0 | AF91: 0 | AG91: 0 | AH91: 0 | AI91: 0 | AJ91: 0 | AK91: 0 | AL91: 0
A92: 35-DL | B92: 57.5 | C92: 0 | D92: 0 | E92: 0 | F92: 0 | G92: 0 | H92: 0 | I92: 0 | J92: 0 | K92: 0 | L92: 0 | M92: 0 | N92: 0 | O92: 0 | P92: 0 | Q92: 0 | R92: 0 | S92: 0 | T92: 0 | U92: 0 | V92: 0 | W92: 0 | X92: 76 | Y92: 76 | Z92: 76 | AA92: 0 | AB92: 0 | AC92: 0 | AD92: 0 | AE92: 0 | AF92: 0 | AG92: 0 | AH92: 0 | AI92: 0 | AJ92: 0 | AK92: 0 | AL92: 0
A93: 35-TL | B93: 127.5 | C93: 0 | D93: 0 | E93: 0 | F93: 0 | G93: 0 | H93: 0 | I93: 0 | J93: 0 | K93: 0 | L93: 0 | M93: 0 | N93: 0 | O93: 0 | P93: 0 | Q93: 0 | R93: 0 | S93: 0 | T93: 0 | U93: 0 | V93: 0 | W93: 0 | X93: 166.5 | Y93: 166.5 | Z93: 166.5 | AA93: 0 | AB93: 0 | AC93: 0 | AD93: 0 | AE93: 0 | AF93: 0 | AG93: 0 | AH93: 0 | AI93: 0 | AJ93: 0 | AK93: 0 | AL93: 0
A94: 40-SQ | B94: 0 | C94: 0 | D94: 0 | E94: 0 | F94: 0 | G94: 0 | H94: 0 | I94: 0 | J94: 0 | K94: 0 | L94: 0 | M94: 0 | N94: 0 | O94: 0 | P94: 0 | Q94: 0 | R94: 0 | S94: 0 | T94: 0 | U94: 0 | V94: 0 | W94: 0 | X94: 47.5 | Y94: 70.5 | Z94: 70.5 | AA94: 0 | AB94: 0 | AC94: 0 | AD94: 0 | AE94: 0 | AF94: 0 | AG94: 0 | AH94: 0 | AI94: 0 | AJ94: 0 | AK94: 0 | AL94: 0
A95: 40-BP | B95: 0 | C95: 0 | D95: 0 | E95: 0 | F95: 0 | G95: 0 | H95: 0 | I95: 0 | J95: 0 | K95: 0 | L95: 0 | M95: 0 | N95: 0 | O95: 0 | P95: 0 | Q95: 0 | R95: 0 | S95: 0 | T95: 0 | U95: 0 | V95: 0 | W95: 0 | X95: 30 | Y95: 45 | Z95: 45 | AA95: 0 | AB95: 0 | AC95: 0 | AD95: 0 | AE95: 0 | AF95: 0 | AG95: 0 | AH95: 0 | AI95: 0 | AJ95: 0 | AK95: 0 | AL95: 0
A96: 40-DL | B96: 0 | C96: 0 | D96: 0 | E96: 0 | F96: 0 | G96: 0 | H96: 0 | I96: 0 | J96: 0 | K96: 0 | L96: 0 | M96: 0 | N96: 0 | O96: 0 | P96: 0 | Q96: 0 | R96: 0 | S96: 0 | T96: 0 | U96: 0 | V96: 0 | W96: 0 | X96: 72.5 | Y96: 87.5 | Z96: 90.7 | AA96: 0 | AB96: 0 | AC96: 0 | AD96: 0 | AE96: 0 | AF96: 0 | AG96: 0 | AH96: 0 | AI96: 0 | AJ96: 0 | AK96: 0 | AL96: 0
A97: 40-TL | B97: 0 | C97: 0 | D97: 0 | E97: 0 | F97: 0 | G97: 0 | H97: 0 | I97: 0 | J97: 0 | K97: 0 | L97: 0 | M97: 0 | N97: 0 | O97: 0 | P97: 0 | Q97: 0 | R97: 0 | S97: 0 | T97: 0 | U97: 0 | V97: 0 | W97: 0 | X97: 147.5 | Y97: 202.5 | Z97: 202.5 | AA97: 0 | AB97: 0 | AC97: 0 | AD97: 0 | AE97: 0 | AF97: 0 | AG97: 0 | AH97: 0 | AI97: 0 | AJ97: 0 | AK97: 0 | AL97: 0
A98: 43-SQ | B98: 0 | C98: 0 | D98: 0 | E98: 92.5 | F98: 137.5 | G98: 137.5 | H98: 137.5 | I98: 125 | J98: 0 | K98: 0 | L98: 0 | M98: 0 | N98: 0 | O98: 0 | P98: 0 | Q98: 0 | R98: 0 | S98: 0 | T98: 0 | U98: 97.5 | V98: 100.5 | W98: 100.5 | X98: 0 | Y98: 65 | Z98: 75 | AA98: 100.5 | AB98: 85 | AC98: 0 | AD98: 0 | AE98: 0 | AF98: 0 | AG98: 0 | AH98: 0 | AI98: 0 | AJ98: 0 | AK98: 0 | AL98: 0
A99: 43-BP | B99: 0 | C99: 0 | D99: 0 | E99: 47.5 | F99: 77.5 | G99: 83 | H99: 83 | I99: 62.5 | J99: 0 | K99: 0 | L99: 0 | M99: 0 | N99: 0 | O99: 0 | P99: 0 | Q99: 0 | R99: 0 | S99: 0 | T99: 0 | U99: 52.5 | V99: 62.5 | W99: 70 | X99: 0 | Y99: 32.5 | Z99: 43 | AA99: 70 | AB99: 62.5 | AC99: 0 | AD99: 0 | AE99: 0 | AF99: 0 | AG99: 0 | AH99: 0 | AI99: 0 | AJ99: 0 | AK99: 0 | AL99: 0
A100: 43-DL | B100: 0 | C100: 0 | D100: 0 | E100: 92.5 | F100: 142.5 | G100: 142.5 | H100: 142.5 | I100: 142.5 | J100: 0 | K100: 0 | L100: 0 | M100: 0 | N100: 0 | O100: 0 | P100: 0 | Q100: 0 | R100: 0 | S100: 0 | T100: 0 | U100: 105 | V100: 125 | W100: 125 | X100: 0 | Y100: 75 | Z100: 92.5 | AA100: 125 | AB100: 125 | AC100: 0 | AD100: 0 | AE100: 0 | AF100: 0 | AG100: 0 | AH100: 0 | AI100: 0 | AJ100: 0 | AK100: 0 | AL100: 0
A101: 43-TL | B101: 0 | C101: 0 | D101: 0 | E101: 282.5 | F101: 342.5 | G101: 348 | H101: 348 | I101: 320 | J101: 207.5 | K101: 0 | L101: 0 | M101: 0 | N101: 0 | O101: 0 | P101: 0 | Q101: 0 | R101: 0 | S101: 0 | T101: 0 | U101: 252.5 | V101: 272.5 | W101: 277.5 | X101: 0 | Y101: 172.5 | Z101: 207.5 | AA101: 277.5 | AB101: 272.5 | AC101: 207.5 | AD101: 237.5 | AE101: 0 | AF101: 0 | AG101: 0 | AH101: 0 | AI101: 0 | AJ101: 0 | AK101: 0 | AL101: 0
A102: 47-SQ | B102: 0 | C102: 0 | D102: 52.5 | E102: 132.5 | F102: 137.5 | G102: 140 | H102: 152.5 | I102: 165 | J102: 132.5 | K102: 132.5 | L102: 122.5 | M102: 112.5 | N102: 102.5 | O102: 102.5 | P102: 100 | Q102: 0 | R102: 0 | S102: 0 | T102: 0 | U102: 105 | V102: 105 | W102: 105 | X102: 47.5 | Y102: 47.5 | Z102: 97.5 | AA102: 125 | AB102: 142.5 | AC102: 125 | AD102: 102.5 | AE102: 102.5 | AF102: 88 | AG102: 88 | AH102: 88 | AI102: 85 | AJ102: 0 | AK102: 0 | AL102: 0
A103: 47-BP | B103: 0 | C103: 0 | D103: 37.5 | E103: 72.5 | F103: 82.5 | G103: 82.5 | H103: 92.5 | I103: 92.5 | J103: 77.1 | K103: 77.1 | L103: 65 | M103: 65 | N103: 50 | O103: 50 | P103: 45 | Q103: 0 | R103: 0 | S103: 0 | T103: 0 | U103: 65 | V103: 65 | W103: 75 | X103: 27.5 | Y103: 27.5 | Z103: 65 | AA103: 85 | AB103: 85 | AC103: 65 | AD103: 48 | AE103: 48 | AF103: 45 | AG103: 45 | AH103: 45 | AI103: 40 | AJ103: 0 | AK103: 0 | AL103: 0
A104: 47-DL | B104: 0 | C104: 0 | D104: 77.5 | E104: 147.5 | F104: 147.5 | G104: 160 | H104: 162.5 | I104: 162.5 | J104: 152.5 | K104: 152.5 | L104: 145 | M104: 142.5 | N104: 127.5 | O104: 127.5 | P104: 127.5 | Q104: 0 | R104: 0 | S104: 0 | T104: 0 | U104: 125 | V104: 125 | W104: 132.5 | X104: 72.5 | Y104: 72.5 | Z104: 122.5 | AA104: 151 | AB104: 182.5 | AC104: 147.5 | AD104: 120 | AE104: 120 | AF104: 120 | AG104: 120 | AH104: 120 | AI104: 120 | AJ104: 0 | AK104: 0 | AL104: 0
A105: 47-TL | B105: 0 | C105: 242.5 | D105: 242.5 | E105: 350 | F105: 347.5 | G105: 370 | H105: 392.5 | I105: 402.5 | J105: 357.5 | K105: 357.5 | L105: 327.5 | M105: 317.5 | N105: 272.5 | O105: 272.5 | P105: 272.5 | Q105: 0 | R105: 0 | S105: 0 | T105: 0 | U105: 285 | V105: 285 | W105: 292.5 | X105: 147.5 | Y105: 177.5 | Z105: 285 | AA105: 335 | AB105: 397.5 | AC105: 335 | AD105: 265 | AE105: 265 | AF105: 251 | AG105: 251 | AH105: 251 | AI105: 245 | AJ105: 0 | AK105: 0 | AL105: 0
A106: 52-SQ | B106: 0 | C106: 0 | D106: 100 | E106: 160 | F106: 177.5 | G106: 180 | H106: 194 | I106: 194 | J106: 182.5 | K106: 182.5 | L106: 130 | M106: 120 | N106: 115 | O106: 100 | P106: 76 | Q106: 76 | R106: 0 | S106: 0 | T106: 36.3 | U106: 102.5 | V106: 107.5 | W106: 117.5 | X106: 20 | Y106: 75 | Z106: 80 | AA106: 142.5 | AB106: 156.5 | AC106: 156.5 | AD106: 156.5 | AE106: 152.5 | AF106: 100 | AG106: 100 | AH106: 85 | AI106: 80 | AJ106: 65 | AK106: 0 | AL106: 0
A107: 52-BP | B107: 0 | C107: 0 | D107: 52.5 | E107: 102.5 | F107: 102.5 | G107: 102.5 | H107: 132.5 | I107: 132.5 | J107: 110 | K107: 92.5 | L107: 77.5 | M107: 75 | N107: 75 | O107: 51 | P107: 51 | Q107: 51 | R107: 0 | S107: 0 | T107: 22.7 | U107: 70 | V107: 70 | W107: 80 | X107: 20 | Y107: 45 | Z107: 47.5 | AA107: 82.5 | AB107: 97.5 | AC107: 97.5 | AD107: 80.5 | AE107: 80.5 | AF107: 65 | AG107: 65 | AH107: 52.5 | AI107: 52.5 | AJ107: 42.5 | AK107: 0 | AL107: 0
A108: 52-DL | B108: 0 | C108: 0 | D108: 90 | E108: 170 | F108: 183 | G108: 180 | H108: 183 | I108: 192.5 | J108: 170 | K108: 170 | L108: 157.5 | M108: 145 | N108: 123.5 | O108: 102.5 | P108: 88 | Q108: 88 | R108: 0 | S108: 0 | T108: 61.2 | U108: 132.5 | V108: 132.5 | W108: 147.4 | X108: 35 | Y108: 110.5 | Z108: 95 | AA108: 166.5 | AB108: 187.5 | AC108: 187.5 | AD108: 162.5 | AE108: 158 | AF108: 132.5 | AG108: 132.5 | AH108: 115.5 | AI108: 115.5 | AJ108: 80 | AK108: 0 | AL108: 0
A109: 52-TL | B109: 0 | C109: 0 | D109: 242.5 | E109: 397.5 | F109: 425 | G109: 437.5 | H109: 501.5 | I109: 501.5 | J109: 442.5 | K109: 440 | L109: 350 | M109: 337.5 | N109: 292.5 | O109: 250 | P109: 211 | Q109: 211 | R109: 0 | S109: 0 | T109: 120.2 | U109: 295 | V109: 300 | W109: 327.5 | X109: 75 | Y109: 230.5 | Z109: 210 | AA109: 363.5 | AB109: 430 | AC109: 430 | AD109: 394 | AE109: 391 | AF109: 295 | AG109: 295 | AH109: 247.5 | AI109: 225.5 | AJ109: 187.5 | AK109: 0 | AL109: 0
A110: 57-SQ | B110: 0 | C110: 0 | D110: 0 | E110: 165 | F110: 200 | G110: 205 | H110: 205 | I110: 205 | J110: 155 | K110: 150 | L110: 150 | M110: 122.5 | N110: 102.5 | O110: 75 | P110: 75 | Q110: 75 | R110: 0 | S110: 0 | T110: 0 | U110: 130 | V110: 143 | W110: 143 | X110: 0 | Y110: 77.5 | Z110: 102.5 | AA110: 152.5 | AB110: 174.5 | AC110: 142.5 | AD110: 132.5 | AE110: 125.5 | AF110: 90 | AG110: 87.5 | AH110: 85 | AI110: 70 | AJ110: 62.5 | AK110: 0 | AL110: 0
A111: 57-BP | B111: 0 | C111: 0 | D111: 0 | E111: 83 | F111: 110 | G111: 115 | H111: 137.5 | I111: 137.5 | J111: 120 | K111: 97.5 | L111: 97.5 | M111: 97.5 | N111: 71.5 | O111: 71.5 | P111: 71.5 | Q111: 71.5 | R111: 0 | S111: 0 | T111: 0 | U111: 75 | V111: 85 | W111: 95 | X111: 0 | Y111: 45 | Z111: 63 | AA111: 95 | AB111: 100 | AC111: 80 | AD111: 80 | AE111: 80 | AF111: 65 | AG111: 60 | AH111: 47.5 | AI111: 45 | AJ111: 40 | AK111: 0 | AL111: 0
A112: 57-DL | B112: 0 | C112: 0 | D112: 0 | E112: 175 | F112: 183.5 | G112: 192.5 | H112: 192.5 | I112: 197.5 | J112: 182.5 | K112: 177.5 | L112: 177.5 | M112: 147.5 | N112: 132.5 | O112: 95 | P112: 92.5 | Q112: 90 | R112: 0 | S112: 0 | T112: 0 | U112: 137.5 | V112: 167.5 | W112: 170 | X112: 0 | Y112: 92.5 | Z112: 113 | AA112: 185 | AB112: 193 | AC112: 162.5 | AD112: 162.5 | AE112: 151 | AF112: 125 | AG112: 120 | AH112: 115 | AI112: 97.5 | AJ112: 77.5 | AK112: 0 | AL112: 0
A113: 57-TL | B113: 0 | C113: 0 | D113: 177.5 | E113: 412.5 | F113: 475.5 | G113: 500 | H113: 522.5 | I113: 522.5 | J113: 445 | K113: 397.5 | L113: 392.5 | M113: 365 | N113: 292.5 | O113: 207.5 | P113: 207.5 | Q113: 207.5 | R113: 0 | S113: 0 | T113: 0 | U113: 327.5 | V113: 370 | W113: 390 | X113: 177.5 | Y113: 215 | Z113: 262.5 | AA113: 418 | AB113: 463 | AC113: 370.5 | AD113: 347.5 | AE113: 335.5 | AF113: 280 | AG113: 267.5 | AH113: 247.5 | AI113: 212.5 | AJ113: 180 | AK113: 0 | AL113: 0
A114: 63-SQ | B114: 0 | C114: 37.5 | D114: 0 | E114: 165 | F114: 182.5 | G114: 202.5 | H114: 202.5 | I114: 215 | J114: 200 | K114: 187.5 | L114: 175 | M114: 162.5 | N114: 110 | O114: 110 | P114: 90 | Q114: 67.5 | R114: 0 | S114: 0 | T114: 0 | U114: 146 | V114: 146 | W114: 152.5 | X114: 0 | Y114: 68 | Z114: 107.5 | AA114: 160 | AB114: 180 | AC114: 155 | AD114: 155 | AE114: 132.5 | AF114: 131 | AG114: 102.5 | AH114: 90 | AI114: 82.5 | AJ114: 32.5 | AK114: 0 | AL114: 0
A115: 63-BP | B115: 0 | C115: 25 | D115: 0 | E115: 92.5 | F115: 102.5 | G115: 117.5 | H115: 125 | I115: 150 | J115: 140.5 | K115: 130 | L115: 130 | M115: 85 | N115: 75 | O115: 72.5 | P115: 72.5 | Q115: 35 | R115: 0 | S115: 0 | T115: 0 | U115: 65 | V115: 82.5 | W115: 95 | X115: 0 | Y115: 32.5 | Z115: 58 | AA115: 100 | AB115: 142.5 | AC115: 142.5 | AD115: 142.5 | AE115: 80 | AF115: 75 | AG115: 73 | AH115: 62.5 | AI115: 62.5 | AJ115: 32.5 | AK115: 0 | AL115: 0
A116: 63-DL | B116: 0 | C116: 52.5 | D116: 0 | E116: 181.4 | F116: 205 | G116: 215 | H116: 215 | I116: 227.5 | J116: 197.5 | K116: 190 | L116: 183 | M116: 180 | N116: 137.5 | O116: 130 | P116: 130 | Q116: 80 | R116: 0 | S116: 0 | T116: 0 | U116: 164.5 | V116: 166 | W116: 195 | X116: 0 | Y116: 95.5 | Z116: 140 | AA116: 197.5 | AB116: 221 | AC116: 202.5 | AD116: 202.5 | AE116: 175.5 | AF116: 160 | AG116: 135.5 | AH116: 125 | AI116: 125 | AJ116: 60 | AK116: 0 | AL116: 0
A117: 63-TL | B117: 0 | C117: 115 | D117: 0 | E117: 417.5 | F117: 477.5 | G117: 500 | H117: 500 | I117: 547.5 | J117: 507.5 | K117: 457.5 | L117: 452.5 | M117: 417.5 | N117: 312.5 | O117: 297.5 | P117: 292.5 | Q117: 182.5 | R117: 0 | S117: 0 | T117: 0 | U117: 363 | V117: 376 | W117: 417.5 | X117: 0 | Y117: 192.5 | Z117: 305.5 | AA117: 442.5 | AB117: 499.5 | AC117: 499.5 | AD117: 499.5 | AE117: 353 | AF117: 352.5 | AG117: 311 | AH117: 270 | AI117: 267.5 | AJ117: 125 | AK117: 0 | AL117: 0
A118: 72-SQ | B118: 0 | C118: 0 | D118: 0 | E118: 175 | F118: 200 | G118: 217.5 | H118: 222.5 | I118: 255 | J118: 245 | K118: 240 | L118: 170 | M118: 162.5 | N118: 152.5 | O118: 142.5 | P118: 140 | Q118: 38.6 | R118: 0 | S118: 0 | T118: 0 | U118: 125 | V118: 168.5 | W118: 180 | X118: 0 | Y118: 77.5 | Z118: 113 | AA118: 180 | AB118: 188 | AC118: 175 | AD118: 147.5 | AE118: 145.5 | AF118: 145.5 | AG118: 120.5 | AH118: 105 | AI118: 105 | AJ118: 45 | AK118: 0 | AL118: 0
A119: 72-BP | B119: 0 | C119: 0 | D119: 0 | E119: 90 | F119: 120 | G119: 132.5 | H119: 137.5 | I119: 170 | J119: 165 | K119: 165 | L119: 115 | M119: 105 | N119: 92.5 | O119: 90 | P119: 90 | Q119: 27.2 | R119: 0 | S119: 0 | T119: 0 | U119: 67 | V119: 107.5 | W119: 115 | X119: 0 | Y119: 32.5 | Z119: 58 | AA119: 115 | AB119: 144 | AC119: 144 | AD119: 115 | AE119: 87.5 | AF119: 80.5 | AG119: 80.5 | AH119: 70 | AI119: 67.5 | AJ119: 42.5 | AK119: 0 | AL119: 0
A120: 72-DL | B120: 0 | C120: 0 | D120: 0 | E120: 170 | F120: 220 | G120: 220 | H120: 220 | I120: 252.5 | J120: 249 | K120: 249 | L120: 180 | M120: 180 | N120: 157.5 | O120: 157.5 | P120: 150 | Q120: 61.2 | R120: 0 | S120: 0 | T120: 0 | U120: 147.5 | V120: 200.5 | W120: 205 | X120: 0 | Y120: 107.5 | Z120: 132.5 | AA120: 205 | AB120: 246 | AC120: 205 | AD120: 195 | AE120: 195 | AF120: 195 | AG120: 150.5 | AH120: 130 | AI120: 125 | AJ120: 92.5 | AK120: 0 | AL120: 0
A121: 72-TL | B121: 0 | C121: 0 | D121: 0 | E121: 430 | F121: 500 | G121: 530 | H121: 542.5 | I121: 654 | J121: 654 | K121: 654 | L121: 450 | M121: 445 | N121: 390 | O121: 390 | P121: 377.5 | Q121: 127 | R121: 0 | S121: 0 | T121: 0 | U121: 337.5 | V121: 476.5 | W121: 497.5 | X121: 0 | Y121: 225 | Z121: 303.5 | AA121: 497.5 | AB121: 549 | AC121: 487.5 | AD121: 452.5 | AE121: 418.5 | AF121: 418.5 | AG121: 332.5 | AH121: 305 | AI121: 297.5 | AJ121: 180 | AK121: 0 | AL121: 0
A122: 84-SQ | B122: 0 | C122: 37.5 | D122: 55 | E122: 180 | F122: 210.5 | G122: 227.5 | H122: 240.5 | I122: 273.5 | J122: 247.5 | K122: 245 | L122: 180 | M122: 145 | N122: 105 | O122: 105 | P122: 105 | Q122: 97.5 | R122: 0 | S122: 0 | T122: 0 | U122: 130 | V122: 180 | W122: 222.5 | X122: 0 | Y122: 62.5 | Z122: 125 | AA122: 225 | AB122: 222.5 | AC122: 200 | AD122: 200 | AE122: 145 | AF122: 142.5 | AG122: 115.5 | AH122: 100 | AI122: 82.5 | AJ122: 82.5 | AK122: 0 | AL122: 0
A123: 84-BP | B123: 0 | C123: 27.5 | D123: 35 | E123: 100 | F123: 137.5 | G123: 140 | H123: 166 | I123: 192.5 | J123: 192.5 | K123: 192.5 | L123: 130.5 | M123: 102.5 | N123: 75 | O123: 75 | P123: 75 | Q123: 72.5 | R123: 0 | S123: 0 | T123: 0 | U123: 67.5 | V123: 105 | W123: 127.5 | X123: 0 | Y123: 42.5 | Z123: 52.5 | AA123: 127.5 | AB123: 127.5 | AC123: 125 | AD123: 125 | AE123: 100 | AF123: 90 | AG123: 72.5 | AH123: 72.5 | AI123: 57.5 | AJ123: 52.5 | AK123: 0 | AL123: 0
A124: 84-DL | B124: 0 | C124: 0 | D124: 87.5 | E124: 200 | F124: 200 | G124: 225 | H124: 235 | I124: 235 | J124: 228 | K124: 228 | L124: 210 | M124: 152.5 | N124: 135 | O124: 135 | P124: 135 | Q124: 122.5 | R124: 0 | S124: 0 | T124: 0 | U124: 181.4 | V124: 205 | W124: 227.5 | X124: 0 | Y124: 93 | Z124: 137.5 | AA124: 227.5 | AB124: 235 | AC124: 227.5 | AD124: 227.5 | AE124: 170 | AF124: 152.5 | AG124: 152.5 | AH124: 132.5 | AI124: 125 | AJ124: 125 | AK124: 0 | AL124: 0
A125: 84-TL | B125: 0 | C125: 175 | D125: 175 | E125: 475 | F125: 507.5 | G125: 555 | H125: 612.5 | I125: 671 | J125: 663.5 | K125: 663.5 | L125: 483 | M125: 392.5 | N125: 307.5 | O125: 307.5 | P125: 307.5 | Q125: 280 | R125: 0 | S125: 0 | T125: 0 | U125: 337.5 | V125: 490 | W125: 572.5 | X125: 0 | Y125: 198 | Z125: 315 | AA125: 572.5 | AB125: 572.5 | AC125: 512.5 | AD125: 512.5 | AE125: 395 | AF125: 372.5 | AG125: 330 | AH125: 305 | AI125: 255 | AJ125: 252.5 | AK125: 0 | AL125: 0
A126: 84+-SQ | B126: 0 | C126: 0 | D126: 162.5 | E126: 202.5 | F126: 262.5 | G126: 290 | H126: 292.5 | I126: 315 | J126: 255 | K126: 255 | L126: 255 | M126: 255 | N126: 237.5 | O126: 150 | P126: 0 | Q126: 0 | R126: 0 | S126: 0 | T126: 0 | U126: 182.5 | V126: 262.5 | W126: 262.5 | X126: 0 | Y126: 45 | Z126: 110 | AA126: 262.5 | AB126: 273 | AC126: 195 | AD126: 182.5 | AE126: 175 | AF126: 138.4 | AG126: 115 | AH126: 100.5 | AI126: 90 | AJ126: 90 | AK126: 52.5 | AL126: 0
A127: 84+-BP | B127: 0 | C127: 0 | D127: 47.5 | E127: 112.5 | F127: 168 | G127: 178 | H127: 190 | I127: 210 | J127: 185 | K127: 157.5 | L127: 157.5 | M127: 157.5 | N127: 122.5 | O127: 67.5 | P127: 0 | Q127: 0 | R127: 0 | S127: 0 | T127: 0 | U127: 65 | V127: 120 | W127: 120 | X127: 0 | Y127: 42.5 | Z127: 50 | AA127: 120 | AB127: 151.5 | AC127: 121 | AD127: 120 | AE127: 115.5 | AF127: 93 | AG127: 80 | AH127: 80 | AI127: 80 | AJ127: 55 | AK127: 40 | AL127: 0
A128: 84+-DL | B128: 0 | C128: 0 | D128: 135 | E128: 212.5 | F128: 230 | G128: 230 | H128: 230 | I128: 260.5 | J128: 227.5 | K128: 227.5 | L128: 227.5 | M128: 220 | N128: 215 | O128: 152.5 | P128: 0 | Q128: 0 | R128: 0 | S128: 0 | T128: 0 | U128: 127.5 | V128: 238 | W128: 238 | X128: 0 | Y128: 102.5 | Z128: 132.5 | AA128: 238 | AB128: 247 | AC128: 212.5 | AD128: 200 | AE128: 200 | AF128: 157.5 | AG128: 147.5 | AH128: 122.5 | AI128: 120 | AJ128: 120 | AK128: 115 | AL128: 0
A129: 84+-TL | B129: 0 | C129: 345 | D129: 345 | E129: 502.5 | F129: 603.5 | G129: 625 | H129: 625 | I129: 778 | J129: 612.5 | K129: 612.5 | L129: 612.5 | M129: 612.5 | N129: 575 | O129: 370 | P129: 0 | Q129: 0 | R129: 0 | S129: 0 | T129: 0 | U129: 445 | V129: 615.5 | W129: 615.5 | X129: 0 | Y129: 190 | Z129: 292.5 | AA129: 615.5 | AB129: 671.5 | AC129: 500 | AD129: 480 | AE129: 480 | AF129: 369.7 | AG129: 300 | AH129: 285.5 | AI129: 265 | AJ129: 265 | AK129: 202.5 | AL129: 0
A130: 30-BPO | B130: 0 | C130: 0 | D130: 0 | E130: 0 | F130: 0 | G130: 0 | H130: 0 | I130: 0 | J130: 0 | K130: 0 | L130: 0 | M130: 0 | N130: 0 | O130: 0 | P130: 0 | Q130: 0 | R130: 0 | S130: 0 | T130: 0 | U130: 0 | V130: 0 | W130: 0 | X130: 25 | Y130: 25.5 | Z130: 25.5 | AA130: 0 | AB130: 0 | AC130: 0 | AD130: 0 | AE130: 0 | AF130: 0 | AG130: 0 | AH130: 0 | AI130: 0 | AJ130: 0 | AK130: 0 | AL130: 0
A131: 35-BPO | B131: 25 | C131: 0 | D131: 0 | E131: 0 | F131: 0 | G131: 0 | H131: 0 | I131: 0 | J131: 0 | K131: 0 | L131: 0 | M131: 0 | N131: 0 | O131: 0 | P131: 0 | Q131: 0 | R131: 0 | S131: 0 | T131: 0 | U131: 0 | V131: 0 | W131: 0 | X131: 31 | Y131: 31 | Z131: 31 | AA131: 0 | AB131: 0 | AC131: 0 | AD131: 0 | AE131: 0 | AF131: 0 | AG131: 0 | AH131: 0 | AI131: 0 | AJ131: 0 | AK131: 0 | AL131: 0
A132: 40-BPO | B132: 0 | C132: 0 | D132: 0 | E132: 0 | F132: 0 | G132: 0 | H132: 0 | I132: 0 | J132: 0 | K132: 0 | L132: 0 | M132: 0 | N132: 0 | O132: 0 | P132: 0 | Q132: 0 | R132: 0 | S132: 0 | T132: 0 | U132: 0 | V132: 0 | W132: 0 | X132: 30 | Y132: 45 | Z132: 45 | AA132: 0 | AB132: 0 | AC132: 0 | AD132: 0 | AE132: 0 | AF132: 0 | AG132: 0 | AH132: 0 | AI132: 0 | AJ132: 0 | AK132: 0 | AL132: 0
A133: 43-BPO | B133: 0 | C133: 0 | D133: 0 | E133: 47.5 | F133: 77.5 | G133: 83 | H133: 83 | I133: 62.5 | J133: 0 | K133: 0 | L133: 0 | M133: 0 | N133: 0 | O133: 0 | P133: 0 | Q133: 0 | R133: 0 | S133: 0 | T133: 0 | U133: 60 | V133: 62.5 | W133: 70 | X133: 0 | Y133: 32.5 | Z133: 43 | AA133: 70 | AB133: 62.5 | AC133: 0 | AD133: 0 | AE133: 0 | AF133: 0 | AG133: 0 | AH133: 0 | AI133: 0 | AJ133: 0 | AK133: 0 | AL133: 0
A134: 47-BPO | B134: 0 | C134: 0 | D134: 37.5 | E134: 72.5 | F134: 82.5 | G134: 85 | H134: 92.5 | I134: 92.5 | J134: 77.1 | K134: 77.1 | L134: 72.5 | M134: 72.5 | N134: 50 | O134: 50 | P134: 45 | Q134: 40 | R134: 0 | S134: 0 | T134: 0 | U134: 65 | V134: 65 | W134: 75 | X134: 27.5 | Y134: 27.5 | Z134: 65 | AA134: 85 | AB134: 85 | AC134: 65 | AD134: 48 | AE134: 48 | AF134: 52.5 | AG134: 52.5 | AH134: 45 | AI134: 40 | AJ134: 0 | AK134: 0 | AL134: 0
A135: 52-BPO | B135: 0 | C135: 0 | D135: 0 | E135: 102.5 | F135: 107.5 | G135: 107.5 | H135: 132.5 | I135: 132.5 | J135: 112.5 | K135: 92.5 | L135: 87.5 | M135: 87.5 | N135: 75 | O135: 67.5 | P135: 51 | Q135: 51 | R135: 0 | S135: 25 | T135: 22.7 | U135: 70 | V135: 85 | W135: 85 | X135: 20 | Y135: 45 | Z135: 47.5 | AA135: 100 | AB135: 100 | AC135: 97.5 | AD135: 80.5 | AE135: 80.5 | AF135: 65 | AG135: 65 | AH135: 52.5 | AI135: 52.5 | AJ135: 42.5 | AK135: 0 | AL135: 0
A136: 57-BPO | B136: 0 | C136: 0 | D136: 0 | E136: 83 | F136: 110 | G136: 115 | H136: 137.5 | I136: 137.5 | J136: 130 | K136: 112.5 | L136: 112.5 | M136: 112.5 | N136: 60.5 | O136: 71.5 | P136: 71.5 | Q136: 71.5 | R136: 0 | S136: 0 | T136: 0 | U136: 75 | V136: 85 | W136: 95 | X136: 0 | Y136: 45 | Z136: 63 | AA136: 95 | AB136: 100 | AC136: 82.5 | AD136: 80 | AE136: 80 | AF136: 67.5 | AG136: 60 | AH136: 47.5 | AI136: 47.5 | AJ136: 40 | AK136: 0 | AL136: 0
A137: 63-BPO | B137: 0 | C137: 25 | D137: 0 | E137: 92.5 | F137: 110 | G137: 117.5 | H137: 125 | I137: 150 | J137: 140.5 | K137: 130 | L137: 130 | M137: 102.5 | N137: 77.5 | O137: 72.5 | P137: 72.5 | Q137: 35 | R137: 0 | S137: 0 | T137: 0 | U137: 65 | V137: 82.5 | W137: 95 | X137: 0 | Y137: 32.5 | Z137: 58 | AA137: 100 | AB137: 144 | AC137: 144 | AD137: 144 | AE137: 80 | AF137: 75 | AG137: 73 | AH137: 62.5 | AI137: 62.5 | AJ137: 32.5 | AK137: 0 | AL137: 0
A138: 72-BPO | B138: 0 | C138: 0 | D138: 0 | E138: 90 | F138: 120 | G138: 132.5 | H138: 140 | I138: 170 | J138: 165 | K138: 165 | L138: 115 | M138: 105 | N138: 92.5 | O138: 92.5 | P138: 90 | Q138: 50 | R138: 0 | S138: 0 | T138: 0 | U138: 67 | V138: 107.5 | W138: 115 | X138: 0 | Y138: 32.5 | Z138: 58 | AA138: 115 | AB138: 144 | AC138: 144 | AD138: 115 | AE138: 105 | AF138: 80.5 | AG138: 80.5 | AH138: 70 | AI138: 67.5 | AJ138: 42.5 | AK138: 30 | AL138: 30
A139: 84-BPO | B139: 0 | C139: 27.5 | D139: 35 | E139: 122.5 | F139: 140 | G139: 155 | H139: 166 | I139: 192.5 | J139: 192.5 | K139: 192.5 | L139: 130.5 | M139: 97.5 | N139: 87.5 | O139: 65 | P139: 75 | Q139: 75 | R139: 0 | S139: 0 | T139: 0 | U139: 77.5 | V139: 105 | W139: 127.5 | X139: 0 | Y139: 42.5 | Z139: 52.5 | AA139: 127.5 | AB139: 127.5 | AC139: 125 | AD139: 125 | AE139: 100 | AF139: 92.5 | AG139: 75 | AH139: 75 | AI139: 75 | AJ139: 75 | AK139: 25 | AL139: 0
A140: 84+-BPO | B140: 0 | C140: 0 | D140: 0 | E140: 112.5 | F140: 168 | G140: 178 | H140: 190 | I140: 210 | J140: 190.5 | K140: 182.5 | L140: 172.5 | M140: 160 | N140: 122.5 | O140: 85 | P140: 80 | Q140: 0 | R140: 0 | S140: 0 | T140: 0 | U140: 95 | V140: 120 | W140: 120 | X140: 0 | Y140: 42.5 | Z140: 50 | AA140: 120 | AB140: 151.5 | AC140: 122.5 | AD140: 120 | AE140: 120 | AF140: 93 | AG140: 85 | AH140: 80 | AI140: 80 | AJ140: 71.5 | AK140: 40 | AL140: 0
A141: 30-DLO | B141: 0 | C141: 0 | D141: 0 | E141: 0 | F141: 0 | G141: 0 | H141: 0 | I141: 0 | J141: 0 | K141: 0 | L141: 0 | M141: 0 | N141: 0 | O141: 0 | P141: 0 | Q141: 0 | R141: 0 | S141: 0 | T141: 0 | U141: 0 | V141: 0 | W141: 0 | X141: 60 | Y141: 65 | Z141: 65 | AA141: 0 | AB141: 0 | AC141: 0 | AD141: 0 | AE141: 0 | AF141: 0 | AG141: 0 | AH141: 0 | AI141: 0 | AJ141: 0 | AK141: 0 | AL141: 0
A142: 35-DLO | B142: 57.5 | C142: 0 | D142: 0 | E142: 0 | F142: 0 | G142: 0 | H142: 0 | I142: 0 | J142: 0 | K142: 0 | L142: 0 | M142: 0 | N142: 0 | O142: 0 | P142: 0 | Q142: 0 | R142: 0 | S142: 0 | T142: 0 | U142: 0 | V142: 0 | W142: 0 | X142: 76 | Y142: 76 | Z142: 76 | AA142: 0 | AB142: 0 | AC142: 0 | AD142: 0 | AE142: 0 | AF142: 0 | AG142: 0 | AH142: 0 | AI142: 0 | AJ142: 0 | AK142: 0 | AL142: 0
A143: 40-DLO | B143: 0 | C143: 0 | D143: 0 | E143: 0 | F143: 0 | G143: 0 | H143: 0 | I143: 0 | J143: 0 | K143: 0 | L143: 0 | M143: 0 | N143: 0 | O143: 0 | P143: 0 | Q143: 0 | R143: 0 | S143: 0 | T143: 0 | U143: 0 | V143: 0 | W143: 0 | X143: 72.5 | Y143: 87.5 | Z143: 90.7 | AA143: 0 | AB143: 0 | AC143: 0 | AD143: 0 | AE143: 0 | AF143: 0 | AG143: 0 | AH143: 0 | AI143: 0 | AJ143: 0 | AK143: 0 | AL143: 0
A144: 43-DLO | B144: 0 | C144: 0 | D144: 0 | E144: 92.5 | F144: 142.5 | G144: 142.5 | H144: 142.5 | I144: 142.5 | J144: 0 | K144: 0 | L144: 0 | M144: 0 | N144: 0 | O144: 0 | P144: 0 | Q144: 0 | R144: 0 | S144: 0 | T144: 0 | U144: 105 | V144: 125 | W144: 125 | X144: 0 | Y144: 75 | Z144: 92.5 | AA144: 125 | AB144: 125 | AC144: 0 | AD144: 0 | AE144: 0 | AF144: 0 | AG144: 0 | AH144: 0 | AI144: 0 | AJ144: 0 | AK144: 0 | AL144: 0
A145: 47-DLO | B145: 0 | C145: 0 | D145: 77.5 | E145: 147.5 | F145: 147.5 | G145: 160 | H145: 162.5 | I145: 162.5 | J145: 152.5 | K145: 152.5 | L145: 145 | M145: 142.5 | N145: 127.5 | O145: 127.5 | P145: 127.5 | Q145: 0 | R145: 0 | S145: 0 | T145: 0 | U145: 125 | V145: 125 | W145: 132.5 | X145: 72.5 | Y145: 72.5 | Z145: 122.5 | AA145: 151 | AB145: 182.5 | AC145: 147.5 | AD145: 120 | AE145: 120 | AF145: 120 | AG145: 120 | AH145: 120 | AI145: 120 | AJ145: 0 | AK145: 0 | AL145: 0
A146: 52-DLO | B146: 0 | C146: 0 | D146: 0 | E146: 170 | F146: 183 | G146: 180 | H146: 182.5 | I146: 192.5 | J146: 170 | K146: 170 | L146: 157.5 | M146: 145 | N146: 123.5 | O146: 102.5 | P146: 88 | Q146: 88 | R146: 0 | S146: 0 | T146: 61.2 | U146: 132.5 | V146: 132.5 | W146: 147.4 | X146: 35 | Y146: 110.5 | Z146: 102.5 | AA146: 166.5 | AB146: 187.5 | AC146: 187.5 | AD146: 162.5 | AE146: 158 | AF146: 132.5 | AG146: 132.5 | AH146: 115.5 | AI146: 115.5 | AJ146: 80 | AK146: 65 | AL146: 0
A147: 57-DLO | B147: 0 | C147: 0 | D147: 0 | E147: 175 | F147: 183.7 | G147: 192.5 | H147: 192.5 | I147: 197.5 | J147: 182.5 | K147: 177.5 | L147: 177.5 | M147: 147.5 | N147: 132.5 | O147: 95 | P147: 92.5 | Q147: 90 | R147: 0 | S147: 0 | T147: 0 | U147: 137.5 | V147: 167.5 | W147: 170 | X147: 0 | Y147: 92.5 | Z147: 113 | AA147: 185 | AB147: 193 | AC147: 162.5 | AD147: 162.5 | AE147: 151 | AF147: 125 | AG147: 120 | AH147: 115 | AI147: 97.5 | AJ147: 77.5 | AK147: 0 | AL147: 0
A148: 63-DLO | B148: 0 | C148: 52.5 | D148: 0 | E148: 181.4 | F148: 205 | G148: 215 | H148: 215 | I148: 227.5 | J148: 197.5 | K148: 190 | L148: 183 | M148: 180 | N148: 137.5 | O148: 130 | P148: 130 | Q148: 80 | R148: 0 | S148: 0 | T148: 0 | U148: 164.5 | V148: 166 | W148: 195 | X148: 0 | Y148: 95.5 | Z148: 140 | AA148: 197.5 | AB148: 221 | AC148: 202.5 | AD148: 202.5 | AE148: 175.5 | AF148: 160 | AG148: 135.5 | AH148: 125 | AI148: 125 | AJ148: 60 | AK148: 0 | AL148: 0
A149: 72-DLO | B149: 0 | C149: 0 | D149: 0 | E149: 170 | F149: 220 | G149: 220 | H149: 220 | I149: 257.5 | J149: 249 | K149: 249 | L149: 180 | M149: 180 | N149: 157.5 | O149: 157.5 | P149: 150 | Q149: 61.2 | R149: 0 | S149: 0 | T149: 0 | U149: 147.5 | V149: 200.5 | W149: 205 | X149: 0 | Y149: 107.5 | Z149: 132.5 | AA149: 205 | AB149: 246 | AC149: 205 | AD149: 195 | AE149: 195 | AF149: 195 | AG149: 150.5 | AH149: 130 | AI149: 125 | AJ149: 92.5 | AK149: 42.5 | AL149: 42.5
A150: 84-DLO | B150: 0 | C150: 55 | D150: 87.5 | E150: 200 | F150: 204.1 | G150: 225 | H150: 235 | I150: 252.5 | J150: 228 | K150: 228 | L150: 210 | M150: 152.5 | N150: 115 | O150: 115 | P150: 135 | Q150: 122.5 | R150: 0 | S150: 0 | T150: 0 | U150: 181.4 | V150: 205 | W150: 227.5 | X150: 0 | Y150: 93 | Z150: 137.5 | AA150: 227.5 | AB150: 235 | AC150: 227.5 | AD150: 227.5 | AE150: 170 | AF150: 152.5 | AG150: 152.5 | AH150: 132.5 | AI150: 115 | AJ150: 125 | AK150: 60 | AL150: 0
A151: 84+-DLO | B151: 0 | C151: 0 | D151: 0 | E151: 212.5 | F151: 230 | G151: 230 | H151: 230 | I151: 260.5 | J151: 227.5 | K151: 227.5 | L151: 227.5 | M151: 220 | N151: 215 | O151: 152.5 | P151: 125 | Q151: 0 | R151: 0 | S151: 0 | T151: 0 | U151: 182.5 | V151: 238 | W151: 238 | X151: 0 | Y151: 102.5 | Z151: 132.5 | AA151: 238 | AB151: 247 | AC151: 212.5 | AD151: 200 | AE151: 200 | AF151: 160 | AG151: 160 | AH151: 122.5 | AI151: 120 | AJ151: 120 | AK151: 115 | AL151: 0

Sheet LB Records (hidden)
B1: Y1 | C1: Y2 | D1: Y3 | E1: T1 | F1: T2 | G1: T3 | H1: JR | I1: O | J1: M1a | K1: M1b | L1: M2a | M1: M2b | N1: M3a | O1: M3b | P1: M4a | Q1: M4b | R1: M5a | S1: M5b | T1: M6 | U1: R-T1 | V1: R-T2 | W1: R-T3 | X1: R-Y1 | Y1: R-Y2 | Z1: R-Y3 | AA1: R-JR | AB1: R-O | AC1: R-M1A | AD1: R-M1B | AE1: R-M2A | AF1: R-M2B | AG1: R-M3A | AH1: R-M3B | AI1: R-M4A | AJ1: R-M4B | AK1: R-M5A | AL1: R-M5B
A2: 66-SQ | B2: 0 | C2: 0 | D2: 0 | E2: 0 | F2: 0 | G2: 0 | H2: 0 | I2: 0 | J2: 0 | K2: 0 | L2: 0 | M2: 0 | N2: 0 | O2: 0 | P2: 0 | Q2: 0 | R2: 0 | S2: 0 | T2: 0 | U2: 0 | V2: 0 | W2: 0 | X2: 99.2 | Y2: 99.2 | Z2: 99.2 | AA2: 0 | AB2: 0 | AC2: 0 | AD2: 0 | AE2: 0 | AF2: 0 | AG2: 0 | AH2: 0 | AI2: 0 | AJ2: 0 | AK2: 0 | AL2: 0
A3: 66-BP | B3: 0 | C3: 0 | D3: 0 | E3: 0 | F3: 0 | G3: 0 | H3: 0 | I3: 0 | J3: 0 | K3: 0 | L3: 0 | M3: 0 | N3: 0 | O3: 0 | P3: 0 | Q3: 0 | R3: 0 | S3: 0 | T3: 0 | U3: 0 | V3: 0 | W3: 0 | X3: 57.3 | Y3: 57.3 | Z3: 57.3 | AA3: 0 | AB3: 0 | AC3: 0 | AD3: 0 | AE3: 0 | AF3: 0 | AG3: 0 | AH3: 0 | AI3: 0 | AJ3: 0 | AK3: 0 | AL3: 0
A4: 66-DL | B4: 0 | C4: 0 | D4: 0 | E4: 0 | F4: 0 | G4: 0 | H4: 0 | I4: 0 | J4: 0 | K4: 0 | L4: 0 | M4: 0 | N4: 0 | O4: 0 | P4: 0 | Q4: 0 | R4: 0 | S4: 0 | T4: 0 | U4: 0 | V4: 0 | W4: 0 | X4: 154.3 | Y4: 154.3 | Z4: 154.3 | AA4: 0 | AB4: 0 | AC4: 0 | AD4: 0 | AE4: 0 | AF4: 0 | AG4: 0 | AH4: 0 | AI4: 0 | AJ4: 0 | AK4: 0 | AL4: 0
A5: 66-TL | B5: 0 | C5: 0 | D5: 0 | E5: 0 | F5: 0 | G5: 0 | H5: 0 | I5: 0 | J5: 0 | K5: 0 | L5: 0 | M5: 0 | N5: 0 | O5: 0 | P5: 0 | Q5: 0 | R5: 0 | S5: 0 | T5: 0 | U5: 0 | V5: 0 | W5: 0 | X5: 310.9 | Y5: 310.9 | Z5: 310.9 | AA5: 0 | AB5: 0 | AC5: 0 | AD5: 0 | AE5: 0 | AF5: 0 | AG5: 0 | AH5: 0 | AI5: 0 | AJ5: 0 | AK5: 0 | AL5: 0
A6: 77-SQ | B6: 0 | C6: 0 | D6: 0 | E6: 0 | F6: 0 | G6: 0 | H6: 0 | I6: 0 | J6: 0 | K6: 0 | L6: 0 | M6: 0 | N6: 0 | O6: 0 | P6: 0 | Q6: 0 | R6: 0 | S6: 0 | T6: 0 | U6: 0 | V6: 0 | W6: 0 | X6: 121.3 | Y6: 121.3 | Z6: 121.3 | AA6: 0 | AB6: 0 | AC6: 0 | AD6: 0 | AE6: 0 | AF6: 0 | AG6: 0 | AH6: 0 | AI6: 0 | AJ6: 0 | AK6: 0 | AL6: 0
A7: 77-BP | B7: 0 | C7: 0 | D7: 0 | E7: 0 | F7: 0 | G7: 0 | H7: 0 | I7: 0 | J7: 0 | K7: 0 | L7: 0 | M7: 0 | N7: 0 | O7: 0 | P7: 0 | Q7: 0 | R7: 0 | S7: 0 | T7: 0 | U7: 0 | V7: 0 | W7: 0 | X7: 66.1 | Y7: 66.1 | Z7: 66.1 | AA7: 0 | AB7: 0 | AC7: 0 | AD7: 0 | AE7: 0 | AF7: 0 | AG7: 0 | AH7: 0 | AI7: 0 | AJ7: 0 | AK7: 0 | AL7: 0
A8: 77-DL | B8: 0 | C8: 0 | D8: 0 | E8: 0 | F8: 0 | G8: 0 | H8: 0 | I8: 0 | J8: 0 | K8: 0 | L8: 0 | M8: 0 | N8: 0 | O8: 0 | P8: 0 | Q8: 0 | R8: 0 | S8: 0 | T8: 0 | U8: 0 | V8: 0 | W8: 0 | X8: 165.3 | Y8: 165.3 | Z8: 165.3 | AA8: 0 | AB8: 0 | AC8: 0 | AD8: 0 | AE8: 0 | AF8: 0 | AG8: 0 | AH8: 0 | AI8: 0 | AJ8: 0 | AK8: 0 | AL8: 0
A9: 77-TL | B9: 0 | C9: 0 | D9: 0 | E9: 0 | F9: 0 | G9: 0 | H9: 0 | I9: 0 | J9: 0 | K9: 0 | L9: 0 | M9: 0 | N9: 0 | O9: 0 | P9: 0 | Q9: 0 | R9: 0 | S9: 0 | T9: 0 | U9: 0 | V9: 0 | W9: 0 | X9: 352.7 | Y9: 352.7 | Z9: 352.7 | AA9: 0 | AB9: 0 | AC9: 0 | AD9: 0 | AE9: 0 | AF9: 0 | AG9: 0 | AH9: 0 | AI9: 0 | AJ9: 0 | AK9: 0 | AL9: 0
A10: 88-SQ | B10: 0 | C10: 0 | D10: 0 | E10: 0 | F10: 0 | G10: 0 | H10: 0 | I10: 0 | J10: 0 | K10: 0 | L10: 0 | M10: 0 | N10: 0 | O10: 0 | P10: 0 | Q10: 0 | R10: 0 | S10: 0 | T10: 0 | U10: 0 | V10: 0 | W10: 0 | X10: 0 | Y10: 137.8 | Z10: 179.7 | AA10: 0 | AB10: 0 | AC10: 0 | AD10: 0 | AE10: 0 | AF10: 0 | AG10: 0 | AH10: 0 | AI10: 0 | AJ10: 0 | AK10: 0 | AL10: 0
A11: 88-BP | B11: 0 | C11: 0 | D11: 0 | E11: 0 | F11: 0 | G11: 0 | H11: 0 | I11: 0 | J11: 0 | K11: 0 | L11: 0 | M11: 0 | N11: 0 | O11: 0 | P11: 0 | Q11: 0 | R11: 0 | S11: 0 | T11: 0 | U11: 0 | V11: 0 | W11: 0 | X11: 0 | Y11: 79.4 | Z11: 110.2 | AA11: 0 | AB11: 0 | AC11: 0 | AD11: 0 | AE11: 0 | AF11: 0 | AG11: 0 | AH11: 0 | AI11: 0 | AJ11: 0 | AK11: 0 | AL11: 0
A12: 88-DL | B12: 0 | C12: 0 | D12: 0 | E12: 0 | F12: 0 | G12: 0 | H12: 0 | I12: 0 | J12: 0 | K12: 0 | L12: 0 | M12: 0 | N12: 0 | O12: 0 | P12: 0 | Q12: 0 | R12: 0 | S12: 0 | T12: 0 | U12: 0 | V12: 0 | W12: 0 | X12: 0 | Y12: 205 | Z12: 221.6 | AA12: 0 | AB12: 0 | AC12: 0 | AD12: 0 | AE12: 0 | AF12: 0 | AG12: 0 | AH12: 0 | AI12: 0 | AJ12: 0 | AK12: 0 | AL12: 0
A13: 88-TL | B13: 0 | C13: 0 | D13: 0 | E13: 0 | F13: 0 | G13: 0 | H13: 0 | I13: 0 | J13: 0 | K13: 0 | L13: 0 | M13: 0 | N13: 0 | O13: 0 | P13: 0 | Q13: 0 | R13: 0 | S13: 0 | T13: 0 | U13: 0 | V13: 0 | W13: 0 | X13: 0 | Y13: 414.5 | Z13: 511.5 | AA13: 0 | AB13: 0 | AC13: 0 | AD13: 0 | AE13: 0 | AF13: 0 | AG13: 0 | AH13: 0 | AI13: 0 | AJ13: 0 | AK13: 0 | AL13: 0
A14: 97-SQ | B14: 0 | C14: 0 | D14: 0 | E14: 0 | F14: 0 | G14: 0 | H14: 0 | I14: 0 | J14: 0 | K14: 0 | L14: 0 | M14: 0 | N14: 0 | O14: 0 | P14: 0 | Q14: 0 | R14: 0 | S14: 0 | T14: 0 | U14: 0 | V14: 0 | W14: 0 | X14: 99.2 | Y14: 165.3 | Z14: 211.6 | AA14: 0 | AB14: 0 | AC14: 0 | AD14: 0 | AE14: 0 | AF14: 0 | AG14: 0 | AH14: 0 | AI14: 0 | AJ14: 0 | AK14: 0 | AL14: 0
A15: 97-BP | B15: 0 | C15: 0 | D15: 0 | E15: 0 | F15: 0 | G15: 0 | H15: 0 | I15: 0 | J15: 0 | K15: 0 | L15: 0 | M15: 0 | N15: 0 | O15: 0 | P15: 0 | Q15: 0 | R15: 0 | S15: 0 | T15: 0 | U15: 0 | V15: 0 | W15: 0 | X15: 71.7 | Y15: 88.2 | Z15: 126.8 | AA15: 0 | AB15: 0 | AC15: 0 | AD15: 0 | AE15: 0 | AF15: 0 | AG15: 0 | AH15: 0 | AI15: 0 | AJ15: 0 | AK15: 0 | AL15: 0
A16: 97-DL | B16: 0 | C16: 0 | D16: 0 | E16: 0 | F16: 314.2 | G16: 314.2 | H16: 314.2 | I16: 0 | J16: 0 | K16: 0 | L16: 0 | M16: 0 | N16: 0 | O16: 0 | P16: 0 | Q16: 0 | R16: 0 | S16: 0 | T16: 0 | U16: 0 | V16: 0 | W16: 0 | X16: 165.3 | Y16: 231.5 | Z16: 286.6 | AA16: 0 | AB16: 0 | AC16: 0 | AD16: 0 | AE16: 0 | AF16: 0 | AG16: 0 | AH16: 0 | AI16: 0 | AJ16: 0 | AK16: 0 | AL16: 0
A17: 97-TL | B17: 0 | C17: 0 | D17: 0 | E17: 0 | F17: 700 | G17: 700 | H17: 700 | I17: 0 | J17: 0 | K17: 0 | L17: 0 | M17: 0 | N17: 0 | O17: 0 | P17: 0 | Q17: 0 | R17: 0 | S17: 0 | T17: 0 | U17: 0 | V17: 0 | W17: 0 | X17: 336.2 | Y17: 485 | Z17: 617.3 | AA17: 0 | AB17: 0 | AC17: 0 | AD17: 0 | AE17: 0 | AF17: 0 | AG17: 0 | AH17: 0 | AI17: 0 | AJ17: 0 | AK17: 0 | AL17: 0
A18: 105-SQ | B18: 0 | C18: 0 | D18: 0 | E18: 0 | F18: 0 | G18: 0 | H18: 0 | I18: 0 | J18: 0 | K18: 0 | L18: 0 | M18: 0 | N18: 0 | O18: 0 | P18: 0 | Q18: 0 | R18: 0 | S18: 0 | T18: 0 | U18: 154.3 | V18: 154.3 | W18: 154.3 | X18: 93.7 | Y18: 121.3 | Z18: 231.5 | AA18: 154.3 | AB18: 154.3 | AC18: 0 | AD18: 0 | AE18: 0 | AF18: 0 | AG18: 0 | AH18: 0 | AI18: 0 | AJ18: 0 | AK18: 0 | AL18: 0
A19: 105-BP | B19: 0 | C19: 0 | D19: 0 | E19: 0 | F19: 0 | G19: 0 | H19: 0 | I19: 0 | J19: 0 | K19: 0 | L19: 0 | M19: 0 | N19: 0 | O19: 0 | P19: 0 | Q19: 0 | R19: 0 | S19: 0 | T19: 0 | U19: 126.8 | V19: 126.8 | W19: 126.8 | X19: 49.6 | Y19: 93.7 | Z19: 137.8 | AA19: 126.8 | AB19: 126.8 | AC19: 0 | AD19: 0 | AE19: 0 | AF19: 0 | AG19: 0 | AH19: 0 | AI19: 0 | AJ19: 0 | AK19: 0 | AL19: 0
A20: 105-DL | B20: 0 | C20: 0 | D20: 0 | E20: 0 | F20: 0 | G20: 0 | H20: 0 | I20: 0 | J20: 0 | K20: 0 | L20: 0 | M20: 0 | N20: 0 | O20: 0 | P20: 0 | Q20: 0 | R20: 0 | S20: 0 | T20: 0 | U20: 215 | V20: 215 | W20: 215 | X20: 121.3 | Y20: 192.9 | Z20: 303.1 | AA20: 215 | AB20: 215 | AC20: 0 | AD20: 0 | AE20: 0 | AF20: 0 | AG20: 0 | AH20: 0 | AI20: 0 | AJ20: 0 | AK20: 0 | AL20: 0
A21: 105-TL | B21: 0 | C21: 0 | D21: 0 | E21: 0 | F21: 0 | G21: 0 | H21: 0 | I21: 0 | J21: 0 | K21: 0 | L21: 0 | M21: 0 | N21: 0 | O21: 0 | P21: 0 | Q21: 0 | R21: 0 | S21: 0 | T21: 0 | U21: 496 | V21: 496 | W21: 496 | X21: 264.6 | Y21: 396.8 | Z21: 672.4 | AA21: 496 | AB21: 496 | AC21: 0 | AD21: 0 | AE21: 0 | AF21: 0 | AG21: 0 | AH21: 0 | AI21: 0 | AJ21: 0 | AK21: 0 | AL21: 0
A22: 116-SQ | B22: 0 | C22: 121.3 | D22: 181.9 | E22: 358.3 | F22: 463 | G22: 479.5 | H22: 479.5 | I22: 479.5 | J22: 0 | K22: 0 | L22: 0 | M22: 0 | N22: 0 | O22: 0 | P22: 0 | Q22: 0 | R22: 0 | S22: 0 | T22: 0 | U22: 314.2 | V22: 319.7 | W22: 363.8 | X22: 33.1 | Y22: 170.9 | Z22: 231.5 | AA22: 374.8 | AB22: 363.8 | AC22: 0 | AD22: 0 | AE22: 0 | AF22: 0 | AG22: 0 | AH22: 0 | AI22: 0 | AJ22: 0 | AK22: 0 | AL22: 0
A23: 116-BP | B23: 0 | C23: 78.3 | D23: 137.8 | E23: 215 | F23: 347.2 | G23: 347.2 | H23: 347.2 | I23: 319.7 | J23: 0 | K23: 0 | L23: 0 | M23: 0 | N23: 0 | O23: 0 | P23: 0 | Q23: 0 | R23: 0 | S23: 0 | T23: 0 | U23: 181.9 | V23: 209.4 | W23: 253.5 | X23: 44.1 | Y23: 99.2 | Z23: 159.8 | AA23: 259 | AB23: 253.5 | AC23: 0 | AD23: 0 | AE23: 0 | AF23: 0 | AG23: 0 | AH23: 0 | AI23: 0 | AJ23: 0 | AK23: 0 | AL23: 0
A24: 116-DL | B24: 0 | C24: 215 | D24: 264.6 | E24: 429.9 | F24: 457.5 | G24: 507.1 | H24: 551.2 | I24: 523.6 | J24: 0 | K24: 0 | L24: 0 | M24: 0 | N24: 0 | O24: 0 | P24: 0 | Q24: 0 | R24: 0 | S24: 0 | T24: 0 | U24: 443.1 | V24: 443.1 | W24: 507.1 | X24: 115.7 | Y24: 248 | Z24: 308.6 | AA24: 598.6 | AB24: 512.6 | AC24: 0 | AD24: 0 | AE24: 0 | AF24: 0 | AG24: 0 | AH24: 0 | AI24: 0 | AJ24: 0 | AK24: 0 | AL24: 0
A25: 116-TL | B25: 0 | C25: 414.5 | D25: 584.2 | E25: 992.1 | F25: 1168.4 | G25: 1207 | H25: 1416.5 | I25: 1416.5 | J25: 0 | K25: 1212.5 | L25: 1107.8 | M25: 1107.8 | N25: 1102.3 | O25: 0 | P25: 0 | Q25: 0 | R25: 0 | S25: 0 | T25: 0 | U25: 928.1 | V25: 928.1 | W25: 1107.8 | X25: 347.2 | Y25: 567.7 | Z25: 700 | AA25: 1232.4 | AB25: 1631.4 | AC25: 0 | AD25: 0 | AE25: 0 | AF25: 0 | AG25: 0 | AH25: 0 | AI25: 0 | AJ25: 0 | AK25: 0 | AL25: 0
A26: 130-SQ | B26: 0 | C26: 0 | D26: 231.5 | E26: 435.4 | F26: 475 | G26: 534.6 | H26: 551.2 | I26: 563.3 | J26: 557.8 | K26: 557.8 | L26: 557.8 | M26: 336.2 | N26: 336.2 | O26: 336.2 | P26: 314.2 | Q26: 0 | R26: 0 | S26: 0 | T26: 0 | U26: 363.8 | V26: 429.9 | W26: 468.5 | X26: 77.2 | Y26: 159.8 | Z26: 248 | AA26: 468.5 | AB26: 534.6 | AC26: 424.4 | AD26: 424.4 | AE26: 424.4 | AF26: 377 | AG26: 377 | AH26: 259 | AI26: 231.5 | AJ26: 170.9 | AK26: 170.9 | AL26: 0
A27: 130-BP | B27: 0 | C27: 0 | D27: 115.7 | E27: 275.6 | F27: 330 | G27: 330.7 | H27: 369.3 | I27: 369.3 | J27: 314.2 | K27: 292 | L27: 259 | M27: 259 | N27: 215 | O27: 215 | P27: 215 | Q27: 0 | R27: 0 | S27: 0 | T27: 0 | U27: 254.6 | V27: 254.6 | W27: 281.1 | X27: 88.2 | Y27: 88.2 | Z27: 159.8 | AA27: 330.7 | AB27: 330.7 | AC27: 242.5 | AD27: 226 | AE27: 209.4 | AF27: 209.4 | AG27: 209.4 | AH27: 176.4 | AI27: 176.4 | AJ27: 93.7 | AK27: 93.7 | AL27: 0
A28: 130-DL | B28: 0 | C28: 0 | D28: 253.5 | E28: 451.9 | F28: 479.5 | G28: 501.6 | H28: 569.9 | I28: 578.7 | J28: 562.2 | K28: 562.2 | L28: 556.7 | M28: 391.3 | N28: 391.3 | O28: 391.3 | P28: 391.3 | Q28: 0 | R28: 0 | S28: 0 | T28: 0 | U28: 443.1 | V28: 479.5 | W28: 534.6 | X28: 132.3 | Y28: 220.5 | Z28: 303.1 | AA28: 551.2 | AB28: 556.7 | AC28: 556.7 | AD28: 556.7 | AE28: 556.7 | AF28: 443.1 | AG28: 443.1 | AH28: 303.1 | AI28: 352.7 | AJ28: 226 | AK28: 226 | AL28: 0
A29: 130-TL | B29: 0 | C29: 529.1 | D29: 600.8 | E29: 1162.9 | F29: 1185 | G29: 1300.7 | H29: 1334.9 | I29: 1428.6 | J29: 1350.3 | K29: 1350.3 | L29: 1345.9 | M29: 948 | N29: 909.4 | O29: 909.4 | P29: 909.4 | Q29: 0 | R29: 0 | S29: 0 | T29: 0 | U29: 1019.6 | V29: 1157.4 | W29: 1229.1 | X29: 529.1 | Y29: 529.1 | Z29: 694.5 | AA29: 1273.2 | AB29: 1273.2 | AC29: 1201.5 | AD29: 1201.5 | AE29: 1179.5 | AF29: 873 | AG29: 873 | AH29: 749.6 | AI29: 749.6 | AJ29: 490.5 | AK29: 490.5 | AL29: 0
A30: 145-SQ | B30: 0 | C30: 0 | D30: 181.9 | E30: 451.9 | F30: 540.1 | G30: 600.8 | H30: 700 | I30: 700 | J30: 551.2 | K30: 496 | L30: 496 | M30: 440.9 | N30: 440.9 | O30: 440.9 | P30: 363.8 | Q30: 248 | R30: 0 | S30: 0 | T30: 0 | U30: 374.8 | V30: 425.5 | W30: 457.5 | X30: 0 | Y30: 330.7 | Z30: 330.7 | AA30: 557.8 | AB30: 562.2 | AC30: 435.4 | AD30: 421.1 | AE30: 421.1 | AF30: 418.9 | AG30: 409 | AH30: 270.1 | AI30: 270.1 | AJ30: 181.9 | AK30: 181.9 | AL30: 181.9
A31: 145-BP | B31: 0 | C31: 0 | D31: 126.8 | E31: 292.1 | F31: 336.2 | G31: 451.9 | H31: 507.1 | I31: 507.1 | J31: 314.2 | K31: 325.2 | L31: 325.2 | M31: 303.1 | N31: 303.1 | O31: 303.1 | P31: 292.1 | Q31: 165.3 | R31: 0 | S31: 0 | T31: 0 | U31: 292.1 | V31: 303.1 | W31: 314.2 | X31: 0 | Y31: 126.8 | Z31: 172 | AA31: 369.3 | AB31: 369.3 | AC31: 325.2 | AD31: 325.2 | AE31: 314.2 | AF31: 314.2 | AG31: 242.5 | AH31: 203.9 | AI31: 203.9 | AJ31: 170.9 | AK31: 137.8 | AL31: 137.8
A32: 145-DL | B32: 0 | C32: 0 | D32: 220.5 | E32: 485 | F32: 529.1 | G32: 573.2 | H32: 606.3 | I32: 611.8 | J32: 600 | K32: 600 | L32: 600 | M32: 496 | N32: 463 | O32: 463 | P32: 347.2 | Q32: 264.6 | R32: 0 | S32: 0 | T32: 0 | U32: 451.9 | V32: 468.5 | W32: 502.7 | X32: 0 | Y32: 165.3 | Z32: 341.7 | AA32: 595.2 | AB32: 611.8 | AC32: 578.7 | AD32: 518.1 | AE32: 507.1 | AF32: 451.9 | AG32: 418.9 | AH32: 331.8 | AI32: 331.8 | AJ32: 270.1 | AK32: 220.5 | AL32: 220.5
A33: 145-TL | B33: 0 | C33: 0 | D33: 529.1 | E33: 1118.8 | F33: 1333.8 | G33: 1543.2 | H33: 1697.6 | I33: 1697.6 | J33: 1377.9 | K33: 1295.2 | L33: 1273.2 | M33: 1185 | N33: 1135.4 | O33: 1135.4 | P33: 948 | Q33: 622.8 | R33: 0 | S33: 0 | T33: 0 | U33: 1118.8 | V33: 1118.8 | W33: 1267.7 | X33: 0 | Y33: 600.8 | Z33: 777.1 | AA33: 1516.8 | AB33: 1516.8 | AC33: 1251.1 | AD33: 1181.7 | AE33: 1181.7 | AF33: 1140.9 | AG33: 1026.3 | AH33: 771.6 | AI33: 771.6 | AJ33: 540.1 | AK33: 540.1 | AL33: 540.1
A34: 163-SQ | B34: 0 | C34: 0 | D34: 0 | E34: 512.6 | F34: 562.2 | G34: 672.4 | H34: 722 | I34: 722 | J34: 617.3 | K34: 589.7 | L34: 589.7 | M34: 534.6 | N34: 518.1 | O34: 440.9 | P34: 385.8 | Q34: 336.2 | R34: 148.8 | S34: 0 | T34: 0 | U34: 440.9 | V34: 474 | W34: 563.3 | X34: 0 | Y34: 0 | Z34: 440.9 | AA34: 580.9 | AB34: 585.3 | AC34: 545.6 | AD34: 485 | AE34: 435.4 | AF34: 403.4 | AG34: 386.9 | AH34: 352.7 | AI34: 352.7 | AJ34: 286.6 | AK34: 275.6 | AL34: 0
A35: 163-BP | B35: 0 | C35: 0 | D35: 0 | E35: 319.7 | F35: 352.7 | G35: 442 | H35: 518.1 | I35: 518.1 | J35: 413.4 | K35: 374.8 | L35: 374.8 | M35: 319.7 | N35: 319.7 | O35: 308.6 | P35: 308.6 | Q35: 242.5 | R35: 137.8 | S35: 0 | T35: 0 | U35: 314.2 | V35: 314.2 | W35: 363.8 | X35: 0 | Y35: 0 | Z35: 215 | AA35: 391.3 | AB35: 424.4 | AC35: 394.6 | AD35: 394.6 | AE35: 394.6 | AF35: 259 | AG35: 259 | AH35: 259 | AI35: 259 | AJ35: 203.9 | AK35: 198.4 | AL35: 0
A36: 163-DL | B36: 0 | C36: 0 | D36: 0 | E36: 501.6 | F36: 645.1 | G36: 655.9 | H36: 727.5 | I36: 727.5 | J36: 666.9 | K36: 600.8 | L36: 600.8 | M36: 562.2 | N36: 507.1 | O36: 496 | P36: 485 | Q36: 435.4 | R36: 275.6 | S36: 0 | T36: 0 | U36: 424.4 | V36: 556.7 | W36: 618.4 | X36: 0 | Y36: 0 | Z36: 402.3 | AA36: 672.4 | AB36: 677.9 | AC36: 677.9 | AD36: 529.1 | AE36: 529.1 | AF36: 529.1 | AG36: 446.4 | AH36: 429.9 | AI36: 429.9 | AJ36: 369.3 | AK36: 341.7 | AL36: 0
A37: 163-TL | B37: 0 | C37: 0 | D37: 0 | E37: 1262.1 | F37: 1460.6 | G37: 1670 | H37: 1807.8 | I37: 1807.8 | J37: 1675.5 | K37: 1537.7 | L37: 1537.7 | M37: 1322.8 | N37: 1262.1 | O37: 1179.3 | P37: 1124.4 | Q37: 1008.6 | R37: 562.2 | S37: 0 | T37: 0 | U37: 1058.2 | V37: 1333.8 | W37: 1478.2 | X37: 0 | Y37: 0 | Z37: 1058.2 | AA37: 1620.4 | AB37: 1653.5 | AC37: 1581.8 | AD37: 1284.2 | AE37: 1248.9 | AF37: 1175.1 | AG37: 1030.7 | AH37: 997.6 | AI37: 997.6 | AJ37: 870.8 | AK37: 815.7 | AL37: 0
A38: 183-SQ | B38: 0 | C38: 0 | D38: 0 | E38: 640.4 | F38: 716.5 | G38: 716.5 | H38: 777.1 | I38: 815.7 | J38: 744.1 | K38: 744.1 | L38: 700 | M38: 672.4 | N38: 490.5 | O38: 485 | P38: 435.4 | Q38: 352.7 | R38: 352.7 | S38: 352.7 | T38: 0 | U38: 457.5 | V38: 529.1 | W38: 573.2 | X38: 0 | Y38: 0 | Z38: 391.3 | AA38: 662.5 | AB38: 662.5 | AC38: 595.2 | AD38: 573.2 | AE38: 523.6 | AF38: 453 | AG38: 424.4 | AH38: 424.4 | AI38: 358.3 | AJ38: 325.2 | AK38: 325.2 | AL38: 143.3
A39: 183-BP | B39: 0 | C39: 0 | D39: 0 | E39: 352.7 | F39: 440.9 | G39: 474 | H39: 661.4 | I39: 661.4 | J39: 551.2 | K39: 534.6 | L39: 468.5 | M39: 435.4 | N39: 382.5 | O39: 336.2 | P39: 325.2 | Q39: 275.6 | R39: 237 | S39: 198.4 | T39: 0 | U39: 303.1 | V39: 385.8 | W39: 391.3 | X39: 0 | Y39: 0 | Z39: 215 | AA39: 429.9 | AB39: 444.2 | AC39: 413.4 | AD39: 396.8 | AE39: 396.8 | AF39: 341.7 | AG39: 309.7 | AH39: 293.2 | AI39: 253.5 | AJ39: 200.6 | AK39: 181.9 | AL39: 176.4
A40: 183-DL | B40: 0 | C40: 0 | D40: 0 | E40: 611.8 | F40: 683.4 | G40: 688.9 | H40: 722 | I40: 744.1 | J40: 733 | K40: 705.5 | L40: 705.3 | M40: 677.9 | N40: 562.2 | O40: 540 | P40: 507.1 | Q40: 424.4 | R40: 418.9 | S40: 385.8 | T40: 0 | U40: 501.6 | V40: 622.8 | W40: 700 | X40: 0 | Y40: 0 | Z40: 396.8 | AA40: 706.6 | AB40: 749.6 | AC40: 639.3 | AD40: 633.8 | AE40: 628.3 | AF40: 611.8 | AG40: 529.1 | AH40: 529.1 | AI40: 470.7 | AJ40: 407.9 | AK40: 402.3 | AL40: 259
A41: 183-TL | B41: 0 | C41: 0 | D41: 0 | E41: 1605 | F41: 1802.3 | G41: 1802.3 | H41: 1934.6 | I41: 2000.7 | J41: 1901.5 | K41: 1901.5 | L41: 1703.1 | M41: 1675.5 | N41: 1322.8 | O41: 1229.1 | P41: 1234.6 | Q41: 1008.6 | R41: 970 | S41: 925.9 | T41: 0 | U41: 1179.5 | V41: 1422 | W41: 1631.4 | X41: 0 | Y41: 0 | Z41: 1003.1 | AA41: 1785.7 | AB41: 1792.4 | AC41: 1559.8 | AD41: 1510.2 | AE41: 1493.6 | AF41: 1328.3 | AG41: 1174 | AH41: 1174 | AI41: 1082.5 | AJ41: 903.9 | AK41: 903.9 | AL41: 534.6
A42: 205-SQ | B42: 0 | C42: 88.2 | D42: 0 | E42: 551.2 | F42: 700 | G42: 755.1 | H42: 826.7 | I42: 826.7 | J42: 766.1 | K42: 766.1 | L42: 766.1 | M42: 716.5 | N42: 617.3 | O42: 490.5 | P42: 440.9 | Q42: 374.8 | R42: 330.7 | S42: 143.3 | T42: 0 | U42: 485 | V42: 580.9 | W42: 639.3 | X42: 0 | Y42: 66.1 | Z42: 374.8 | AA42: 722 | AB42: 722 | AC42: 717.6 | AD42: 717.6 | AE42: 717.6 | AF42: 717.6 | AG42: 458.6 | AH42: 458.6 | AI42: 396.8 | AJ42: 319.7 | AK42: 319.7 | AL42: 0
A43: 205-BP | B43: 0 | C43: 93.7 | D43: 0 | E43: 374.8 | F43: 457.5 | G43: 512.6 | H43: 573.2 | I43: 589.7 | J43: 578.7 | K43: 573.2 | L43: 507.1 | M43: 479.5 | N43: 402.3 | O43: 326.3 | P43: 303 | Q43: 253.5 | R43: 225 | S43: 187.4 | T43: 0 | U43: 325.2 | V43: 402.3 | W43: 402.3 | X43: 0 | Y43: 71.7 | Z43: 264.6 | AA43: 440.9 | AB43: 507.1 | AC43: 507.1 | AD43: 507.1 | AE43: 474 | AF43: 463 | AG43: 369.3 | AH43: 275.6 | AI43: 254.6 | AJ43: 253.5 | AK43: 192.9 | AL43: 0
A44: 205-DL | B44: 0 | C44: 203.9 | D44: 0 | E44: 567.7 | F44: 711 | G44: 771.6 | H44: 832.2 | I44: 832.2 | J44: 756.2 | K44: 733 | L44: 723.1 | M44: 716.5 | N44: 584.2 | O44: 573.2 | P44: 540.1 | Q44: 440.7 | R44: 380.3 | S44: 275.6 | T44: 0 | U44: 523.6 | V44: 700 | W44: 722 | X44: 0 | Y44: 170.9 | Z44: 374.8 | AA44: 777.1 | AB44: 777.1 | AC44: 705.5 | AD44: 683.4 | AE44: 683.4 | AF44: 683.4 | AG44: 580 | AH44: 580 | AI44: 485 | AJ44: 397.9 | AK44: 397.9 | AL44: 0
A45: 205-TL | B45: 0 | C45: 385.8 | D45: 0 | E45: 1361.4 | F45: 1763.7 | G45: 1984.2 | H45: 2144 | I45: 2144 | J45: 1984.2 | K45: 1984.2 | L45: 1984.2 | M45: 1829.8 | N45: 1493.6 | O45: 1339.3 | P45: 1207 | Q45: 1014 | R45: 920.4 | S45: 606.3 | T45: 0 | U45: 1251.1 | V45: 1620.4 | W45: 1747.2 | X45: 0 | Y45: 308.6 | Z45: 1014.1 | AA45: 1851.9 | AB45: 1851.9 | AC45: 1829.8 | AD45: 1829.8 | AE45: 1829.8 | AF45: 1829.8 | AG45: 1350.3 | AH45: 1224.7 | AI45: 1124.4 | AJ45: 920.4 | AK45: 892.9 | AL45: 0
A46: 231-SQ | B46: 0 | C46: 0 | D46: 0 | E46: 611.8 | F46: 727.5 | G46: 744.1 | H46: 782.6 | I46: 843.3 | J46: 782.6 | K46: 782.6 | L46: 760.6 | M46: 705.5 | N46: 650.4 | O46: 551.2 | P46: 479.5 | Q46: 374.8 | R46: 253.5 | S46: 0 | T46: 0 | U46: 529.1 | V46: 617.3 | W46: 628.3 | X46: 0 | Y46: 0 | Z46: 308.6 | AA46: 688.9 | AB46: 730.8 | AC46: 644.9 | AD46: 606.3 | AE46: 606.3 | AF46: 606.3 | AG46: 518.1 | AH46: 429.9 | AI46: 396.8 | AJ46: 281.1 | AK46: 231.5 | AL46: 0
A47: 231-BP | B47: 0 | C47: 0 | D47: 0 | E47: 402.3 | F47: 457.5 | G47: 534.6 | H47: 628.3 | I47: 713.2 | J47: 535.7 | K47: 535.7 | L47: 534.6 | M47: 534.6 | N47: 501.6 | O47: 415 | P47: 385.8 | Q47: 325.2 | R47: 220.5 | S47: 0 | T47: 0 | U47: 325.2 | V47: 380.3 | W47: 413.4 | X47: 0 | Y47: 0 | Z47: 242.5 | AA47: 474 | AB47: 525.8 | AC47: 512.6 | AD47: 512.6 | AE47: 407.9 | AF47: 374.8 | AG47: 348.3 | AH47: 337.3 | AI47: 264.6 | AJ47: 237 | AK47: 226 | AL47: 0
A48: 231-DL | B48: 0 | C48: 0 | D48: 0 | E48: 578.7 | F48: 661.4 | G48: 710 | H48: 755 | I48: 832.2 | J48: 738.5 | K48: 733 | L48: 694.5 | M48: 694.5 | N48: 694.5 | O48: 573.2 | P48: 557.8 | Q48: 485 | R48: 325.2 | S48: 0 | T48: 0 | U48: 540.1 | V48: 633.8 | W48: 716.5 | X48: 0 | Y48: 0 | Z48: 347.2 | AA48: 766.1 | AB48: 810.2 | AC48: 694.5 | AD48: 650.4 | AE48: 650.4 | AF48: 650.4 | AG48: 611.8 | AH48: 508.2 | AI48: 463 | AJ48: 440.9 | AK48: 336.2 | AL48: 0
A49: 231-TL | B49: 0 | C49: 0 | D49: 0 | E49: 1504.7 | F49: 1686.5 | G49: 1901.5 | H49: 2000.7 | I49: 2173.8 | J49: 2017.2 | K49: 2017.2 | L49: 1843.1 | M49: 1813.3 | N49: 1697.6 | O49: 1390 | P49: 1350.3 | Q49: 1107.8 | R49: 799.2 | S49: 0 | T49: 0 | U49: 1394.4 | V49: 1620.4 | W49: 1752.7 | X49: 0 | Y49: 0 | Z49: 898.4 | AA49: 1857.4 | AB49: 1962.1 | AC49: 1704.2 | AD49: 1642.4 | AE49: 1576.3 | AF49: 1570.8 | AG49: 1322.8 | AH49: 1275.4 | AI49: 1113.3 | AJ49: 959 | AK49: 793.7 | AL49: 0
A50: 264-SQ | B50: 0 | C50: 0 | D50: 0 | E50: 622.8 | F50: 793.7 | G50: 805.8 | H50: 892.9 | I50: 910.5 | J50: 910.5 | K50: 909.4 | L50: 771.6 | M50: 700 | N50: 589.7 | O50: 545.6 | P50: 451.9 | Q50: 0 | R50: 0 | S50: 0 | T50: 0 | U50: 507.1 | V50: 617.3 | W50: 700 | X50: 0 | Y50: 0 | Z50: 330.7 | AA50: 821.2 | AB50: 851 | AC50: 834.4 | AD50: 834.4 | AE50: 834.4 | AF50: 606.3 | AG50: 512.6 | AH50: 512.6 | AI50: 413.4 | AJ50: 203.9 | AK50: 0 | AL50: 0
A51: 264-BP | B51: 0 | C51: 0 | D51: 0 | E51: 358.3 | F51: 540.1 | G51: 622.8 | H51: 650.4 | I51: 705.5 | J51: 688.9 | K51: 578.7 | L51: 578.7 | M51: 534.6 | N51: 429.9 | O51: 413.4 | P51: 363.8 | Q51: 0 | R51: 0 | S51: 0 | T51: 0 | U51: 319.7 | V51: 402.3 | W51: 451.9 | X51: 0 | Y51: 0 | Z51: 165.3 | AA51: 534.6 | AB51: 557.8 | AC51: 485 | AD51: 451.9 | AE51: 435.4 | AF51: 407.9 | AG51: 385.8 | AH51: 352.7 | AI51: 325.2 | AJ51: 242.5 | AK51: 0 | AL51: 0
A52: 264-DL | B52: 0 | C52: 0 | D52: 0 | E52: 573.2 | F52: 677.9 | G52: 727.5 | H52: 804.7 | I52: 821.2 | J52: 783.7 | K52: 733 | L52: 716.5 | M52: 705.5 | N52: 705.5 | O52: 620.6 | P52: 573.2 | Q52: 0 | R52: 0 | S52: 0 | T52: 0 | U52: 562.2 | V52: 622.8 | W52: 675 | X52: 0 | Y52: 0 | Z52: 341.7 | AA52: 804.7 | AB52: 820.1 | AC52: 820.1 | AD52: 820.1 | AE52: 755.1 | AF52: 644.9 | AG52: 617.3 | AH52: 617.3 | AI52: 507.1 | AJ52: 325.2 | AK52: 0 | AL52: 0
A53: 264-TL | B53: 0 | C53: 0 | D53: 0 | E53: 1521.2 | F53: 1923.5 | G53: 2095.5 | H53: 2281.8 | I53: 2298.3 | J53: 2238.8 | K53: 2110.9 | L53: 2083.4 | M53: 1813.3 | N53: 1581.8 | O53: 1556.5 | P53: 1372.4 | Q53: 0 | R53: 0 | S53: 0 | T53: 0 | U53: 1290.8 | V53: 1614.9 | W53: 1774.7 | X53: 0 | Y53: 0 | Z53: 837.8 | AA53: 1962.1 | AB53: 2157.2 | AC53: 2082.3 | AD53: 2082.3 | AE53: 1973.1 | AF53: 1587.3 | AG53: 1411 | AH53: 1411 | AI53: 1157.4 | AJ53: 738.5 | AK53: 0 | AL53: 0
A54: 264+-SQ | B54: 0 | C54: 0 | D54: 0 | E54: 639.3 | F54: 804.7 | G54: 936.5 | H54: 936.5 | I54: 1113.3 | J54: 950 | K54: 950 | L54: 887.4 | M54: 705.5 | N54: 683.4 | O54: 600.8 | P54: 463 | Q54: 203.9 | R54: 0 | S54: 0 | T54: 0 | U54: 727.5 | V54: 805.8 | W54: 938.1 | X54: 0 | Y54: 435.4 | Z54: 435.4 | AA54: 938.1 | AB54: 1069.2 | AC54: 749.6 | AD54: 744.1 | AE54: 727.5 | AF54: 567.7 | AG54: 502.7 | AH54: 418.9 | AI54: 402.3 | AJ54: 203.9 | AK54: 181.9 | AL54: 0
A55: 264+-BP | B55: 0 | C55: 0 | D55: 0 | E55: 385.8 | F55: 573.2 | G55: 600.8 | H55: 771.6 | I55: 903.9 | J55: 771.6 | K55: 655.9 | L55: 644.9 | M55: 644.9 | N55: 518.1 | O55: 429.9 | P55: 341.7 | Q55: 220.5 | R55: 0 | S55: 0 | T55: 0 | U55: 385.8 | V55: 418.9 | W55: 457.5 | X55: 0 | Y55: 297.6 | Z55: 297.6 | AA55: 518.1 | AB55: 585.3 | AC55: 573.2 | AD55: 540.1 | AE55: 512.6 | AF55: 418.9 | AG55: 405 | AH55: 319.7 | AI55: 319.7 | AJ55: 220.5 | AK55: 170.9 | AL55: 0
A56: 264+-DL | B56: 0 | C56: 0 | D56: 0 | E56: 567.7 | F56: 705 | G56: 700 | H56: 804.7 | I56: 903.9 | J56: 881.8 | K56: 755.1 | L56: 705.5 | M56: 705.3 | N56: 639.3 | O56: 567.7 | P56: 418.9 | Q56: 314.2 | R56: 0 | S56: 0 | T56: 0 | U56: 589.7 | V56: 633.8 | W56: 674.6 | X56: 0 | Y56: 485 | Z56: 485 | AA56: 739.7 | AB56: 865.3 | AC56: 837.8 | AD56: 837.8 | AE56: 716.5 | AF56: 611.8 | AG56: 551.2 | AH56: 540.1 | AI56: 402.3 | AJ56: 314.2 | AK56: 253.5 | AL56: 0
A57: 264+-TL | B57: 0 | C57: 0 | D57: 0 | E57: 1592.8 | F57: 2000.7 | G57: 2094.4 | H57: 2331.4 | I57: 2805.4 | J57: 2331.4 | K57: 2320.4 | L57: 2083.4 | M57: 1901.5 | N57: 1730.6 | O57: 1554.3 | P57: 1146.4 | Q57: 738.5 | R57: 0 | S57: 0 | T57: 0 | U57: 1592.8 | V57: 1742.8 | W57: 2029.4 | X57: 0 | Y57: 1218.1 | Z57: 1218.1 | AA57: 2055.8 | AB57: 2436.1 | AC57: 2066.8 | AD57: 2066.8 | AE57: 1913.6 | AF57: 1559.8 | AG57: 1372.4 | AH57: 1273.2 | AI57: 1124.4 | AJ57: 738.5 | AK57: 589.7 | AL57: 0
A58: 66-BPO | B58: 0 | C58: 0 | D58: 0 | E58: 0 | F58: 0 | G58: 0 | H58: 0 | I58: 0 | J58: 0 | K58: 0 | L58: 0 | M58: 0 | N58: 0 | O58: 0 | P58: 0 | Q58: 0 | R58: 0 | S58: 0 | T58: 0 | U58: 0 | V58: 0 | W58: 0 | X58: 57.3 | Y58: 57.3 | Z58: 57.3 | AA58: 0 | AB58: 0 | AC58: 0 | AD58: 0 | AE58: 0 | AF58: 0 | AG58: 0 | AH58: 0 | AI58: 0 | AJ58: 0 | AK58: 0 | AL58: 0
A59: 77-BPO | B59: 0 | C59: 0 | D59: 0 | E59: 0 | F59: 0 | G59: 0 | H59: 0 | I59: 0 | J59: 0 | K59: 0 | L59: 0 | M59: 0 | N59: 0 | O59: 0 | P59: 0 | Q59: 0 | R59: 0 | S59: 0 | T59: 0 | U59: 0 | V59: 0 | W59: 0 | X59: 66.1 | Y59: 66.1 | Z59: 66.1 | AA59: 0 | AB59: 0 | AC59: 0 | AD59: 0 | AE59: 0 | AF59: 0 | AG59: 0 | AH59: 0 | AI59: 0 | AJ59: 0 | AK59: 0 | AL59: 0
A60: 88-BPO | B60: 0 | C60: 0 | D60: 0 | E60: 0 | F60: 0 | G60: 0 | H60: 0 | I60: 0 | J60: 0 | K60: 0 | L60: 0 | M60: 0 | N60: 0 | O60: 0 | P60: 0 | Q60: 0 | R60: 0 | S60: 0 | T60: 0 | U60: 99.2 | V60: 99.2 | W60: 99.2 | X60: 0 | Y60: 99.2 | Z60: 110.2 | AA60: 99.2 | AB60: 99.2 | AC60: 0 | AD60: 0 | AE60: 0 | AF60: 0 | AG60: 0 | AH60: 0 | AI60: 0 | AJ60: 0 | AK60: 0 | AL60: 0
A61: 97-BPO | B61: 0 | C61: 0 | D61: 0 | E61: 0 | F61: 0 | G61: 0 | H61: 0 | I61: 0 | J61: 0 | K61: 0 | L61: 0 | M61: 0 | N61: 0 | O61: 0 | P61: 0 | Q61: 0 | R61: 0 | S61: 0 | T61: 0 | U61: 0 | V61: 0 | W61: 0 | X61: 71.7 | Y61: 88.2 | Z61: 126.8 | AA61: 0 | AB61: 0 | AC61: 0 | AD61: 0 | AE61: 0 | AF61: 0 | AG61: 0 | AH61: 0 | AI61: 0 | AJ61: 0 | AK61: 0 | AL61: 0
A62: 105-BPO | B62: 0 | C62: 0 | D62: 0 | E62: 0 | F62: 0 | G62: 0 | H62: 0 | I62: 0 | J62: 0 | K62: 0 | L62: 0 | M62: 0 | N62: 0 | O62: 0 | P62: 0 | Q62: 0 | R62: 0 | S62: 0 | T62: 0 | U62: 126.8 | V62: 126.8 | W62: 126.8 | X62: 49.6 | Y62: 93.7 | Z62: 137.8 | AA62: 126.8 | AB62: 126.8 | AC62: 0 | AD62: 0 | AE62: 0 | AF62: 0 | AG62: 0 | AH62: 0 | AI62: 0 | AJ62: 0 | AK62: 0 | AL62: 0
A63: 116-BPO | B63: 0 | C63: 78.3 | D63: 137.8 | E63: 215 | F63: 347.2 | G63: 347.2 | H63: 347.2 | I63: 319.7 | J63: 0 | K63: 0 | L63: 0 | M63: 0 | N63: 0 | O63: 0 | P63: 0 | Q63: 0 | R63: 0 | S63: 0 | T63: 0 | U63: 181.9 | V63: 209.4 | W63: 253.5 | X63: 44.1 | Y63: 99.2 | Z63: 159.8 | AA63: 259 | AB63: 253.5 | AC63: 0 | AD63: 0 | AE63: 0 | AF63: 0 | AG63: 0 | AH63: 0 | AI63: 0 | AJ63: 0 | AK63: 0 | AL63: 0
A64: 130-BPO | B64: 0 | C64: 0 | D64: 115.7 | E64: 275.6 | F64: 331.8 | G64: 331.8 | H64: 369.3 | I64: 314.2 | J64: 314.2 | K64: 330.7 | L64: 297.6 | M64: 297.6 | N64: 297.6 | O64: 264.6 | P64: 215 | Q64: 181.9 | R64: 126.8 | S64: 0 | T64: 0 | U64: 254.6 | V64: 254.6 | W64: 314.2 | X64: 88.2 | Y64: 88.2 | Z64: 159.8 | AA64: 330.7 | AB64: 341.7 | AC64: 253.5 | AD64: 237 | AE64: 232.6 | AF64: 232.6 | AG64: 232.6 | AH64: 226 | AI64: 187.4 | AJ64: 187.4 | AK64: 93.7 | AL64: 0
A65: 145-BPO | B65: 0 | C65: 0 | D65: 0 | E65: 292.1 | F65: 352.7 | G65: 470.7 | H65: 529.1 | I65: 529.1 | J65: 374.8 | K65: 374.8 | L65: 325.2 | M65: 292.1 | N65: 292.1 | O65: 303.1 | P65: 292.1 | Q65: 0 | R65: 88.2 | S65: 0 | T65: 0 | U65: 292.1 | V65: 303.1 | W65: 314.2 | X65: 0 | Y65: 126.8 | Z65: 172 | AA65: 369.3 | AB65: 374.8 | AC65: 325.2 | AD65: 325.2 | AE65: 314.2 | AF65: 314.2 | AG65: 282.2 | AH65: 281.1 | AI65: 215 | AJ65: 215 | AK65: 203.9 | AL65: 137.8
A66: 163-BPO | B66: 0 | C66: 0 | D66: 0 | E66: 319.7 | F66: 352.7 | G66: 468.5 | H66: 518.1 | I66: 518.1 | J66: 429.9 | K66: 429.9 | L66: 418.9 | M66: 386.9 | N66: 386.9 | O66: 319.7 | P66: 308.6 | Q66: 250.2 | R66: 231.5 | S66: 0 | T66: 0 | U66: 314.2 | V66: 314.2 | W66: 363.8 | X66: 0 | Y66: 110.2 | Z66: 215 | AA66: 425.5 | AB66: 429.9 | AC66: 402.3 | AD66: 402.3 | AE66: 396.8 | AF66: 327.4 | AG66: 327.4 | AH66: 282.2 | AI66: 282.2 | AJ66: 231.5 | AK66: 231.5 | AL66: 0
A67: 183-BPO | B67: 0 | C67: 0 | D67: 0 | E67: 365 | F67: 440.9 | G67: 485 | H67: 661.4 | I67: 661.4 | J67: 579.8 | K67: 562.2 | L67: 496 | M67: 474 | N67: 396.8 | O67: 374.8 | P67: 353.8 | Q67: 275.6 | R67: 237 | S67: 198.4 | T67: 82.7 | U67: 303.1 | V67: 385.8 | W67: 407.9 | X67: 0 | Y67: 0 | Z67: 215 | AA67: 429.9 | AB67: 446.4 | AC67: 479.5 | AD67: 435.4 | AE67: 435.4 | AF67: 352.7 | AG67: 325.2 | AH67: 303.1 | AI67: 303.1 | AJ67: 238.1 | AK67: 183 | AL67: 183
A68: 205-BPO | B68: 0 | C68: 93.7 | D68: 0 | E68: 374.8 | F68: 457.5 | G68: 573.2 | H68: 584.2 | I68: 705.5 | J68: 703.3 | K68: 606.3 | L68: 507.1 | M68: 481.7 | N68: 424.4 | O68: 424.4 | P68: 402.3 | Q68: 253.5 | R68: 242.5 | S68: 187.4 | T68: 0 | U68: 325.2 | V68: 440.9 | W68: 440.9 | X68: 0 | Y68: 71.7 | Z68: 264.6 | AA68: 440.9 | AB68: 514.8 | AC68: 514.8 | AD68: 514.8 | AE68: 490.5 | AF68: 463 | AG68: 369.3 | AH68: 319.7 | AI68: 314.2 | AJ68: 255.7 | AK68: 170.9 | AL68: 0
A69: 231-BPO | B69: 0 | C69: 0 | D69: 0 | E69: 402.3 | F69: 457.5 | G69: 636 | H69: 636 | I69: 743 | J69: 743 | K69: 743 | L69: 743 | M69: 556.7 | N69: 501.6 | O69: 374.8 | P69: 440.9 | Q69: 325.2 | R69: 275.6 | S69: 0 | T69: 0 | U69: 325.2 | V69: 380.3 | W69: 413.4 | X69: 0 | Y69: 0 | Z69: 242.5 | AA69: 474 | AB69: 534.6 | AC69: 512.6 | AD69: 512.6 | AE69: 429.9 | AF69: 413.4 | AG69: 374.8 | AH69: 352.7 | AI69: 319.7 | AJ69: 319.7 | AK69: 270.1 | AL69: 0
A70: 264-BPO | B70: 0 | C70: 0 | D70: 0 | E70: 374.8 | F70: 540.1 | G70: 623.9 | H70: 650.4 | I70: 785.9 | J70: 695.6 | K70: 666.9 | L70: 666.9 | M70: 534.6 | N70: 479.5 | O70: 440.9 | P70: 435.4 | Q70: 341.7 | R70: 0 | S70: 0 | T70: 0 | U70: 319.7 | V70: 358 | W70: 451.9 | X70: 0 | Y70: 0 | Z70: 165.3 | AA70: 534.6 | AB70: 557.8 | AC70: 529.1 | AD70: 529.1 | AE70: 529.1 | AF70: 457.5 | AG70: 418.9 | AH70: 352.7 | AI70: 325.2 | AJ70: 281.1 | AK70: 0 | AL70: 0
A71: 264+-BPO | B71: 0 | C71: 0 | D71: 0 | E71: 385.8 | F71: 573.2 | G71: 600.8 | H71: 771.6 | I71: 903.9 | J71: 848.8 | K71: 799.2 | L71: 705.5 | M71: 705.5 | N71: 633.8 | O71: 512.6 | P71: 396.8 | Q71: 220.5 | R71: 0 | S71: 0 | T71: 0 | U71: 385.8 | V71: 418.9 | W71: 457.5 | X71: 0 | Y71: 297.6 | Z71: 297.6 | AA71: 600.8 | AB71: 639.3 | AC71: 573.2 | AD71: 545.6 | AE71: 523.6 | AF71: 502.7 | AG71: 502.7 | AH71: 352.7 | AI71: 319.7 | AJ71: 286.6 | AK71: 170.9 | AL71: 0
A72: 66-DLO | B72: 0 | C72: 0 | D72: 0 | E72: 0 | F72: 0 | G72: 0 | H72: 0 | I72: 0 | J72: 0 | K72: 0 | L72: 0 | M72: 0 | N72: 0 | O72: 0 | P72: 0 | Q72: 0 | R72: 0 | S72: 0 | T72: 0 | U72: 0 | V72: 0 | W72: 0 | X72: 154.3 | Y72: 154.3 | Z72: 154.3 | AA72: 0 | AB72: 0 | AC72: 0 | AD72: 0 | AE72: 0 | AF72: 0 | AG72: 0 | AH72: 0 | AI72: 0 | AJ72: 0 | AK72: 0 | AL72: 0
A73: 77-DLO | B73: 0 | C73: 0 | D73: 0 | E73: 0 | F73: 0 | G73: 0 | H73: 0 | I73: 0 | J73: 0 | K73: 0 | L73: 0 | M73: 0 | N73: 0 | O73: 0 | P73: 0 | Q73: 0 | R73: 0 | S73: 0 | T73: 0 | U73: 0 | V73: 0 | W73: 0 | X73: 165.3 | Y73: 165.3 | Z73: 165.3 | AA73: 0 | AB73: 0 | AC73: 0 | AD73: 0 | AE73: 0 | AF73: 0 | AG73: 0 | AH73: 0 | AI73: 0 | AJ73: 0 | AK73: 0 | AL73: 0
A74: 88-DLO | B74: 0 | C74: 0 | D74: 0 | E74: 0 | F74: 0 | G74: 0 | H74: 0 | I74: 0 | J74: 0 | K74: 0 | L74: 0 | M74: 0 | N74: 0 | O74: 0 | P74: 0 | Q74: 0 | R74: 0 | S74: 0 | T74: 0 | U74: 198.4 | V74: 198.4 | W74: 198.4 | X74: 0 | Y74: 205 | Z74: 221.6 | AA74: 198.4 | AB74: 198.4 | AC74: 0 | AD74: 0 | AE74: 0 | AF74: 0 | AG74: 0 | AH74: 0 | AI74: 0 | AJ74: 0 | AK74: 0 | AL74: 0
A75: 97-DLO | B75: 0 | C75: 0 | D75: 0 | E75: 0 | F75: 314.2 | G75: 314.2 | H75: 314.2 | I75: 0 | J75: 0 | K75: 0 | L75: 0 | M75: 0 | N75: 0 | O75: 0 | P75: 0 | Q75: 0 | R75: 0 | S75: 0 | T75: 0 | U75: 0 | V75: 0 | W75: 0 | X75: 165.3 | Y75: 231.5 | Z75: 286.6 | AA75: 0 | AB75: 0 | AC75: 0 | AD75: 0 | AE75: 0 | AF75: 0 | AG75: 0 | AH75: 0 | AI75: 0 | AJ75: 0 | AK75: 0 | AL75: 0
A76: 105-DLO | B76: 0 | C76: 0 | D76: 0 | E76: 0 | F76: 0 | G76: 0 | H76: 0 | I76: 0 | J76: 0 | K76: 0 | L76: 0 | M76: 0 | N76: 0 | O76: 0 | P76: 0 | Q76: 0 | R76: 0 | S76: 0 | T76: 0 | U76: 215 | V76: 215 | W76: 215 | X76: 121.3 | Y76: 192.9 | Z76: 303.1 | AA76: 215 | AB76: 215 | AC76: 0 | AD76: 0 | AE76: 0 | AF76: 0 | AG76: 0 | AH76: 0 | AI76: 0 | AJ76: 0 | AK76: 0 | AL76: 0
A77: 116-DLO | B77: 0 | C77: 215 | D77: 264.6 | E77: 429.9 | F77: 457.5 | G77: 507.1 | H77: 567.7 | I77: 523.6 | J77: 0 | K77: 0 | L77: 0 | M77: 0 | N77: 0 | O77: 0 | P77: 0 | Q77: 0 | R77: 0 | S77: 0 | T77: 0 | U77: 443.1 | V77: 443.1 | W77: 507.1 | X77: 115.7 | Y77: 248 | Z77: 308.6 | AA77: 598.6 | AB77: 512.6 | AC77: 0 | AD77: 0 | AE77: 0 | AF77: 0 | AG77: 0 | AH77: 0 | AI77: 0 | AJ77: 0 | AK77: 0 | AL77: 0
A78: 130-DLO | B78: 0 | C78: 0 | D78: 253.5 | E78: 451.9 | F78: 479.5 | G78: 501.6 | H78: 569.9 | I78: 578.7 | J78: 562.2 | K78: 562.2 | L78: 556.7 | M78: 391.3 | N78: 391.3 | O78: 391.3 | P78: 391.3 | Q78: 0 | R78: 0 | S78: 0 | T78: 0 | U78: 443.1 | V78: 479.5 | W78: 534.6 | X78: 132.3 | Y78: 220.5 | Z78: 303.1 | AA78: 551.2 | AB78: 556.7 | AC78: 556.7 | AD78: 556.7 | AE78: 556.7 | AF78: 443.1 | AG78: 443.1 | AH78: 303.1 | AI78: 352.7 | AJ78: 226 | AK78: 226 | AL78: 0
A79: 145-DLO | B79: 0 | C79: 0 | D79: 0 | E79: 485 | F79: 529.1 | G79: 573.2 | H79: 606.3 | I79: 611.8 | J79: 600 | K79: 600 | L79: 600 | M79: 496 | N79: 463 | O79: 463 | P79: 347.2 | Q79: 0 | R79: 0 | S79: 0 | T79: 0 | U79: 451.9 | V79: 468.5 | W79: 502.7 | X79: 0 | Y79: 165.3 | Z79: 341.7 | AA79: 595.2 | AB79: 611.8 | AC79: 578.7 | AD79: 518.1 | AE79: 507.1 | AF79: 451.9 | AG79: 418.9 | AH79: 331.8 | AI79: 331.8 | AJ79: 270.1 | AK79: 220.5 | AL79: 220.5
A80: 163-DLO | B80: 0 | C80: 0 | D80: 0 | E80: 501.6 | F80: 645.1 | G80: 655.9 | H80: 727.5 | I80: 727.5 | J80: 666.9 | K80: 584.2 | L80: 600.8 | M80: 562.2 | N80: 507.1 | O80: 496 | P80: 485 | Q80: 435.4 | R80: 275.6 | S80: 0 | T80: 0 | U80: 424.4 | V80: 556.7 | W80: 618.4 | X80: 0 | Y80: 0 | Z80: 402.3 | AA80: 672.4 | AB80: 677.9 | AC80: 677.9 | AD80: 529.1 | AE80: 529.1 | AF80: 529.1 | AG80: 446.4 | AH80: 429.9 | AI80: 429.9 | AJ80: 369.3 | AK80: 341.7 | AL80: 0
A81: 183-DLO | B81: 0 | C81: 0 | D81: 0 | E81: 611.8 | F81: 683.4 | G81: 688.9 | H81: 722 | I81: 749.6 | J81: 733 | K81: 705.5 | L81: 705.5 | M81: 677.9 | N81: 562.2 | O81: 540.1 | P81: 507.1 | Q81: 424.4 | R81: 418.9 | S81: 385.8 | T81: 0 | U81: 501.6 | V81: 622.8 | W81: 700 | X81: 0 | Y81: 0 | Z81: 396.8 | AA81: 706.6 | AB81: 749.6 | AC81: 639.3 | AD81: 633.8 | AE81: 628.3 | AF81: 611.8 | AG81: 529.1 | AH81: 529.1 | AI81: 470.7 | AJ81: 407.9 | AK81: 402.3 | AL81: 259
A82: 205-DLO | B82: 0 | C82: 203.9 | D82: 0 | E82: 567.7 | F82: 711 | G82: 810.2 | H82: 832.2 | I82: 832.2 | J82: 770 | K82: 733 | L82: 723.1 | M82: 716.5 | N82: 584.2 | O82: 573.2 | P82: 540.1 | Q82: 440.9 | R82: 380.3 | S82: 275.6 | T82: 0 | U82: 523.6 | V82: 700 | W82: 722 | X82: 0 | Y82: 170.9 | Z82: 374.8 | AA82: 777.1 | AB82: 777.1 | AC82: 705.5 | AD82: 688.9 | AE82: 688.9 | AF82: 688.9 | AG82: 610.7 | AH82: 580 | AI82: 485 | AJ82: 397.9 | AK82: 397.9 | AL82: 0
A83: 231-DLO | B83: 0 | C83: 0 | D83: 0 | E83: 578.7 | F83: 661.4 | G83: 710 | H83: 843.3 | I83: 854.3 | J83: 738.5 | K83: 677.9 | L83: 677.9 | M83: 672.4 | N83: 694.5 | O83: 573.2 | P83: 557.8 | Q83: 485 | R83: 0 | S83: 0 | T83: 0 | U83: 540.1 | V83: 633.8 | W83: 716.5 | X83: 0 | Y83: 0 | Z83: 347.2 | AA83: 766.1 | AB83: 810.2 | AC83: 694.5 | AD83: 650.4 | AE83: 650.4 | AF83: 650.4 | AG83: 611.8 | AH83: 508.2 | AI83: 463 | AJ83: 440.9 | AK83: 0 | AL83: 0
A84: 264-DLO | B84: 0 | C84: 0 | D84: 0 | E84: 1521.2 | F84: 1521.2 | G84: 1521.2 | H84: 1521.2 | I84: 821.2 | J84: 783.7 | K84: 783.7 | L84: 766.1 | M84: 665 | N84: 705.5 | O84: 620.6 | P84: 573.2 | Q84: 0 | R84: 0 | S84: 0 | T84: 0 | U84: 562.2 | V84: 622.8 | W84: 675 | X84: 0 | Y84: 0 | Z84: 341.7 | AA84: 804.7 | AB84: 820.1 | AC84: 820.1 | AD84: 820.1 | AE84: 755.1 | AF84: 644.9 | AG84: 617.3 | AH84: 617.3 | AI84: 507.1 | AJ84: 391.3 | AK84: 0 | AL84: 0
A85: 264+-DLO | B85: 0 | C85: 0 | D85: 0 | E85: 600.8 | F85: 705 | G85: 705.5 | H85: 850 | I85: 903.9 | J85: 881.8 | K85: 800 | L85: 705.5 | M85: 705.5 | N85: 639.3 | O85: 567.7 | P85: 418.9 | Q85: 314.2 | R85: 0 | S85: 0 | T85: 0 | U85: 589.7 | V85: 633.8 | W85: 674.6 | X85: 0 | Y85: 485 | Z85: 485 | AA85: 739.7 | AB85: 865.3 | AC85: 837.8 | AD85: 837.8 | AE85: 716.5 | AF85: 617.3 | AG85: 555 | AH85: 540.1 | AI85: 402.3 | AJ85: 314.2 | AK85: 0 | AL85: 0
A86: 66-SQ | B86: 0 | C86: 0 | D86: 0 | E86: 0 | F86: 0 | G86: 0 | H86: 0 | I86: 0 | J86: 0 | K86: 0 | L86: 0 | M86: 0 | N86: 0 | O86: 0 | P86: 0 | Q86: 0 | R86: 0 | S86: 0 | T86: 0 | U86: 0 | V86: 0 | W86: 0 | X86: 104.7 | Y86: 104.7 | Z86: 104.7 | AA86: 0 | AB86: 0 | AC86: 0 | AD86: 0 | AE86: 0 | AF86: 0 | AG86: 0 | AH86: 0 | AI86: 0 | AJ86: 0 | AK86: 0 | AL86: 0
A87: 66-BP | B87: 0 | C87: 0 | D87: 0 | E87: 0 | F87: 0 | G87: 0 | H87: 0 | I87: 0 | J87: 0 | K87: 0 | L87: 0 | M87: 0 | N87: 0 | O87: 0 | P87: 0 | Q87: 0 | R87: 0 | S87: 0 | T87: 0 | U87: 0 | V87: 0 | W87: 0 | X87: 55.1 | Y87: 56.2 | Z87: 56.2 | AA87: 0 | AB87: 0 | AC87: 0 | AD87: 0 | AE87: 0 | AF87: 0 | AG87: 0 | AH87: 0 | AI87: 0 | AJ87: 0 | AK87: 0 | AL87: 0
A88: 66-DL | B88: 0 | C88: 0 | D88: 0 | E88: 0 | F88: 0 | G88: 0 | H88: 0 | I88: 0 | J88: 0 | K88: 0 | L88: 0 | M88: 0 | N88: 0 | O88: 0 | P88: 0 | Q88: 0 | R88: 0 | S88: 0 | T88: 0 | U88: 0 | V88: 0 | W88: 0 | X88: 132.3 | Y88: 143.3 | Z88: 143.3 | AA88: 0 | AB88: 0 | AC88: 0 | AD88: 0 | AE88: 0 | AF88: 0 | AG88: 0 | AH88: 0 | AI88: 0 | AJ88: 0 | AK88: 0 | AL88: 0
A89: 66-TL | B89: 0 | C89: 0 | D89: 0 | E89: 0 | F89: 0 | G89: 0 | H89: 0 | I89: 0 | J89: 0 | K89: 0 | L89: 0 | M89: 0 | N89: 0 | O89: 0 | P89: 0 | Q89: 0 | R89: 0 | S89: 0 | T89: 0 | U89: 0 | V89: 0 | W89: 0 | X89: 270.1 | Y89: 298.7 | Z89: 298.7 | AA89: 0 | AB89: 0 | AC89: 0 | AD89: 0 | AE89: 0 | AF89: 0 | AG89: 0 | AH89: 0 | AI89: 0 | AJ89: 0 | AK89: 0 | AL89: 0
A90: 77-SQ | B90: 99.2 | C90: 0 | D90: 0 | E90: 0 | F90: 0 | G90: 0 | H90: 0 | I90: 0 | J90: 0 | K90: 0 | L90: 0 | M90: 0 | N90: 0 | O90: 0 | P90: 0 | Q90: 0 | R90: 0 | S90: 0 | T90: 0 | U90: 0 | V90: 0 | W90: 0 | X90: 133.4 | Y90: 133.4 | Z90: 133.4 | AA90: 0 | AB90: 0 | AC90: 0 | AD90: 0 | AE90: 0 | AF90: 0 | AG90: 0 | AH90: 0 | AI90: 0 | AJ90: 0 | AK90: 0 | AL90: 0
A91: 77-BP | B91: 55.1 | C91: 0 | D91: 0 | E91: 0 | F91: 0 | G91: 0 | H91: 0 | I91: 0 | J91: 0 | K91: 0 | L91: 0 | M91: 0 | N91: 0 | O91: 0 | P91: 0 | Q91: 0 | R91: 0 | S91: 0 | T91: 0 | U91: 0 | V91: 0 | W91: 0 | X91: 68.3 | Y91: 68.3 | Z91: 68.3 | AA91: 0 | AB91: 0 | AC91: 0 | AD91: 0 | AE91: 0 | AF91: 0 | AG91: 0 | AH91: 0 | AI91: 0 | AJ91: 0 | AK91: 0 | AL91: 0
A92: 77-DL | B92: 126.8 | C92: 0 | D92: 0 | E92: 0 | F92: 0 | G92: 0 | H92: 0 | I92: 0 | J92: 0 | K92: 0 | L92: 0 | M92: 0 | N92: 0 | O92: 0 | P92: 0 | Q92: 0 | R92: 0 | S92: 0 | T92: 0 | U92: 0 | V92: 0 | W92: 0 | X92: 167.6 | Y92: 167.6 | Z92: 167.6 | AA92: 0 | AB92: 0 | AC92: 0 | AD92: 0 | AE92: 0 | AF92: 0 | AG92: 0 | AH92: 0 | AI92: 0 | AJ92: 0 | AK92: 0 | AL92: 0
A93: 77-TL | B93: 281.1 | C93: 0 | D93: 0 | E93: 0 | F93: 0 | G93: 0 | H93: 0 | I93: 0 | J93: 0 | K93: 0 | L93: 0 | M93: 0 | N93: 0 | O93: 0 | P93: 0 | Q93: 0 | R93: 0 | S93: 0 | T93: 0 | U93: 0 | V93: 0 | W93: 0 | X93: 367.1 | Y93: 367.1 | Z93: 367.1 | AA93: 0 | AB93: 0 | AC93: 0 | AD93: 0 | AE93: 0 | AF93: 0 | AG93: 0 | AH93: 0 | AI93: 0 | AJ93: 0 | AK93: 0 | AL93: 0
A94: 88-SQ | B94: 0 | C94: 0 | D94: 0 | E94: 0 | F94: 0 | G94: 0 | H94: 0 | I94: 0 | J94: 0 | K94: 0 | L94: 0 | M94: 0 | N94: 0 | O94: 0 | P94: 0 | Q94: 0 | R94: 0 | S94: 0 | T94: 0 | U94: 0 | V94: 0 | W94: 0 | X94: 104.7 | Y94: 155.4 | Z94: 155.4 | AA94: 0 | AB94: 0 | AC94: 0 | AD94: 0 | AE94: 0 | AF94: 0 | AG94: 0 | AH94: 0 | AI94: 0 | AJ94: 0 | AK94: 0 | AL94: 0
A95: 88-BP | B95: 0 | C95: 0 | D95: 0 | E95: 0 | F95: 0 | G95: 0 | H95: 0 | I95: 0 | J95: 0 | K95: 0 | L95: 0 | M95: 0 | N95: 0 | O95: 0 | P95: 0 | Q95: 0 | R95: 0 | S95: 0 | T95: 0 | U95: 0 | V95: 0 | W95: 0 | X95: 66.1 | Y95: 99.2 | Z95: 99.2 | AA95: 0 | AB95: 0 | AC95: 0 | AD95: 0 | AE95: 0 | AF95: 0 | AG95: 0 | AH95: 0 | AI95: 0 | AJ95: 0 | AK95: 0 | AL95: 0
A96: 88-DL | B96: 0 | C96: 0 | D96: 0 | E96: 0 | F96: 0 | G96: 0 | H96: 0 | I96: 0 | J96: 0 | K96: 0 | L96: 0 | M96: 0 | N96: 0 | O96: 0 | P96: 0 | Q96: 0 | R96: 0 | S96: 0 | T96: 0 | U96: 0 | V96: 0 | W96: 0 | X96: 159.8 | Y96: 192.9 | Z96: 200 | AA96: 0 | AB96: 0 | AC96: 0 | AD96: 0 | AE96: 0 | AF96: 0 | AG96: 0 | AH96: 0 | AI96: 0 | AJ96: 0 | AK96: 0 | AL96: 0
A97: 88-TL | B97: 0 | C97: 0 | D97: 0 | E97: 0 | F97: 0 | G97: 0 | H97: 0 | I97: 0 | J97: 0 | K97: 0 | L97: 0 | M97: 0 | N97: 0 | O97: 0 | P97: 0 | Q97: 0 | R97: 0 | S97: 0 | T97: 0 | U97: 0 | V97: 0 | W97: 0 | X97: 325.2 | Y97: 446.4 | Z97: 446.4 | AA97: 0 | AB97: 0 | AC97: 0 | AD97: 0 | AE97: 0 | AF97: 0 | AG97: 0 | AH97: 0 | AI97: 0 | AJ97: 0 | AK97: 0 | AL97: 0
A98: 94-SQ | B98: 0 | C98: 0 | D98: 0 | E98: 203.9 | F98: 303.1 | G98: 303.1 | H98: 303.1 | I98: 275.6 | J98: 0 | K98: 0 | L98: 0 | M98: 0 | N98: 0 | O98: 0 | P98: 0 | Q98: 0 | R98: 0 | S98: 0 | T98: 0 | U98: 215 | V98: 221.6 | W98: 221.6 | X98: 0 | Y98: 143.3 | Z98: 165.3 | AA98: 221.6 | AB98: 187.4 | AC98: 0 | AD98: 0 | AE98: 0 | AF98: 0 | AG98: 0 | AH98: 0 | AI98: 0 | AJ98: 0 | AK98: 0 | AL98: 0
A99: 94-BP | B99: 0 | C99: 0 | D99: 0 | E99: 104.7 | F99: 170.9 | G99: 183 | H99: 183 | I99: 137.8 | J99: 0 | K99: 0 | L99: 0 | M99: 0 | N99: 0 | O99: 0 | P99: 0 | Q99: 0 | R99: 0 | S99: 0 | T99: 0 | U99: 115.7 | V99: 137.8 | W99: 154.3 | X99: 0 | Y99: 71.7 | Z99: 94.8 | AA99: 154.3 | AB99: 137.8 | AC99: 0 | AD99: 0 | AE99: 0 | AF99: 0 | AG99: 0 | AH99: 0 | AI99: 0 | AJ99: 0 | AK99: 0 | AL99: 0
A100: 94-DL | B100: 0 | C100: 0 | D100: 0 | E100: 203.9 | F100: 314.2 | G100: 314.2 | H100: 314.2 | I100: 314.2 | J100: 0 | K100: 0 | L100: 0 | M100: 0 | N100: 0 | O100: 0 | P100: 0 | Q100: 0 | R100: 0 | S100: 0 | T100: 0 | U100: 231.5 | V100: 275.6 | W100: 275.6 | X100: 0 | Y100: 165.3 | Z100: 203.9 | AA100: 275.6 | AB100: 275.6 | AC100: 0 | AD100: 0 | AE100: 0 | AF100: 0 | AG100: 0 | AH100: 0 | AI100: 0 | AJ100: 0 | AK100: 0 | AL100: 0
A101: 94-TL | B101: 0 | C101: 0 | D101: 0 | E101: 622.8 | F101: 755.1 | G101: 767.2 | H101: 767.2 | I101: 705.5 | J101: 457.5 | K101: 0 | L101: 0 | M101: 0 | N101: 0 | O101: 0 | P101: 0 | Q101: 0 | R101: 0 | S101: 0 | T101: 0 | U101: 556.7 | V101: 600.8 | W101: 611.8 | X101: 0 | Y101: 380.3 | Z101: 457.5 | AA101: 611.8 | AB101: 600.8 | AC101: 457.5 | AD101: 523.6 | AE101: 0 | AF101: 0 | AG101: 0 | AH101: 0 | AI101: 0 | AJ101: 0 | AK101: 0 | AL101: 0
A102: 103-SQ | B102: 0 | C102: 0 | D102: 115.7 | E102: 292.1 | F102: 303.1 | G102: 308.6 | H102: 336.2 | I102: 363.8 | J102: 292.1 | K102: 292.1 | L102: 270.1 | M102: 248 | N102: 226 | O102: 226 | P102: 220.5 | Q102: 0 | R102: 0 | S102: 0 | T102: 0 | U102: 231.5 | V102: 231.5 | W102: 231.5 | X102: 104.7 | Y102: 104.7 | Z102: 215 | AA102: 275.6 | AB102: 314.2 | AC102: 275.6 | AD102: 226 | AE102: 226 | AF102: 194 | AG102: 194 | AH102: 194 | AI102: 187.4 | AJ102: 0 | AK102: 0 | AL102: 0
A103: 103-BP | B103: 0 | C103: 0 | D103: 82.7 | E103: 159.8 | F103: 181.9 | G103: 181.9 | H103: 203.9 | I103: 203.9 | J103: 170 | K103: 170 | L103: 143.3 | M103: 143.3 | N103: 110.2 | O103: 110.2 | P103: 99.2 | Q103: 0 | R103: 0 | S103: 0 | T103: 0 | U103: 143.3 | V103: 143.3 | W103: 165.3 | X103: 60.6 | Y103: 60.6 | Z103: 143.3 | AA103: 187.4 | AB103: 187.4 | AC103: 143.3 | AD103: 105.8 | AE103: 105.8 | AF103: 99.2 | AG103: 99.2 | AH103: 99.2 | AI103: 88.2 | AJ103: 0 | AK103: 0 | AL103: 0
A104: 103-DL | B104: 0 | C104: 0 | D104: 170.9 | E104: 325.2 | F104: 325.2 | G104: 352.7 | H104: 358.3 | I104: 358.3 | J104: 336.2 | K104: 336.2 | L104: 319.7 | M104: 314.2 | N104: 281.1 | O104: 281.1 | P104: 281.1 | Q104: 0 | R104: 0 | S104: 0 | T104: 0 | U104: 275.6 | V104: 275.6 | W104: 292.1 | X104: 159.8 | Y104: 159.8 | Z104: 270.1 | AA104: 332.9 | AB104: 402.3 | AC104: 325.2 | AD104: 264.6 | AE104: 264.6 | AF104: 264.6 | AG104: 264.6 | AH104: 264.6 | AI104: 264.6 | AJ104: 0 | AK104: 0 | AL104: 0
A105: 103-TL | B105: 0 | C105: 534.6 | D105: 534.6 | E105: 771.6 | F105: 766.1 | G105: 815.7 | H105: 865.3 | I105: 887.4 | J105: 788.2 | K105: 788.2 | L105: 722 | M105: 700 | N105: 600.8 | O105: 600.8 | P105: 600.8 | Q105: 0 | R105: 0 | S105: 0 | T105: 0 | U105: 628.3 | V105: 628.3 | W105: 644.9 | X105: 325.2 | Y105: 391.3 | Z105: 628.3 | AA105: 738.5 | AB105: 876.3 | AC105: 738.5 | AD105: 584.2 | AE105: 584.2 | AF105: 553.4 | AG105: 553.4 | AH105: 553.4 | AI105: 540.1 | AJ105: 0 | AK105: 0 | AL105: 0
A106: 114-SQ | B106: 0 | C106: 0 | D106: 220.5 | E106: 352.7 | F106: 391.3 | G106: 396.8 | H106: 427.7 | I106: 427.7 | J106: 402.3 | K106: 402.3 | L106: 286.6 | M106: 264.6 | N106: 253.5 | O106: 220.5 | P106: 167.6 | Q106: 167.6 | R106: 0 | S106: 0 | T106: 80 | U106: 226 | V106: 237 | W106: 259 | X106: 44.1 | Y106: 165.3 | Z106: 176.4 | AA106: 314.2 | AB106: 345 | AC106: 345 | AD106: 345 | AE106: 336.2 | AF106: 220.5 | AG106: 220.5 | AH106: 187.4 | AI106: 176.4 | AJ106: 143.3 | AK106: 0 | AL106: 0
A107: 114-BP | B107: 0 | C107: 0 | D107: 115.7 | E107: 226 | F107: 226 | G107: 226 | H107: 292.1 | I107: 292.1 | J107: 242.5 | K107: 203.9 | L107: 170.9 | M107: 165.3 | N107: 165.3 | O107: 112.4 | P107: 112.4 | Q107: 112.4 | R107: 0 | S107: 0 | T107: 50 | U107: 154.3 | V107: 154.3 | W107: 176.4 | X107: 44.1 | Y107: 99.2 | Z107: 104.7 | AA107: 181.9 | AB107: 215 | AC107: 215 | AD107: 177.5 | AE107: 177.5 | AF107: 143.3 | AG107: 143.3 | AH107: 115.7 | AI107: 115.7 | AJ107: 93.7 | AK107: 0 | AL107: 0
A108: 114-DL | B108: 0 | C108: 0 | D108: 198.4 | E108: 374.8 | F108: 403.4 | G108: 396.8 | H108: 403.4 | I108: 424.4 | J108: 374.8 | K108: 374.8 | L108: 347.2 | M108: 319.7 | N108: 272.3 | O108: 226 | P108: 194 | Q108: 194 | R108: 0 | S108: 0 | T108: 135 | U108: 292.1 | V108: 292.1 | W108: 325 | X108: 77.2 | Y108: 243.6 | Z108: 209.4 | AA108: 367.1 | AB108: 413.4 | AC108: 413.4 | AD108: 358.3 | AE108: 348.3 | AF108: 292.1 | AG108: 292.1 | AH108: 254.6 | AI108: 254.6 | AJ108: 176.4 | AK108: 0 | AL108: 0
A109: 114-TL | B109: 0 | C109: 0 | D109: 534.6 | E109: 876.3 | F109: 937 | G109: 964.5 | H109: 1105.6 | I109: 1105.6 | J109: 975.5 | K109: 970 | L109: 771.6 | M109: 744.1 | N109: 644.8 | O109: 551.2 | P109: 465.2 | Q109: 465.2 | R109: 0 | S109: 0 | T109: 265 | U109: 650.4 | V109: 661.4 | W109: 722 | X109: 165.3 | Y109: 508.2 | Z109: 463 | AA109: 801.4 | AB109: 948 | AC109: 948 | AD109: 868.6 | AE109: 862 | AF109: 650.4 | AG109: 650.4 | AH109: 545.6 | AI109: 497.1 | AJ109: 413.4 | AK109: 0 | AL109: 0
A110: 125-SQ | B110: 0 | C110: 0 | D110: 0 | E110: 363.8 | F110: 440.9 | G110: 451.9 | H110: 451.9 | I110: 451.9 | J110: 341.7 | K110: 330.7 | L110: 330.7 | M110: 270.1 | N110: 226 | O110: 165.3 | P110: 165.3 | Q110: 165.3 | R110: 0 | S110: 0 | T110: 0 | U110: 286.6 | V110: 315.3 | W110: 315.3 | X110: 0 | Y110: 170.9 | Z110: 226 | AA110: 336.2 | AB110: 384.7 | AC110: 314.2 | AD110: 292.1 | AE110: 276.7 | AF110: 198.4 | AG110: 192.9 | AH110: 187.4 | AI110: 154.3 | AJ110: 137.8 | AK110: 0 | AL110: 0
A111: 125-BP | B111: 0 | C111: 0 | D111: 0 | E111: 183 | F111: 242.5 | G111: 253.5 | H111: 303.1 | I111: 303.1 | J111: 264.6 | K111: 215 | L111: 215 | M111: 215 | N111: 157.6 | O111: 157.6 | P111: 157.6 | Q111: 157.6 | R111: 0 | S111: 0 | T111: 0 | U111: 165.3 | V111: 187.4 | W111: 209.4 | X111: 0 | Y111: 99.2 | Z111: 138.9 | AA111: 209.4 | AB111: 220.5 | AC111: 176.4 | AD111: 176.4 | AE111: 176.4 | AF111: 143.3 | AG111: 132.3 | AH111: 104.7 | AI111: 99.2 | AJ111: 88.2 | AK111: 0 | AL111: 0
A112: 125-DL | B112: 0 | C112: 0 | D112: 0 | E112: 385.8 | F112: 404.5 | G112: 424.4 | H112: 424.4 | I112: 435.4 | J112: 402.3 | K112: 391.3 | L112: 391.3 | M112: 325.2 | N112: 292.1 | O112: 209.4 | P112: 203.9 | Q112: 198.4 | R112: 0 | S112: 0 | T112: 0 | U112: 303.1 | V112: 369.3 | W112: 374.8 | X112: 0 | Y112: 203.9 | Z112: 249.1 | AA112: 407.9 | AB112: 425.5 | AC112: 358.3 | AD112: 358.3 | AE112: 332.9 | AF112: 275.6 | AG112: 264.6 | AH112: 253.5 | AI112: 215 | AJ112: 170.9 | AK112: 0 | AL112: 0
A113: 125-TL | B113: 0 | C113: 0 | D113: 391.3 | E113: 909.4 | F113: 1048.3 | G113: 1102.3 | H113: 1151.9 | I113: 1151.9 | J113: 981.1 | K113: 876.3 | L113: 865.3 | M113: 804.7 | N113: 644.9 | O113: 457.5 | P113: 457.5 | Q113: 457.5 | R113: 0 | S113: 0 | T113: 0 | U113: 722 | V113: 815.7 | W113: 859.8 | X113: 391.3 | Y113: 474 | Z113: 578.7 | AA113: 921.5 | AB113: 1020.7 | AC113: 816.8 | AD113: 766.1 | AE113: 739.7 | AF113: 617.3 | AG113: 589.7 | AH113: 545.6 | AI113: 468.5 | AJ113: 396.8 | AK113: 0 | AL113: 0
A114: 138-SQ | B114: 0 | C114: 82.7 | D114: 0 | E114: 363.8 | F114: 402.3 | G114: 446.4 | H114: 446.4 | I114: 474 | J114: 440.9 | K114: 413.4 | L114: 385.8 | M114: 358.3 | N114: 242.5 | O114: 242.5 | P114: 198.4 | Q114: 148.8 | R114: 0 | S114: 0 | T114: 0 | U114: 321.9 | V114: 321.9 | W114: 336.2 | X114: 0 | Y114: 149.9 | Z114: 237 | AA114: 352.7 | AB114: 396.8 | AC114: 341.7 | AD114: 341.7 | AE114: 292.1 | AF114: 288.8 | AG114: 226 | AH114: 198.4 | AI114: 181.9 | AJ114: 71.7 | AK114: 0 | AL114: 0
A115: 138-BP | B115: 0 | C115: 55.1 | D115: 0 | E115: 203.9 | F115: 226 | G115: 259 | H115: 275.6 | I115: 330.7 | J115: 309.7 | K115: 286.6 | L115: 286.6 | M115: 187.4 | N115: 165.3 | O115: 159.8 | P115: 159.8 | Q115: 77.2 | R115: 0 | S115: 0 | T115: 0 | U115: 143.3 | V115: 181.9 | W115: 209.4 | X115: 0 | Y115: 71.7 | Z115: 127.9 | AA115: 220.5 | AB115: 314.2 | AC115: 314.2 | AD115: 314.2 | AE115: 176.4 | AF115: 165.3 | AG115: 160.9 | AH115: 137.8 | AI115: 137.8 | AJ115: 71.7 | AK115: 0 | AL115: 0
A116: 138-DL | B116: 0 | C116: 115.7 | D116: 0 | E116: 400 | F116: 451.9 | G116: 474 | H116: 474 | I116: 501.6 | J116: 435.4 | K116: 418.9 | L116: 403.4 | M116: 396.8 | N116: 303.1 | O116: 286.6 | P116: 286.6 | Q116: 176.4 | R116: 0 | S116: 0 | T116: 0 | U116: 362.7 | V116: 366 | W116: 429.9 | X116: 0 | Y116: 210.5 | Z116: 308.6 | AA116: 435.4 | AB116: 487.2 | AC116: 446.4 | AD116: 446.4 | AE116: 386.9 | AF116: 352.7 | AG116: 298.7 | AH116: 275.6 | AI116: 275.6 | AJ116: 132.3 | AK116: 0 | AL116: 0
A117: 138-TL | B117: 0 | C117: 253.5 | D117: 0 | E117: 920.4 | F117: 1052.7 | G117: 1102.3 | H117: 1102.3 | I117: 1207 | J117: 1118.8 | K117: 1008.6 | L117: 997.6 | M117: 920.4 | N117: 688.9 | O117: 655.9 | P117: 644.9 | Q117: 402.3 | R117: 0 | S117: 0 | T117: 0 | U117: 800.3 | V117: 828.9 | W117: 920.4 | X117: 0 | Y117: 424.4 | Z117: 673.5 | AA117: 975.5 | AB117: 1101.2 | AC117: 1101.2 | AD117: 1101.2 | AE117: 778.2 | AF117: 777.1 | AG117: 685.6 | AH117: 595.2 | AI117: 589.7 | AJ117: 275.6 | AK117: 0 | AL117: 0
A118: 158-SQ | B118: 0 | C118: 0 | D118: 0 | E118: 385.8 | F118: 440.9 | G118: 479.5 | H118: 490.5 | I118: 562.2 | J118: 540.1 | K118: 529.1 | L118: 374.8 | M118: 358.3 | N118: 336.2 | O118: 314.2 | P118: 308.6 | Q118: 85 | R118: 0 | S118: 0 | T118: 0 | U118: 275.6 | V118: 371.5 | W118: 396.8 | X118: 0 | Y118: 170.9 | Z118: 249.1 | AA118: 396.8 | AB118: 414.5 | AC118: 385.8 | AD118: 325.2 | AE118: 320.8 | AF118: 320.8 | AG118: 265.7 | AH118: 231.5 | AI118: 231.5 | AJ118: 99.2 | AK118: 0 | AL118: 0
A119: 158-BP | B119: 0 | C119: 0 | D119: 0 | E119: 198.4 | F119: 264.6 | G119: 292.1 | H119: 303.1 | I119: 374.8 | J119: 363.8 | K119: 363.8 | L119: 253.5 | M119: 231.5 | N119: 203.9 | O119: 198.4 | P119: 198.4 | Q119: 60 | R119: 0 | S119: 0 | T119: 0 | U119: 147.7 | V119: 237 | W119: 253.5 | X119: 0 | Y119: 71.7 | Z119: 127.9 | AA119: 253.5 | AB119: 317.5 | AC119: 317.5 | AD119: 253.5 | AE119: 192.9 | AF119: 177.5 | AG119: 177.5 | AH119: 154.3 | AI119: 148.8 | AJ119: 93.7 | AK119: 0 | AL119: 0
A120: 158-DL | B120: 0 | C120: 0 | D120: 0 | E120: 374.8 | F120: 485 | G120: 485 | H120: 485 | I120: 556.7 | J120: 549 | K120: 549 | L120: 396.8 | M120: 396.8 | N120: 347.2 | O120: 347.2 | P120: 330.7 | Q120: 135 | R120: 0 | S120: 0 | T120: 0 | U120: 325.2 | V120: 442 | W120: 451.9 | X120: 0 | Y120: 237 | Z120: 292.1 | AA120: 451.9 | AB120: 542.3 | AC120: 451.9 | AD120: 429.9 | AE120: 429.9 | AF120: 429.9 | AG120: 331.8 | AH120: 286.6 | AI120: 275.6 | AJ120: 203.9 | AK120: 0 | AL120: 0
A121: 158-TL | B121: 0 | C121: 0 | D121: 0 | E121: 948 | F121: 1102.3 | G121: 1168.4 | H121: 1196 | I121: 1441.8 | J121: 1441.8 | K121: 1441.8 | L121: 992.1 | M121: 981.1 | N121: 859.8 | O121: 859.8 | P121: 832.2 | Q121: 280 | R121: 0 | S121: 0 | T121: 0 | U121: 744.1 | V121: 1050.5 | W121: 1096.8 | X121: 0 | Y121: 496 | Z121: 669.1 | AA121: 1096.8 | AB121: 1210.3 | AC121: 1074.8 | AD121: 997.6 | AE121: 922.6 | AF121: 922.6 | AG121: 733 | AH121: 672.4 | AI121: 655.9 | AJ121: 396.8 | AK121: 0 | AL121: 0
A122: 185-SQ | B122: 0 | C122: 82.7 | D122: 121.3 | E122: 396.8 | F122: 464.1 | G122: 501.6 | H122: 530.2 | I122: 603 | J122: 545.6 | K122: 540.1 | L122: 396.8 | M122: 319.7 | N122: 231.5 | O122: 231.5 | P122: 231.5 | Q122: 215 | R122: 0 | S122: 0 | T122: 0 | U122: 286.6 | V122: 396.8 | W122: 490.5 | X122: 0 | Y122: 137.8 | Z122: 275.6 | AA122: 496 | AB122: 490.5 | AC122: 440.9 | AD122: 440.9 | AE122: 319.7 | AF122: 314.2 | AG122: 254.6 | AH122: 220.5 | AI122: 181.9 | AJ122: 181.9 | AK122: 0 | AL122: 0
A123: 185-BP | B123: 0 | C123: 60.6 | D123: 77.2 | E123: 220.5 | F123: 303.1 | G123: 308.6 | H123: 366 | I123: 424.4 | J123: 424.4 | K123: 424.4 | L123: 287.7 | M123: 226 | N123: 165.3 | O123: 165.3 | P123: 165.3 | Q123: 159.8 | R123: 0 | S123: 0 | T123: 0 | U123: 148.8 | V123: 231.5 | W123: 281.1 | X123: 0 | Y123: 93.7 | Z123: 115.7 | AA123: 281.1 | AB123: 281.1 | AC123: 275.6 | AD123: 275.6 | AE123: 220.5 | AF123: 198.4 | AG123: 159.8 | AH123: 159.8 | AI123: 126.8 | AJ123: 115.7 | AK123: 0 | AL123: 0
A124: 185-DL | B124: 0 | C124: 0 | D124: 192.9 | E124: 440.9 | F124: 440.9 | G124: 496 | H124: 518.1 | I124: 518.1 | J124: 502.7 | K124: 502.7 | L124: 463 | M124: 336.2 | N124: 297.6 | O124: 297.6 | P124: 297.6 | Q124: 270.1 | R124: 0 | S124: 0 | T124: 0 | U124: 400 | V124: 451.9 | W124: 501.6 | X124: 0 | Y124: 205 | Z124: 303.1 | AA124: 501.6 | AB124: 518.1 | AC124: 501.6 | AD124: 501.6 | AE124: 374.8 | AF124: 336.2 | AG124: 336.2 | AH124: 292.1 | AI124: 275.6 | AJ124: 275.6 | AK124: 0 | AL124: 0
A125: 185-TL | B125: 0 | C125: 385.8 | D125: 385.8 | E125: 1047.2 | F125: 1118.8 | G125: 1223.6 | H125: 1350.3 | I125: 1479.3 | J125: 1462.8 | K125: 1462.8 | L125: 1064.8 | M125: 865.3 | N125: 677.9 | O125: 677.9 | P125: 677.9 | Q125: 617.3 | R125: 0 | S125: 0 | T125: 0 | U125: 744.1 | V125: 1080.3 | W125: 1262.1 | X125: 0 | Y125: 436.5 | Z125: 694.5 | AA125: 1262.1 | AB125: 1262.1 | AC125: 1129.9 | AD125: 1129.9 | AE125: 870.8 | AF125: 821.2 | AG125: 727.5 | AH125: 672.4 | AI125: 562.2 | AJ125: 556.7 | AK125: 0 | AL125: 0
A126: 185+-SQ | B126: 0 | C126: 0 | D126: 358.3 | E126: 446.4 | F126: 578.7 | G126: 639.3 | H126: 644.9 | I126: 694.5 | J126: 562.2 | K126: 562.2 | L126: 562.2 | M126: 562.2 | N126: 523.6 | O126: 330.7 | P126: 0 | Q126: 0 | R126: 0 | S126: 0 | T126: 0 | U126: 402.3 | V126: 578.7 | W126: 578.7 | X126: 0 | Y126: 99.2 | Z126: 242.5 | AA126: 578.7 | AB126: 601.9 | AC126: 429.9 | AD126: 402.3 | AE126: 385.8 | AF126: 305 | AG126: 253.5 | AH126: 221.6 | AI126: 198.4 | AJ126: 198.4 | AK126: 115.7 | AL126: 0
A127: 185+-BP | B127: 0 | C127: 0 | D127: 104.7 | E127: 248 | F127: 370.4 | G127: 392.4 | H127: 418.9 | I127: 463 | J127: 407.9 | K127: 347.2 | L127: 347.2 | M127: 347.2 | N127: 270.1 | O127: 148.8 | P127: 0 | Q127: 0 | R127: 0 | S127: 0 | T127: 0 | U127: 143.3 | V127: 264.6 | W127: 264.6 | X127: 0 | Y127: 93.7 | Z127: 110.2 | AA127: 264.6 | AB127: 334 | AC127: 266.8 | AD127: 264.6 | AE127: 254.6 | AF127: 205 | AG127: 176.4 | AH127: 176.4 | AI127: 176.4 | AJ127: 121.3 | AK127: 88.2 | AL127: 0
A128: 185+-DL | B128: 0 | C128: 0 | D128: 297.6 | E128: 468.5 | F128: 507.1 | G128: 507.1 | H128: 507.1 | I128: 574.3 | J128: 501.6 | K128: 501.6 | L128: 501.6 | M128: 485 | N128: 474 | O128: 336.2 | P128: 0 | Q128: 0 | R128: 0 | S128: 0 | T128: 0 | U128: 281.1 | V128: 524.7 | W128: 524.7 | X128: 0 | Y128: 226 | Z128: 292.1 | AA128: 524.7 | AB128: 544.5 | AC128: 468.5 | AD128: 440.9 | AE128: 440.9 | AF128: 347.2 | AG128: 325.2 | AH128: 270.1 | AI128: 264.6 | AJ128: 264.6 | AK128: 253.5 | AL128: 0
A129: 185+-TL | B129: 0 | C129: 760.6 | D129: 760.6 | E129: 1107.8 | F129: 1330.5 | G129: 1377.9 | H129: 1377.9 | I129: 1715.2 | J129: 1350.3 | K129: 1350.3 | L129: 1350.3 | M129: 1350.3 | N129: 1267.7 | O129: 815.7 | P129: 0 | Q129: 0 | R129: 0 | S129: 0 | T129: 0 | U129: 981.1 | V129: 1356.9 | W129: 1356.9 | X129: 0 | Y129: 418.9 | Z129: 644.9 | AA129: 1356.9 | AB129: 1480.4 | AC129: 1102.3 | AD129: 1058.2 | AE129: 1058.2 | AF129: 815 | AG129: 661.4 | AH129: 629.4 | AI129: 584.2 | AJ129: 584.2 | AK129: 446.4 | AL129: 0
A130: 66-BPO | B130: 0 | C130: 0 | D130: 0 | E130: 0 | F130: 0 | G130: 0 | H130: 0 | I130: 0 | J130: 0 | K130: 0 | L130: 0 | M130: 0 | N130: 0 | O130: 0 | P130: 0 | Q130: 0 | R130: 0 | S130: 0 | T130: 0 | U130: 0 | V130: 0 | W130: 0 | X130: 55.1 | Y130: 56.2 | Z130: 56.2 | AA130: 0 | AB130: 0 | AC130: 0 | AD130: 0 | AE130: 0 | AF130: 0 | AG130: 0 | AH130: 0 | AI130: 0 | AJ130: 0 | AK130: 0 | AL130: 0
A131: 77-BPO | B131: 55.1 | C131: 0 | D131: 0 | E131: 0 | F131: 0 | G131: 0 | H131: 0 | I131: 0 | J131: 0 | K131: 0 | L131: 0 | M131: 0 | N131: 0 | O131: 0 | P131: 0 | Q131: 0 | R131: 0 | S131: 0 | T131: 0 | U131: 0 | V131: 0 | W131: 0 | X131: 68.3 | Y131: 68.3 | Z131: 68.3 | AA131: 0 | AB131: 0 | AC131: 0 | AD131: 0 | AE131: 0 | AF131: 0 | AG131: 0 | AH131: 0 | AI131: 0 | AJ131: 0 | AK131: 0 | AL131: 0
A132: 88-BPO | B132: 0 | C132: 0 | D132: 0 | E132: 0 | F132: 0 | G132: 0 | H132: 0 | I132: 0 | J132: 0 | K132: 0 | L132: 0 | M132: 0 | N132: 0 | O132: 0 | P132: 0 | Q132: 0 | R132: 0 | S132: 0 | T132: 0 | U132: 0 | V132: 0 | W132: 0 | X132: 66.1 | Y132: 99.2 | Z132: 99.2 | AA132: 0 | AB132: 0 | AC132: 0 | AD132: 0 | AE132: 0 | AF132: 0 | AG132: 0 | AH132: 0 | AI132: 0 | AJ132: 0 | AK132: 0 | AL132: 0
A133: 94-BPO | B133: 0 | C133: 0 | D133: 0 | E133: 104.7 | F133: 170.9 | G133: 183 | H133: 183 | I133: 137.8 | J133: 0 | K133: 0 | L133: 0 | M133: 0 | N133: 0 | O133: 0 | P133: 0 | Q133: 0 | R133: 0 | S133: 0 | T133: 0 | U133: 132.3 | V133: 137.8 | W133: 154.3 | X133: 0 | Y133: 71.7 | Z133: 94.8 | AA133: 154.3 | AB133: 137.8 | AC133: 0 | AD133: 0 | AE133: 0 | AF133: 0 | AG133: 0 | AH133: 0 | AI133: 0 | AJ133: 0 | AK133: 0 | AL133: 0
A134: 103-BPO | B134: 0 | C134: 0 | D134: 82.7 | E134: 159.8 | F134: 181.9 | G134: 187.4 | H134: 203.9 | I134: 203.9 | J134: 170 | K134: 170 | L134: 159.8 | M134: 159.8 | N134: 110.2 | O134: 110.2 | P134: 99.2 | Q134: 88.2 | R134: 0 | S134: 0 | T134: 0 | U134: 143.3 | V134: 143.3 | W134: 165.3 | X134: 60.6 | Y134: 60.6 | Z134: 143.3 | AA134: 187.4 | AB134: 187.4 | AC134: 143.3 | AD134: 105.8 | AE134: 105.8 | AF134: 115.7 | AG134: 115.7 | AH134: 99.2 | AI134: 88.2 | AJ134: 0 | AK134: 0 | AL134: 0
A135: 114-BPO | B135: 0 | C135: 0 | D135: 0 | E135: 226 | F135: 237 | G135: 237 | H135: 292.1 | I135: 292.1 | J135: 248 | K135: 203.9 | L135: 192.9 | M135: 192.9 | N135: 165.3 | O135: 148.8 | P135: 112.4 | Q135: 112.4 | R135: 0 | S135: 55.1 | T135: 50 | U135: 154.3 | V135: 187.4 | W135: 187.4 | X135: 44.1 | Y135: 99.2 | Z135: 104.7 | AA135: 220.5 | AB135: 220.5 | AC135: 215 | AD135: 177.5 | AE135: 177.5 | AF135: 143.3 | AG135: 143.3 | AH135: 115.7 | AI135: 115.7 | AJ135: 93.7 | AK135: 0 | AL135: 0
A136: 125-BPO | B136: 0 | C136: 0 | D136: 0 | E136: 183 | F136: 242.5 | G136: 253.5 | H136: 303.1 | I136: 303.1 | J136: 286.6 | K136: 248 | L136: 248 | M136: 248 | N136: 133.4 | O136: 157.6 | P136: 157.6 | Q136: 157.6 | R136: 0 | S136: 0 | T136: 0 | U136: 165.3 | V136: 187.4 | W136: 209.4 | X136: 0 | Y136: 99.2 | Z136: 138.9 | AA136: 209.4 | AB136: 220.5 | AC136: 181.9 | AD136: 176.4 | AE136: 176.4 | AF136: 148.8 | AG136: 132.3 | AH136: 104.7 | AI136: 104.7 | AJ136: 88.2 | AK136: 0 | AL136: 0
A137: 138-BPO | B137: 0 | C137: 55.1 | D137: 0 | E137: 203.9 | F137: 242.5 | G137: 259 | H137: 275.6 | I137: 330.7 | J137: 309.7 | K137: 286.6 | L137: 286.6 | M137: 226 | N137: 170.9 | O137: 159.8 | P137: 159.8 | Q137: 77.2 | R137: 0 | S137: 0 | T137: 0 | U137: 143.3 | V137: 181.9 | W137: 209.4 | X137: 0 | Y137: 71.7 | Z137: 127.9 | AA137: 220.5 | AB137: 317.5 | AC137: 317.5 | AD137: 317.5 | AE137: 176.4 | AF137: 165.3 | AG137: 160.9 | AH137: 137.8 | AI137: 137.8 | AJ137: 71.7 | AK137: 0 | AL137: 0
A138: 158-BPO | B138: 0 | C138: 0 | D138: 0 | E138: 198.4 | F138: 264.6 | G138: 292.1 | H138: 308.6 | I138: 374.8 | J138: 363.8 | K138: 363.8 | L138: 253.5 | M138: 231.5 | N138: 203.9 | O138: 203.9 | P138: 198.4 | Q138: 110.2 | R138: 0 | S138: 0 | T138: 0 | U138: 147.7 | V138: 237 | W138: 253.5 | X138: 0 | Y138: 71.7 | Z138: 127.9 | AA138: 253.5 | AB138: 317.5 | AC138: 317.5 | AD138: 253.5 | AE138: 231.5 | AF138: 177.5 | AG138: 177.5 | AH138: 154.3 | AI138: 148.8 | AJ138: 93.7 | AK138: 66.1 | AL138: 66.1
A139: 185-BPO | B139: 0 | C139: 60.6 | D139: 77.2 | E139: 270.1 | F139: 308.6 | G139: 341.7 | H139: 366 | I139: 424.4 | J139: 424.4 | K139: 424.4 | L139: 287.7 | M139: 215 | N139: 192.9 | O139: 143.3 | P139: 165.3 | Q139: 165.3 | R139: 0 | S139: 0 | T139: 0 | U139: 170.9 | V139: 231.5 | W139: 281.1 | X139: 0 | Y139: 93.7 | Z139: 115.7 | AA139: 281.1 | AB139: 281.1 | AC139: 275.6 | AD139: 275.6 | AE139: 220.5 | AF139: 203.9 | AG139: 165.3 | AH139: 165.3 | AI139: 165.3 | AJ139: 165.3 | AK139: 55.1 | AL139: 0
A140: 185+-BPO | B140: 0 | C140: 0 | D140: 0 | E140: 248 | F140: 370.4 | G140: 392.4 | H140: 418.9 | I140: 463 | J140: 420 | K140: 402.3 | L140: 380.3 | M140: 352.7 | N140: 270.1 | O140: 187.4 | P140: 176.4 | Q140: 0 | R140: 0 | S140: 0 | T140: 0 | U140: 209.4 | V140: 264.6 | W140: 264.6 | X140: 0 | Y140: 93.7 | Z140: 110.2 | AA140: 264.6 | AB140: 334 | AC140: 270.1 | AD140: 264.6 | AE140: 264.6 | AF140: 205 | AG140: 187.4 | AH140: 176.4 | AI140: 176.4 | AJ140: 157.6 | AK140: 88.2 | AL140: 0
A141: 66-DLO | B141: 0 | C141: 0 | D141: 0 | E141: 0 | F141: 0 | G141: 0 | H141: 0 | I141: 0 | J141: 0 | K141: 0 | L141: 0 | M141: 0 | N141: 0 | O141: 0 | P141: 0 | Q141: 0 | R141: 0 | S141: 0 | T141: 0 | U141: 0 | V141: 0 | W141: 0 | X141: 132.3 | Y141: 143.3 | Z141: 143.3 | AA141: 0 | AB141: 0 | AC141: 0 | AD141: 0 | AE141: 0 | AF141: 0 | AG141: 0 | AH141: 0 | AI141: 0 | AJ141: 0 | AK141: 0 | AL141: 0
A142: 77-DLO | B142: 126.8 | C142: 0 | D142: 0 | E142: 0 | F142: 0 | G142: 0 | H142: 0 | I142: 0 | J142: 0 | K142: 0 | L142: 0 | M142: 0 | N142: 0 | O142: 0 | P142: 0 | Q142: 0 | R142: 0 | S142: 0 | T142: 0 | U142: 0 | V142: 0 | W142: 0 | X142: 167.6 | Y142: 167.6 | Z142: 167.6 | AA142: 0 | AB142: 0 | AC142: 0 | AD142: 0 | AE142: 0 | AF142: 0 | AG142: 0 | AH142: 0 | AI142: 0 | AJ142: 0 | AK142: 0 | AL142: 0
A143: 88-DLO | B143: 0 | C143: 0 | D143: 0 | E143: 0 | F143: 0 | G143: 0 | H143: 0 | I143: 0 | J143: 0 | K143: 0 | L143: 0 | M143: 0 | N143: 0 | O143: 0 | P143: 0 | Q143: 0 | R143: 0 | S143: 0 | T143: 0 | U143: 0 | V143: 0 | W143: 0 | X143: 159.8 | Y143: 192.9 | Z143: 200 | AA143: 0 | AB143: 0 | AC143: 0 | AD143: 0 | AE143: 0 | AF143: 0 | AG143: 0 | AH143: 0 | AI143: 0 | AJ143: 0 | AK143: 0 | AL143: 0
A144: 94-DLO | B144: 0 | C144: 0 | D144: 0 | E144: 203.9 | F144: 314.2 | G144: 314.2 | H144: 314.2 | I144: 314.2 | J144: 0 | K144: 0 | L144: 0 | M144: 0 | N144: 0 | O144: 0 | P144: 0 | Q144: 0 | R144: 0 | S144: 0 | T144: 0 | U144: 231.5 | V144: 275.6 | W144: 275.6 | X144: 0 | Y144: 165.3 | Z144: 203.9 | AA144: 275.6 | AB144: 275.6 | AC144: 0 | AD144: 0 | AE144: 0 | AF144: 0 | AG144: 0 | AH144: 0 | AI144: 0 | AJ144: 0 | AK144: 0 | AL144: 0
A145: 103-DLO | B145: 0 | C145: 0 | D145: 170.9 | E145: 325.2 | F145: 325.2 | G145: 352.7 | H145: 358.3 | I145: 358.3 | J145: 336.2 | K145: 336.2 | L145: 319.7 | M145: 314.2 | N145: 281.1 | O145: 281.1 | P145: 281.1 | Q145: 0 | R145: 0 | S145: 0 | T145: 0 | U145: 275.6 | V145: 275.6 | W145: 292.1 | X145: 159.8 | Y145: 159.8 | Z145: 270.1 | AA145: 332.9 | AB145: 402.3 | AC145: 325.2 | AD145: 264.6 | AE145: 264.6 | AF145: 264.6 | AG145: 264.6 | AH145: 264.6 | AI145: 264.6 | AJ145: 0 | AK145: 0 | AL145: 0
A146: 114-DLO | B146: 0 | C146: 0 | D146: 0 | E146: 374.8 | F146: 403.4 | G146: 396.8 | H146: 402.3 | I146: 424.4 | J146: 374.8 | K146: 374.8 | L146: 347.2 | M146: 319.7 | N146: 272.3 | O146: 226 | P146: 194 | Q146: 194 | R146: 0 | S146: 0 | T146: 135 | U146: 292.1 | V146: 292.1 | W146: 325 | X146: 77.2 | Y146: 243.6 | Z146: 226 | AA146: 367.1 | AB146: 413.4 | AC146: 413.4 | AD146: 358.3 | AE146: 348.3 | AF146: 292.1 | AG146: 292.1 | AH146: 254.6 | AI146: 254.6 | AJ146: 176.4 | AK146: 143.3 | AL146: 0
A147: 125-DLO | B147: 0 | C147: 0 | D147: 0 | E147: 385.8 | F147: 405 | G147: 424.4 | H147: 424.4 | I147: 435.4 | J147: 402.3 | K147: 391.3 | L147: 391.3 | M147: 325.2 | N147: 292.1 | O147: 209.4 | P147: 203.9 | Q147: 198.4 | R147: 0 | S147: 0 | T147: 0 | U147: 303.1 | V147: 369.3 | W147: 374.8 | X147: 0 | Y147: 203.9 | Z147: 249.1 | AA147: 407.9 | AB147: 425.5 | AC147: 358.3 | AD147: 358.3 | AE147: 332.9 | AF147: 275.6 | AG147: 264.6 | AH147: 253.5 | AI147: 215 | AJ147: 170.9 | AK147: 0 | AL147: 0
A148: 138-DLO | B148: 0 | C148: 115.7 | D148: 0 | E148: 400 | F148: 451.9 | G148: 474 | H148: 474 | I148: 501.6 | J148: 435.4 | K148: 418.9 | L148: 403.4 | M148: 396.8 | N148: 303.1 | O148: 286.6 | P148: 286.6 | Q148: 176.4 | R148: 0 | S148: 0 | T148: 0 | U148: 362.7 | V148: 366 | W148: 429.9 | X148: 0 | Y148: 210.5 | Z148: 308.6 | AA148: 435.4 | AB148: 487.2 | AC148: 446.4 | AD148: 446.4 | AE148: 386.9 | AF148: 352.7 | AG148: 298.7 | AH148: 275.6 | AI148: 275.6 | AJ148: 132.3 | AK148: 0 | AL148: 0
A149: 158-DLO | B149: 0 | C149: 0 | D149: 0 | E149: 374.8 | F149: 485 | G149: 485 | H149: 485 | I149: 567.7 | J149: 549 | K149: 549 | L149: 396.8 | M149: 396.8 | N149: 347.2 | O149: 347.2 | P149: 330.7 | Q149: 135 | R149: 0 | S149: 0 | T149: 0 | U149: 325.2 | V149: 442 | W149: 451.9 | X149: 0 | Y149: 237 | Z149: 292.1 | AA149: 451.9 | AB149: 542.3 | AC149: 451.9 | AD149: 429.9 | AE149: 429.9 | AF149: 429.9 | AG149: 331.8 | AH149: 286.6 | AI149: 275.6 | AJ149: 203.9 | AK149: 93.7 | AL149: 93.7
A150: 185-DLO | B150: 0 | C150: 121.3 | D150: 192.9 | E150: 440.9 | F150: 450 | G150: 496 | H150: 518.1 | I150: 556.7 | J150: 502.7 | K150: 502.7 | L150: 463 | M150: 336.2 | N150: 253.5 | O150: 253.5 | P150: 297.6 | Q150: 270.1 | R150: 0 | S150: 0 | T150: 0 | U150: 400 | V150: 451.9 | W150: 501.6 | X150: 0 | Y150: 205 | Z150: 303.1 | AA150: 501.6 | AB150: 518.1 | AC150: 501.6 | AD150: 501.6 | AE150: 374.8 | AF150: 336.2 | AG150: 336.2 | AH150: 292.1 | AI150: 253.5 | AJ150: 275.6 | AK150: 132.3 | AL150: 0
A151: 185+-DLO | B151: 0 | C151: 0 | D151: 0 | E151: 468.5 | F151: 507.1 | G151: 507.1 | H151: 507.1 | I151: 574.3 | J151: 501.6 | K151: 501.6 | L151: 501.6 | M151: 485 | N151: 474 | O151: 336.2 | P151: 275.6 | Q151: 0 | R151: 0 | S151: 0 | T151: 0 | U151: 402.3 | V151: 524.7 | W151: 524.7 | X151: 0 | Y151: 226 | Z151: 292.1 | AA151: 524.7 | AB151: 544.5 | AC151: 468.5 | AD151: 440.9 | AE151: 440.9 | AF151: 352.7 | AG151: 352.7 | AH151: 270.1 | AI151: 264.6 | AJ151: 264.6 | AK151: 253.5 | AL151: 0

Sheet Quick-Reference (hidden)
G1: Quick Reference Sheet
G2: video tutorial: https://www.youtube.com/watch?v=o-PyI1n_EMI
B4: 1. Setup sheet
B5: a. Reset for New Contest
B6: b. Contest Name
B7: c. Select type of meet from the drop down menu.
B8: d. Use drop downs to enter the actual weights on the platform
B9: e. Enter Divisions – Abbreviation, Description, Placing code
B10: f. Enter Teams & Abbreviations
B11: g. Enter Flights/Groups you will use in your contest
B12: h. Select the weight of bar & collars
B13: 2. Before the contest, insert your Contest logo into the Awards sheet - change font, background and text colors.
B14: 3. Weigh-in sheet
B15: a. If you copy/paste data into the Weigh-in sheet, paste Values only to preserve formatting and validation. Red Text indicates an error.
B16: b. Print Speaker Cards
B17: i. Click Print Cards button on Weigh-in sheet to print cards with data
B18: ii. For blank cards, go to the SpeakersCard sheet and click Print Blank Cards
B19: c. Do not leave blank rows between Lifters
B20: d. Click the button at the top of the sheet to copy weighed-in athletes to the Lifting sheet
B21: 4. Lifting sheet
B22: a. Select the 1st flight/group from the pulldown in cell A11
B23: b. Select Squat 1, Benchpress 1 or Deadlift 1 from the pulldown
B24: c. Select the an option to advance to the next lifter - Auto, Delay, Man
B25: i. Auto to advance without delay after a Good or NoLift
B26: ii. Delay for livestreamed contests – then select a Delay time (2-5 seconds)
B27: iii. Man for manual advance during 3rd attempts – then click Next to advance to the next lifter
B28: d. Click Good or NoLift
B29: e. Use Ctrl + G (good) or Ctrl + N (no-lift) to go back and fix an incorrect entry
B30: f. Add DQ to Events Entered column for disqualified lifters. Add DT to the events for a drug tested lifter.
B31: g. Re-attempts - type the weight in the cell when a re-attempt is granted
B32: i. Use the dropdown menu in the name block (cell A1) to select a lifter for a re-attempt
B33: h. Printouts - Use the dropdown menu next to the printer icon to select the type of printout desired – click the printer icon to print
B34: i. Select Sorted Results at the end of the lifting session for a sorted printout (this step is necessary to load data for the Awards sheet. Have the referees sign a printout of this sheet.
B35: 5. Awards sheet. Use the dropdown menu to select the awards to display (only the divisions, weight classes, and events actually used in the contest will be in the menu)

Sheet IPF Formula
B1: Mean | D1: Standard Deviation
B2: Parameter 1 | C2: Parameter 2 | D2: Parameter 1 | E2: Parameter 2
A3: Men CL 3-Lift | B3: 310.67 | C3: 857.785 | D3: 53.216 | E3: 147.0835
A4: Men CL Squat | B4: 123.1 | C4: 363.085 | D4: 25.1667 | E4: 75.4311
A5: Men CL Bench | B5: 86.4745 | C5: 259.155 | D5: 17.5785 | E5: 53.122
A6: Men CL Deadlift | B6: 103.5355 | C6: 244.765 | D6: 15.37134 | E6: 31.5022
A7: Men EQ 3-Lift | B7: 387.265 | C7: 1121.28 | D7: 80.6324 | E7: 222.4896
A8: Men EQ Squat | B8: 150.485 | C8: 446.445 | D8: 36.5155 | E8: 103.7061
A9: Men EQ Bench | B9: 133.94 | C9: 441.465 | D9: 35.3938 | E9: 113.0057
A10: Men EQ Deadlift | B10: 110.135 | C10: 263.66 | D10: 14.996 | E10: 23.011
A11: Women CL 3-Lift | B11: 125.1435 | C11: 228.03 | D11: 34.5246 | E11: 86.8301
A12: Women CL Squat | B12: 50.479 | C12: 105.632 | D12: 19.1846 | E12: 56.2215
A13: Women CL Bench | B13: 25.0485 | C13: 43.848 | D13: 6.7172 | E13: 13.952
A14: Women CL Deadlift | B14: 47.136 | C14: 67.349 | D14: 9.1555 | E14: 13.67
A15: Women EQ 3-Lift | B15: 176.58 | C15: 373.315 | D15: 48.4534 | E15: 110.0103
A16: Women EQ Squat | B16: 74.6855 | C16: 171.585 | D16: 21.9475 | E16: 52.2948
A17: Women EQ Bench | B17: 49.106 | C17: 124.209 | D17: 23.199 | E17: 67.4926
A18: Women EQ Deadlift | B18: 51.002 | C18: 69.8265 | D18: 8.5802 | E18: 5.7258

Sheet Sheet1 (hidden)
Z1: 1
A2: =Setup!Q3 -> Grp | B2: Name | C2: MemberID | D2: Team | E2: M/F-Div | F2: Bwt - kg | G2: lot# | H2: Birth Year | I2: SQ rack | J2: =CONCATENATE("SQ-1 (",T2,")") -> SQ-1 (Kg) | K2: BP rack | L2: =CONCATENATE("BP-1 (",T2,")") -> BP-1 (Kg) | M2: =CONCATENATE("DL-1 (",T2,")") -> DL-1 (Kg) | N2: Events Entered | O2: State | P2: Print Card | Q2: Nominated Wt Class | T2: =Setup!G15 -> Kg | U2: =COUNTA(F:F)+1 -> 20 | V2: =CONCATENATE("Setup!I6:I",COUNTA(Setup!I:I)+3) -> Setup!I6:I37 | W2: =CONCATENATE("Setup!M6:M",COUNTA(Setup!M:M)+3) -> Setup!M6:M5 | X2: =CONCATENATE("Setup!Q5:Q",COUNTA(Setup!Q:Q)+4) -> Setup!Q5:Q14 | Y2: =CONCATENATE("DATA!$M$2:$M$61") -> DATA!$M$2:$M$61 | Z2: 1 | AA2: =COUNTA(F:F)+1 -> 20 | AN2: flight sort data | AO2: att sort data | AY2: SQ-1 | AZ2: SQ-2 | BA2: SQ-3 | BB2: Best SQ Att | BC2: BP rack | BD2: BP-1 | BE2: BP-2 | BF2: BP-3 | BG2: Best BP Att | BH2: Sub Total | BI2: DL-1 | BJ2: DL-2 | BK2: DL-3 | BL2: Best DL Att
F3: 42 | G3: 1 | H3: 100 | I3: 100 | J3: 100 | K3: 100 | L3: 100 | M3: 100 | N3: PL
F4: 46 | G4: 2 | H4: 110 | I4: 110 | J4: 110 | K4: 110 | L4: 110 | M4: 110 | N4: PL
F5: 50 | G5: 3 | H5: 120 | I5: 120 | J5: 120 | K5: 120 | L5: 120 | M5: 120 | N5: PL
F6: 55 | G6: 4 | H6: 130 | I6: 130 | J6: 130 | K6: 130 | L6: 130 | M6: 130 | N6: PL
F7: 65 | G7: 5 | H7: 140 | I7: 140 | J7: 140 | K7: 140 | L7: 140 | M7: 140 | N7: PL
F8: 60 | G8: 6 | H8: 150 | I8: 150 | J8: 150 | K8: 150 | L8: 150 | M8: 150 | N8: PL
F9: 54 | G9: 7 | H9: 160 | I9: 160 | J9: 160 | K9: 160 | L9: 160 | M9: 160 | N9: PL
F10: 70 | G10: 8 | H10: 170 | I10: 170 | J10: 170 | K10: 170 | L10: 170 | M10: 170 | N10: PL
F11: 80 | G11: 9 | H11: 180 | I11: 180 | J11: 180 | K11: 180 | L11: 180 | M11: 180 | N11: PL
F12: 75 | G12: 10 | H12: 190 | I12: 190 | J12: 190 | K12: 190 | L12: 190 | M12: 190 | N12: PL
F13: 75 | G13: 11 | H13: 200 | I13: 200 | J13: 200 | K13: 200 | L13: 200 | M13: 200 | N13: PL
F14: 120 | G14: 12 | H14: 210 | I14: 210 | J14: 210 | K14: 210 | L14: 210 | M14: 210 | N14: PL
F15: 130 | G15: 13 | H15: 220 | I15: 220 | J15: 220 | K15: 220 | L15: 220 | M15: 220 | N15: PL
F16: 52 | G16: 14 | H16: 230 | I16: 230 | J16: 230 | K16: 230 | L16: 230 | M16: 230 | N16: PL
F17: 120 | G17: 15 | H17: 240 | I17: 240 | J17: 240 | K17: 240 | L17: 240 | M17: 240 | N17: PL
F18: 85 | G18: 16 | H18: 250 | I18: 250 | J18: 250 | K18: 250 | L18: 250 | M18: 250 | N18: PL
F19: 140 | G19: 17 | H19: 260 | I19: 260 | J19: 260 | K19: 260 | L19: 260 | M19: 260 | N19: PL
F20: 150 | G20: 18 | H20: 270 | I20: 270 | J20: 270 | K20: 270 | L20: 270 | M20: 270 | N20: PL
E21: -
E22: -
E23: -
E24: -
E25: -
E26: -
E27: -
E28: -
E29: -
E30: -
E31: -
E32: -
E33: -
E34: -
E35: -
E36: -
E37: -
E38: -
E39: -
E40: -
E41: -
E42: -
E43: -
E44: -
E45: -
E46: -
E47: -
E48: -
E49: -
E50: -
E51: -
E52: -
E53: -
E54: -
E55: -
E56: -
E57: -
E58: -
E59: -
E60: -
E61: -
E62: -
E63: -
E64: -
E65: -
E66: -
E67: -
E68: -
E69: -
E70: -
E71: -
E72: -
E73: -
E74: -
E75: -
E76: -
E77: -
E78: -
E79: -
E80: -
E81: -
E82: -
E83: -
E84: -
E85: -
E86: -
E87: -
E88: -
E89: -
E90: -
E91: -
E92: -
E93: -
E94: -
E95: -
E96: -
E97: -
E98: -
E99: -
E100: -
E101: -
E102: -
E103: -
E104: -
E105: -
E106: -
E107: -
E108: -
E109: -
E110: -
E111: -
E112: -
E113: -
E114: -
E115: -
E116: -
E117: -
E118: -
E119: -
E120: -
E121: -
E122: -
E123: -
E124: -
E125: -
E126: -
E127: -
E128: -
E129: -
E130: -
E131: -
E132: -
E133: -
E134: -
E135: -
E136: -
E137: -
E138: -
E139: -
E140: -
E141: -
E142: -
E143: -
E144: -
E145: -
E146: -
E147: -
E148: -
E149: -
E150: -
E151: -
E152: -
E153: -
E154: -
E155: -
E156: -
E157: -
E158: -
E159: -
E160: -
E161: -
E162: -
E163: -
E164: -
E165: -
E166: -
E167: -
E168: -
E169: -
E170: -
E171: -
E172: -
E173: -
E174: -
E175: -
E176: -
E177: -
E178: -
E179: -
E180: -
E181: -
E182: -
E183: -
E184: -
E185: -
E186: -
E187: -
E188: -
E189: -
E190: -
E191: -
E192: -
E193: -
E194: -
E195: -
E196: -
E197: -
E198: -
E199: -
E200: -
... 614 more rows

Sheet Weigh-In (2)
Z1: 3
A2: =Setup!Q3 -> Grp | B2: Name | C2: MemberID | D2: Team | E2: M/F-Div | F2: Bwt - kg | G2: lot# | H2: Birth Year | I2: SQ rack | J2: =CONCATENATE("SQ-1 (",T2,")") -> SQ-1 (Kg) | K2: BP rack | L2: =CONCATENATE("BP-1 (",T2,")") -> BP-1 (Kg) | M2: =CONCATENATE("DL-1 (",T2,")") -> DL-1 (Kg) | N2: Events Entered | O2: State | P2: Print Card | Q2: Nominated Wt Class | T2: =Setup!G15 -> Kg | U2: =COUNTA(F:F)+1 -> 51 | V2: =CONCATENATE("Setup!I6:I",COUNTA(Setup!I:I)+3) -> Setup!I6:I37 | W2: =CONCATENATE("Setup!M6:M",COUNTA(Setup!M:M)+3) -> Setup!M6:M5 | X2: =CONCATENATE("Setup!Q5:Q",COUNTA(Setup!Q:Q)+4) -> Setup!Q5:Q14 | Y2: =CONCATENATE("DATA!$M$2:$M$61") -> DATA!$M$2:$M$61 | Z2: 1 | AA2: =COUNTA(F:F)+1 -> 51 | AN2: flight sort data | AO2: att sort data | AY2: SQ-1 | AZ2: SQ-2 | BA2: SQ-3 | BB2: Best SQ Att | BC2: BP rack | BD2: BP-1 | BE2: BP-2 | BF2: BP-3 | BG2: Best BP Att | BH2: Sub Total | BI2: DL-1 | BJ2: DL-2 | BK2: DL-3 | BL2: Best DL Att
A3: A | B3: 中川 貴美子 | D3: 8suki gym | E3: F-O | F3: 42 | G3: 1 | H3: 1982 | I3: 100 | J3: 100 | K3: 100 | L3: 100 | M3: 100 | N3: PL
A4: A | B4: 伊藤 由実子 | D4: 8suki gym | E4: F-O | F4: 46 | G4: 2 | H4: 1976 | I4: 110 | J4: 110 | K4: 110 | L4: 110 | M4: 110 | N4: PL
A5: A | B5: 丸山 武 | D5: 8suki gym | E5: F-O | F5: 50 | G5: 3 | H5: 1981 | I5: 120 | J5: 120 | K5: 120 | L5: 120 | M5: 120 | N5: PL
A6: A | B6: 立脇 和弥 | D6: 8suki gym | E6: F-O | F6: 55 | G6: 4 | H6: 1986 | I6: 130 | J6: 130 | K6: 130 | L6: 130 | M6: 130 | N6: PL
A7: A | B7: 小脇 剛 | D7: 烈剛河内 | E7: F-O | F7: 65 | G7: 5 | H7: 1979 | I7: 140 | J7: 140 | K7: 140 | L7: 140 | M7: 140 | N7: PL
A8: A | B8: 松尾 直樹 | D8: 8sukigym | E8: F-O | F8: 60 | G8: 6 | H8: 1963 | I8: 150 | J8: 150 | K8: 150 | L8: 150 | M8: 150 | N8: PL
A9: A | B9: 三木 聖也 | D9: 8sukiGYM | E9: F-O | F9: 54 | G9: 7 | H9: 1996 | I9: 160 | J9: 160 | K9: 160 | L9: 160 | M9: 160 | N9: PL
A10: A | B10: 山本 泰資 | D10: 8sukigym | E10: F-O | F10: 70 | G10: 8 | H10: 1993 | I10: 170 | J10: 170 | K10: 170 | L10: 170 | M10: 170 | N10: PL
A11: A | B11: 大西 康平 | D11: 8suki gym | E11: F-O | F11: 80 | G11: 9 | H11: 1994 | I11: 180 | J11: 180 | K11: 180 | L11: 180 | M11: 180 | N11: PL
A12: A | B12: 佐藤 啓 | D12: 8sukigym | E12: F-O | F12: 75 | G12: 10 | H12: 1971 | I12: 190 | J12: 190 | K12: 190 | L12: 190 | M12: 190 | N12: PL
A13: A | B13: 大寺 康平 | D13: 8suki gym | E13: F-O | F13: 75 | G13: 11 | H13: 1987 | I13: 200 | J13: 200 | K13: 200 | L13: 200 | M13: 200 | N13: PL
A14: B | B14: 芳村 晃 | D14: 8sukigym | E14: F-O | F14: 120 | G14: 12 | H14: 1975 | I14: 210 | J14: 210 | K14: 210 | L14: 210 | M14: 210 | N14: PL
A15: B | B15: 瀧井 章男 | D15: Ks GYM | E15: F-O | F15: 130 | G15: 13 | H15: 1984 | I15: 220 | J15: 220 | K15: 220 | L15: 220 | M15: 220 | N15: PL
A16: B | B16: 吉岡 弘和 | D16: 8suki gym | E16: F-O | F16: 52 | G16: 14 | H16: 1963 | I16: 230 | J16: 230 | K16: 230 | L16: 230 | M16: 230 | N16: PL
A17: B | B17: 田口 航大 | D17: 8sukigym | E17: F-O | F17: 120 | G17: 15 | H17: 2002 | I17: 240 | J17: 240 | K17: 240 | L17: 240 | M17: 240 | N17: PL
A18: B | B18: 光安 隆史 | D18: 8suki gym | E18: F-O | F18: 85 | G18: 16 | H18: 1976 | I18: 250 | J18: 250 | K18: 250 | L18: 250 | M18: 250 | N18: PL
A19: B | B19: 石田 浩士 | D19: 8suki gym | E19: F-O | F19: 140 | G19: 17 | H19: 1970 | I19: 260 | J19: 260 | K19: 260 | L19: 260 | M19: 260 | N19: PL
A20: B | B20: 堀 滋 | D20: 8suki gym | E20: F-O | F20: 150 | G20: 18 | H20: 1975 | I20: 270 | J20: 270 | K20: 270 | L20: 270 | M20: 270 | N20: PL
A21: C | B21: 中川 貴美子 | D21: 8suki gym | E21: F-M1-U | F21: 150 | G21: 18 | H21: 1975 | I21: 280 | J21: 280 | K21: 280 | L21: 280 | M21: 280 | N21: PL
A22: C | B22: 伊藤 由実子 | D22: Ks GYM | E22: F-M2-U | F22: 150 | G22: 18 | H22: 1975 | I22: 290 | J22: 290 | K22: 290 | L22: 290 | M22: 290 | N22: PL
A23: C | B23: 丸山 武 | D23: 個人 | E23: M-M1-U | F23: 150 | G23: 18 | H23: 1975 | I23: 300 | J23: 300 | K23: 300 | L23: 300 | M23: 300 | N23: PL
A24: C | B24: 立脇 和弥 | D24: 個人 | E24: M-M4-U | F24: 150 | G24: 18 | H24: 1975 | I24: 310 | J24: 310 | K24: 310 | L24: 310 | M24: 310 | N24: PL
A25: C | B25: 小脇 剛 | D25: 三菱日立パワーシステムズ | E25: M-M4-U | F25: 150 | G25: 18 | H25: 1975 | I25: 320 | J25: 320 | K25: 320 | L25: 320 | M25: 320 | N25: PL
A26: C | B26: 松尾 直樹 | D26: 藤本ジム | E26: M-M4-U | F26: 150 | G26: 18 | H26: 1975 | I26: 330 | J26: 330 | K26: 330 | L26: 330 | M26: 330 | N26: PL
A27: C | B27: 三木 聖也 | D27: 個人 | E27: M-M4-U | F27: 150 | G27: 18 | H27: 1975 | I27: 340 | J27: 340 | K27: 340 | L27: 340 | M27: 340 | N27: PL
A28: C | B28: 山本 泰資 | D28: 鉄腕加西 | E28: M-M4-U | F28: 150 | G28: 18 | H28: 1975 | I28: 350 | J28: 350 | K28: 350 | L28: 350 | M28: 350 | N28: PL
A29: C | B29: 大西 康平 | D29: 個人 | E29: M-M4-U | F29: 150 | G29: 18 | H29: 1975 | I29: 360 | J29: 360 | K29: 360 | L29: 360 | M29: 360 | N29: PL
A30: C | B30: 佐藤 啓 | D30: 個人 | E30: M-M4-U | F30: 150 | G30: 18 | H30: 1975 | I30: 370 | J30: 370 | K30: 370 | L30: 370 | M30: 370 | N30: PL
A31: C | B31: 大寺 康平 | D31: 8suki gym | E31: M-M4-U | F31: 150 | G31: 18 | H31: 1975 | I31: 380 | J31: 380 | K31: 380 | L31: 380 | M31: 380 | N31: PL
A32: C | B32: 芳村 晃 | D32: ヤスキジム | E32: M-M4-U | F32: 150 | G32: 18 | H32: 1975 | I32: 390 | J32: 390 | K32: 390 | L32: 390 | M32: 390 | N32: PL
A33: C | B33: 瀧井 章男 | D33: 8suki gym | E33: M-M4-U | F33: 150 | G33: 18 | H33: 1975 | I33: 400 | J33: 400 | K33: 400 | L33: 400 | M33: 400 | N33: PL
A34: C | B34: 吉岡 弘和 | D34: 8suki gym | E34: M-M4-U | F34: 150 | G34: 18 | H34: 1975 | I34: 410 | J34: 410 | K34: 410 | L34: 410 | M34: 410 | N34: PL
A35: C | B35: 田口 航大 | D35: 阪南大学ウエイトトレーニング部 | E35: M-M4-U | F35: 150 | G35: 18 | H35: 1975 | I35: 420 | J35: 420 | K35: 420 | L35: 420 | M35: 420 | N35: PL
A36: C | B36: 光安 隆史 | D36: ヤスキジム | E36: M-O-U | F36: 150 | G36: 18 | H36: 1975 | I36: 430 | J36: 430 | K36: 430 | L36: 430 | M36: 430 | N36: PL
A37: D | B37: 石田 浩士 | D37: フジモトジム | E37: M-O-U | F37: 150 | G37: 18 | H37: 1975 | I37: 440 | J37: 440 | K37: 440 | L37: 440 | M37: 440 | N37: PL
A38: D | B38: 堀 滋 | D38: 個人選手 | E38: M-O-U | F38: 150 | G38: 18 | H38: 1975 | I38: 450 | J38: 450 | K38: 450 | L38: 450 | M38: 450 | N38: PL
A39: D | B39: 坂東 太郎 | D39: 8suki gym | E39: M-O-U | F39: 150 | G39: 18 | H39: 1975 | I39: 460 | J39: 460 | K39: 460 | L39: 460 | M39: 460 | N39: PL
A40: D | B40: 山本 高史 | D40: 三菱重工業高砂製作所 | E40: M-O-U | F40: 150 | G40: 18 | H40: 1975 | I40: 470 | J40: 470 | K40: 470 | L40: 470 | M40: 470 | N40: PL
A41: D | B41: 谷 茂樹 | D41: チーム鉄腕 | E41: M-O-U | F41: 150 | G41: 18 | H41: 1975 | I41: 480 | J41: 480 | K41: 480 | L41: 480 | M41: 480 | N41: PL
A42: D | B42: 松岡 徹 | D42: WTC藤井寺 | E42: M-O-U | F42: 150 | G42: 18 | H42: 1975 | I42: 490 | J42: 490 | K42: 490 | L42: 490 | M42: 490 | N42: PL
A43: D | B43: 出合 翔 | D43: 個人 | E43: M-O-U | F43: 150 | G43: 18 | H43: 1975 | I43: 500 | J43: 500 | K43: 500 | L43: 500 | M43: 500 | N43: PL
A44: D | B44: 若崎 晃裕 | D44: 8suki gym | E44: M-O-U | F44: 150 | G44: 18 | H44: 1975 | I44: 510 | J44: 510 | K44: 510 | L44: 510 | M44: 510 | N44: PL
A45: D | B45: 乾 欣正 | D45: 8sukigym | E45: M-O-U | F45: 150 | G45: 18 | H45: 1975 | I45: 520 | J45: 520 | K45: 520 | L45: 520 | M45: 520 | N45: PL
A46: D | B46: 高松 克哉 | D46: 個人 | E46: M-O-U | F46: 150 | G46: 18 | H46: 1975 | I46: 530 | J46: 530 | K46: 530 | L46: 530 | M46: 530 | N46: PL
A47: D | B47: 臼木 翔吾 | D47: 8sukigym | E47: M-O-U | F47: 150 | G47: 18 | H47: 1975 | I47: 540 | J47: 540 | K47: 540 | L47: 540 | M47: 540 | N47: PL
A48: D | B48: 木之下 竜也 | D48: 個人 | E48: M-O-U | F48: 150 | G48: 18 | H48: 1975 | I48: 550 | J48: 550 | K48: 550 | L48: 550 | M48: 550 | N48: PL
A49: D | B49: 前田 光生 | D49: チーム鉄腕 | E49: M-O-U | F49: 150 | G49: 18 | H49: 1975 | I49: 560 | J49: 560 | K49: 560 | L49: 560 | M49: 560 | N49: PL
A50: D | B50: 中澤 禎郁 | D50: 8suki ジム | E50: M-O-U | F50: 150 | G50: 18 | H50: 1975 | I50: 570 | J50: 570 | K50: 570 | L50: 570 | M50: 570 | N50: PL
A51: D | B51: 斉藤 大明 | D51: 8suki gym | E51: M-O-U | F51: 150 | G51: 18 | H51: 1975 | I51: 580 | J51: 580 | K51: 580 | L51: 580 | M51: 580 | N51: PL
E52: -
E53: -
E54: -
E55: -
E56: -
E57: -
E58: -
E59: -
E60: -
E61: -
E62: -
E63: -
E64: -
E65: -
E66: -
E67: -
E68: -
E69: -
E70: -
E71: -
E72: -
E73: -
E74: -
E75: -
E76: -
E77: -
E78: -
E79: -
E80: -
E81: -
E82: -
E83: -
E84: -
E85: -
E86: -
E87: -
E88: -
E89: -
E90: -
E91: -
E92: -
E93: -
E94: -
E95: -
E96: -
E97: -
E98: -
E99: -
E100: -
E101: -
E102: -
E103: -
E104: -
E105: -
E106: -
E107: -
E108: -
E109: -
E110: -
E111: -
E112: -
E113: -
E114: -
E115: -
E116: -
E117: -
E118: -
E119: -
E120: -
E121: -
E122: -
E123: -
E124: -
E125: -
E126: -
E127: -
E128: -
E129: -
E130: -
E131: -
E132: -
E133: -
E134: -
E135: -
E136: -
E137: -
E138: -
E139: -
E140: -
E141: -
E142: -
E143: -
E144: -
E145: -
E146: -
E147: -
E148: -
E149: -
E150: -
E151: -
E152: -
E153: -
E154: -
E155: -
E156: -
E157: -
E158: -
E159: -
E160: -
E161: -
E162: -
E163: -
E164: -
E165: -
E166: -
E167: -
E168: -
E169: -
E170: -
E171: -
E172: -
E173: -
E174: -
E175: -
E176: -
E177: -
E178: -
E179: -
E180: -
E181: -
E182: -
E183: -
E184: -
E185: -
E186: -
E187: -
E188: -
E189: -
E190: -
E191: -
E192: -
E193: -
E194: -
E195: -
E196: -
E197: -
E198: -
E199: -
E200: -
... 614 more rows

Sheet エントリー表 (hidden)
A1: 第２１回兵庫県ベンチプレス選手権
A2: セクション | B2: № | C2: 種別 | D2: 階級 | E2: カテゴリー | F2: 選手名 | G2: 年齢 | H2: 都道府県 | I2: 所属
A3: 第１セッション 検量 ７：３０－９：００ 試技開始 ９：３０
A4: 1 | B4: 1 | C4: フルギア | D4: 63㎏級 | E4: 県外 | F4: 山下 彩 | G4: 1986 | H4: 大阪府 | I4: 8suki gym
B5: 2 | C5: フルギア | D5: 72㎏級 | E5: 県外 | F5: 高岡 美穂 | G5: 1992 | H5: 大阪府 | I5: 8suki gym
B6: 3 | C6: フルギア | D6: 53㎏級 | E6: 県外 | F6: 酒井 維吹 | G6: 2000 | H6: 大阪府 | I6: 8suki gym
B7: 4 | C7: フルギア | D7: 59㎏級 | E7: 県外 | F7: 野口 貴史 | G7: 1993 | H7: 大阪府 | I7: 8suki gym
B8: 5 | C8: フルギア | D8: 66㎏級 | E8: 県外 | F8: 吉村 雄一 | G8: 1994 | H8: 大阪府 | I8: 8sukigym
B9: 6 | C9: フルギア | D9: 74㎏級 | E9: 県外 | F9: 安倉 明徳 | G9: 1958 | H9: 大阪府 | I9: 烈剛河内
B10: 7 | C10: フルギア | D10: 74㎏級 | E10: 県外 | F10: 久保田 甲斐 | G10: 1991 | H10: 大阪府 | I10: 8sukigym
B11: 8 | C11: フルギア | D11: 74㎏級 | E11: 県外 | F11: 松尾 静葵 | G11: 2000 | H11: 大阪府 | I11: 8sukigym
B12: 9 | C12: フルギア | D12: 74㎏級 | E12: 県外 | F12: 後藤 隆 | G12: 1976 | H12: 大阪府 | I12: 8suki gym
B13: 10 | C13: フルギア | D13: 83㎏級 | E13: 県外 | F13: 阪本 賢一 | G13: 1970 | H13: 大阪府 | I13: 8suki gym
B14: 11 | C14: フルギア | D14: 83㎏級 | E14: 県外 | F14: 菅原 大輔 | G14: 1983 | H14: 大阪府 | I14: 8sukiGYM
B15: 12 | C15: フルギア | D15: 93㎏級 | E15: 県外 | F15: 植野 哲 | G15: 1984 | H15: 大阪府 | I15: 8suki gym
B16: 13 | C16: フルギア | D16: 93㎏級 | E16: 県外 | F16: 塚村 英夫 | G16: 1981 | H16: 大阪府 | I16: 8suki gym
B17: 14 | C17: フルギア | D17: 93㎏級 | E17: 県外 | F17: 山本 僚介 | G17: 1987 | H17: 大阪府 | I17: 8sukigym
B18: 15 | C18: フルギア | D18: 93㎏級 | E18: 県外 | F18: 上田 真司 | G18: 1972 | H18: 大阪府 | I18: Ks GYM
B19: 16 | C19: フルギア | D19: 93㎏級 | E19: 県外 | F19: 西田 貴胤 | G19: 1976 | H19: 大阪府 | I19: 8sukigym
B20: 17 | C20: フルギア | D20: 93㎏級 | E20: 県外 | F20: 山下 保樹 | G20: 1991 | H20: 大阪府 | I20: 8suki gym
B21: 18 | C21: フルギア | D21: 105㎏級 | E21: 県外 | F21: 岩本 隆全 | G21: 1971 | H21: 大阪府 | I21: 8suki gym
A22: 第２セッション 検量 １６：４５－１８：１５ 試技開始 １８：４５
A23: 2 | B23: 19 | C23: ノーギア | D23: 52㎏級 | E23: 県外 | F23: 中川 貴美子 | G23: 1982 | H23: 大阪府 | I23: 8suki gym | K23: 19
B24: 20 | C24: ノーギア | D24: 72㎏級 | E24: 県外 | F24: 伊藤 由実子 | G24: 1976 | H24: 大阪府 | I24: Ks GYM | K24: 20
B25: 21 | C25: ノーギア | D25: 59㎏級 | E25: 一般 | F25: 丸山 武 | G25: 1981 | H25: 兵庫県 | I25: 個人 | K25: 21
B26: 22 | C26: ノーギア | D26: 59㎏級 | E26: 一般 | F26: 立脇 和弥 | G26: 1986 | H26: 兵庫県 | I26: 個人 | K26: 22
B27: 23 | C27: ノーギア | D27: 59㎏級 | E27: 一般 | F27: 小脇 剛 | G27: 1979 | H27: 兵庫県 | I27: 三菱日立パワーシステムズ | K27: 23
B28: 24 | C28: ノーギア | D28: 74㎏級 | E28: Ｍ２ | F28: 松尾 直樹 | G28: 1963 | H28: 兵庫県 | I28: 藤本ジム | K28: 24
B29: 25 | C29: ノーギア | D29: 74㎏級 | E29: 一般 | F29: 三木 聖也 | G29: 1996 | H29: 兵庫県 | I29: 個人 | K29: 25
B30: 26 | C30: ノーギア | D30: 74㎏級 | E30: 一般 | F30: 山本 泰資 | G30: 1993 | H30: 兵庫県 | I30: 鉄腕加西 | K30: 26
B31: 27 | C31: ノーギア | D31: 74㎏級 | E31: 一般 | F31: 大西 康平 | G31: 1994 | H31: 兵庫県 | I31: 個人 | K31: 27
B32: 28 | C32: ノーギア | D32: 74㎏級 | E32: 県外 | F32: 佐藤 啓 | G32: 1971 | H32: 大阪府 | I32: 個人 | K32: 28
B33: 29 | C33: ノーギア | D33: 74㎏級 | E33: 県外 | F33: 大寺 康平 | G33: 1987 | H33: 大阪府 | I33: 8suki gym | K33: 29
B34: 30 | C34: ノーギア | D34: 74㎏級 | E34: 県外 | F34: 芳村 晃 | G34: 1975 | H34: 大阪府 | I34: ヤスキジム | K34: 30
B35: 31 | C35: ノーギア | D35: 74㎏級 | E35: 県外 | F35: 瀧井 章男 | G35: 1984 | H35: 大阪府 | I35: 8suki gym | K35: 31
B36: 32 | C36: ノーギア | D36: 74㎏級 | E36: 県外 | F36: 吉岡 弘和 | G36: 1963 | H36: 大阪府 | I36: 8suki gym | K36: 32
B37: 33 | C37: ノーギア | D37: 74㎏級 | E37: 県外 | F37: 田口 航大 | G37: 2002 | H37: 大阪府 | I37: 阪南大学ウエイトトレーニング部 | K37: 33
B38: 34 | C38: ノーギア | D38: 74㎏級 | E38: 県外 | F38: 光安 隆史 | G38: 1976 | H38: 大阪府 | I38: ヤスキジム | K38: 34
A39: 3 | B39: 35 | C39: ノーギア | D39: 66㎏級 | E39: Ｍ２ | F39: 石田 浩士 | G39: 1970 | H39: 兵庫県 | I39: フジモトジム | K39: 35
B40: 36 | C40: ノーギア | D40: 66㎏級 | E40: 県外 | F40: 堀 滋 | G40: 1975 | H40: 大阪府 | I40: 個人選手 | K40: 36
B41: 37 | C41: ノーギア | D41: 66㎏級 | E41: 県外 | F41: 坂東 太郎 | G41: 1994 | H41: 大阪府 | I41: 8suki gym | K41: 37
B42: 38 | C42: ノーギア | D42: 83㎏級 | E42: 一般 | F42: 山本 高史 | G42: 1972 | H42: 兵庫県 | I42: 三菱重工業高砂製作所 | K42: 38
B43: 39 | C43: ノーギア | D43: 83㎏級 | E43: 一般 | F43: 谷 茂樹 | G43: 1986 | H43: 兵庫県 | I43: チーム鉄腕 | K43: 39
B44: 40 | C44: ノーギア | D44: 83㎏級 | E44: 県外 | F44: 松岡 徹 | G44: 1976 | H44: 大阪府 | I44: WTC藤井寺 | K44: 40
B45: 41 | C45: ノーギア | D45: 83㎏級 | E45: 県外 | F45: 出合 翔 | G45: 1991 | H45: 大阪府 | I45: 個人 | K45: 41
B46: 42 | C46: ノーギア | D46: 83㎏級 | E46: 県外 | F46: 若崎 晃裕 | G46: 1987 | H46: 大阪府 | I46: 8suki gym | K46: 42
B47: 43 | C47: ノーギア | D47: 83㎏級 | E47: 県外 | F47: 乾 欣正 | G47: 1980 | H47: 大阪府 | I47: 8sukigym | K47: 43
B48: 44 | C48: ノーギア | D48: 83㎏級 | E48: 県外 | F48: 高松 克哉 | G48: 1980 | H48: 大阪府 | I48: 個人 | K48: 44
B49: 45 | C49: ノーギア | D49: 93㎏級 | E49: 県外 | F49: 臼木 翔吾 | G49: 1992 | H49: 大阪府 | I49: 8sukigym | K49: 45
B50: 46 | C50: ノーギア | D50: 105㎏級 | E50: ＪＲ | F50: 木之下 竜也 | G50: 2001 | H50: 兵庫県 | I50: 個人 | K50: 46
B51: 47 | C51: ノーギア | D51: 105㎏級 | E51: Ｍ３ | F51: 前田 光生 | G51: 1960 | H51: 兵庫県 | I51: チーム鉄腕 | K51: 47
B52: 48 | C52: ノーギア | D52: 105㎏級 | E52: 県外 | F52: 中澤 禎郁 | G52: 1966 | H52: 大阪府 | I52: 8suki ジム | K52: 48
B53: 49 | C53: ノーギア | D53: 105㎏級 | E53: 県外 | F53: 斉藤 大明 | G53: 1985 | H53: 大阪府 | I53: 8suki gym | K53: 49
B54: 50 | C54: ノーギア | D54: 105㎏級 | E54: 県外 | F54: 豊島 泰弘 | G54: 1992 | H54: 大阪府 | I54: 8suki gym | K54: 50
B55: 51 | C55: ノーギア | D55: 105㎏級 | E55: 県外 | F55: 野口 昌利 | G55: 1994 | H55: 大阪府 | I55: 8suki gym | K55: 51
A56: 試技終了予定 ２０：３０
A57: 試技終了し、賞状発行して受領しましたらご帰宅お願いします。
